Workbook

Sheet Overview
A1: =IF(Solved, "X-factors Okay", "X-factor Error") -> X-factors Okay
B2: =ModelTitle -> ENDEAVOUR ENERGY METERING PRICING MODEL
B3: OVERVIEW
B5: Overview
B6: This model contains most of the elements of a PTRM (and RFM) needed for metering. This model includes allowances for the cost of income tax, debt raising costs and equity raising costs, which were not included in the last determination model. It should be noted that the tax component is not based on an explicit tax base for tax depreciation expense. Instead it is based on a simplifying assumption that the taxable income is equal to the return on equity revenue building block. The other element of the PTRM that is not used is the idea that the rate of retrun on debt can be updated annually.
B7: The 2014-15 RAB value is roll forwarded is identical to that used in the AER determination once actual CPI is accounted for. The the roll forward of new capex (ie replacement) is not identical because: 1. The AER final determination applied the 1/2 WACC to capex as "= Capex x (1 + WACC ÷ 2)", which should have been "= Capex x (1 + WACC )^0.5" 2. The AER's unusual method of calculating straight line depreciation does not align with the depreciation approach used for the opening RAB. This difference is irrelevant if using the "Forecast" depreciation approach for the period 2014-15 to 2018-19 as the determination forecast allowance is deducted from the asset value after accounting for actual inflation.
B9: Legend
B11: Inputs
B12: This sheet is where all hard-coded data assumptions are entered. The only other sheet with hard-coded data is the "Calc - Building Block & Xfactor" sheet which contains the x-factors created by the buttons that control certain goal seek functions.
B14: Calc Asset Roll Forward
B15: This sheet rolls forward the existing asset base value, starting with 2014-15 opening values. In the AER's RFM the starting value would be the opening asset value as at 2013-14 to make adjustments for the use of estimated capex in 2013-14 in the previous roll forward model. This is not needed as delays to the last determination allowed the actual capex to be included in the opening RAB. The roll forward calculations are identical to the AER's RFM. The Lagged or not Lagged approach can be applied to CPI on the Inputs sheet. There is an option to use the forecast depreciation to roll the RAB forward or to calculate the actual depreciation. The nominal forecast depreciation and CPI must be included as inputs. The roll forward does not reset the asset remaining lives at the start of the reset, which the AER's model normally does using a weighted average approach. Using the weighted average will defer recovery of capital.
B17: Calc Capital Costs
B18: This sheet is used to calculate the return on equity, return on debt and return of capital for the existng assets in the 2014-15 opening RAB and the new capital additions over the 2014-15 to 2018-19 regulatory period.
B20: Calc Capital Raising Costs
B21: This sheet calculates the forecast debt and equity raising costs as per the benchmark calculations in the AER's PTRM. Given the very small proportion of capex to RAB, there is no real possibility that equity raising costs will exist.
B23: Calc Building Blocks & Xfactors
B24: This sheet adds up the annual revenue requirement from the revenue building blocks (opex, return on capital, return of capital, tax). It then compares the annual revenue requirement with the expected revenue from prices and, with a VBA macro, calculates the x-factors that are needed to ensure the present value of the two revenue lines are equal.
B26: Calc Customer Numbers
B27: This sheet calculates the average customer numbers for the tariff classes to be used as an estaimte of the forecast volume of sales of metering services. Where a full customer number forecast is not entered for years 2016-17, there is a growth rate assumption that is applied, which is sourced from the Energeia report.
B29: Calc Revenue & Annual Charges
B30: This sheet calculates the annual charges for capital and non-capital costs. It does this by increasing the prior year's charges by CPI and the x-factor consisntly with the control mechnism formula. These charges are then multiplied by the sales volumes estimated on the previous page to derive a total expected revenue.
B32: Calc Daily Charges
B33: This sheet calculates the daily charges (capital and non-capital) by dividing the annual charges by the number of days in the releavant year. It then calculates the daily charges for Customer Categories 1, 2 & 3.
B35: Report Charges & Xfactors
B36: This sheet reports the Annual Capital and Non-Capital Charges per Tariff class and it also reports the calclulated X factors
B38: Report Daily Tariffs
B39: This sheet reports the Metering Tariff List to be used as the publication of prices every year of the pricing proposal is issued. There is a drop down menu in cell B4 so you can choose the year that you want to produce the price list for.

Sheet Inputs
A1: =IF(Solved, "X-factors Okay", "X-factor Error") -> X-factors Okay
B2: =ModelTitle -> ENDEAVOUR ENERGY METERING PRICING MODEL
B3: INPUTS
B5: Model time horizon | D5: Years | E5: 2013-14 | F5: 2014-15 | G5: 2015-16 | H5: 2016-17 | I5: 2017-18 | J5: 2018-19 | K5: 2019-20 | L5: 2020-21 | M5: 2021-22 | N5: 2022-23 | O5: 2023-24
B7: Rates and Inflation | D7: Units | E7: =INDEX(ModelYears, COLUMN()-COLUMN($D7)) -> 2013-14 | F7: 2014-15 | G7: 2015-16 | H7: 2016-17 | I7: 2017-18 | J7: 2018-19 | K7: 2019-20 | L7: 2020-21 | M7: 2021-22 | N7: 2022-23 | O7: 2023-24
B8: Forecast Annual CPI | C8: Lagged | D8: % | E8: 0.02474850298 | F8: 0.0238 | G8: 0.0238 | H8: 0.0238 | I8: 0.0238 | J8: 0.0238 | K8: 0.025 | L8: =K8 -> 0.025 | M8: =L8 -> 0.025 | N8: =M8 -> 0.025 | O8: =N8 -> 0.025
B9: CPI Index for roll forward, Base -> | C9: 2018-19 | D9: % | E9: =IF($C$9=E$5,1,IF(MATCH($C$9,ModelYears)>MATCH(E5,ModelYears),F9/(1+(IF(CPILag2="Lagged",E8,F8))),D9*(1+(IF(CPILag2="Lagged",D8,E8))))) -> 0.8882233923 | F9: 0.9102055916 | G9: 0.9318684847 | H9: 0.9540469546 | I9: 0.9767532721 | J9: 1 | K9: 1.0238 | L9: 1.049395 | M9: 1.075629875 | N9: 1.102520622 | O9: 1.130083637
B10: CPI Index for roll forward, Base -> | C10: 2015-16 | D10: % | E10: =IF($C$10=E$5,1,IF(MATCH($C$10,ModelYears)>MATCH(E5,ModelYears),F10/(1+(IF(CPILag2="Lagged",E8,F8))),D10*(1+(IF(CPILag2="Lagged",D8,E8))))) -> 0.9531638927 | F10: 0.9767532721 | G10: 1 | H10: 1.0238 | I10: 1.04816644 | J10: 1.073112801 | K10: 1.098652886 | L10: 1.126119208 | M10: 1.154272188 | N10: 1.183128993 | O10: 1.212707218
B11: CPI Index for roll forward, Base -> | C11: 2013-14 | D11: % | E11: =IF($C$11=E$5,1,IF(MATCH($C$11,ModelYears)>MATCH(E5,ModelYears),F11/(1+(IF(CPILag2="Lagged",E8,F8))),D11*(1+(IF(CPILag2="Lagged",D8,E8))))) -> 1 | F11: 1.024748503 | G11: 1.049137517 | H11: 1.07410699 | I11: 1.099670737 | J11: 1.1258429 | K11: 1.152637961 | L11: 1.18145391 | M11: 1.210990258 | N11: 1.241265014 | O11: 1.27229664
B12: Annual CPI (Actual) | C12: Lagged | D12: % | E12: =ROUND(1.76278015613196%,4) -> 0.0176 | F12: =ROUND(2.44988864142539%,4) -> 0.0245 | G12: =ROUND(2.48792270531402%,4) -> 0.0249 | H12: =ROUND(1.50836672165919%,4) -> 0.0151 | I12: 0.01276990945 | J12: 0.01948647409 | K12: 0.025 | L12: =K12 -> 0.025 | M12: =L12 -> 0.025 | N12: =M12 -> 0.025 | O12: =N12 -> 0.025
B13: CPI Index for forecast expenditure, Base -> | C13: 2018-19 | D13: % | E13: =IF($C$13=E$5,1,IF(MATCH($C$13,ModelYears)>MATCH(E5,ModelYears),F13/(1+(IF(CPILag2="Lagged",E12,F12))),D13*(1+(IF(CPILag2="Lagged",D12,E12))))) -> 0.9103530018 | F13: 0.9263752146 | G13: 0.9490714073 | H13: 0.9727032854 | I13: 0.987391105 | J13: 1 | K13: 1.019486474 | L13: 1.044973636 | M13: 1.071097977 | N13: 1.097875426 | O13: 1.125322312
B14: CPI Index for forecast expenditure, Base -> | C14: 2015-16 | D14: % | E14: =IF($C$14=E$5,1,IF(MATCH($C$14,ModelYears)>MATCH(E5,ModelYears),F14/(1+(IF(CPILag="Lagged",E12,F12))),D14*(1+(IF(CPILag="Lagged",D12,E12))))) -> 0.9592039068 | F14: 0.9760858956 | G14: 1 | H14: 1.0249 | I14: 1.04037599 | J14: 1.053661497 | K14: 1.074193645 | L14: 1.101048486 | M14: 1.128574698 | N14: 1.156789065 | O14: 1.185708792
B15: CPI Index for roll forward, Base -> | C15: 2013-14 | D15: % | E15: =IF(BaseYearRFM=E$5,1,IF(MATCH(BaseYearRFM,ModelYears)>MATCH(E5,ModelYears),F15/(1+(IF(CPILag="Lagged",E12,F12))),D15*(1+(IF(CPILag="Lagged",D12,E12))))) -> 1 | F15: 1.0176 | G15: 1.0425312 | H15: 1.068490227 | I15: 1.084624429 | J15: 1.098474985 | K15: 1.119880389 | L15: 1.147877399 | M15: 1.176574334 | N15: 1.205988692 | O15: 1.23613841
B16: Nominal WACC | D16: % | F16: 0.06743968726 | G16: 0.06679770942 | H16: 0.06679770942 | I16: 0.06679770942 | J16: 0.06679770942 | K16: 0.0611 | L16: =vanilla6 -> 0.0611 | M16: =vanilla6 -> 0.0611 | N16: =vanilla6 -> 0.0611 | O16: =vanilla6 -> 0.0611
B17: Rate of Return on Debt | D17: % | E17: 0.06506614544 | F17: 0.06506614544 | G17: 0.06399618237 | H17: 0.06399618237 | I17: 0.06399618237 | J17: 0.06399618237 | K17: 0.0539 | L17: 0.0539 | M17: 0.0539 | N17: 0.0539 | O17: 0.0539
B18: Rate of Return on Equity | D18: % | E18: 0.071 | F18: 0.071 | G18: 0.071 | H18: 0.071 | I18: 0.071 | J18: 0.071 | K18: 0.0719 | L18: 0.0719 | M18: 0.0719 | N18: 0.0719 | O18: 0.0719
B19: Approved X-factors | D19: % | H19: -0.02246252228 | I19: -0.02246252228 | J19: -0.02246252228
B21: Other annual rates | D21: Units | F21: Rate
B22: Tax rate | D22: % | F22: 0.3
B23: Value of Imputation credits | D23: % | F23: 0.25
B24: Debt/(Debt + Equity) | D24: % | F24: 0.6
B25: Debt Raising Costs | D25: % | F25: 0.00081
B26: Imputation Credit Payout Ratio | D26: % | F26: 0.7
B27: Dividend Reinvestment Plan Take Up | D27: % | F27: 0.3
B28: Dividend Reinvestment Plan Costs | D28: % | F28: 0.01
B29: Subsequent Equity Raising Costs | D29: % | F29: 0.03
B31: Number of days | D31: Units | F31: =INDEX(ModelYears, COLUMN()-COLUMN($D31)) -> 2014-15 | G31: 2015-16 | H31: 2016-17 | I31: 2017-18 | J31: 2018-19 | K31: 2019-20 | L31: 2020-21 | M31: 2021-22 | N31: 2022-23 | O31: 2023-24
B32: Chargeable days | F32: 365 | G32: 366 | H32: 365 | I32: 365 | J32: 365 | K32: 366 | L32: 365 | M32: 365 | N32: 365 | O32: 366
B34: Rounding for prices | D34: Units | G34: =INDEX(ModelYears, COLUMN()-COLUMN($D34)) -> 2015-16 | H34: 2016-17 | I34: 2017-18 | J34: 2018-19 | K34: 2019-20 | L34: 2020-21 | M34: 2021-22 | N34: 2022-23 | O34: 2023-24
B35: Annual prices | D35: Decimal places | G35: 2 | H35: 2 | I35: 2 | J35: 2 | K35: 2 | L35: 2 | M35: 2 | N35: 2 | O35: 2
B36: Daily prices (round down) | D36: Decimal places | G36: 5 | H36: 5 | I36: 5 | J36: 5 | K36: 5 | L36: 5 | M36: 5 | N36: 5 | O36: 5
B38: Opening RAB Values | D38: Units | F38: =INDEX(ModelYears, COLUMN()-COLUMN($D38)) -> 2014-15
B39: Customer Metering | C39: System | D39: $m nominal | F39: 17.33774941
B40: Information & Communication Technology | C40: Non-System | D40: $m nominal | F40: 0.1515895599
B41: Furniture, Fittings, Plant and Equipment | C41: Non-System | D41: $m nominal | F41: 0.1526145408
B42: Motor Vehicles | C42: Non-System | D42: $m nominal | F42: 0.07735175712
B43: Buildings | C43: Non-System | D43: $m nominal | F43: 0.64939891
B44: Land (Non-System) | C44: Non-System | D44: $m nominal | F44: 0.421128743
B45: Other Non System Assets | C45: Non-System | D45: $m nominal | F45: -2.877780823e-05
F46: =SUM(F39:F45) -> 18.78980414
B47: Asset Lives | D47: Units | F47: Rem Life | G47: Std Life
B48: =Asset1 -> Customer Metering | C48: =$C$39 -> System | D48: Years | F48: 23.00990593 | G48: 15
B49: =Asset2 -> Information & Communication Technology | C49: =$C$40 -> Non-System | D49: Years | F49: 23.00990593 | G49: 15
B50: =Asset3 -> Furniture, Fittings, Plant and Equipment | C50: =$C$41 -> Non-System | D50: Years | F50: 23.00990593 | G50: 15
B51: =Asset4 -> Motor Vehicles | C51: =$C$42 -> Non-System | D51: Years | F51: 23.00990593 | G51: 15
B52: =Asset5 -> Buildings | C52: =$C$43 -> Non-System | D52: Years | F52: 23.00990593 | G52: 15
B53: =Asset6 -> Land (Non-System) | C53: =$C$44 -> Non-System | D53: Years | F53: 23.00990593 | G53: 15
B54: =Asset7 -> Other Non System Assets | C54: =$C$45 -> Non-System | D54: Years | F54: 23.00990593 | G54: 15
B56: Roll forward option | C56: Determination Allowance
B58: Forecast Depreciation Allowance for 2014-15 RAB | D58: Units | F58: =INDEX(ModelYears, COLUMN()-COLUMN($D58)) -> 2014-15 | G58: =INDEX(ModelYears, COLUMN()-COLUMN($D58)) -> 2015-16 | H58: =INDEX(ModelYears, COLUMN()-COLUMN($D58)) -> 2016-17 | I58: =INDEX(ModelYears, COLUMN()-COLUMN($D58)) -> 2017-18 | J58: =INDEX(ModelYears, COLUMN()-COLUMN($D58)) -> 2018-19
B59: =Asset1 -> Customer Metering | C59: =$C$39 -> System | D59: $m nominal | F59: =$F39/SUM($F$39:$F$45)*F$66 -> 0.7714237467 | G59: =$F39/SUM($F$39:$F$45)*G$66 -> 0.7897836319 | H59: =$F39/SUM($F$39:$F$45)*H$66 -> 0.8085804823 | I59: 0.8278246978 | J59: 0.8475269256
B60: =Asset2 -> Information & Communication Technology | C60: =$C$40 -> Non-System | D60: $m nominal | F60: =$F40/SUM($F$39:$F$45)*F$66 -> 0.00674480773 | G60: 0.006905334154 | H60: 0.007069681107 | I60: 0.007237939518 | J60: 0.007410202478
B61: =Asset3 -> Furniture, Fittings, Plant and Equipment | C61: =$C$41 -> Non-System | D61: $m nominal | F61: =$F41/SUM($F$39:$F$45)*F$66 -> 0.006790413111 | G61: 0.006952024943 | H61: 0.007117483137 | I61: 0.007286879236 | J61: 0.007460306961
B62: =Asset4 -> Motor Vehicles | C62: =$C$42 -> Non-System | D62: $m nominal | F62: =$F42/SUM($F$39:$F$45)*F$66 -> 0.003441679822 | G62: 0.003523591802 | H62: 0.003607453287 | I62: 0.003693310675 | J62: 0.003781211469
B63: =Asset5 -> Buildings | C63: =$C$43 -> Non-System | D63: $m nominal | F63: =$F43/SUM($F$39:$F$45)*F$66 -> 0.02889427737 | G63: 0.02958196117 | H63: 0.03028601184 | I63: 0.03100681892 | J63: 0.03174478121
B64: =Asset6 -> Land (Non-System) | C64: =$C$44 -> Non-System | D64: $m nominal | F64: =$F44/SUM($F$39:$F$45)*F$66 -> 0.01873765188 | G64: 0.01918360799 | H64: 0.01964017786 | I64: 0.0201076141 | J64: 0.02058617531
B65: =Asset7 -> Other Non System Assets | C65: =$C$45 -> Non-System | D65: $m nominal | F65: =$F45/SUM($F$39:$F$45)*F$66 -> -1.280436355e-06 | G65: -1.31091074e-06 | H65: -1.342110415e-06 | I65: -1.374052643e-06 | J65: -1.406755096e-06
F66: 0.8360312962 | G66: 0.855928841 | H66: 0.8762999474 | I66: 0.8971558862 | J66: 0.9185081963
B68: Forecast Depreciation Allowance for 2014-15 RAB | D68: Units | F68: =INDEX(ModelYears, COLUMN()-COLUMN($D68)) -> 2014-15 | G68: =INDEX(ModelYears, COLUMN()-COLUMN($D68)) -> 2015-16 | H68: =INDEX(ModelYears, COLUMN()-COLUMN($D68)) -> 2016-17 | I68: =INDEX(ModelYears, COLUMN()-COLUMN($D68)) -> 2017-18 | J68: =INDEX(ModelYears, COLUMN()-COLUMN($D68)) -> 2018-19
B69: =Asset1 -> Customer Metering | C69: =$C$39 -> System | D69: $m 2013-14 | F69: =F59/F$11 -> 0.7527932409 | G69: 0.7527932409 | H69: 0.7527932409 | I69: 0.7527932409 | J69: 0.7527932409
B70: =Asset2 -> Information & Communication Technology | C70: =$C$40 -> Non-System | D70: $m 2013-14 | F70: 0.006581915183 | G70: 0.006581915183 | H70: 0.006581915183 | I70: 0.006581915183 | J70: 0.006581915183
B71: =Asset3 -> Furniture, Fittings, Plant and Equipment | C71: =$C$41 -> Non-System | D71: $m 2013-14 | F71: 0.006626419157 | G71: 0.006626419157 | H71: 0.006626419157 | I71: 0.006626419157 | J71: 0.006626419157
B72: =Asset4 -> Motor Vehicles | C72: =$C$42 -> Non-System | D72: $m 2013-14 | F72: 0.003358560478 | G72: 0.003358560478 | H72: 0.003358560478 | I72: 0.003358560478 | J72: 0.003358560478
B73: =Asset5 -> Buildings | C73: =$C$43 -> Non-System | D73: $m 2013-14 | F73: 0.02819645726 | G73: 0.02819645726 | H73: 0.02819645726 | I73: 0.02819645726 | J73: 0.02819645726
B74: =Asset6 -> Land (Non-System) | C74: =$C$44 -> Non-System | D74: $m 2013-14 | F74: 0.01828512247 | G74: 0.01828512247 | H74: 0.01828512247 | I74: 0.01828512247 | J74: 0.01828512247
B75: =Asset7 -> Other Non System Assets | C75: =$C$45 -> Non-System | D75: $m 2013-14 | F75: -1.249512784e-06 | G75: -1.249512784e-06 | H75: -1.249512784e-06 | I75: -1.249512784e-06 | J75: -1.249512784e-06
B77: Forecast Depreciation Allowance for Capex | D77: Units | F77: =INDEX(ModelYears, COLUMN()-COLUMN($D77)) -> 2014-15 | G77: =INDEX(ModelYears, COLUMN()-COLUMN($D77)) -> 2015-16 | H77: =INDEX(ModelYears, COLUMN()-COLUMN($D77)) -> 2016-17 | I77: =INDEX(ModelYears, COLUMN()-COLUMN($D77)) -> 2017-18 | J77: =INDEX(ModelYears, COLUMN()-COLUMN($D77)) -> 2018-19
B78: =Asset1 -> Customer Metering | C78: =$C$39 -> System | D78: $m nominal | F78: 0 | G78: 0.2009401418 | H78: 0.4017554924 | I78: 0.8229786098 | J78: 1.49969466
B79: =Asset2 -> Information & Communication Technology | C79: =$C$40 -> Non-System | D79: $m nominal
B80: =Asset3 -> Furniture, Fittings, Plant and Equipment | C80: =$C$41 -> Non-System | D80: $m nominal
B81: =Asset4 -> Motor Vehicles | C81: =$C$42 -> Non-System | D81: $m nominal
B82: =Asset5 -> Buildings | C82: =$C$43 -> Non-System | D82: $m nominal
B83: =Asset6 -> Land (Non-System) | C83: =$C$44 -> Non-System | D83: $m nominal
B84: =Asset7 -> Other Non System Assets | C84: =$C$45 -> Non-System | D84: $m nominal
B86: Forecast Depreciation Allowance for Capex | D86: Units | F86: =INDEX(ModelYears, COLUMN()-COLUMN($D86)) -> 2014-15 | G86: =INDEX(ModelYears, COLUMN()-COLUMN($D86)) -> 2015-16 | H86: =INDEX(ModelYears, COLUMN()-COLUMN($D86)) -> 2016-17 | I86: =INDEX(ModelYears, COLUMN()-COLUMN($D86)) -> 2017-18 | J86: =INDEX(ModelYears, COLUMN()-COLUMN($D86)) -> 2018-19
B87: =Asset1 -> Customer Metering | C87: =$C$39 -> System | D87: $m 2013-14 | F87: =F78/F$11 -> 0 | G87: =G78/G$11 -> 0.1915288877 | H87: =H78/H$11 -> 0.3740367543 | I87: =I78/I$11 -> 0.7483863873 | J87: =J78/J$11 -> 1.332063878
B88: Depreciation of Capex in 2014-15 | C88: =C87 -> System | D88: $m 2013-14 | G88: =G87 -> 0.1915288877 | H88: =G88 -> 0.1915288877 | I88: =H88 -> 0.1915288877 | J88: 0.1915288877
B89: Depreciation of Capex in 2015-16 | C89: =C88 -> System | D89: $m 2013-14 | H89: =H87-H88 -> 0.1825078665 | I89: =H89 -> 0.1825078665 | J89: =I89 -> 0.1825078665
B90: Depreciation of Capex in 2016-17 | C90: System | D90: $m 2013-14 | I90: =I87-I88-I89 -> 0.3743496331 | J90: =I90 -> 0.3743496331
B91: Depreciation of Capex in 2017-18 | C91: System | D91: $m 2013-14 | J91: =J87-J88-J89-J90 -> 0.5836774906
B92: Depreciation of Capex in 2018-19 | C92: System | D92: $m 2013-14
B93: =Asset2 -> Information & Communication Technology | C93: =$C$40 -> Non-System | D93: $m 2013-14 | F93: =F79/F$11 -> 0 | G93: =G79/G$11 -> 0 | H93: =H79/H$11 -> 0 | I93: =I79/I$11 -> 0 | J93: =J79/J$11 -> 0
B94: Depreciation of Capex in 2014-15 | C94: =C93 -> Non-System | D94: $m 2013-14 | G94: =G93 -> 0 | H94: =G94 -> 0 | I94: =H94 -> 0 | J94: 0
B95: Depreciation of Capex in 2015-16 | C95: =C94 -> Non-System | D95: $m 2013-14 | H95: =H93-H94 -> 0 | I95: =H95 -> 0 | J95: =I95 -> 0
B96: Depreciation of Capex in 2016-17 | C96: Non-System | D96: $m 2013-14 | I96: =I93-I94-I95 -> 0 | J96: =I96 -> 0
B97: Depreciation of Capex in 2017-18 | C97: Non-System | D97: $m 2013-14 | J97: =J93-J94-J95-J96 -> 0
B98: Depreciation of Capex in 2018-19 | C98: Non-System | D98: $m 2013-14
B99: =Asset3 -> Furniture, Fittings, Plant and Equipment | C99: =$C$41 -> Non-System | D99: $m 2013-14 | F99: =F80/F$11 -> 0 | G99: =G80/G$11 -> 0 | H99: =H80/H$11 -> 0 | I99: =I80/I$11 -> 0 | J99: =J80/J$11 -> 0
B100: Depreciation of Capex in 2014-15 | C100: =C99 -> Non-System | D100: $m 2013-14 | G100: =G99 -> 0 | H100: =G100 -> 0 | I100: =H100 -> 0 | J100: 0
B101: Depreciation of Capex in 2015-16 | C101: =C100 -> Non-System | D101: $m 2013-14 | H101: =H99-H100 -> 0 | I101: =H101 -> 0 | J101: =I101 -> 0
B102: Depreciation of Capex in 2016-17 | C102: Non-System | D102: $m 2013-14 | I102: =I99-I100-I101 -> 0 | J102: =I102 -> 0
B103: Depreciation of Capex in 2017-18 | C103: Non-System | D103: $m 2013-14 | J103: =J99-J100-J101-J102 -> 0
B104: Depreciation of Capex in 2018-19 | C104: Non-System | D104: $m 2013-14
B105: =Asset4 -> Motor Vehicles | C105: =$C$42 -> Non-System | D105: $m 2013-14 | F105: =F81/F$11 -> 0 | G105: =G81/G$11 -> 0 | H105: =H81/H$11 -> 0 | I105: =I81/I$11 -> 0 | J105: =J81/J$11 -> 0
B106: Depreciation of Capex in 2014-15 | C106: =C105 -> Non-System | D106: $m 2013-14 | G106: =G105 -> 0 | H106: =G106 -> 0 | I106: =H106 -> 0 | J106: 0
B107: Depreciation of Capex in 2015-16 | C107: =C106 -> Non-System | D107: $m 2013-14 | H107: =H105-H106 -> 0 | I107: =H107 -> 0 | J107: =I107 -> 0
B108: Depreciation of Capex in 2016-17 | C108: Non-System | D108: $m 2013-14 | I108: =I105-I106-I107 -> 0 | J108: =I108 -> 0
B109: Depreciation of Capex in 2017-18 | C109: Non-System | D109: $m 2013-14 | J109: =J105-J106-J107-J108 -> 0
B110: Depreciation of Capex in 2018-19 | C110: Non-System | D110: $m 2013-14
B111: =Asset5 -> Buildings | C111: =$C$43 -> Non-System | D111: $m 2013-14 | F111: =F82/F$11 -> 0 | G111: =G82/G$11 -> 0 | H111: =H82/H$11 -> 0 | I111: =I82/I$11 -> 0 | J111: =J82/J$11 -> 0
B112: Depreciation of Capex in 2014-15 | C112: =C111 -> Non-System | D112: $m 2013-14 | G112: =G111 -> 0 | H112: =G112 -> 0 | I112: =H112 -> 0 | J112: 0
B113: Depreciation of Capex in 2015-16 | C113: =C112 -> Non-System | D113: $m 2013-14 | H113: =H111-H112 -> 0 | I113: =H113 -> 0 | J113: =I113 -> 0
B114: Depreciation of Capex in 2016-17 | C114: Non-System | D114: $m 2013-14 | I114: =I111-I112-I113 -> 0 | J114: =I114 -> 0
B115: Depreciation of Capex in 2017-18 | C115: Non-System | D115: $m 2013-14 | J115: =J111-J112-J113-J114 -> 0
B116: Depreciation of Capex in 2018-19 | C116: Non-System | D116: $m 2013-14
B117: =Asset6 -> Land (Non-System) | C117: =$C$44 -> Non-System | D117: $m 2013-14 | F117: =F83/F$11 -> 0 | G117: =G83/G$11 -> 0 | H117: =H83/H$11 -> 0 | I117: =I83/I$11 -> 0 | J117: =J83/J$11 -> 0
B118: Depreciation of Capex in 2014-15 | C118: =C117 -> Non-System | D118: $m 2013-14 | G118: =G117 -> 0 | H118: =G118 -> 0 | I118: =H118 -> 0 | J118: 0
B119: Depreciation of Capex in 2015-16 | C119: =C118 -> Non-System | D119: $m 2013-14 | H119: =H117-H118 -> 0 | I119: =H119 -> 0 | J119: =I119 -> 0
B120: Depreciation of Capex in 2016-17 | C120: Non-System | D120: $m 2013-14 | I120: =I117-I118-I119 -> 0 | J120: =I120 -> 0
B121: Depreciation of Capex in 2017-18 | C121: Non-System | D121: $m 2013-14 | J121: =J117-J118-J119-J120 -> 0
B122: Depreciation of Capex in 2018-19 | C122: Non-System | D122: $m 2013-14
B123: =Asset7 -> Other Non System Assets | C123: =$C$45 -> Non-System | D123: $m 2013-14 | F123: =F84/F$11 -> 0 | G123: =G84/G$11 -> 0 | H123: =H84/H$11 -> 0 | I123: =I84/I$11 -> 0 | J123: =J84/J$11 -> 0
B124: Depreciation of Capex in 2014-15 | C124: =C123 -> Non-System | D124: $m 2013-14 | G124: =G123 -> 0 | H124: =G124 -> 0 | I124: =H124 -> 0 | J124: 0
B125: Depreciation of Capex in 2015-16 | C125: =C124 -> Non-System | D125: $m 2013-14 | H125: =H123-H124 -> 0 | I125: =H125 -> 0 | J125: =I125 -> 0
B126: Depreciation of Capex in 2016-17 | C126: Non-System | D126: $m 2013-14 | I126: =I123-I124-I125 -> 0 | J126: =I126 -> 0
B127: Depreciation of Capex in 2017-18 | C127: Non-System | D127: $m 2013-14 | J127: =J123-J124-J125-J126 -> 0
B128: Depreciation of Capex in 2018-19 | C128: Non-System | D128: $m 2013-14
B130: Actual Capital Expenditure (Net of disposals and capital contributions) | D130: Units | F130: =INDEX(ModelYears, COLUMN()-COLUMN($D130)) -> 2014-15 | G130: =INDEX(ModelYears, COLUMN()-COLUMN($D130)) -> 2015-16 | H130: =INDEX(ModelYears, COLUMN()-COLUMN($D130)) -> 2016-17 | I130: =INDEX(ModelYears, COLUMN()-COLUMN($D130)) -> 2017-18 | J130: =INDEX(ModelYears, COLUMN()-COLUMN($D130)) -> 2018-19
B131: =Asset1 -> Customer Metering | C131: =$C$39 -> System | D131: $m nominal | F131: 0.6907907579 | G131: 0.8777181908 | H131: 0.1401298454 | I131: 0.745194314 | J131: 0.1363098687
B132: =Asset2 -> Information & Communication Technology | C132: =$C$40 -> Non-System | D132: $m nominal
B133: =Asset3 -> Furniture, Fittings, Plant and Equipment | C133: =$C$41 -> Non-System | D133: $m nominal
B134: =Asset4 -> Motor Vehicles | C134: =$C$42 -> Non-System | D134: $m nominal
B135: =Asset5 -> Buildings | C135: =$C$43 -> Non-System | D135: $m nominal
B136: =Asset6 -> Land (Non-System) | C136: =$C$44 -> Non-System | D136: $m nominal
B137: =Asset7 -> Other Non System Assets | C137: =$C$45 -> Non-System | D137: $m nominal
B139: Capital Expenditure (Net of disposals and capital contributions) | D139: Units | F139: =INDEX(ModelYears, COLUMN()-COLUMN($D139)) -> 2014-15 | G139: =INDEX(ModelYears, COLUMN()-COLUMN($D139)) -> 2015-16 | H139: =INDEX(ModelYears, COLUMN()-COLUMN($D139)) -> 2016-17 | I139: =INDEX(ModelYears, COLUMN()-COLUMN($D139)) -> 2017-18 | J139: =INDEX(ModelYears, COLUMN()-COLUMN($D139)) -> 2018-19
B140: =Asset1 -> Customer Metering | C140: =$C$39 -> System | D140: $m 2013-14 | F140: =F131/F$15 -> 0.678843119 | G140: =G131/G$15 -> 0.8419107177 | H140: 0.1311475219 | I140: 0.687052858 | J140: 0.1240900982
B141: =Asset2 -> Information & Communication Technology | C141: =$C$40 -> Non-System | D141: $m 2013-14 | F141: 0 | G141: 0 | H141: 0 | I141: 0 | J141: 0
B142: =Asset3 -> Furniture, Fittings, Plant and Equipment | C142: =$C$41 -> Non-System | D142: $m 2013-14 | F142: 0 | G142: 0 | H142: 0 | I142: 0 | J142: 0
B143: =Asset4 -> Motor Vehicles | C143: =$C$42 -> Non-System | D143: $m 2013-14 | F143: 0 | G143: 0 | H143: 0 | I143: 0 | J143: 0
B144: =Asset5 -> Buildings | C144: =$C$43 -> Non-System | D144: $m 2013-14 | F144: 0 | G144: 0 | H144: 0 | I144: 0 | J144: 0
B145: =Asset6 -> Land (Non-System) | C145: =$C$44 -> Non-System | D145: $m 2013-14 | F145: 0 | G145: 0 | H145: 0 | I145: 0 | J145: 0
B146: =Asset7 -> Other Non System Assets | C146: =$C$45 -> Non-System | D146: $m 2013-14 | F146: 0 | G146: 0 | H146: 0 | I146: 0 | J146: 0
B148: Forecast Capital Expenditure (Net of disposals and capital contributions) | D148: Units | K148: =INDEX(ModelYears, COLUMN()-COLUMN($D148)) -> 2019-20 | L148: =INDEX(ModelYears, COLUMN()-COLUMN($D148)) -> 2020-21 | M148: =INDEX(ModelYears, COLUMN()-COLUMN($D148)) -> 2021-22 | N148: =INDEX(ModelYears, COLUMN()-COLUMN($D148)) -> 2022-23 | O148: =INDEX(ModelYears, COLUMN()-COLUMN($D148)) -> 2023-24
B149: =Asset1 -> Customer Metering | C149: =$C$39 -> System | D149: $m 2018-19 | K149: 0.1296328655 | L149: 0.09925467531 | M149: 0.09962088168 | N149: 0.09991220028 | O149: 0.105509782
B150: =Asset2 -> Information & Communication Technology | C150: =$C$40 -> Non-System | D150: $m 2018-19
B151: =Asset3 -> Furniture, Fittings, Plant and Equipment | C151: =$C$41 -> Non-System | D151: $m 2018-19
B152: =Asset4 -> Motor Vehicles | C152: =$C$42 -> Non-System | D152: $m 2018-19
B153: =Asset5 -> Buildings | C153: =$C$43 -> Non-System | D153: $m 2018-19
B154: =Asset6 -> Land (Non-System) | C154: =$C$44 -> Non-System | D154: $m 2018-19
B155: =Asset7 -> Other Non System Assets | C155: =$C$45 -> Non-System | D155: $m 2018-19
B157: Capital Expenditure (Net of disposals and capital contributions) | D157: Units | K157: =INDEX(ModelYears, COLUMN()-COLUMN($D157)) -> 2019-20 | L157: =INDEX(ModelYears, COLUMN()-COLUMN($D157)) -> 2020-21 | M157: =INDEX(ModelYears, COLUMN()-COLUMN($D157)) -> 2021-22 | N157: =INDEX(ModelYears, COLUMN()-COLUMN($D157)) -> 2022-23 | O157: =INDEX(ModelYears, COLUMN()-COLUMN($D157)) -> 2023-24
B158: =Asset1 -> Customer Metering | C158: =$C$39 -> System | D158: $m 2018-19 | K158: =K149*K$13/K$15 -> 0.1180116683 | L158: =L149*L$13/L$15 -> 0.09035679161 | M158: 0.09069016867 | N158: 0.09095537143 | O158: 0.0960511468
B159: =Asset2 -> Information & Communication Technology | C159: =$C$40 -> Non-System | D159: $m 2018-19 | K159: 0 | L159: 0 | M159: 0 | N159: 0 | O159: 0
B160: =Asset3 -> Furniture, Fittings, Plant and Equipment | C160: =$C$41 -> Non-System | D160: $m 2018-19 | K160: 0 | L160: 0 | M160: 0 | N160: 0 | O160: 0
B161: =Asset4 -> Motor Vehicles | C161: =$C$42 -> Non-System | D161: $m 2018-19 | K161: 0 | L161: 0 | M161: 0 | N161: 0 | O161: 0
B162: =Asset5 -> Buildings | C162: =$C$43 -> Non-System | D162: $m 2018-19 | K162: 0 | L162: 0 | M162: 0 | N162: 0 | O162: 0
B163: =Asset6 -> Land (Non-System) | C163: =$C$44 -> Non-System | D163: $m 2018-19 | K163: 0 | L163: 0 | M163: 0 | N163: 0 | O163: 0
B164: =Asset7 -> Other Non System Assets | C164: =$C$45 -> Non-System | D164: $m 2018-19 | K164: 0 | L164: 0 | M164: 0 | N164: 0 | O164: 0
B166: Operating Expenditure | D166: Units | F166: =INDEX(ModelYears, COLUMN()-COLUMN($D166)) -> 2014-15 | G166: 2015-16 | H166: 2016-17 | I166: 2017-18 | J166: 2018-19 | K166: 2019-20 | L166: 2020-21 | M166: 2021-22 | N166: 2022-23 | O166: 2023-24
B167: Meter Reading Costs | D167: $m nominal | F167: 13.08862744 | G167: 11.79952269 | H167: 12.31365971 | I167: =H167+((K167-H167)/3) -> 12.50057879 | J167: =I167+((K167-I167)/2) -> 12.68749786 | K167: 12.87441693 | L167: 13.03286217 | M167: 13.24817879 | N167: 13.47858712 | O167: 13.71497405
B168: Meter Data Services Costs | D168: $m nominal | F168: 1.020876627 | G168: 1.551794653 | H168: 1.292688504 | I168: =H168+((K168-H168)/3) -> 1.222079951 | J168: =I168+((K168-I168)/2) -> 1.151471398 | K168: 1.080862845 | L168: 1.05274739 | M168: 1.043281491 | N168: 1.037218757 | O168: 1.031191303
B169: Meter Maintenance Costs | D169: $m nominal | F169: 4.188069726 | G169: 3.769923858 | H169: 5.873399011 | I169: =H169+((K169-H169)/3) -> 5.740007416 | J169: =I169+((K169-I169)/2) -> 5.606615821 | K169: 5.473224226 | L169: 5.603486169 | M169: 5.736850038 | N169: 5.873386395 | O169: 6.013173941
B170: Total Operating Expenditure | D170: $m nominal | F170: =SUM(F167:F169) -> 18.2975738 | G170: 17.1212412 | H170: 19.47974723 | I170: 19.46266615 | J170: 19.44558508 | K170: =SUM(K167:K169) -> 19.428504 | L170: =SUM(L167:L169) -> 19.68909573 | M170: 20.02831032 | N170: 20.38919227 | O170: 20.75933929
B172: Base Year Tariffs - Capital | D172: Units | G172: =INDEX(ModelYears, COLUMN()-COLUMN($D172)) -> 2015-16
B173: Residential Anytime | D173: $ nominal | G173: 1.450711797
B174: Residential TOU - Type 6 Meter | D174: $ nominal | G174: 1.450711797
B175: Residential TOU - Type 5 Meter | D175: $ nominal | G175: 1.450711797
B176: Small Business Anytime | D176: $ nominal | G176: 1.450711797
B177: Small Business TOU - Type 6 Meter | D177: $ nominal | G177: 1.450711797
B178: Small Business TOU - Type 5 Meter | D178: $ nominal | G178: 1.450711797
B179: Controlled Load | D179: $ nominal | G179: 1.450711797
B180: Solar | D180: $ nominal | G180: 1.450711797
B182: Base Year Tariffs - Non Capital | D182: Units | G182: =INDEX(ModelYears, COLUMN()-COLUMN($D182)) -> 2015-16
B183: Residential Anytime | D183: $ nominal | G183: 13.35453601
B184: Residential TOU - Type 6 Meter | D184: $ nominal | G184: 29.12342391
B185: Residential TOU - Type 5 Meter | D185: $ nominal | G185: 122.1096573
B186: Small Business Anytime | D186: $ nominal | G186: 20.23519077
B187: Small Business TOU - Type 6 Meter | D187: $ nominal | G187: 49.76538817
B188: Small Business TOU - Type 5 Meter | D188: $ nominal | G188: 142.7516216
B189: Controlled Load | D189: $ nominal | G189: 3.399650027
B190: Solar | D190: $ nominal | G190: 3.399650027
B192: Assumed growth rate in customer numbers | D192: Units | E192: =INDEX(ModelYears, COLUMN()-COLUMN($D192)) -> 2013-14 | F192: 2014-15 | G192: 2015-16 | H192: 2016-17 | I192: 2017-18 | J192: 2018-19 | K192: 2019-20 | L192: 2020-21 | M192: 2021-22 | N192: 2022-23 | O192: 2023-24
B193: Rate that customers exit to other form of metering | D193: % | I193: -0.044 | J193: -0.054 | K193: -0.054 | L193: -0.049 | M193: -0.032 | N193: -0.029 | O193: -0.029
B195: Primary Tariff Customer Numbers | D195: Units | E195: =INDEX(ModelYears, COLUMN()-COLUMN($D195)) -> 2013-14 | F195: 2014-15 | G195: 2015-16 | H195: 2016-17 | I195: 2017-18 | J195: 2018-19 | K195: 2019-20 | L195: 2020-21 | M195: 2021-22 | N195: 2022-23 | O195: 2023-24
B196: F10 - Domestic | C196: Residential Anytime | D196: Number | E196: 0 | F196: 0 | G196: 0 | H196: 0 | I196: =H196*(1+I$193) -> 0 | J196: =I196*(1+J$193) -> 0 | K196: 0 | L196: 0 | M196: 0 | N196: 0 | O196: 0
B197: N70 - Domestic | C197: Residential Anytime | D197: Number | E197: 807142 | F197: 814453 | G197: 829420 | H197: 847282 | I197: =H197*(1+I$193) -> 810001.592 | J197: =I197*(1+J$193) -> 766261.506 | K197: =J197*(1+K$193) -> 724883.3847 | L197: =K197*(1+L$193) -> 689364.0989 | M197: =L197*(1+M$193) -> 667304.4477 | N197: =M197*(1+N$193) -> 647952.6187 | O197: 629161.9928
B198: F76 - DOMESTIC TOU | C198: Residential TOU - Type 6 Meter | D198: Number | E198: 0 | F198: 0 | G198: 0 | H198: 0 | I198: 0 | J198: 0 | K198: 0 | L198: 0 | M198: 0 | N198: 0 | O198: 0
B199: N76 - Domestic TOU | C199: Residential TOU - Type 6 Meter | D199: Number | E199: 20 | F199: 21 | G199: 19 | H199: 21 | I199: 20.076 | J199: 18.991896 | K199: 17.96633362 | L199: 17.08598327 | M199: 16.5392318 | N199: 16.05959408 | O199: 15.59386585
B200: NC1 - Dom/CL1 | C200: Residential Anytime / Controlled Load | D200: Number | E200: 9878 | F200: 9725 | G200: 9628 | H200: 9447 | I200: 9031.332 | J200: 8543.640072 | K200: 8082.283508 | L200: 7686.251616 | M200: 7440.291564 | N200: 7224.523109 | O200: 7015.011939
B201: NC2 - Dom/CL2 | C201: Residential Anytime / Controlled Load | D201: Number | E201: 3153 | F201: 3133 | G201: 3165 | H201: 3137 | I201: 2998.972 | J201: 2837.027512 | K201: 2683.828026 | L201: 2552.320453 | M201: 2470.646199 | N201: 2398.997459 | O201: 2329.426532
B202: NS70 - Domestic IBT Small Gen | C202: Residential Anytime / Solar | D202: Number | E202: 17400 | F202: 22798 | G202: 26506 | H202: 30038 | I202: 28716.328 | J202: 27165.64629 | K202: 25698.70139 | L202: 24439.46502 | M202: 23657.40214 | N202: 22971.33748 | O202: 22305.16869
B203: NG70 - Domestic IBT Small Gen | C203: Residential Anytime / Solar | D203: Number | E203: 1 | F203: 2 | G203: 4 | H203: 12 | I203: 11.472 | J203: 10.852512 | K203: 10.26647635 | L203: 9.763419011 | M203: 9.450989602 | N203: 9.176910904 | O203: 8.910780488
B204: F80 - General Supply Non TOU | C204: Small Business Anytime | D204: Number | E204: 0 | F204: 0 | G204: 0 | H204: 0 | I204: 0 | J204: 0 | K204: 0 | L204: 0 | M204: 0 | N204: 0 | O204: 0
B205: N90 - General Supply Non TOU | C205: Small Business Anytime | D205: Number | E205: 76907 | F205: 74966 | G205: 74263 | H205: 74951 | I205: 71653.156 | J205: 67783.88558 | K205: 64123.55575 | L205: 60981.50152 | M205: 59030.09347 | N205: 57318.22076 | O205: 55655.99236
B206: NC3 - GS Non TOU/CL1 | C206: Small Business Anytime / Controlled Load | D206: Number | E206: 44 | F206: 42 | G206: 44 | H206: 42 | I206: 40.152 | J206: 37.983792 | K206: 35.93266723 | L206: 34.17196654 | M206: 33.07846361 | N206: 32.11918816 | O206: 31.18773171
B207: NC4 - GS Non TOU/CL2 | C207: Small Business Anytime / Controlled Load | D207: Number | E207: 18 | F207: 16 | G207: 14 | H207: 14 | I207: 13.384 | J207: 12.661264 | K207: 11.97755574 | L207: 11.39065551 | M207: 11.02615454 | N207: 10.70639605 | O207: 10.39591057
B208: NS90 - GS Non-ToU Small Gen | C208: Small Business Anytime / Solar | D208: Number | E208: 520 | F208: 856 | G208: 1046 | H208: 1270 | I208: 1214.12 | J208: 1148.55752 | K208: 1086.535414 | L208: 1033.295179 | M208: 1000.229733 | N208: 971.2230707 | O208: 943.0576016
B209: F82A - General Supply TOU | C209: Small Business TOU - Type 6 Meter | D209: Number | E209: 0 | F209: 0 | G209: 0 | H209: 0 | I209: 0 | J209: 0 | K209: 0 | L209: 0 | M209: 0 | N209: 0 | O209: 0
B210: N84 - General Supply TOU | C210: Small Business TOU - Type 6 Meter | D210: Number | E210: 1675 | F210: 1894 | G210: 1871 | H210: 1901 | I210: 1817.356 | J210: 1719.218776 | K210: 1626.380962 | L210: 1546.688295 | M210: 1497.19427 | N210: 1453.775636 | O210: 1411.616142
B211: NS84 - GS ToU Small Generation | C211: Small Business TOU - Type 6 Meter / Solar | D211: Number | E211: 44 | F211: 46 | G211: 53 | H211: 53 | I211: 50.668 | J211: 47.931928 | K211: 45.34360389 | L211: 43.1217673 | M211: 41.74187074 | N211: 40.53135649 | O211: 39.35594715
B212: N85 - General Supply TOU Type 5 | C212: Small Business TOU - Type 5 Meter | D212: Number | E212: 371 | F212: 370 | G212: 366 | H212: 364 | I212: =H212*(1+I$193) -> 347.984 | J212: =I212*(1+J$193) -> 329.192864 | K212: 311.4164493 | L212: 296.1570433 | M212: 286.6800179 | N212: 278.3662974 | O212: 270.2936748
B213: N75 - Domestic Type 5 | C213: Residential TOU - Type 5 Meter | D213: Number | E213: 0 | F213: 1 | G213: 1 | H213: 18 | I213: 17.208 | J213: 16.278768 | K213: 15.39971453 | L213: 14.64512852 | M213: 14.1764844 | N213: 13.76536636 | O213: 13.36617073
B214: Total | D214: Number | E214: =SUM(E196:E213) -> 917173 | F214: 928323 | G214: 946400 | H214: 968550 | I214: 925933.8 | J214: 875933.3748 | K214: =SUM(K196:K213) -> 828632.9726 | L214: =SUM(L196:L213) -> 788029.9569 | M214: =SUM(M196:M213) -> 762812.9983 | N214: =SUM(N196:N213) -> 740691.4213 | O214: =SUM(O196:O213) -> 719211.3701
B217: Secondary Tariff Customer Numbers | D217: Units | E217: =INDEX(ModelYears, COLUMN()-COLUMN($D217)) -> 2013-14 | F217: 2014-15 | G217: 2015-16 | H217: 2016-17 | I217: 2017-18 | J217: 2018-19 | K217: 2019-20 | L217: 2020-21 | M217: 2021-22 | N217: 2022-23 | O217: 2023-24
B218: F50 - Controlled Load 1 | C218: Controlled Load | D218: Number | E218: 0 | F218: 0 | G218: 0 | H218: 0 | I218: =H218*(1+I$193) -> 0 | J218: =I218*(1+J$193) -> 0 | K218: 0 | L218: 0 | M218: 0 | N218: 0 | O218: 0
B219: N50A - Controlled Load 1 | C219: Controlled Load | D219: Number | E219: 239037 | F219: 237235 | G219: 236009 | H219: 235366 | I219: =H219*(1+I$193) -> 225009.896 | J219: =I219*(1+J$193) -> 212859.3616 | K219: 201364.9561 | L219: 191498.0732 | M219: 185370.1349 | N219: 179994.401 | O219: 174774.5634
B220: F54 - Controlled Load 2 | C220: Controlled Load | D220: Number | E220: 0 | F220: 0 | G220: 0 | H220: 0 | I220: =H220*(1+I$193) -> 0 | J220: 0 | K220: 0 | L220: 0 | M220: 0 | N220: 0 | O220: 0
B221: N54A - Controlled Load 2 | C221: Controlled Load | D221: Number | E221: 103564 | F221: 103430 | G221: 103934 | H221: 104218 | I221: 99632.408 | J221: 94252.25797 | K221: 89162.63604 | L221: 84793.66687 | M221: 82080.26953 | N221: 79699.94172 | O221: 77388.64341
B222: Total | D222: Number | E222: =SUM(E218:E221) -> 342601 | F222: 340665 | G222: 339943 | H222: 339584 | I222: 324642.304 | J222: 307111.6196 | K222: =SUM(K218:K221) -> 290527.5921 | L222: =SUM(L218:L221) -> 276291.7401 | M222: =SUM(M218:M221) -> 267450.4044 | N222: =SUM(N218:N221) -> 259694.3427 | O222: =SUM(O218:O221) -> 252163.2068
... 9 more rows

Sheet Calc Asset Roll Forward
A1: =IF(Solved, "X-factors Okay", "X-factor Error") -> X-factors Okay | F1: 1 | G1: 2 | H1: 3 | I1: 4 | J1: 5 | K1: 6 | L1: 7 | M1: 8 | N1: 9 | O1: 10
B2: =ModelTitle -> ENDEAVOUR ENERGY METERING PRICING MODEL
B3: ASSET BASE ROLL FORWARD
B5: INFLATION ASSUMPTIONS | E5: =INDEX(ModelYears, COLUMN()-COLUMN($D5)) -> 2013-14 | F5: 2014-15 | G5: 2015-16 | H5: 2016-17 | I5: 2017-18 | J5: 2018-19 | K5: 2019-20 | L5: 2020-21 | M5: 2021-22 | N5: 2022-23 | O5: 2023-24
D7: Units | E7: =INDEX(ModelYears, COLUMN()-COLUMN($D8)) -> 2013-14 | F7: =INDEX(ModelYears, COLUMN()-COLUMN($D7)) -> 2014-15 | G7: 2015-16 | H7: 2016-17 | I7: 2017-18 | J7: 2018-19 | K7: 2019-20 | L7: 2020-21 | M7: 2021-22 | N7: 2022-23 | O7: 2023-24
B8: Annual CPI | D8: % | E8: =Inputs!E12 -> 0.0176 | F8: =Inputs!F12 -> 0.0245 | G8: =Inputs!G12 -> 0.0249 | H8: =Inputs!H12 -> 0.0151 | I8: =Inputs!I12 -> 0.01276990945 | J8: =Inputs!J12 -> 0.01948647409 | K8: =Inputs!K12 -> 0.025 | L8: =Inputs!L12 -> 0.025 | M8: =Inputs!M12 -> 0.025 | N8: =Inputs!N12 -> 0.025 | O8: =Inputs!O12 -> 0.025
B9: CPI Index | D9: % | E9: =Inputs!E15 -> 1 | F9: =Inputs!F15 -> 1.0176 | G9: =Inputs!G15 -> 1.0425312 | H9: =Inputs!H15 -> 1.068490227 | I9: =Inputs!I15 -> 1.084624429 | J9: =Inputs!J15 -> 1.098474985 | K9: =Inputs!K15 -> 1.119880389 | L9: =Inputs!L15 -> 1.147877399 | M9: =Inputs!M15 -> 1.176574334 | N9: =Inputs!N15 -> 1.205988692 | O9: =Inputs!O15 -> 1.23613841
B11: REAL STRAIGHT-LINE DEPRECIATION | E11: =INDEX(ModelYears, COLUMN()-COLUMN($D11)) -> 2013-14 | F11: 2014-15 | G11: 2015-16 | H11: 2016-17 | I11: 2017-18 | J11: 2018-19 | K11: 2019-20 | L11: 2020-21 | M11: 2021-22 | N11: 2022-23 | O11: 2023-24
D13: Units | F13: =INDEX(ModelYears, COLUMN()-COLUMN($D13)) -> 2014-15 | G13: 2015-16 | H13: 2016-17 | I13: 2017-18 | J13: 2018-19 | K13: 2019-20 | L13: 2020-21 | M13: 2021-22 | N13: 2022-23 | O13: 2023-24
B14: Depreciation of All Assets Total | D14: $m real 2014-15 | F14: =F37+F24 -> 0.815840466 | G14: 1.007369354 | H14: 1.18987722 | I14: 1.564226853 | J14: 2.147904344 | K14: 0.9862088654 | L14: 0.9943130971 | M14: 1.000518182 | N14: 1.00674616 | O14: 1.012992351
B16: ="Dep'n of "&Inputs!$F$38 & " RAB Subtotal" -> Dep'n of 2014-15 RAB Subtotal | D16: Units | F16: =INDEX(ModelYears, COLUMN()-COLUMN($D16)) -> 2014-15 | G16: 2015-16 | H16: 2016-17 | I16: 2017-18 | J16: 2018-19 | K16: 2019-20 | L16: 2020-21 | M16: 2021-22 | N16: 2022-23 | O16: 2023-24
A17: 1 | B17: Customer metering and Load control | D17: $m real 2014-15 | F17: =IF(AND(DepreciationOption="Determination Allowance",F$1<6),INDIRECT("DepnAllowRAB" & $A17 & "_" &F$1),IF(F$1>INDIRECT("RemLife" &$A17),INDIRECT("Value" &$A17)-SUM($E17:E17),IF(INDIRECT("RemLife" &$A17)="n/a","n/a",INDIRECT("Value" &$A17)/INDIRECT("RemLife" &$A17)))) -> 0.7527932409 | G17: =IF(AND(DepreciationOption="Determination Allowance",G$1<6),INDIRECT("DepnAllowRAB" & $A17 & "_" &G$1),IF(G$1>INDIRECT("RemLife" &$A17),INDIRECT("Value" &$A17)-SUM($E17:F17),IF(INDIRECT("RemLife" &$A17)="n/a","n/a",INDIRECT("Value" &$A17)/INDIRECT("RemLife" &$A17)))) -> 0.7527932409 | H17: =IF(AND(DepreciationOption="Determination Allowance",H$1<6),INDIRECT("DepnAllowRAB" & $A17 & "_" &H$1),IF(H$1>INDIRECT("RemLife" &$A17),INDIRECT("Value" &$A17)-SUM($E17:G17),IF(INDIRECT("RemLife" &$A17)="n/a","n/a",INDIRECT("Value" &$A17)/INDIRECT("RemLife" &$A17)))) -> 0.7527932409 | I17: =IF(AND(DepreciationOption="Determination Allowance",I$1<6),INDIRECT("DepnAllowRAB" & $A17 & "_" &I$1),IF(I$1>INDIRECT("RemLife" &$A17),INDIRECT("Value" &$A17)-SUM($E17:H17),IF(INDIRECT("RemLife" &$A17)="n/a","n/a",INDIRECT("Value" &$A17)/INDIRECT("RemLife" &$A17)))) -> 0.7527932409 | J17: =IF(AND(DepreciationOption="Determination Allowance",J$1<6),INDIRECT("DepnAllowRAB" & $A17 & "_" &J$1),IF(J$1>INDIRECT("RemLife" &$A17),INDIRECT("Value" &$A17)-SUM($E17:I17),IF(INDIRECT("RemLife" &$A17)="n/a","n/a",INDIRECT("Value" &$A17)/INDIRECT("RemLife" &$A17)))) -> 0.7527932409 | K17: =IF(AND(DepreciationOption="Determination Allowance",K$1<6),INDIRECT("DepnAllowRAB" & $A17 & "_" &K$1),IF(K$1>INDIRECT("RemLife" &$A17),INDIRECT("Value" &$A17)-SUM($E17:J17),IF(INDIRECT("RemLife" &$A17)="n/a","n/a",INDIRECT("Value" &$A17)/INDIRECT("RemLife" &$A17)))) -> 0.7534906688 | L17: =IF(AND(DepreciationOption="Determination Allowance",L$1<6),INDIRECT("DepnAllowRAB" & $A17 & "_" &L$1),IF(L$1>INDIRECT("RemLife" &$A17),INDIRECT("Value" &$A17)-SUM($E17:K17),IF(INDIRECT("RemLife" &$A17)="n/a","n/a",INDIRECT("Value" &$A17)/INDIRECT("RemLife" &$A17)))) -> 0.7534906688 | M17: =IF(AND(DepreciationOption="Determination Allowance",M$1<6),INDIRECT("DepnAllowRAB" & $A17 & "_" &M$1),IF(M$1>INDIRECT("RemLife" &$A17),INDIRECT("Value" &$A17)-SUM($E17:L17),IF(INDIRECT("RemLife" &$A17)="n/a","n/a",INDIRECT("Value" &$A17)/INDIRECT("RemLife" &$A17)))) -> 0.7534906688 | N17: =IF(AND(DepreciationOption="Determination Allowance",N$1<6),INDIRECT("DepnAllowRAB" & $A17 & "_" &N$1),IF(N$1>INDIRECT("RemLife" &$A17),INDIRECT("Value" &$A17)-SUM($E17:M17),IF(INDIRECT("RemLife" &$A17)="n/a","n/a",INDIRECT("Value" &$A17)/INDIRECT("RemLife" &$A17)))) -> 0.7534906688 | O17: =IF(AND(DepreciationOption="Determination Allowance",O$1<6),INDIRECT("DepnAllowRAB" & $A17 & "_" &O$1),IF(O$1>INDIRECT("RemLife" &$A17),INDIRECT("Value" &$A17)-SUM($E17:N17),IF(INDIRECT("RemLife" &$A17)="n/a","n/a",INDIRECT("Value" &$A17)/INDIRECT("RemLife" &$A17)))) -> 0.7534906688
A18: 2 | B18: Information & Communication Technology | D18: $m real 2014-15 | F18: =IF(AND(DepreciationOption="Determination Allowance",F$1<6),INDIRECT("DepnAllowRAB" & $A18 & "_" &F$1),IF(F$1>INDIRECT("RemLife" &$A18),INDIRECT("Value" &$A18)-SUM($E18:E18),IF(INDIRECT("RemLife" &$A18)="n/a","n/a",INDIRECT("Value" &$A18)/INDIRECT("RemLife" &$A18)))) -> 0.006581915183 | G18: =IF(AND(DepreciationOption="Determination Allowance",G$1<6),INDIRECT("DepnAllowRAB" & $A18 & "_" &G$1),IF(G$1>INDIRECT("RemLife" &$A18),INDIRECT("Value" &$A18)-SUM($E18:F18),IF(INDIRECT("RemLife" &$A18)="n/a","n/a",INDIRECT("Value" &$A18)/INDIRECT("RemLife" &$A18)))) -> 0.006581915183 | H18: =IF(AND(DepreciationOption="Determination Allowance",H$1<6),INDIRECT("DepnAllowRAB" & $A18 & "_" &H$1),IF(H$1>INDIRECT("RemLife" &$A18),INDIRECT("Value" &$A18)-SUM($E18:G18),IF(INDIRECT("RemLife" &$A18)="n/a","n/a",INDIRECT("Value" &$A18)/INDIRECT("RemLife" &$A18)))) -> 0.006581915183 | I18: =IF(AND(DepreciationOption="Determination Allowance",I$1<6),INDIRECT("DepnAllowRAB" & $A18 & "_" &I$1),IF(I$1>INDIRECT("RemLife" &$A18),INDIRECT("Value" &$A18)-SUM($E18:H18),IF(INDIRECT("RemLife" &$A18)="n/a","n/a",INDIRECT("Value" &$A18)/INDIRECT("RemLife" &$A18)))) -> 0.006581915183 | J18: =IF(AND(DepreciationOption="Determination Allowance",J$1<6),INDIRECT("DepnAllowRAB" & $A18 & "_" &J$1),IF(J$1>INDIRECT("RemLife" &$A18),INDIRECT("Value" &$A18)-SUM($E18:I18),IF(INDIRECT("RemLife" &$A18)="n/a","n/a",INDIRECT("Value" &$A18)/INDIRECT("RemLife" &$A18)))) -> 0.006581915183 | K18: =IF(AND(DepreciationOption="Determination Allowance",K$1<6),INDIRECT("DepnAllowRAB" & $A18 & "_" &K$1),IF(K$1>INDIRECT("RemLife" &$A18),INDIRECT("Value" &$A18)-SUM($E18:J18),IF(INDIRECT("RemLife" &$A18)="n/a","n/a",INDIRECT("Value" &$A18)/INDIRECT("RemLife" &$A18)))) -> 0.006588013021 | L18: =IF(AND(DepreciationOption="Determination Allowance",L$1<6),INDIRECT("DepnAllowRAB" & $A18 & "_" &L$1),IF(L$1>INDIRECT("RemLife" &$A18),INDIRECT("Value" &$A18)-SUM($E18:K18),IF(INDIRECT("RemLife" &$A18)="n/a","n/a",INDIRECT("Value" &$A18)/INDIRECT("RemLife" &$A18)))) -> 0.006588013021 | M18: =IF(AND(DepreciationOption="Determination Allowance",M$1<6),INDIRECT("DepnAllowRAB" & $A18 & "_" &M$1),IF(M$1>INDIRECT("RemLife" &$A18),INDIRECT("Value" &$A18)-SUM($E18:L18),IF(INDIRECT("RemLife" &$A18)="n/a","n/a",INDIRECT("Value" &$A18)/INDIRECT("RemLife" &$A18)))) -> 0.006588013021 | N18: =IF(AND(DepreciationOption="Determination Allowance",N$1<6),INDIRECT("DepnAllowRAB" & $A18 & "_" &N$1),IF(N$1>INDIRECT("RemLife" &$A18),INDIRECT("Value" &$A18)-SUM($E18:M18),IF(INDIRECT("RemLife" &$A18)="n/a","n/a",INDIRECT("Value" &$A18)/INDIRECT("RemLife" &$A18)))) -> 0.006588013021 | O18: =IF(AND(DepreciationOption="Determination Allowance",O$1<6),INDIRECT("DepnAllowRAB" & $A18 & "_" &O$1),IF(O$1>INDIRECT("RemLife" &$A18),INDIRECT("Value" &$A18)-SUM($E18:N18),IF(INDIRECT("RemLife" &$A18)="n/a","n/a",INDIRECT("Value" &$A18)/INDIRECT("RemLife" &$A18)))) -> 0.006588013021
A19: 3 | B19: Furniture, fittings, plant and equipment | D19: $m real 2014-15 | F19: =IF(AND(DepreciationOption="Determination Allowance",F$1<6),INDIRECT("DepnAllowRAB" & $A19 & "_" &F$1),IF(F$1>INDIRECT("RemLife" &$A19),INDIRECT("Value" &$A19)-SUM($E19:E19),IF(INDIRECT("RemLife" &$A19)="n/a","n/a",INDIRECT("Value" &$A19)/INDIRECT("RemLife" &$A19)))) -> 0.006626419157 | G19: =IF(AND(DepreciationOption="Determination Allowance",G$1<6),INDIRECT("DepnAllowRAB" & $A19 & "_" &G$1),IF(G$1>INDIRECT("RemLife" &$A19),INDIRECT("Value" &$A19)-SUM($E19:F19),IF(INDIRECT("RemLife" &$A19)="n/a","n/a",INDIRECT("Value" &$A19)/INDIRECT("RemLife" &$A19)))) -> 0.006626419157 | H19: =IF(AND(DepreciationOption="Determination Allowance",H$1<6),INDIRECT("DepnAllowRAB" & $A19 & "_" &H$1),IF(H$1>INDIRECT("RemLife" &$A19),INDIRECT("Value" &$A19)-SUM($E19:G19),IF(INDIRECT("RemLife" &$A19)="n/a","n/a",INDIRECT("Value" &$A19)/INDIRECT("RemLife" &$A19)))) -> 0.006626419157 | I19: =IF(AND(DepreciationOption="Determination Allowance",I$1<6),INDIRECT("DepnAllowRAB" & $A19 & "_" &I$1),IF(I$1>INDIRECT("RemLife" &$A19),INDIRECT("Value" &$A19)-SUM($E19:H19),IF(INDIRECT("RemLife" &$A19)="n/a","n/a",INDIRECT("Value" &$A19)/INDIRECT("RemLife" &$A19)))) -> 0.006626419157 | J19: =IF(AND(DepreciationOption="Determination Allowance",J$1<6),INDIRECT("DepnAllowRAB" & $A19 & "_" &J$1),IF(J$1>INDIRECT("RemLife" &$A19),INDIRECT("Value" &$A19)-SUM($E19:I19),IF(INDIRECT("RemLife" &$A19)="n/a","n/a",INDIRECT("Value" &$A19)/INDIRECT("RemLife" &$A19)))) -> 0.006626419157 | K19: =IF(AND(DepreciationOption="Determination Allowance",K$1<6),INDIRECT("DepnAllowRAB" & $A19 & "_" &K$1),IF(K$1>INDIRECT("RemLife" &$A19),INDIRECT("Value" &$A19)-SUM($E19:J19),IF(INDIRECT("RemLife" &$A19)="n/a","n/a",INDIRECT("Value" &$A19)/INDIRECT("RemLife" &$A19)))) -> 0.006632558226 | L19: =IF(AND(DepreciationOption="Determination Allowance",L$1<6),INDIRECT("DepnAllowRAB" & $A19 & "_" &L$1),IF(L$1>INDIRECT("RemLife" &$A19),INDIRECT("Value" &$A19)-SUM($E19:K19),IF(INDIRECT("RemLife" &$A19)="n/a","n/a",INDIRECT("Value" &$A19)/INDIRECT("RemLife" &$A19)))) -> 0.006632558226 | M19: =IF(AND(DepreciationOption="Determination Allowance",M$1<6),INDIRECT("DepnAllowRAB" & $A19 & "_" &M$1),IF(M$1>INDIRECT("RemLife" &$A19),INDIRECT("Value" &$A19)-SUM($E19:L19),IF(INDIRECT("RemLife" &$A19)="n/a","n/a",INDIRECT("Value" &$A19)/INDIRECT("RemLife" &$A19)))) -> 0.006632558226 | N19: =IF(AND(DepreciationOption="Determination Allowance",N$1<6),INDIRECT("DepnAllowRAB" & $A19 & "_" &N$1),IF(N$1>INDIRECT("RemLife" &$A19),INDIRECT("Value" &$A19)-SUM($E19:M19),IF(INDIRECT("RemLife" &$A19)="n/a","n/a",INDIRECT("Value" &$A19)/INDIRECT("RemLife" &$A19)))) -> 0.006632558226 | O19: =IF(AND(DepreciationOption="Determination Allowance",O$1<6),INDIRECT("DepnAllowRAB" & $A19 & "_" &O$1),IF(O$1>INDIRECT("RemLife" &$A19),INDIRECT("Value" &$A19)-SUM($E19:N19),IF(INDIRECT("RemLife" &$A19)="n/a","n/a",INDIRECT("Value" &$A19)/INDIRECT("RemLife" &$A19)))) -> 0.006632558226
A20: 4 | B20: Motor Vehicles | D20: $m real 2014-15 | F20: =IF(AND(DepreciationOption="Determination Allowance",F$1<6),INDIRECT("DepnAllowRAB" & $A20 & "_" &F$1),IF(F$1>INDIRECT("RemLife" &$A20),INDIRECT("Value" &$A20)-SUM($E20:E20),IF(INDIRECT("RemLife" &$A20)="n/a","n/a",INDIRECT("Value" &$A20)/INDIRECT("RemLife" &$A20)))) -> 0.003358560478 | G20: =IF(AND(DepreciationOption="Determination Allowance",G$1<6),INDIRECT("DepnAllowRAB" & $A20 & "_" &G$1),IF(G$1>INDIRECT("RemLife" &$A20),INDIRECT("Value" &$A20)-SUM($E20:F20),IF(INDIRECT("RemLife" &$A20)="n/a","n/a",INDIRECT("Value" &$A20)/INDIRECT("RemLife" &$A20)))) -> 0.003358560478 | H20: =IF(AND(DepreciationOption="Determination Allowance",H$1<6),INDIRECT("DepnAllowRAB" & $A20 & "_" &H$1),IF(H$1>INDIRECT("RemLife" &$A20),INDIRECT("Value" &$A20)-SUM($E20:G20),IF(INDIRECT("RemLife" &$A20)="n/a","n/a",INDIRECT("Value" &$A20)/INDIRECT("RemLife" &$A20)))) -> 0.003358560478 | I20: =IF(AND(DepreciationOption="Determination Allowance",I$1<6),INDIRECT("DepnAllowRAB" & $A20 & "_" &I$1),IF(I$1>INDIRECT("RemLife" &$A20),INDIRECT("Value" &$A20)-SUM($E20:H20),IF(INDIRECT("RemLife" &$A20)="n/a","n/a",INDIRECT("Value" &$A20)/INDIRECT("RemLife" &$A20)))) -> 0.003358560478 | J20: =IF(AND(DepreciationOption="Determination Allowance",J$1<6),INDIRECT("DepnAllowRAB" & $A20 & "_" &J$1),IF(J$1>INDIRECT("RemLife" &$A20),INDIRECT("Value" &$A20)-SUM($E20:I20),IF(INDIRECT("RemLife" &$A20)="n/a","n/a",INDIRECT("Value" &$A20)/INDIRECT("RemLife" &$A20)))) -> 0.003358560478 | K20: =IF(AND(DepreciationOption="Determination Allowance",K$1<6),INDIRECT("DepnAllowRAB" & $A20 & "_" &K$1),IF(K$1>INDIRECT("RemLife" &$A20),INDIRECT("Value" &$A20)-SUM($E20:J20),IF(INDIRECT("RemLife" &$A20)="n/a","n/a",INDIRECT("Value" &$A20)/INDIRECT("RemLife" &$A20)))) -> 0.003361672028 | L20: =IF(AND(DepreciationOption="Determination Allowance",L$1<6),INDIRECT("DepnAllowRAB" & $A20 & "_" &L$1),IF(L$1>INDIRECT("RemLife" &$A20),INDIRECT("Value" &$A20)-SUM($E20:K20),IF(INDIRECT("RemLife" &$A20)="n/a","n/a",INDIRECT("Value" &$A20)/INDIRECT("RemLife" &$A20)))) -> 0.003361672028 | M20: =IF(AND(DepreciationOption="Determination Allowance",M$1<6),INDIRECT("DepnAllowRAB" & $A20 & "_" &M$1),IF(M$1>INDIRECT("RemLife" &$A20),INDIRECT("Value" &$A20)-SUM($E20:L20),IF(INDIRECT("RemLife" &$A20)="n/a","n/a",INDIRECT("Value" &$A20)/INDIRECT("RemLife" &$A20)))) -> 0.003361672028 | N20: =IF(AND(DepreciationOption="Determination Allowance",N$1<6),INDIRECT("DepnAllowRAB" & $A20 & "_" &N$1),IF(N$1>INDIRECT("RemLife" &$A20),INDIRECT("Value" &$A20)-SUM($E20:M20),IF(INDIRECT("RemLife" &$A20)="n/a","n/a",INDIRECT("Value" &$A20)/INDIRECT("RemLife" &$A20)))) -> 0.003361672028 | O20: =IF(AND(DepreciationOption="Determination Allowance",O$1<6),INDIRECT("DepnAllowRAB" & $A20 & "_" &O$1),IF(O$1>INDIRECT("RemLife" &$A20),INDIRECT("Value" &$A20)-SUM($E20:N20),IF(INDIRECT("RemLife" &$A20)="n/a","n/a",INDIRECT("Value" &$A20)/INDIRECT("RemLife" &$A20)))) -> 0.003361672028
A21: 5 | B21: Buildings | D21: $m real 2014-15 | F21: =IF(AND(DepreciationOption="Determination Allowance",F$1<6),INDIRECT("DepnAllowRAB" & $A21 & "_" &F$1),IF(F$1>INDIRECT("RemLife" &$A21),INDIRECT("Value" &$A21)-SUM($E21:E21),IF(INDIRECT("RemLife" &$A21)="n/a","n/a",INDIRECT("Value" &$A21)/INDIRECT("RemLife" &$A21)))) -> 0.02819645726 | G21: =IF(AND(DepreciationOption="Determination Allowance",G$1<6),INDIRECT("DepnAllowRAB" & $A21 & "_" &G$1),IF(G$1>INDIRECT("RemLife" &$A21),INDIRECT("Value" &$A21)-SUM($E21:F21),IF(INDIRECT("RemLife" &$A21)="n/a","n/a",INDIRECT("Value" &$A21)/INDIRECT("RemLife" &$A21)))) -> 0.02819645726 | H21: =IF(AND(DepreciationOption="Determination Allowance",H$1<6),INDIRECT("DepnAllowRAB" & $A21 & "_" &H$1),IF(H$1>INDIRECT("RemLife" &$A21),INDIRECT("Value" &$A21)-SUM($E21:G21),IF(INDIRECT("RemLife" &$A21)="n/a","n/a",INDIRECT("Value" &$A21)/INDIRECT("RemLife" &$A21)))) -> 0.02819645726 | I21: =IF(AND(DepreciationOption="Determination Allowance",I$1<6),INDIRECT("DepnAllowRAB" & $A21 & "_" &I$1),IF(I$1>INDIRECT("RemLife" &$A21),INDIRECT("Value" &$A21)-SUM($E21:H21),IF(INDIRECT("RemLife" &$A21)="n/a","n/a",INDIRECT("Value" &$A21)/INDIRECT("RemLife" &$A21)))) -> 0.02819645726 | J21: =IF(AND(DepreciationOption="Determination Allowance",J$1<6),INDIRECT("DepnAllowRAB" & $A21 & "_" &J$1),IF(J$1>INDIRECT("RemLife" &$A21),INDIRECT("Value" &$A21)-SUM($E21:I21),IF(INDIRECT("RemLife" &$A21)="n/a","n/a",INDIRECT("Value" &$A21)/INDIRECT("RemLife" &$A21)))) -> 0.02819645726 | K21: =IF(AND(DepreciationOption="Determination Allowance",K$1<6),INDIRECT("DepnAllowRAB" & $A21 & "_" &K$1),IF(K$1>INDIRECT("RemLife" &$A21),INDIRECT("Value" &$A21)-SUM($E21:J21),IF(INDIRECT("RemLife" &$A21)="n/a","n/a",INDIRECT("Value" &$A21)/INDIRECT("RemLife" &$A21)))) -> 0.02822257996 | L21: =IF(AND(DepreciationOption="Determination Allowance",L$1<6),INDIRECT("DepnAllowRAB" & $A21 & "_" &L$1),IF(L$1>INDIRECT("RemLife" &$A21),INDIRECT("Value" &$A21)-SUM($E21:K21),IF(INDIRECT("RemLife" &$A21)="n/a","n/a",INDIRECT("Value" &$A21)/INDIRECT("RemLife" &$A21)))) -> 0.02822257996 | M21: =IF(AND(DepreciationOption="Determination Allowance",M$1<6),INDIRECT("DepnAllowRAB" & $A21 & "_" &M$1),IF(M$1>INDIRECT("RemLife" &$A21),INDIRECT("Value" &$A21)-SUM($E21:L21),IF(INDIRECT("RemLife" &$A21)="n/a","n/a",INDIRECT("Value" &$A21)/INDIRECT("RemLife" &$A21)))) -> 0.02822257996 | N21: =IF(AND(DepreciationOption="Determination Allowance",N$1<6),INDIRECT("DepnAllowRAB" & $A21 & "_" &N$1),IF(N$1>INDIRECT("RemLife" &$A21),INDIRECT("Value" &$A21)-SUM($E21:M21),IF(INDIRECT("RemLife" &$A21)="n/a","n/a",INDIRECT("Value" &$A21)/INDIRECT("RemLife" &$A21)))) -> 0.02822257996 | O21: =IF(AND(DepreciationOption="Determination Allowance",O$1<6),INDIRECT("DepnAllowRAB" & $A21 & "_" &O$1),IF(O$1>INDIRECT("RemLife" &$A21),INDIRECT("Value" &$A21)-SUM($E21:N21),IF(INDIRECT("RemLife" &$A21)="n/a","n/a",INDIRECT("Value" &$A21)/INDIRECT("RemLife" &$A21)))) -> 0.02822257996
A22: 6 | B22: Land (non-system) | D22: $m real 2014-15 | F22: =IF(AND(DepreciationOption="Determination Allowance",F$1<6),INDIRECT("DepnAllowRAB" & $A22 & "_" &F$1),IF(F$1>INDIRECT("RemLife" &$A22),INDIRECT("Value" &$A22)-SUM($E22:E22),IF(INDIRECT("RemLife" &$A22)="n/a","n/a",INDIRECT("Value" &$A22)/INDIRECT("RemLife" &$A22)))) -> 0.01828512247 | G22: =IF(AND(DepreciationOption="Determination Allowance",G$1<6),INDIRECT("DepnAllowRAB" & $A22 & "_" &G$1),IF(G$1>INDIRECT("RemLife" &$A22),INDIRECT("Value" &$A22)-SUM($E22:F22),IF(INDIRECT("RemLife" &$A22)="n/a","n/a",INDIRECT("Value" &$A22)/INDIRECT("RemLife" &$A22)))) -> 0.01828512247 | H22: =IF(AND(DepreciationOption="Determination Allowance",H$1<6),INDIRECT("DepnAllowRAB" & $A22 & "_" &H$1),IF(H$1>INDIRECT("RemLife" &$A22),INDIRECT("Value" &$A22)-SUM($E22:G22),IF(INDIRECT("RemLife" &$A22)="n/a","n/a",INDIRECT("Value" &$A22)/INDIRECT("RemLife" &$A22)))) -> 0.01828512247 | I22: =IF(AND(DepreciationOption="Determination Allowance",I$1<6),INDIRECT("DepnAllowRAB" & $A22 & "_" &I$1),IF(I$1>INDIRECT("RemLife" &$A22),INDIRECT("Value" &$A22)-SUM($E22:H22),IF(INDIRECT("RemLife" &$A22)="n/a","n/a",INDIRECT("Value" &$A22)/INDIRECT("RemLife" &$A22)))) -> 0.01828512247 | J22: =IF(AND(DepreciationOption="Determination Allowance",J$1<6),INDIRECT("DepnAllowRAB" & $A22 & "_" &J$1),IF(J$1>INDIRECT("RemLife" &$A22),INDIRECT("Value" &$A22)-SUM($E22:I22),IF(INDIRECT("RemLife" &$A22)="n/a","n/a",INDIRECT("Value" &$A22)/INDIRECT("RemLife" &$A22)))) -> 0.01828512247 | K22: =IF(AND(DepreciationOption="Determination Allowance",K$1<6),INDIRECT("DepnAllowRAB" & $A22 & "_" &K$1),IF(K$1>INDIRECT("RemLife" &$A22),INDIRECT("Value" &$A22)-SUM($E22:J22),IF(INDIRECT("RemLife" &$A22)="n/a","n/a",INDIRECT("Value" &$A22)/INDIRECT("RemLife" &$A22)))) -> 0.01830206279 | L22: =IF(AND(DepreciationOption="Determination Allowance",L$1<6),INDIRECT("DepnAllowRAB" & $A22 & "_" &L$1),IF(L$1>INDIRECT("RemLife" &$A22),INDIRECT("Value" &$A22)-SUM($E22:K22),IF(INDIRECT("RemLife" &$A22)="n/a","n/a",INDIRECT("Value" &$A22)/INDIRECT("RemLife" &$A22)))) -> 0.01830206279 | M22: =IF(AND(DepreciationOption="Determination Allowance",M$1<6),INDIRECT("DepnAllowRAB" & $A22 & "_" &M$1),IF(M$1>INDIRECT("RemLife" &$A22),INDIRECT("Value" &$A22)-SUM($E22:L22),IF(INDIRECT("RemLife" &$A22)="n/a","n/a",INDIRECT("Value" &$A22)/INDIRECT("RemLife" &$A22)))) -> 0.01830206279 | N22: =IF(AND(DepreciationOption="Determination Allowance",N$1<6),INDIRECT("DepnAllowRAB" & $A22 & "_" &N$1),IF(N$1>INDIRECT("RemLife" &$A22),INDIRECT("Value" &$A22)-SUM($E22:M22),IF(INDIRECT("RemLife" &$A22)="n/a","n/a",INDIRECT("Value" &$A22)/INDIRECT("RemLife" &$A22)))) -> 0.01830206279 | O22: =IF(AND(DepreciationOption="Determination Allowance",O$1<6),INDIRECT("DepnAllowRAB" & $A22 & "_" &O$1),IF(O$1>INDIRECT("RemLife" &$A22),INDIRECT("Value" &$A22)-SUM($E22:N22),IF(INDIRECT("RemLife" &$A22)="n/a","n/a",INDIRECT("Value" &$A22)/INDIRECT("RemLife" &$A22)))) -> 0.01830206279
A23: 7 | B23: Other non system assets | D23: $m real 2014-15 | F23: =IF(AND(DepreciationOption="Determination Allowance",F$1<6),INDIRECT("DepnAllowRAB" & $A23 & "_" &F$1),IF(F$1>INDIRECT("RemLife" &$A23),INDIRECT("Value" &$A23)-SUM($E23:E23),IF(INDIRECT("RemLife" &$A23)="n/a","n/a",INDIRECT("Value" &$A23)/INDIRECT("RemLife" &$A23)))) -> -1.249512784e-06 | G23: =IF(AND(DepreciationOption="Determination Allowance",G$1<6),INDIRECT("DepnAllowRAB" & $A23 & "_" &G$1),IF(G$1>INDIRECT("RemLife" &$A23),INDIRECT("Value" &$A23)-SUM($E23:F23),IF(INDIRECT("RemLife" &$A23)="n/a","n/a",INDIRECT("Value" &$A23)/INDIRECT("RemLife" &$A23)))) -> -1.249512784e-06 | H23: =IF(AND(DepreciationOption="Determination Allowance",H$1<6),INDIRECT("DepnAllowRAB" & $A23 & "_" &H$1),IF(H$1>INDIRECT("RemLife" &$A23),INDIRECT("Value" &$A23)-SUM($E23:G23),IF(INDIRECT("RemLife" &$A23)="n/a","n/a",INDIRECT("Value" &$A23)/INDIRECT("RemLife" &$A23)))) -> -1.249512784e-06 | I23: =IF(AND(DepreciationOption="Determination Allowance",I$1<6),INDIRECT("DepnAllowRAB" & $A23 & "_" &I$1),IF(I$1>INDIRECT("RemLife" &$A23),INDIRECT("Value" &$A23)-SUM($E23:H23),IF(INDIRECT("RemLife" &$A23)="n/a","n/a",INDIRECT("Value" &$A23)/INDIRECT("RemLife" &$A23)))) -> -1.249512784e-06 | J23: =IF(AND(DepreciationOption="Determination Allowance",J$1<6),INDIRECT("DepnAllowRAB" & $A23 & "_" &J$1),IF(J$1>INDIRECT("RemLife" &$A23),INDIRECT("Value" &$A23)-SUM($E23:I23),IF(INDIRECT("RemLife" &$A23)="n/a","n/a",INDIRECT("Value" &$A23)/INDIRECT("RemLife" &$A23)))) -> -1.249512784e-06 | K23: =IF(AND(DepreciationOption="Determination Allowance",K$1<6),INDIRECT("DepnAllowRAB" & $A23 & "_" &K$1),IF(K$1>INDIRECT("RemLife" &$A23),INDIRECT("Value" &$A23)-SUM($E23:J23),IF(INDIRECT("RemLife" &$A23)="n/a","n/a",INDIRECT("Value" &$A23)/INDIRECT("RemLife" &$A23)))) -> -1.250670399e-06 | L23: =IF(AND(DepreciationOption="Determination Allowance",L$1<6),INDIRECT("DepnAllowRAB" & $A23 & "_" &L$1),IF(L$1>INDIRECT("RemLife" &$A23),INDIRECT("Value" &$A23)-SUM($E23:K23),IF(INDIRECT("RemLife" &$A23)="n/a","n/a",INDIRECT("Value" &$A23)/INDIRECT("RemLife" &$A23)))) -> -1.250670399e-06 | M23: =IF(AND(DepreciationOption="Determination Allowance",M$1<6),INDIRECT("DepnAllowRAB" & $A23 & "_" &M$1),IF(M$1>INDIRECT("RemLife" &$A23),INDIRECT("Value" &$A23)-SUM($E23:L23),IF(INDIRECT("RemLife" &$A23)="n/a","n/a",INDIRECT("Value" &$A23)/INDIRECT("RemLife" &$A23)))) -> -1.250670399e-06 | N23: =IF(AND(DepreciationOption="Determination Allowance",N$1<6),INDIRECT("DepnAllowRAB" & $A23 & "_" &N$1),IF(N$1>INDIRECT("RemLife" &$A23),INDIRECT("Value" &$A23)-SUM($E23:M23),IF(INDIRECT("RemLife" &$A23)="n/a","n/a",INDIRECT("Value" &$A23)/INDIRECT("RemLife" &$A23)))) -> -1.250670399e-06 | O23: =IF(AND(DepreciationOption="Determination Allowance",O$1<6),INDIRECT("DepnAllowRAB" & $A23 & "_" &O$1),IF(O$1>INDIRECT("RemLife" &$A23),INDIRECT("Value" &$A23)-SUM($E23:N23),IF(INDIRECT("RemLife" &$A23)="n/a","n/a",INDIRECT("Value" &$A23)/INDIRECT("RemLife" &$A23)))) -> -1.250670399e-06
B24: ="Depreciation of "&Inputs!$F$38 & " RAB Subtotal" -> Depreciation of 2014-15 RAB Subtotal | D24: $m real 2014-15 | F24: =SUM(F17:F23) -> 0.815840466 | G24: =SUM(G17:G23) -> 0.815840466 | H24: 0.815840466 | I24: 0.815840466 | J24: 0.815840466 | K24: 0.8165963041 | L24: 0.8165963041 | M24: 0.8165963041 | N24: 0.8165963041 | O24: 0.8165963041
B26: Dep'n of Capex Subtotal | D26: Units | F26: =INDEX(ModelYears, COLUMN()-COLUMN($D26)) -> 2014-15 | G26: 2015-16 | H26: 2016-17 | I26: 2017-18 | J26: 2018-19 | K26: 2019-20 | L26: 2020-21 | M26: 2021-22 | N26: 2022-23 | O26: 2023-24
A27: 1 | B27: ="Total "&INDEX(ModelYears,1+$A27) & " Capex" -> Total 2014-15 Capex | D27: $m real 2014-15 | G27: =SUM(G40,G53,G66,G79,G92,G105,G118) -> 0.1915288877 | H27: 0.1915288877 | I27: 0.1915288877 | J27: 0.1915288877 | K27: 0.04675734405 | L27: 0.04675734405 | M27: 0.04675734405 | N27: 0.04675734405 | O27: 0.04675734405
A28: 2 | B28: Total 2015-16 Capex | D28: $m real 2014-15 | H28: =SUM(H41,H54,H67,H80,H93,H106,H119) -> 0.1825078665 | I28: 0.1825078665 | J28: 0.1825078665 | K28: 0.05797167067 | L28: 0.05797167067 | M28: 0.05797167067 | N28: 0.05797167067 | O28: 0.05797167067
A29: 3 | B29: Total 2016-17 Capex | D29: $m real 2014-15 | I29: =SUM(I42,I55,I68,I81,I94,I107,I120) -> 0.3743496331 | J29: 0.3743496331 | K29: 0.009030459869 | L29: 0.009030459869 | M29: 0.009030459869 | N29: 0.009030459869 | O29: 0.009030459869
A30: 4 | B30: Total 2017-18 Capex | D30: $m real 2014-15 | J30: =SUM(J43,J56,J69,J82,J95,J108,J121) -> 0.5836774906 | K30: 0.04730858176 | L30: 0.04730858176 | M30: 0.04730858176 | N30: 0.04730858176 | O30: 0.04730858176
A31: 5 | B31: Total 2018-19 Capex | D31: $m real 2014-15 | K31: =SUM(K44,K57,K70,K83,K96,K109,K122) -> 0.008544504962 | L31: =SUM(L44,L57,L70,L83,L96,L109,L122) -> 0.008544504962 | M31: =SUM(M44,M57,M70,M83,M96,M109,M122) -> 0.008544504962 | N31: =SUM(N44,N57,N70,N83,N96,N109,N122) -> 0.008544504962 | O31: =SUM(O44,O57,O70,O83,O96,O109,O122) -> 0.008544504962
A32: 6 | B32: Total 2019-20 Capex | D32: $m real 2014-15 | L32: =SUM(L45,L58,L71,L84,L97,L110,L123) -> 0.008104231682 | M32: 0.008104231682 | N32: 0.008104231682 | O32: 0.008104231682
A33: 7 | B33: Total 2020-21 Capex | D33: $m real 2014-15 | M33: 0.006205084496 | N33: 0.006205084496 | O33: 0.006205084496
A34: 8 | B34: Total 2021-22 Capex | D34: $m real 2014-15 | N34: 0.006227978546 | O34: 0.006227978546
A35: 9 | B35: Total 2022-23 Capex | D35: $m real 2014-15 | O35: 0.006246190852
A36: 10 | B36: Total 2023-24 Capex | D36: $m real 2014-15
B37: Depreciation of Capex Subtotal | D37: $m real 2014-15 | F37: =SUM(F27:F36) -> 0 | G37: =SUM(G27:G36) -> 0.1915288877 | H37: =SUM(H27:H36) -> 0.3740367543 | I37: =SUM(I27:I36) -> 0.7483863873 | J37: =SUM(J27:J36) -> 1.332063878 | K37: =SUM(K27:K36) -> 0.1696125613 | L37: =SUM(L27:L36) -> 0.177716793 | M37: =SUM(M27:M36) -> 0.1839218775 | N37: =SUM(N27:N36) -> 0.190149856 | O37: =SUM(O27:O36) -> 0.1963960469
B39: ="Dep'n of " & INDIRECT("Asset"&$C39) & " Capex" -> Dep'n of Customer Metering Capex | C39: 1 | D39: Units | F39: =INDEX(ModelYears, COLUMN()-COLUMN($D39)) -> 2014-15 | G39: 2015-16 | H39: 2016-17 | I39: 2017-18 | J39: 2018-19 | K39: 2019-20 | L39: 2020-21 | M39: 2021-22 | N39: 2022-23 | O39: 2023-24
A40: 1 | B40: =INDIRECT("Asset"&$C40) & " - " & INDEX(ModelYears,1+$A40) -> Customer Metering - 2014-15 | C40: 1 | D40: $m real 2014-15 | G40: =IF(AND(DepreciationOption="Determination Allowance",G$1<6),INDIRECT("DepnAllowCapex" &$C40&"_"& $A40 & "_" &G$1),IF(INDIRECT("StdLife" & $C40)="n/a","n/a",IF(G$1>(INDIRECT("StdLife" & $C40)+$A40),(INDIRECT("Capex" & $C40 & "_"& $A40)*(1+INDIRECT("vanilla" & $A40))^0.5)-SUM($F40:F40),(INDIRECT("Capex" & $C40 & "_" & $A40)*(1+INDIRECT("vanilla" & $A40))^0.5)/INDIRECT("StdLife" & $C40)))) -> 0.1915288877 | H40: =IF(AND(DepreciationOption="Determination Allowance",H$1<6),INDIRECT("DepnAllowCapex" &$C40&"_"& $A40 & "_" &H$1),IF(INDIRECT("StdLife" & $C40)="n/a","n/a",IF(H$1>(INDIRECT("StdLife" & $C40)+$A40),(INDIRECT("Capex" & $C40 & "_"& $A40)*(1+INDIRECT("vanilla" & $A40))^0.5)-SUM($F40:G40),(INDIRECT("Capex" & $C40 & "_" & $A40)*(1+INDIRECT("vanilla" & $A40))^0.5)/INDIRECT("StdLife" & $C40)))) -> 0.1915288877 | I40: =IF(AND(DepreciationOption="Determination Allowance",I$1<6),INDIRECT("DepnAllowCapex" &$C40&"_"& $A40 & "_" &I$1),IF(INDIRECT("StdLife" & $C40)="n/a","n/a",IF(I$1>(INDIRECT("StdLife" & $C40)+$A40),(INDIRECT("Capex" & $C40 & "_"& $A40)*(1+INDIRECT("vanilla" & $A40))^0.5)-SUM($F40:H40),(INDIRECT("Capex" & $C40 & "_" & $A40)*(1+INDIRECT("vanilla" & $A40))^0.5)/INDIRECT("StdLife" & $C40)))) -> 0.1915288877 | J40: =IF(AND(DepreciationOption="Determination Allowance",J$1<6),INDIRECT("DepnAllowCapex" &$C40&"_"& $A40 & "_" &J$1),IF(INDIRECT("StdLife" & $C40)="n/a","n/a",IF(J$1>(INDIRECT("StdLife" & $C40)+$A40),(INDIRECT("Capex" & $C40 & "_"& $A40)*(1+INDIRECT("vanilla" & $A40))^0.5)-SUM($F40:I40),(INDIRECT("Capex" & $C40 & "_" & $A40)*(1+INDIRECT("vanilla" & $A40))^0.5)/INDIRECT("StdLife" & $C40)))) -> 0.1915288877 | K40: =IF(AND(DepreciationOption="Determination Allowance",K$1<6),INDIRECT("DepnAllowCapex" &$C40&"_"& $A40 & "_" &K$1),IF(INDIRECT("StdLife" & $C40)="n/a","n/a",IF(K$1>(INDIRECT("StdLife" & $C40)+$A40),(INDIRECT("Capex" & $C40 & "_"& $A40)*(1+INDIRECT("vanilla" & $A40))^0.5)-SUM($F40:J40),(INDIRECT("Capex" & $C40 & "_" & $A40)*(1+INDIRECT("vanilla" & $A40))^0.5)/INDIRECT("StdLife" & $C40)))) -> 0.04675734405 | L40: =IF(AND(DepreciationOption="Determination Allowance",L$1<6),INDIRECT("DepnAllowCapex" &$C40&"_"& $A40 & "_" &L$1),IF(INDIRECT("StdLife" & $C40)="n/a","n/a",IF(L$1>(INDIRECT("StdLife" & $C40)+$A40),(INDIRECT("Capex" & $C40 & "_"& $A40)*(1+INDIRECT("vanilla" & $A40))^0.5)-SUM($F40:K40),(INDIRECT("Capex" & $C40 & "_" & $A40)*(1+INDIRECT("vanilla" & $A40))^0.5)/INDIRECT("StdLife" & $C40)))) -> 0.04675734405 | M40: =IF(AND(DepreciationOption="Determination Allowance",M$1<6),INDIRECT("DepnAllowCapex" &$C40&"_"& $A40 & "_" &M$1),IF(INDIRECT("StdLife" & $C40)="n/a","n/a",IF(M$1>(INDIRECT("StdLife" & $C40)+$A40),(INDIRECT("Capex" & $C40 & "_"& $A40)*(1+INDIRECT("vanilla" & $A40))^0.5)-SUM($F40:L40),(INDIRECT("Capex" & $C40 & "_" & $A40)*(1+INDIRECT("vanilla" & $A40))^0.5)/INDIRECT("StdLife" & $C40)))) -> 0.04675734405 | N40: =IF(AND(DepreciationOption="Determination Allowance",N$1<6),INDIRECT("DepnAllowCapex" &$C40&"_"& $A40 & "_" &N$1),IF(INDIRECT("StdLife" & $C40)="n/a","n/a",IF(N$1>(INDIRECT("StdLife" & $C40)+$A40),(INDIRECT("Capex" & $C40 & "_"& $A40)*(1+INDIRECT("vanilla" & $A40))^0.5)-SUM($F40:M40),(INDIRECT("Capex" & $C40 & "_" & $A40)*(1+INDIRECT("vanilla" & $A40))^0.5)/INDIRECT("StdLife" & $C40)))) -> 0.04675734405 | O40: =IF(AND(DepreciationOption="Determination Allowance",O$1<6),INDIRECT("DepnAllowCapex" &$C40&"_"& $A40 & "_" &O$1),IF(INDIRECT("StdLife" & $C40)="n/a","n/a",IF(O$1>(INDIRECT("StdLife" & $C40)+$A40),(INDIRECT("Capex" & $C40 & "_"& $A40)*(1+INDIRECT("vanilla" & $A40))^0.5)-SUM($F40:N40),(INDIRECT("Capex" & $C40 & "_" & $A40)*(1+INDIRECT("vanilla" & $A40))^0.5)/INDIRECT("StdLife" & $C40)))) -> 0.04675734405
A41: 2 | B41: Customer Metering - 2015-16 | C41: 1 | D41: $m real 2014-15 | H41: =IF(AND(DepreciationOption="Determination Allowance",H$1<6),INDIRECT("DepnAllowCapex" &$C41&"_"& $A41 & "_" &H$1),IF(INDIRECT("StdLife" & $C41)="n/a","n/a",IF(H$1>(INDIRECT("StdLife" & $C41)+$A41),(INDIRECT("Capex" & $C41 & "_"& $A41)*(1+INDIRECT("vanilla" & $A41))^0.5)-SUM($F41:G41),(INDIRECT("Capex" & $C41 & "_" & $A41)*(1+INDIRECT("vanilla" & $A41))^0.5)/INDIRECT("StdLife" & $C41)))) -> 0.1825078665 | I41: =IF(AND(DepreciationOption="Determination Allowance",I$1<6),INDIRECT("DepnAllowCapex" &$C41&"_"& $A41 & "_" &I$1),IF(INDIRECT("StdLife" & $C41)="n/a","n/a",IF(I$1>(INDIRECT("StdLife" & $C41)+$A41),(INDIRECT("Capex" & $C41 & "_"& $A41)*(1+INDIRECT("vanilla" & $A41))^0.5)-SUM($F41:H41),(INDIRECT("Capex" & $C41 & "_" & $A41)*(1+INDIRECT("vanilla" & $A41))^0.5)/INDIRECT("StdLife" & $C41)))) -> 0.1825078665 | J41: =IF(AND(DepreciationOption="Determination Allowance",J$1<6),INDIRECT("DepnAllowCapex" &$C41&"_"& $A41 & "_" &J$1),IF(INDIRECT("StdLife" & $C41)="n/a","n/a",IF(J$1>(INDIRECT("StdLife" & $C41)+$A41),(INDIRECT("Capex" & $C41 & "_"& $A41)*(1+INDIRECT("vanilla" & $A41))^0.5)-SUM($F41:I41),(INDIRECT("Capex" & $C41 & "_" & $A41)*(1+INDIRECT("vanilla" & $A41))^0.5)/INDIRECT("StdLife" & $C41)))) -> 0.1825078665 | K41: =IF(AND(DepreciationOption="Determination Allowance",K$1<6),INDIRECT("DepnAllowCapex" &$C41&"_"& $A41 & "_" &K$1),IF(INDIRECT("StdLife" & $C41)="n/a","n/a",IF(K$1>(INDIRECT("StdLife" & $C41)+$A41),(INDIRECT("Capex" & $C41 & "_"& $A41)*(1+INDIRECT("vanilla" & $A41))^0.5)-SUM($F41:J41),(INDIRECT("Capex" & $C41 & "_" & $A41)*(1+INDIRECT("vanilla" & $A41))^0.5)/INDIRECT("StdLife" & $C41)))) -> 0.05797167067 | L41: =IF(AND(DepreciationOption="Determination Allowance",L$1<6),INDIRECT("DepnAllowCapex" &$C41&"_"& $A41 & "_" &L$1),IF(INDIRECT("StdLife" & $C41)="n/a","n/a",IF(L$1>(INDIRECT("StdLife" & $C41)+$A41),(INDIRECT("Capex" & $C41 & "_"& $A41)*(1+INDIRECT("vanilla" & $A41))^0.5)-SUM($F41:K41),(INDIRECT("Capex" & $C41 & "_" & $A41)*(1+INDIRECT("vanilla" & $A41))^0.5)/INDIRECT("StdLife" & $C41)))) -> 0.05797167067 | M41: =IF(AND(DepreciationOption="Determination Allowance",M$1<6),INDIRECT("DepnAllowCapex" &$C41&"_"& $A41 & "_" &M$1),IF(INDIRECT("StdLife" & $C41)="n/a","n/a",IF(M$1>(INDIRECT("StdLife" & $C41)+$A41),(INDIRECT("Capex" & $C41 & "_"& $A41)*(1+INDIRECT("vanilla" & $A41))^0.5)-SUM($F41:L41),(INDIRECT("Capex" & $C41 & "_" & $A41)*(1+INDIRECT("vanilla" & $A41))^0.5)/INDIRECT("StdLife" & $C41)))) -> 0.05797167067 | N41: =IF(AND(DepreciationOption="Determination Allowance",N$1<6),INDIRECT("DepnAllowCapex" &$C41&"_"& $A41 & "_" &N$1),IF(INDIRECT("StdLife" & $C41)="n/a","n/a",IF(N$1>(INDIRECT("StdLife" & $C41)+$A41),(INDIRECT("Capex" & $C41 & "_"& $A41)*(1+INDIRECT("vanilla" & $A41))^0.5)-SUM($F41:M41),(INDIRECT("Capex" & $C41 & "_" & $A41)*(1+INDIRECT("vanilla" & $A41))^0.5)/INDIRECT("StdLife" & $C41)))) -> 0.05797167067 | O41: =IF(AND(DepreciationOption="Determination Allowance",O$1<6),INDIRECT("DepnAllowCapex" &$C41&"_"& $A41 & "_" &O$1),IF(INDIRECT("StdLife" & $C41)="n/a","n/a",IF(O$1>(INDIRECT("StdLife" & $C41)+$A41),(INDIRECT("Capex" & $C41 & "_"& $A41)*(1+INDIRECT("vanilla" & $A41))^0.5)-SUM($F41:N41),(INDIRECT("Capex" & $C41 & "_" & $A41)*(1+INDIRECT("vanilla" & $A41))^0.5)/INDIRECT("StdLife" & $C41)))) -> 0.05797167067
A42: 3 | B42: Customer Metering - 2016-17 | C42: 1 | D42: $m real 2014-15 | I42: =IF(AND(DepreciationOption="Determination Allowance",I$1<6),INDIRECT("DepnAllowCapex" &$C42&"_"& $A42 & "_" &I$1),IF(INDIRECT("StdLife" & $C42)="n/a","n/a",IF(I$1>(INDIRECT("StdLife" & $C42)+$A42),(INDIRECT("Capex" & $C42 & "_"& $A42)*(1+INDIRECT("vanilla" & $A42))^0.5)-SUM($F42:H42),(INDIRECT("Capex" & $C42 & "_" & $A42)*(1+INDIRECT("vanilla" & $A42))^0.5)/INDIRECT("StdLife" & $C42)))) -> 0.3743496331 | J42: =IF(AND(DepreciationOption="Determination Allowance",J$1<6),INDIRECT("DepnAllowCapex" &$C42&"_"& $A42 & "_" &J$1),IF(INDIRECT("StdLife" & $C42)="n/a","n/a",IF(J$1>(INDIRECT("StdLife" & $C42)+$A42),(INDIRECT("Capex" & $C42 & "_"& $A42)*(1+INDIRECT("vanilla" & $A42))^0.5)-SUM($F42:I42),(INDIRECT("Capex" & $C42 & "_" & $A42)*(1+INDIRECT("vanilla" & $A42))^0.5)/INDIRECT("StdLife" & $C42)))) -> 0.3743496331 | K42: =IF(AND(DepreciationOption="Determination Allowance",K$1<6),INDIRECT("DepnAllowCapex" &$C42&"_"& $A42 & "_" &K$1),IF(INDIRECT("StdLife" & $C42)="n/a","n/a",IF(K$1>(INDIRECT("StdLife" & $C42)+$A42),(INDIRECT("Capex" & $C42 & "_"& $A42)*(1+INDIRECT("vanilla" & $A42))^0.5)-SUM($F42:J42),(INDIRECT("Capex" & $C42 & "_" & $A42)*(1+INDIRECT("vanilla" & $A42))^0.5)/INDIRECT("StdLife" & $C42)))) -> 0.009030459869 | L42: =IF(AND(DepreciationOption="Determination Allowance",L$1<6),INDIRECT("DepnAllowCapex" &$C42&"_"& $A42 & "_" &L$1),IF(INDIRECT("StdLife" & $C42)="n/a","n/a",IF(L$1>(INDIRECT("StdLife" & $C42)+$A42),(INDIRECT("Capex" & $C42 & "_"& $A42)*(1+INDIRECT("vanilla" & $A42))^0.5)-SUM($F42:K42),(INDIRECT("Capex" & $C42 & "_" & $A42)*(1+INDIRECT("vanilla" & $A42))^0.5)/INDIRECT("StdLife" & $C42)))) -> 0.009030459869 | M42: =IF(AND(DepreciationOption="Determination Allowance",M$1<6),INDIRECT("DepnAllowCapex" &$C42&"_"& $A42 & "_" &M$1),IF(INDIRECT("StdLife" & $C42)="n/a","n/a",IF(M$1>(INDIRECT("StdLife" & $C42)+$A42),(INDIRECT("Capex" & $C42 & "_"& $A42)*(1+INDIRECT("vanilla" & $A42))^0.5)-SUM($F42:L42),(INDIRECT("Capex" & $C42 & "_" & $A42)*(1+INDIRECT("vanilla" & $A42))^0.5)/INDIRECT("StdLife" & $C42)))) -> 0.009030459869 | N42: =IF(AND(DepreciationOption="Determination Allowance",N$1<6),INDIRECT("DepnAllowCapex" &$C42&"_"& $A42 & "_" &N$1),IF(INDIRECT("StdLife" & $C42)="n/a","n/a",IF(N$1>(INDIRECT("StdLife" & $C42)+$A42),(INDIRECT("Capex" & $C42 & "_"& $A42)*(1+INDIRECT("vanilla" & $A42))^0.5)-SUM($F42:M42),(INDIRECT("Capex" & $C42 & "_" & $A42)*(1+INDIRECT("vanilla" & $A42))^0.5)/INDIRECT("StdLife" & $C42)))) -> 0.009030459869 | O42: =IF(AND(DepreciationOption="Determination Allowance",O$1<6),INDIRECT("DepnAllowCapex" &$C42&"_"& $A42 & "_" &O$1),IF(INDIRECT("StdLife" & $C42)="n/a","n/a",IF(O$1>(INDIRECT("StdLife" & $C42)+$A42),(INDIRECT("Capex" & $C42 & "_"& $A42)*(1+INDIRECT("vanilla" & $A42))^0.5)-SUM($F42:N42),(INDIRECT("Capex" & $C42 & "_" & $A42)*(1+INDIRECT("vanilla" & $A42))^0.5)/INDIRECT("StdLife" & $C42)))) -> 0.009030459869
A43: 4 | B43: Customer Metering - 2017-18 | C43: 1 | D43: $m real 2014-15 | J43: =IF(AND(DepreciationOption="Determination Allowance",J$1<6),INDIRECT("DepnAllowCapex" &$C43&"_"& $A43 & "_" &J$1),IF(INDIRECT("StdLife" & $C43)="n/a","n/a",IF(J$1>(INDIRECT("StdLife" & $C43)+$A43),(INDIRECT("Capex" & $C43 & "_"& $A43)*(1+INDIRECT("vanilla" & $A43))^0.5)-SUM($F43:I43),(INDIRECT("Capex" & $C43 & "_" & $A43)*(1+INDIRECT("vanilla" & $A43))^0.5)/INDIRECT("StdLife" & $C43)))) -> 0.5836774906 | K43: =IF(AND(DepreciationOption="Determination Allowance",K$1<6),INDIRECT("DepnAllowCapex" &$C43&"_"& $A43 & "_" &K$1),IF(INDIRECT("StdLife" & $C43)="n/a","n/a",IF(K$1>(INDIRECT("StdLife" & $C43)+$A43),(INDIRECT("Capex" & $C43 & "_"& $A43)*(1+INDIRECT("vanilla" & $A43))^0.5)-SUM($F43:J43),(INDIRECT("Capex" & $C43 & "_" & $A43)*(1+INDIRECT("vanilla" & $A43))^0.5)/INDIRECT("StdLife" & $C43)))) -> 0.04730858176 | L43: =IF(AND(DepreciationOption="Determination Allowance",L$1<6),INDIRECT("DepnAllowCapex" &$C43&"_"& $A43 & "_" &L$1),IF(INDIRECT("StdLife" & $C43)="n/a","n/a",IF(L$1>(INDIRECT("StdLife" & $C43)+$A43),(INDIRECT("Capex" & $C43 & "_"& $A43)*(1+INDIRECT("vanilla" & $A43))^0.5)-SUM($F43:K43),(INDIRECT("Capex" & $C43 & "_" & $A43)*(1+INDIRECT("vanilla" & $A43))^0.5)/INDIRECT("StdLife" & $C43)))) -> 0.04730858176 | M43: =IF(AND(DepreciationOption="Determination Allowance",M$1<6),INDIRECT("DepnAllowCapex" &$C43&"_"& $A43 & "_" &M$1),IF(INDIRECT("StdLife" & $C43)="n/a","n/a",IF(M$1>(INDIRECT("StdLife" & $C43)+$A43),(INDIRECT("Capex" & $C43 & "_"& $A43)*(1+INDIRECT("vanilla" & $A43))^0.5)-SUM($F43:L43),(INDIRECT("Capex" & $C43 & "_" & $A43)*(1+INDIRECT("vanilla" & $A43))^0.5)/INDIRECT("StdLife" & $C43)))) -> 0.04730858176 | N43: =IF(AND(DepreciationOption="Determination Allowance",N$1<6),INDIRECT("DepnAllowCapex" &$C43&"_"& $A43 & "_" &N$1),IF(INDIRECT("StdLife" & $C43)="n/a","n/a",IF(N$1>(INDIRECT("StdLife" & $C43)+$A43),(INDIRECT("Capex" & $C43 & "_"& $A43)*(1+INDIRECT("vanilla" & $A43))^0.5)-SUM($F43:M43),(INDIRECT("Capex" & $C43 & "_" & $A43)*(1+INDIRECT("vanilla" & $A43))^0.5)/INDIRECT("StdLife" & $C43)))) -> 0.04730858176 | O43: =IF(AND(DepreciationOption="Determination Allowance",O$1<6),INDIRECT("DepnAllowCapex" &$C43&"_"& $A43 & "_" &O$1),IF(INDIRECT("StdLife" & $C43)="n/a","n/a",IF(O$1>(INDIRECT("StdLife" & $C43)+$A43),(INDIRECT("Capex" & $C43 & "_"& $A43)*(1+INDIRECT("vanilla" & $A43))^0.5)-SUM($F43:N43),(INDIRECT("Capex" & $C43 & "_" & $A43)*(1+INDIRECT("vanilla" & $A43))^0.5)/INDIRECT("StdLife" & $C43)))) -> 0.04730858176
A44: 5 | B44: Customer Metering - 2018-19 | C44: 1 | D44: $m real 2014-15 | K44: =IF(AND(DepreciationOption="Determination Allowance",K$1<6),INDIRECT("DepnAllowCapex" &$C44&"_"& $A44 & "_" &K$1),IF(INDIRECT("StdLife" & $C44)="n/a","n/a",IF(K$1>(INDIRECT("StdLife" & $C44)+$A44),(INDIRECT("Capex" & $C44 & "_"& $A44)*(1+INDIRECT("vanilla" & $A44))^0.5)-SUM($F44:J44),(INDIRECT("Capex" & $C44 & "_" & $A44)*(1+INDIRECT("vanilla" & $A44))^0.5)/INDIRECT("StdLife" & $C44)))) -> 0.008544504962 | L44: =IF(AND(DepreciationOption="Determination Allowance",L$1<6),INDIRECT("DepnAllowCapex" &$C44&"_"& $A44 & "_" &L$1),IF(INDIRECT("StdLife" & $C44)="n/a","n/a",IF(L$1>(INDIRECT("StdLife" & $C44)+$A44),(INDIRECT("Capex" & $C44 & "_"& $A44)*(1+INDIRECT("vanilla" & $A44))^0.5)-SUM($F44:K44),(INDIRECT("Capex" & $C44 & "_" & $A44)*(1+INDIRECT("vanilla" & $A44))^0.5)/INDIRECT("StdLife" & $C44)))) -> 0.008544504962 | M44: =IF(AND(DepreciationOption="Determination Allowance",M$1<6),INDIRECT("DepnAllowCapex" &$C44&"_"& $A44 & "_" &M$1),IF(INDIRECT("StdLife" & $C44)="n/a","n/a",IF(M$1>(INDIRECT("StdLife" & $C44)+$A44),(INDIRECT("Capex" & $C44 & "_"& $A44)*(1+INDIRECT("vanilla" & $A44))^0.5)-SUM($F44:L44),(INDIRECT("Capex" & $C44 & "_" & $A44)*(1+INDIRECT("vanilla" & $A44))^0.5)/INDIRECT("StdLife" & $C44)))) -> 0.008544504962 | N44: =IF(AND(DepreciationOption="Determination Allowance",N$1<6),INDIRECT("DepnAllowCapex" &$C44&"_"& $A44 & "_" &N$1),IF(INDIRECT("StdLife" & $C44)="n/a","n/a",IF(N$1>(INDIRECT("StdLife" & $C44)+$A44),(INDIRECT("Capex" & $C44 & "_"& $A44)*(1+INDIRECT("vanilla" & $A44))^0.5)-SUM($F44:M44),(INDIRECT("Capex" & $C44 & "_" & $A44)*(1+INDIRECT("vanilla" & $A44))^0.5)/INDIRECT("StdLife" & $C44)))) -> 0.008544504962 | O44: =IF(AND(DepreciationOption="Determination Allowance",O$1<6),INDIRECT("DepnAllowCapex" &$C44&"_"& $A44 & "_" &O$1),IF(INDIRECT("StdLife" & $C44)="n/a","n/a",IF(O$1>(INDIRECT("StdLife" & $C44)+$A44),(INDIRECT("Capex" & $C44 & "_"& $A44)*(1+INDIRECT("vanilla" & $A44))^0.5)-SUM($F44:N44),(INDIRECT("Capex" & $C44 & "_" & $A44)*(1+INDIRECT("vanilla" & $A44))^0.5)/INDIRECT("StdLife" & $C44)))) -> 0.008544504962
A45: 6 | B45: Customer Metering - 2019-20 | C45: 1 | D45: $m real 2014-15 | L45: =IF(AND(DepreciationOption="Determination Allowance",L$1<6),INDIRECT("DepnAllowCapex" &$C45&"_"& $A45 & "_" &L$1),IF(INDIRECT("StdLife" & $C45)="n/a","n/a",IF(L$1>(INDIRECT("StdLife" & $C45)+$A45),(INDIRECT("Capex" & $C45 & "_"& $A45)*(1+INDIRECT("vanilla" & $A45))^0.5)-SUM($F45:K45),(INDIRECT("Capex" & $C45 & "_" & $A45)*(1+INDIRECT("vanilla" & $A45))^0.5)/INDIRECT("StdLife" & $C45)))) -> 0.008104231682 | M45: =IF(AND(DepreciationOption="Determination Allowance",M$1<6),INDIRECT("DepnAllowCapex" &$C45&"_"& $A45 & "_" &M$1),IF(INDIRECT("StdLife" & $C45)="n/a","n/a",IF(M$1>(INDIRECT("StdLife" & $C45)+$A45),(INDIRECT("Capex" & $C45 & "_"& $A45)*(1+INDIRECT("vanilla" & $A45))^0.5)-SUM($F45:L45),(INDIRECT("Capex" & $C45 & "_" & $A45)*(1+INDIRECT("vanilla" & $A45))^0.5)/INDIRECT("StdLife" & $C45)))) -> 0.008104231682 | N45: =IF(AND(DepreciationOption="Determination Allowance",N$1<6),INDIRECT("DepnAllowCapex" &$C45&"_"& $A45 & "_" &N$1),IF(INDIRECT("StdLife" & $C45)="n/a","n/a",IF(N$1>(INDIRECT("StdLife" & $C45)+$A45),(INDIRECT("Capex" & $C45 & "_"& $A45)*(1+INDIRECT("vanilla" & $A45))^0.5)-SUM($F45:M45),(INDIRECT("Capex" & $C45 & "_" & $A45)*(1+INDIRECT("vanilla" & $A45))^0.5)/INDIRECT("StdLife" & $C45)))) -> 0.008104231682 | O45: =IF(AND(DepreciationOption="Determination Allowance",O$1<6),INDIRECT("DepnAllowCapex" &$C45&"_"& $A45 & "_" &O$1),IF(INDIRECT("StdLife" & $C45)="n/a","n/a",IF(O$1>(INDIRECT("StdLife" & $C45)+$A45),(INDIRECT("Capex" & $C45 & "_"& $A45)*(1+INDIRECT("vanilla" & $A45))^0.5)-SUM($F45:N45),(INDIRECT("Capex" & $C45 & "_" & $A45)*(1+INDIRECT("vanilla" & $A45))^0.5)/INDIRECT("StdLife" & $C45)))) -> 0.008104231682
A46: 7 | B46: Customer Metering - 2020-21 | C46: 1 | D46: $m real 2014-15 | M46: =IF(AND(DepreciationOption="Determination Allowance",M$1<6),INDIRECT("DepnAllowCapex" &$C46&"_"& $A46 & "_" &M$1),IF(INDIRECT("StdLife" & $C46)="n/a","n/a",IF(M$1>(INDIRECT("StdLife" & $C46)+$A46),(INDIRECT("Capex" & $C46 & "_"& $A46)*(1+INDIRECT("vanilla" & $A46))^0.5)-SUM($F46:L46),(INDIRECT("Capex" & $C46 & "_" & $A46)*(1+INDIRECT("vanilla" & $A46))^0.5)/INDIRECT("StdLife" & $C46)))) -> 0.006205084496 | N46: =IF(AND(DepreciationOption="Determination Allowance",N$1<6),INDIRECT("DepnAllowCapex" &$C46&"_"& $A46 & "_" &N$1),IF(INDIRECT("StdLife" & $C46)="n/a","n/a",IF(N$1>(INDIRECT("StdLife" & $C46)+$A46),(INDIRECT("Capex" & $C46 & "_"& $A46)*(1+INDIRECT("vanilla" & $A46))^0.5)-SUM($F46:M46),(INDIRECT("Capex" & $C46 & "_" & $A46)*(1+INDIRECT("vanilla" & $A46))^0.5)/INDIRECT("StdLife" & $C46)))) -> 0.006205084496 | O46: =IF(AND(DepreciationOption="Determination Allowance",O$1<6),INDIRECT("DepnAllowCapex" &$C46&"_"& $A46 & "_" &O$1),IF(INDIRECT("StdLife" & $C46)="n/a","n/a",IF(O$1>(INDIRECT("StdLife" & $C46)+$A46),(INDIRECT("Capex" & $C46 & "_"& $A46)*(1+INDIRECT("vanilla" & $A46))^0.5)-SUM($F46:N46),(INDIRECT("Capex" & $C46 & "_" & $A46)*(1+INDIRECT("vanilla" & $A46))^0.5)/INDIRECT("StdLife" & $C46)))) -> 0.006205084496
A47: 8 | B47: Customer Metering - 2021-22 | C47: 1 | D47: $m real 2014-15 | N47: =IF(AND(DepreciationOption="Determination Allowance",N$1<6),INDIRECT("DepnAllowCapex" &$C47&"_"& $A47 & "_" &N$1),IF(INDIRECT("StdLife" & $C47)="n/a","n/a",IF(N$1>(INDIRECT("StdLife" & $C47)+$A47),(INDIRECT("Capex" & $C47 & "_"& $A47)*(1+INDIRECT("vanilla" & $A47))^0.5)-SUM($F47:M47),(INDIRECT("Capex" & $C47 & "_" & $A47)*(1+INDIRECT("vanilla" & $A47))^0.5)/INDIRECT("StdLife" & $C47)))) -> 0.006227978546 | O47: =IF(AND(DepreciationOption="Determination Allowance",O$1<6),INDIRECT("DepnAllowCapex" &$C47&"_"& $A47 & "_" &O$1),IF(INDIRECT("StdLife" & $C47)="n/a","n/a",IF(O$1>(INDIRECT("StdLife" & $C47)+$A47),(INDIRECT("Capex" & $C47 & "_"& $A47)*(1+INDIRECT("vanilla" & $A47))^0.5)-SUM($F47:N47),(INDIRECT("Capex" & $C47 & "_" & $A47)*(1+INDIRECT("vanilla" & $A47))^0.5)/INDIRECT("StdLife" & $C47)))) -> 0.006227978546
A48: 9 | B48: Customer Metering - 2022-23 | C48: 1 | D48: $m real 2014-15 | O48: =IF(AND(DepreciationOption="Determination Allowance",O$1<6),INDIRECT("DepnAllowCapex" &$C48&"_"& $A48 & "_" &O$1),IF(INDIRECT("StdLife" & $C48)="n/a","n/a",IF(O$1>(INDIRECT("StdLife" & $C48)+$A48),(INDIRECT("Capex" & $C48 & "_"& $A48)*(1+INDIRECT("vanilla" & $A48))^0.5)-SUM($F48:N48),(INDIRECT("Capex" & $C48 & "_" & $A48)*(1+INDIRECT("vanilla" & $A48))^0.5)/INDIRECT("StdLife" & $C48)))) -> 0.006246190852
A49: 10 | B49: Customer Metering - 2023-24 | C49: 1 | D49: $m real 2014-15
B50: =INDIRECT("Asset"&$C50) & " Subtotal" -> Customer Metering Subtotal | C50: 1 | D50: $m real 2014-15 | F50: =SUM(F40:F49) -> 0 | G50: =SUM(G40:G49) -> 0.1915288877 | H50: 0.3740367543 | I50: 0.7483863873 | J50: 1.332063878 | K50: 0.1696125613 | L50: 0.177716793 | M50: 0.1839218775 | N50: 0.190149856 | O50: 0.1963960469
B52: ="Dep'n of " & INDIRECT("Asset"&$C52) & " Capex" -> Dep'n of Information & Communication Technology Capex | C52: =C39+1 -> 2 | D52: Units | F52: =INDEX(ModelYears, COLUMN()-COLUMN($D52)) -> 2014-15 | G52: 2015-16 | H52: 2016-17 | I52: 2017-18 | J52: 2018-19 | K52: 2019-20 | L52: 2020-21 | M52: 2021-22 | N52: 2022-23 | O52: 2023-24
A53: 1 | B53: =INDIRECT("Asset"&$C53) & " - " & INDEX(ModelYears,1+$A53) -> Information & Communication Technology - 2014-15 | C53: =C40+1 -> 2 | D53: $m real 2014-15 | G53: =IF(AND(DepreciationOption="Determination Allowance",G$1<6),INDIRECT("DepnAllowCapex" &$C53&"_"& $A53 & "_" &G$1),IF(INDIRECT("StdLife" & $C53)="n/a","n/a",IF(G$1>(INDIRECT("StdLife" & $C53)+$A53),(INDIRECT("Capex" & $C53 & "_"& $A53)*(1+INDIRECT("vanilla" & $A53))^0.5)-SUM($F53:F53),(INDIRECT("Capex" & $C53 & "_" & $A53)*(1+INDIRECT("vanilla" & $A53))^0.5)/INDIRECT("StdLife" & $C53)))) -> 0 | H53: =IF(AND(DepreciationOption="Determination Allowance",H$1<6),INDIRECT("DepnAllowCapex" &$C53&"_"& $A53 & "_" &H$1),IF(INDIRECT("StdLife" & $C53)="n/a","n/a",IF(H$1>(INDIRECT("StdLife" & $C53)+$A53),(INDIRECT("Capex" & $C53 & "_"& $A53)*(1+INDIRECT("vanilla" & $A53))^0.5)-SUM($F53:G53),(INDIRECT("Capex" & $C53 & "_" & $A53)*(1+INDIRECT("vanilla" & $A53))^0.5)/INDIRECT("StdLife" & $C53)))) -> 0 | I53: =IF(AND(DepreciationOption="Determination Allowance",I$1<6),INDIRECT("DepnAllowCapex" &$C53&"_"& $A53 & "_" &I$1),IF(INDIRECT("StdLife" & $C53)="n/a","n/a",IF(I$1>(INDIRECT("StdLife" & $C53)+$A53),(INDIRECT("Capex" & $C53 & "_"& $A53)*(1+INDIRECT("vanilla" & $A53))^0.5)-SUM($F53:H53),(INDIRECT("Capex" & $C53 & "_" & $A53)*(1+INDIRECT("vanilla" & $A53))^0.5)/INDIRECT("StdLife" & $C53)))) -> 0 | J53: =IF(AND(DepreciationOption="Determination Allowance",J$1<6),INDIRECT("DepnAllowCapex" &$C53&"_"& $A53 & "_" &J$1),IF(INDIRECT("StdLife" & $C53)="n/a","n/a",IF(J$1>(INDIRECT("StdLife" & $C53)+$A53),(INDIRECT("Capex" & $C53 & "_"& $A53)*(1+INDIRECT("vanilla" & $A53))^0.5)-SUM($F53:I53),(INDIRECT("Capex" & $C53 & "_" & $A53)*(1+INDIRECT("vanilla" & $A53))^0.5)/INDIRECT("StdLife" & $C53)))) -> 0 | K53: =IF(AND(DepreciationOption="Determination Allowance",K$1<6),INDIRECT("DepnAllowCapex" &$C53&"_"& $A53 & "_" &K$1),IF(INDIRECT("StdLife" & $C53)="n/a","n/a",IF(K$1>(INDIRECT("StdLife" & $C53)+$A53),(INDIRECT("Capex" & $C53 & "_"& $A53)*(1+INDIRECT("vanilla" & $A53))^0.5)-SUM($F53:J53),(INDIRECT("Capex" & $C53 & "_" & $A53)*(1+INDIRECT("vanilla" & $A53))^0.5)/INDIRECT("StdLife" & $C53)))) -> 0 | L53: =IF(AND(DepreciationOption="Determination Allowance",L$1<6),INDIRECT("DepnAllowCapex" &$C53&"_"& $A53 & "_" &L$1),IF(INDIRECT("StdLife" & $C53)="n/a","n/a",IF(L$1>(INDIRECT("StdLife" & $C53)+$A53),(INDIRECT("Capex" & $C53 & "_"& $A53)*(1+INDIRECT("vanilla" & $A53))^0.5)-SUM($F53:K53),(INDIRECT("Capex" & $C53 & "_" & $A53)*(1+INDIRECT("vanilla" & $A53))^0.5)/INDIRECT("StdLife" & $C53)))) -> 0 | M53: =IF(AND(DepreciationOption="Determination Allowance",M$1<6),INDIRECT("DepnAllowCapex" &$C53&"_"& $A53 & "_" &M$1),IF(INDIRECT("StdLife" & $C53)="n/a","n/a",IF(M$1>(INDIRECT("StdLife" & $C53)+$A53),(INDIRECT("Capex" & $C53 & "_"& $A53)*(1+INDIRECT("vanilla" & $A53))^0.5)-SUM($F53:L53),(INDIRECT("Capex" & $C53 & "_" & $A53)*(1+INDIRECT("vanilla" & $A53))^0.5)/INDIRECT("StdLife" & $C53)))) -> 0 | N53: =IF(AND(DepreciationOption="Determination Allowance",N$1<6),INDIRECT("DepnAllowCapex" &$C53&"_"& $A53 & "_" &N$1),IF(INDIRECT("StdLife" & $C53)="n/a","n/a",IF(N$1>(INDIRECT("StdLife" & $C53)+$A53),(INDIRECT("Capex" & $C53 & "_"& $A53)*(1+INDIRECT("vanilla" & $A53))^0.5)-SUM($F53:M53),(INDIRECT("Capex" & $C53 & "_" & $A53)*(1+INDIRECT("vanilla" & $A53))^0.5)/INDIRECT("StdLife" & $C53)))) -> 0 | O53: =IF(AND(DepreciationOption="Determination Allowance",O$1<6),INDIRECT("DepnAllowCapex" &$C53&"_"& $A53 & "_" &O$1),IF(INDIRECT("StdLife" & $C53)="n/a","n/a",IF(O$1>(INDIRECT("StdLife" & $C53)+$A53),(INDIRECT("Capex" & $C53 & "_"& $A53)*(1+INDIRECT("vanilla" & $A53))^0.5)-SUM($F53:N53),(INDIRECT("Capex" & $C53 & "_" & $A53)*(1+INDIRECT("vanilla" & $A53))^0.5)/INDIRECT("StdLife" & $C53)))) -> 0
A54: 2 | B54: Information & Communication Technology - 2015-16 | C54: 2 | D54: $m real 2014-15 | H54: =IF(AND(DepreciationOption="Determination Allowance",H$1<6),INDIRECT("DepnAllowCapex" &$C54&"_"& $A54 & "_" &H$1),IF(INDIRECT("StdLife" & $C54)="n/a","n/a",IF(H$1>(INDIRECT("StdLife" & $C54)+$A54),(INDIRECT("Capex" & $C54 & "_"& $A54)*(1+INDIRECT("vanilla" & $A54))^0.5)-SUM($F54:G54),(INDIRECT("Capex" & $C54 & "_" & $A54)*(1+INDIRECT("vanilla" & $A54))^0.5)/INDIRECT("StdLife" & $C54)))) -> 0 | I54: =IF(AND(DepreciationOption="Determination Allowance",I$1<6),INDIRECT("DepnAllowCapex" &$C54&"_"& $A54 & "_" &I$1),IF(INDIRECT("StdLife" & $C54)="n/a","n/a",IF(I$1>(INDIRECT("StdLife" & $C54)+$A54),(INDIRECT("Capex" & $C54 & "_"& $A54)*(1+INDIRECT("vanilla" & $A54))^0.5)-SUM($F54:H54),(INDIRECT("Capex" & $C54 & "_" & $A54)*(1+INDIRECT("vanilla" & $A54))^0.5)/INDIRECT("StdLife" & $C54)))) -> 0 | J54: =IF(AND(DepreciationOption="Determination Allowance",J$1<6),INDIRECT("DepnAllowCapex" &$C54&"_"& $A54 & "_" &J$1),IF(INDIRECT("StdLife" & $C54)="n/a","n/a",IF(J$1>(INDIRECT("StdLife" & $C54)+$A54),(INDIRECT("Capex" & $C54 & "_"& $A54)*(1+INDIRECT("vanilla" & $A54))^0.5)-SUM($F54:I54),(INDIRECT("Capex" & $C54 & "_" & $A54)*(1+INDIRECT("vanilla" & $A54))^0.5)/INDIRECT("StdLife" & $C54)))) -> 0 | K54: =IF(AND(DepreciationOption="Determination Allowance",K$1<6),INDIRECT("DepnAllowCapex" &$C54&"_"& $A54 & "_" &K$1),IF(INDIRECT("StdLife" & $C54)="n/a","n/a",IF(K$1>(INDIRECT("StdLife" & $C54)+$A54),(INDIRECT("Capex" & $C54 & "_"& $A54)*(1+INDIRECT("vanilla" & $A54))^0.5)-SUM($F54:J54),(INDIRECT("Capex" & $C54 & "_" & $A54)*(1+INDIRECT("vanilla" & $A54))^0.5)/INDIRECT("StdLife" & $C54)))) -> 0 | L54: =IF(AND(DepreciationOption="Determination Allowance",L$1<6),INDIRECT("DepnAllowCapex" &$C54&"_"& $A54 & "_" &L$1),IF(INDIRECT("StdLife" & $C54)="n/a","n/a",IF(L$1>(INDIRECT("StdLife" & $C54)+$A54),(INDIRECT("Capex" & $C54 & "_"& $A54)*(1+INDIRECT("vanilla" & $A54))^0.5)-SUM($F54:K54),(INDIRECT("Capex" & $C54 & "_" & $A54)*(1+INDIRECT("vanilla" & $A54))^0.5)/INDIRECT("StdLife" & $C54)))) -> 0 | M54: =IF(AND(DepreciationOption="Determination Allowance",M$1<6),INDIRECT("DepnAllowCapex" &$C54&"_"& $A54 & "_" &M$1),IF(INDIRECT("StdLife" & $C54)="n/a","n/a",IF(M$1>(INDIRECT("StdLife" & $C54)+$A54),(INDIRECT("Capex" & $C54 & "_"& $A54)*(1+INDIRECT("vanilla" & $A54))^0.5)-SUM($F54:L54),(INDIRECT("Capex" & $C54 & "_" & $A54)*(1+INDIRECT("vanilla" & $A54))^0.5)/INDIRECT("StdLife" & $C54)))) -> 0 | N54: =IF(AND(DepreciationOption="Determination Allowance",N$1<6),INDIRECT("DepnAllowCapex" &$C54&"_"& $A54 & "_" &N$1),IF(INDIRECT("StdLife" & $C54)="n/a","n/a",IF(N$1>(INDIRECT("StdLife" & $C54)+$A54),(INDIRECT("Capex" & $C54 & "_"& $A54)*(1+INDIRECT("vanilla" & $A54))^0.5)-SUM($F54:M54),(INDIRECT("Capex" & $C54 & "_" & $A54)*(1+INDIRECT("vanilla" & $A54))^0.5)/INDIRECT("StdLife" & $C54)))) -> 0 | O54: =IF(AND(DepreciationOption="Determination Allowance",O$1<6),INDIRECT("DepnAllowCapex" &$C54&"_"& $A54 & "_" &O$1),IF(INDIRECT("StdLife" & $C54)="n/a","n/a",IF(O$1>(INDIRECT("StdLife" & $C54)+$A54),(INDIRECT("Capex" & $C54 & "_"& $A54)*(1+INDIRECT("vanilla" & $A54))^0.5)-SUM($F54:N54),(INDIRECT("Capex" & $C54 & "_" & $A54)*(1+INDIRECT("vanilla" & $A54))^0.5)/INDIRECT("StdLife" & $C54)))) -> 0
A55: 3 | B55: Information & Communication Technology - 2016-17 | C55: 2 | D55: $m real 2014-15 | I55: =IF(AND(DepreciationOption="Determination Allowance",I$1<6),INDIRECT("DepnAllowCapex" &$C55&"_"& $A55 & "_" &I$1),IF(INDIRECT("StdLife" & $C55)="n/a","n/a",IF(I$1>(INDIRECT("StdLife" & $C55)+$A55),(INDIRECT("Capex" & $C55 & "_"& $A55)*(1+INDIRECT("vanilla" & $A55))^0.5)-SUM($F55:H55),(INDIRECT("Capex" & $C55 & "_" & $A55)*(1+INDIRECT("vanilla" & $A55))^0.5)/INDIRECT("StdLife" & $C55)))) -> 0 | J55: =IF(AND(DepreciationOption="Determination Allowance",J$1<6),INDIRECT("DepnAllowCapex" &$C55&"_"& $A55 & "_" &J$1),IF(INDIRECT("StdLife" & $C55)="n/a","n/a",IF(J$1>(INDIRECT("StdLife" & $C55)+$A55),(INDIRECT("Capex" & $C55 & "_"& $A55)*(1+INDIRECT("vanilla" & $A55))^0.5)-SUM($F55:I55),(INDIRECT("Capex" & $C55 & "_" & $A55)*(1+INDIRECT("vanilla" & $A55))^0.5)/INDIRECT("StdLife" & $C55)))) -> 0 | K55: =IF(AND(DepreciationOption="Determination Allowance",K$1<6),INDIRECT("DepnAllowCapex" &$C55&"_"& $A55 & "_" &K$1),IF(INDIRECT("StdLife" & $C55)="n/a","n/a",IF(K$1>(INDIRECT("StdLife" & $C55)+$A55),(INDIRECT("Capex" & $C55 & "_"& $A55)*(1+INDIRECT("vanilla" & $A55))^0.5)-SUM($F55:J55),(INDIRECT("Capex" & $C55 & "_" & $A55)*(1+INDIRECT("vanilla" & $A55))^0.5)/INDIRECT("StdLife" & $C55)))) -> 0 | L55: =IF(AND(DepreciationOption="Determination Allowance",L$1<6),INDIRECT("DepnAllowCapex" &$C55&"_"& $A55 & "_" &L$1),IF(INDIRECT("StdLife" & $C55)="n/a","n/a",IF(L$1>(INDIRECT("StdLife" & $C55)+$A55),(INDIRECT("Capex" & $C55 & "_"& $A55)*(1+INDIRECT("vanilla" & $A55))^0.5)-SUM($F55:K55),(INDIRECT("Capex" & $C55 & "_" & $A55)*(1+INDIRECT("vanilla" & $A55))^0.5)/INDIRECT("StdLife" & $C55)))) -> 0 | M55: =IF(AND(DepreciationOption="Determination Allowance",M$1<6),INDIRECT("DepnAllowCapex" &$C55&"_"& $A55 & "_" &M$1),IF(INDIRECT("StdLife" & $C55)="n/a","n/a",IF(M$1>(INDIRECT("StdLife" & $C55)+$A55),(INDIRECT("Capex" & $C55 & "_"& $A55)*(1+INDIRECT("vanilla" & $A55))^0.5)-SUM($F55:L55),(INDIRECT("Capex" & $C55 & "_" & $A55)*(1+INDIRECT("vanilla" & $A55))^0.5)/INDIRECT("StdLife" & $C55)))) -> 0 | N55: =IF(AND(DepreciationOption="Determination Allowance",N$1<6),INDIRECT("DepnAllowCapex" &$C55&"_"& $A55 & "_" &N$1),IF(INDIRECT("StdLife" & $C55)="n/a","n/a",IF(N$1>(INDIRECT("StdLife" & $C55)+$A55),(INDIRECT("Capex" & $C55 & "_"& $A55)*(1+INDIRECT("vanilla" & $A55))^0.5)-SUM($F55:M55),(INDIRECT("Capex" & $C55 & "_" & $A55)*(1+INDIRECT("vanilla" & $A55))^0.5)/INDIRECT("StdLife" & $C55)))) -> 0 | O55: =IF(AND(DepreciationOption="Determination Allowance",O$1<6),INDIRECT("DepnAllowCapex" &$C55&"_"& $A55 & "_" &O$1),IF(INDIRECT("StdLife" & $C55)="n/a","n/a",IF(O$1>(INDIRECT("StdLife" & $C55)+$A55),(INDIRECT("Capex" & $C55 & "_"& $A55)*(1+INDIRECT("vanilla" & $A55))^0.5)-SUM($F55:N55),(INDIRECT("Capex" & $C55 & "_" & $A55)*(1+INDIRECT("vanilla" & $A55))^0.5)/INDIRECT("StdLife" & $C55)))) -> 0
A56: 4 | B56: Information & Communication Technology - 2017-18 | C56: 2 | D56: $m real 2014-15 | J56: =IF(AND(DepreciationOption="Determination Allowance",J$1<6),INDIRECT("DepnAllowCapex" &$C56&"_"& $A56 & "_" &J$1),IF(INDIRECT("StdLife" & $C56)="n/a","n/a",IF(J$1>(INDIRECT("StdLife" & $C56)+$A56),(INDIRECT("Capex" & $C56 & "_"& $A56)*(1+INDIRECT("vanilla" & $A56))^0.5)-SUM($F56:I56),(INDIRECT("Capex" & $C56 & "_" & $A56)*(1+INDIRECT("vanilla" & $A56))^0.5)/INDIRECT("StdLife" & $C56)))) -> 0 | K56: =IF(AND(DepreciationOption="Determination Allowance",K$1<6),INDIRECT("DepnAllowCapex" &$C56&"_"& $A56 & "_" &K$1),IF(INDIRECT("StdLife" & $C56)="n/a","n/a",IF(K$1>(INDIRECT("StdLife" & $C56)+$A56),(INDIRECT("Capex" & $C56 & "_"& $A56)*(1+INDIRECT("vanilla" & $A56))^0.5)-SUM($F56:J56),(INDIRECT("Capex" & $C56 & "_" & $A56)*(1+INDIRECT("vanilla" & $A56))^0.5)/INDIRECT("StdLife" & $C56)))) -> 0 | L56: =IF(AND(DepreciationOption="Determination Allowance",L$1<6),INDIRECT("DepnAllowCapex" &$C56&"_"& $A56 & "_" &L$1),IF(INDIRECT("StdLife" & $C56)="n/a","n/a",IF(L$1>(INDIRECT("StdLife" & $C56)+$A56),(INDIRECT("Capex" & $C56 & "_"& $A56)*(1+INDIRECT("vanilla" & $A56))^0.5)-SUM($F56:K56),(INDIRECT("Capex" & $C56 & "_" & $A56)*(1+INDIRECT("vanilla" & $A56))^0.5)/INDIRECT("StdLife" & $C56)))) -> 0 | M56: =IF(AND(DepreciationOption="Determination Allowance",M$1<6),INDIRECT("DepnAllowCapex" &$C56&"_"& $A56 & "_" &M$1),IF(INDIRECT("StdLife" & $C56)="n/a","n/a",IF(M$1>(INDIRECT("StdLife" & $C56)+$A56),(INDIRECT("Capex" & $C56 & "_"& $A56)*(1+INDIRECT("vanilla" & $A56))^0.5)-SUM($F56:L56),(INDIRECT("Capex" & $C56 & "_" & $A56)*(1+INDIRECT("vanilla" & $A56))^0.5)/INDIRECT("StdLife" & $C56)))) -> 0 | N56: =IF(AND(DepreciationOption="Determination Allowance",N$1<6),INDIRECT("DepnAllowCapex" &$C56&"_"& $A56 & "_" &N$1),IF(INDIRECT("StdLife" & $C56)="n/a","n/a",IF(N$1>(INDIRECT("StdLife" & $C56)+$A56),(INDIRECT("Capex" & $C56 & "_"& $A56)*(1+INDIRECT("vanilla" & $A56))^0.5)-SUM($F56:M56),(INDIRECT("Capex" & $C56 & "_" & $A56)*(1+INDIRECT("vanilla" & $A56))^0.5)/INDIRECT("StdLife" & $C56)))) -> 0 | O56: =IF(AND(DepreciationOption="Determination Allowance",O$1<6),INDIRECT("DepnAllowCapex" &$C56&"_"& $A56 & "_" &O$1),IF(INDIRECT("StdLife" & $C56)="n/a","n/a",IF(O$1>(INDIRECT("StdLife" & $C56)+$A56),(INDIRECT("Capex" & $C56 & "_"& $A56)*(1+INDIRECT("vanilla" & $A56))^0.5)-SUM($F56:N56),(INDIRECT("Capex" & $C56 & "_" & $A56)*(1+INDIRECT("vanilla" & $A56))^0.5)/INDIRECT("StdLife" & $C56)))) -> 0
A57: 5 | B57: Information & Communication Technology - 2018-19 | C57: 2 | D57: $m real 2014-15 | K57: =IF(AND(DepreciationOption="Determination Allowance",K$1<6),INDIRECT("DepnAllowCapex" &$C57&"_"& $A57 & "_" &K$1),IF(INDIRECT("StdLife" & $C57)="n/a","n/a",IF(K$1>(INDIRECT("StdLife" & $C57)+$A57),(INDIRECT("Capex" & $C57 & "_"& $A57)*(1+INDIRECT("vanilla" & $A57))^0.5)-SUM($F57:J57),(INDIRECT("Capex" & $C57 & "_" & $A57)*(1+INDIRECT("vanilla" & $A57))^0.5)/INDIRECT("StdLife" & $C57)))) -> 0 | L57: =IF(AND(DepreciationOption="Determination Allowance",L$1<6),INDIRECT("DepnAllowCapex" &$C57&"_"& $A57 & "_" &L$1),IF(INDIRECT("StdLife" & $C57)="n/a","n/a",IF(L$1>(INDIRECT("StdLife" & $C57)+$A57),(INDIRECT("Capex" & $C57 & "_"& $A57)*(1+INDIRECT("vanilla" & $A57))^0.5)-SUM($F57:K57),(INDIRECT("Capex" & $C57 & "_" & $A57)*(1+INDIRECT("vanilla" & $A57))^0.5)/INDIRECT("StdLife" & $C57)))) -> 0 | M57: =IF(AND(DepreciationOption="Determination Allowance",M$1<6),INDIRECT("DepnAllowCapex" &$C57&"_"& $A57 & "_" &M$1),IF(INDIRECT("StdLife" & $C57)="n/a","n/a",IF(M$1>(INDIRECT("StdLife" & $C57)+$A57),(INDIRECT("Capex" & $C57 & "_"& $A57)*(1+INDIRECT("vanilla" & $A57))^0.5)-SUM($F57:L57),(INDIRECT("Capex" & $C57 & "_" & $A57)*(1+INDIRECT("vanilla" & $A57))^0.5)/INDIRECT("StdLife" & $C57)))) -> 0 | N57: =IF(AND(DepreciationOption="Determination Allowance",N$1<6),INDIRECT("DepnAllowCapex" &$C57&"_"& $A57 & "_" &N$1),IF(INDIRECT("StdLife" & $C57)="n/a","n/a",IF(N$1>(INDIRECT("StdLife" & $C57)+$A57),(INDIRECT("Capex" & $C57 & "_"& $A57)*(1+INDIRECT("vanilla" & $A57))^0.5)-SUM($F57:M57),(INDIRECT("Capex" & $C57 & "_" & $A57)*(1+INDIRECT("vanilla" & $A57))^0.5)/INDIRECT("StdLife" & $C57)))) -> 0 | O57: =IF(AND(DepreciationOption="Determination Allowance",O$1<6),INDIRECT("DepnAllowCapex" &$C57&"_"& $A57 & "_" &O$1),IF(INDIRECT("StdLife" & $C57)="n/a","n/a",IF(O$1>(INDIRECT("StdLife" & $C57)+$A57),(INDIRECT("Capex" & $C57 & "_"& $A57)*(1+INDIRECT("vanilla" & $A57))^0.5)-SUM($F57:N57),(INDIRECT("Capex" & $C57 & "_" & $A57)*(1+INDIRECT("vanilla" & $A57))^0.5)/INDIRECT("StdLife" & $C57)))) -> 0
A58: 6 | B58: Information & Communication Technology - 2019-20 | C58: 2 | D58: $m real 2014-15 | L58: =IF(AND(DepreciationOption="Determination Allowance",L$1<6),INDIRECT("DepnAllowCapex" &$C58&"_"& $A58 & "_" &L$1),IF(INDIRECT("StdLife" & $C58)="n/a","n/a",IF(L$1>(INDIRECT("StdLife" & $C58)+$A58),(INDIRECT("Capex" & $C58 & "_"& $A58)*(1+INDIRECT("vanilla" & $A58))^0.5)-SUM($F58:K58),(INDIRECT("Capex" & $C58 & "_" & $A58)*(1+INDIRECT("vanilla" & $A58))^0.5)/INDIRECT("StdLife" & $C58)))) -> 0 | M58: =IF(AND(DepreciationOption="Determination Allowance",M$1<6),INDIRECT("DepnAllowCapex" &$C58&"_"& $A58 & "_" &M$1),IF(INDIRECT("StdLife" & $C58)="n/a","n/a",IF(M$1>(INDIRECT("StdLife" & $C58)+$A58),(INDIRECT("Capex" & $C58 & "_"& $A58)*(1+INDIRECT("vanilla" & $A58))^0.5)-SUM($F58:L58),(INDIRECT("Capex" & $C58 & "_" & $A58)*(1+INDIRECT("vanilla" & $A58))^0.5)/INDIRECT("StdLife" & $C58)))) -> 0 | N58: =IF(AND(DepreciationOption="Determination Allowance",N$1<6),INDIRECT("DepnAllowCapex" &$C58&"_"& $A58 & "_" &N$1),IF(INDIRECT("StdLife" & $C58)="n/a","n/a",IF(N$1>(INDIRECT("StdLife" & $C58)+$A58),(INDIRECT("Capex" & $C58 & "_"& $A58)*(1+INDIRECT("vanilla" & $A58))^0.5)-SUM($F58:M58),(INDIRECT("Capex" & $C58 & "_" & $A58)*(1+INDIRECT("vanilla" & $A58))^0.5)/INDIRECT("StdLife" & $C58)))) -> 0 | O58: =IF(AND(DepreciationOption="Determination Allowance",O$1<6),INDIRECT("DepnAllowCapex" &$C58&"_"& $A58 & "_" &O$1),IF(INDIRECT("StdLife" & $C58)="n/a","n/a",IF(O$1>(INDIRECT("StdLife" & $C58)+$A58),(INDIRECT("Capex" & $C58 & "_"& $A58)*(1+INDIRECT("vanilla" & $A58))^0.5)-SUM($F58:N58),(INDIRECT("Capex" & $C58 & "_" & $A58)*(1+INDIRECT("vanilla" & $A58))^0.5)/INDIRECT("StdLife" & $C58)))) -> 0
A59: 7 | B59: Information & Communication Technology - 2020-21 | C59: 2 | D59: $m real 2014-15 | M59: =IF(AND(DepreciationOption="Determination Allowance",M$1<6),INDIRECT("DepnAllowCapex" &$C59&"_"& $A59 & "_" &M$1),IF(INDIRECT("StdLife" & $C59)="n/a","n/a",IF(M$1>(INDIRECT("StdLife" & $C59)+$A59),(INDIRECT("Capex" & $C59 & "_"& $A59)*(1+INDIRECT("vanilla" & $A59))^0.5)-SUM($F59:L59),(INDIRECT("Capex" & $C59 & "_" & $A59)*(1+INDIRECT("vanilla" & $A59))^0.5)/INDIRECT("StdLife" & $C59)))) -> 0 | N59: =IF(AND(DepreciationOption="Determination Allowance",N$1<6),INDIRECT("DepnAllowCapex" &$C59&"_"& $A59 & "_" &N$1),IF(INDIRECT("StdLife" & $C59)="n/a","n/a",IF(N$1>(INDIRECT("StdLife" & $C59)+$A59),(INDIRECT("Capex" & $C59 & "_"& $A59)*(1+INDIRECT("vanilla" & $A59))^0.5)-SUM($F59:M59),(INDIRECT("Capex" & $C59 & "_" & $A59)*(1+INDIRECT("vanilla" & $A59))^0.5)/INDIRECT("StdLife" & $C59)))) -> 0 | O59: =IF(AND(DepreciationOption="Determination Allowance",O$1<6),INDIRECT("DepnAllowCapex" &$C59&"_"& $A59 & "_" &O$1),IF(INDIRECT("StdLife" & $C59)="n/a","n/a",IF(O$1>(INDIRECT("StdLife" & $C59)+$A59),(INDIRECT("Capex" & $C59 & "_"& $A59)*(1+INDIRECT("vanilla" & $A59))^0.5)-SUM($F59:N59),(INDIRECT("Capex" & $C59 & "_" & $A59)*(1+INDIRECT("vanilla" & $A59))^0.5)/INDIRECT("StdLife" & $C59)))) -> 0
A60: 8 | B60: Information & Communication Technology - 2021-22 | C60: 2 | D60: $m real 2014-15 | N60: =IF(AND(DepreciationOption="Determination Allowance",N$1<6),INDIRECT("DepnAllowCapex" &$C60&"_"& $A60 & "_" &N$1),IF(INDIRECT("StdLife" & $C60)="n/a","n/a",IF(N$1>(INDIRECT("StdLife" & $C60)+$A60),(INDIRECT("Capex" & $C60 & "_"& $A60)*(1+INDIRECT("vanilla" & $A60))^0.5)-SUM($F60:M60),(INDIRECT("Capex" & $C60 & "_" & $A60)*(1+INDIRECT("vanilla" & $A60))^0.5)/INDIRECT("StdLife" & $C60)))) -> 0 | O60: =IF(AND(DepreciationOption="Determination Allowance",O$1<6),INDIRECT("DepnAllowCapex" &$C60&"_"& $A60 & "_" &O$1),IF(INDIRECT("StdLife" & $C60)="n/a","n/a",IF(O$1>(INDIRECT("StdLife" & $C60)+$A60),(INDIRECT("Capex" & $C60 & "_"& $A60)*(1+INDIRECT("vanilla" & $A60))^0.5)-SUM($F60:N60),(INDIRECT("Capex" & $C60 & "_" & $A60)*(1+INDIRECT("vanilla" & $A60))^0.5)/INDIRECT("StdLife" & $C60)))) -> 0
A61: 9 | B61: Information & Communication Technology - 2022-23 | C61: 2 | D61: $m real 2014-15 | O61: =IF(AND(DepreciationOption="Determination Allowance",O$1<6),INDIRECT("DepnAllowCapex" &$C61&"_"& $A61 & "_" &O$1),IF(INDIRECT("StdLife" & $C61)="n/a","n/a",IF(O$1>(INDIRECT("StdLife" & $C61)+$A61),(INDIRECT("Capex" & $C61 & "_"& $A61)*(1+INDIRECT("vanilla" & $A61))^0.5)-SUM($F61:N61),(INDIRECT("Capex" & $C61 & "_" & $A61)*(1+INDIRECT("vanilla" & $A61))^0.5)/INDIRECT("StdLife" & $C61)))) -> 0
A62: 10 | B62: Information & Communication Technology - 2023-24 | C62: 2 | D62: $m real 2014-15
B63: =INDIRECT("Asset"&$C63) & " Subtotal" -> Information & Communication Technology Subtotal | C63: 2 | D63: $m real 2014-15 | F63: =SUM(F53:F62) -> 0 | G63: =SUM(G53:G62) -> 0 | H63: =SUM(H53:H62) -> 0 | I63: =SUM(I53:I62) -> 0 | J63: =SUM(J53:J62) -> 0 | K63: =SUM(K53:K62) -> 0 | L63: =SUM(L53:L62) -> 0 | M63: =SUM(M53:M62) -> 0 | N63: =SUM(N53:N62) -> 0 | O63: =SUM(O53:O62) -> 0
B65: ="Dep'n of " & INDIRECT("Asset"&$C65) & " Capex" -> Dep'n of Furniture, Fittings, Plant and Equipment Capex | C65: =C52+1 -> 3 | D65: Units | F65: =INDEX(ModelYears, COLUMN()-COLUMN($D65)) -> 2014-15 | G65: 2015-16 | H65: 2016-17 | I65: 2017-18 | J65: 2018-19 | K65: 2019-20 | L65: 2020-21 | M65: 2021-22 | N65: 2022-23 | O65: 2023-24
A66: 1 | B66: =INDIRECT("Asset"&$C66) & " - " & INDEX(ModelYears,1+$A66) -> Furniture, Fittings, Plant and Equipment - 2014-15 | C66: 3 | D66: $m real 2014-15 | G66: =IF(AND(DepreciationOption="Determination Allowance",G$1<6),INDIRECT("DepnAllowCapex" &$C66&"_"& $A66 & "_" &G$1),IF(INDIRECT("StdLife" & $C66)="n/a","n/a",IF(G$1>(INDIRECT("StdLife" & $C66)+$A66),(INDIRECT("Capex" & $C66 & "_"& $A66)*(1+INDIRECT("vanilla" & $A66))^0.5)-SUM($F66:F66),(INDIRECT("Capex" & $C66 & "_" & $A66)*(1+INDIRECT("vanilla" & $A66))^0.5)/INDIRECT("StdLife" & $C66)))) -> 0 | H66: =IF(AND(DepreciationOption="Determination Allowance",H$1<6),INDIRECT("DepnAllowCapex" &$C66&"_"& $A66 & "_" &H$1),IF(INDIRECT("StdLife" & $C66)="n/a","n/a",IF(H$1>(INDIRECT("StdLife" & $C66)+$A66),(INDIRECT("Capex" & $C66 & "_"& $A66)*(1+INDIRECT("vanilla" & $A66))^0.5)-SUM($F66:G66),(INDIRECT("Capex" & $C66 & "_" & $A66)*(1+INDIRECT("vanilla" & $A66))^0.5)/INDIRECT("StdLife" & $C66)))) -> 0 | I66: =IF(AND(DepreciationOption="Determination Allowance",I$1<6),INDIRECT("DepnAllowCapex" &$C66&"_"& $A66 & "_" &I$1),IF(INDIRECT("StdLife" & $C66)="n/a","n/a",IF(I$1>(INDIRECT("StdLife" & $C66)+$A66),(INDIRECT("Capex" & $C66 & "_"& $A66)*(1+INDIRECT("vanilla" & $A66))^0.5)-SUM($F66:H66),(INDIRECT("Capex" & $C66 & "_" & $A66)*(1+INDIRECT("vanilla" & $A66))^0.5)/INDIRECT("StdLife" & $C66)))) -> 0 | J66: =IF(AND(DepreciationOption="Determination Allowance",J$1<6),INDIRECT("DepnAllowCapex" &$C66&"_"& $A66 & "_" &J$1),IF(INDIRECT("StdLife" & $C66)="n/a","n/a",IF(J$1>(INDIRECT("StdLife" & $C66)+$A66),(INDIRECT("Capex" & $C66 & "_"& $A66)*(1+INDIRECT("vanilla" & $A66))^0.5)-SUM($F66:I66),(INDIRECT("Capex" & $C66 & "_" & $A66)*(1+INDIRECT("vanilla" & $A66))^0.5)/INDIRECT("StdLife" & $C66)))) -> 0 | K66: =IF(AND(DepreciationOption="Determination Allowance",K$1<6),INDIRECT("DepnAllowCapex" &$C66&"_"& $A66 & "_" &K$1),IF(INDIRECT("StdLife" & $C66)="n/a","n/a",IF(K$1>(INDIRECT("StdLife" & $C66)+$A66),(INDIRECT("Capex" & $C66 & "_"& $A66)*(1+INDIRECT("vanilla" & $A66))^0.5)-SUM($F66:J66),(INDIRECT("Capex" & $C66 & "_" & $A66)*(1+INDIRECT("vanilla" & $A66))^0.5)/INDIRECT("StdLife" & $C66)))) -> 0 | L66: =IF(AND(DepreciationOption="Determination Allowance",L$1<6),INDIRECT("DepnAllowCapex" &$C66&"_"& $A66 & "_" &L$1),IF(INDIRECT("StdLife" & $C66)="n/a","n/a",IF(L$1>(INDIRECT("StdLife" & $C66)+$A66),(INDIRECT("Capex" & $C66 & "_"& $A66)*(1+INDIRECT("vanilla" & $A66))^0.5)-SUM($F66:K66),(INDIRECT("Capex" & $C66 & "_" & $A66)*(1+INDIRECT("vanilla" & $A66))^0.5)/INDIRECT("StdLife" & $C66)))) -> 0 | M66: =IF(AND(DepreciationOption="Determination Allowance",M$1<6),INDIRECT("DepnAllowCapex" &$C66&"_"& $A66 & "_" &M$1),IF(INDIRECT("StdLife" & $C66)="n/a","n/a",IF(M$1>(INDIRECT("StdLife" & $C66)+$A66),(INDIRECT("Capex" & $C66 & "_"& $A66)*(1+INDIRECT("vanilla" & $A66))^0.5)-SUM($F66:L66),(INDIRECT("Capex" & $C66 & "_" & $A66)*(1+INDIRECT("vanilla" & $A66))^0.5)/INDIRECT("StdLife" & $C66)))) -> 0 | N66: =IF(AND(DepreciationOption="Determination Allowance",N$1<6),INDIRECT("DepnAllowCapex" &$C66&"_"& $A66 & "_" &N$1),IF(INDIRECT("StdLife" & $C66)="n/a","n/a",IF(N$1>(INDIRECT("StdLife" & $C66)+$A66),(INDIRECT("Capex" & $C66 & "_"& $A66)*(1+INDIRECT("vanilla" & $A66))^0.5)-SUM($F66:M66),(INDIRECT("Capex" & $C66 & "_" & $A66)*(1+INDIRECT("vanilla" & $A66))^0.5)/INDIRECT("StdLife" & $C66)))) -> 0 | O66: =IF(AND(DepreciationOption="Determination Allowance",O$1<6),INDIRECT("DepnAllowCapex" &$C66&"_"& $A66 & "_" &O$1),IF(INDIRECT("StdLife" & $C66)="n/a","n/a",IF(O$1>(INDIRECT("StdLife" & $C66)+$A66),(INDIRECT("Capex" & $C66 & "_"& $A66)*(1+INDIRECT("vanilla" & $A66))^0.5)-SUM($F66:N66),(INDIRECT("Capex" & $C66 & "_" & $A66)*(1+INDIRECT("vanilla" & $A66))^0.5)/INDIRECT("StdLife" & $C66)))) -> 0
A67: 2 | B67: Furniture, Fittings, Plant and Equipment - 2015-16 | C67: 3 | D67: $m real 2014-15 | H67: =IF(AND(DepreciationOption="Determination Allowance",H$1<6),INDIRECT("DepnAllowCapex" &$C67&"_"& $A67 & "_" &H$1),IF(INDIRECT("StdLife" & $C67)="n/a","n/a",IF(H$1>(INDIRECT("StdLife" & $C67)+$A67),(INDIRECT("Capex" & $C67 & "_"& $A67)*(1+INDIRECT("vanilla" & $A67))^0.5)-SUM($F67:G67),(INDIRECT("Capex" & $C67 & "_" & $A67)*(1+INDIRECT("vanilla" & $A67))^0.5)/INDIRECT("StdLife" & $C67)))) -> 0 | I67: =IF(AND(DepreciationOption="Determination Allowance",I$1<6),INDIRECT("DepnAllowCapex" &$C67&"_"& $A67 & "_" &I$1),IF(INDIRECT("StdLife" & $C67)="n/a","n/a",IF(I$1>(INDIRECT("StdLife" & $C67)+$A67),(INDIRECT("Capex" & $C67 & "_"& $A67)*(1+INDIRECT("vanilla" & $A67))^0.5)-SUM($F67:H67),(INDIRECT("Capex" & $C67 & "_" & $A67)*(1+INDIRECT("vanilla" & $A67))^0.5)/INDIRECT("StdLife" & $C67)))) -> 0 | J67: =IF(AND(DepreciationOption="Determination Allowance",J$1<6),INDIRECT("DepnAllowCapex" &$C67&"_"& $A67 & "_" &J$1),IF(INDIRECT("StdLife" & $C67)="n/a","n/a",IF(J$1>(INDIRECT("StdLife" & $C67)+$A67),(INDIRECT("Capex" & $C67 & "_"& $A67)*(1+INDIRECT("vanilla" & $A67))^0.5)-SUM($F67:I67),(INDIRECT("Capex" & $C67 & "_" & $A67)*(1+INDIRECT("vanilla" & $A67))^0.5)/INDIRECT("StdLife" & $C67)))) -> 0 | K67: =IF(AND(DepreciationOption="Determination Allowance",K$1<6),INDIRECT("DepnAllowCapex" &$C67&"_"& $A67 & "_" &K$1),IF(INDIRECT("StdLife" & $C67)="n/a","n/a",IF(K$1>(INDIRECT("StdLife" & $C67)+$A67),(INDIRECT("Capex" & $C67 & "_"& $A67)*(1+INDIRECT("vanilla" & $A67))^0.5)-SUM($F67:J67),(INDIRECT("Capex" & $C67 & "_" & $A67)*(1+INDIRECT("vanilla" & $A67))^0.5)/INDIRECT("StdLife" & $C67)))) -> 0 | L67: =IF(AND(DepreciationOption="Determination Allowance",L$1<6),INDIRECT("DepnAllowCapex" &$C67&"_"& $A67 & "_" &L$1),IF(INDIRECT("StdLife" & $C67)="n/a","n/a",IF(L$1>(INDIRECT("StdLife" & $C67)+$A67),(INDIRECT("Capex" & $C67 & "_"& $A67)*(1+INDIRECT("vanilla" & $A67))^0.5)-SUM($F67:K67),(INDIRECT("Capex" & $C67 & "_" & $A67)*(1+INDIRECT("vanilla" & $A67))^0.5)/INDIRECT("StdLife" & $C67)))) -> 0 | M67: =IF(AND(DepreciationOption="Determination Allowance",M$1<6),INDIRECT("DepnAllowCapex" &$C67&"_"& $A67 & "_" &M$1),IF(INDIRECT("StdLife" & $C67)="n/a","n/a",IF(M$1>(INDIRECT("StdLife" & $C67)+$A67),(INDIRECT("Capex" & $C67 & "_"& $A67)*(1+INDIRECT("vanilla" & $A67))^0.5)-SUM($F67:L67),(INDIRECT("Capex" & $C67 & "_" & $A67)*(1+INDIRECT("vanilla" & $A67))^0.5)/INDIRECT("StdLife" & $C67)))) -> 0 | N67: =IF(AND(DepreciationOption="Determination Allowance",N$1<6),INDIRECT("DepnAllowCapex" &$C67&"_"& $A67 & "_" &N$1),IF(INDIRECT("StdLife" & $C67)="n/a","n/a",IF(N$1>(INDIRECT("StdLife" & $C67)+$A67),(INDIRECT("Capex" & $C67 & "_"& $A67)*(1+INDIRECT("vanilla" & $A67))^0.5)-SUM($F67:M67),(INDIRECT("Capex" & $C67 & "_" & $A67)*(1+INDIRECT("vanilla" & $A67))^0.5)/INDIRECT("StdLife" & $C67)))) -> 0 | O67: =IF(AND(DepreciationOption="Determination Allowance",O$1<6),INDIRECT("DepnAllowCapex" &$C67&"_"& $A67 & "_" &O$1),IF(INDIRECT("StdLife" & $C67)="n/a","n/a",IF(O$1>(INDIRECT("StdLife" & $C67)+$A67),(INDIRECT("Capex" & $C67 & "_"& $A67)*(1+INDIRECT("vanilla" & $A67))^0.5)-SUM($F67:N67),(INDIRECT("Capex" & $C67 & "_" & $A67)*(1+INDIRECT("vanilla" & $A67))^0.5)/INDIRECT("StdLife" & $C67)))) -> 0
A68: 3 | B68: Furniture, Fittings, Plant and Equipment - 2016-17 | C68: 3 | D68: $m real 2014-15 | I68: =IF(AND(DepreciationOption="Determination Allowance",I$1<6),INDIRECT("DepnAllowCapex" &$C68&"_"& $A68 & "_" &I$1),IF(INDIRECT("StdLife" & $C68)="n/a","n/a",IF(I$1>(INDIRECT("StdLife" & $C68)+$A68),(INDIRECT("Capex" & $C68 & "_"& $A68)*(1+INDIRECT("vanilla" & $A68))^0.5)-SUM($F68:H68),(INDIRECT("Capex" & $C68 & "_" & $A68)*(1+INDIRECT("vanilla" & $A68))^0.5)/INDIRECT("StdLife" & $C68)))) -> 0 | J68: =IF(AND(DepreciationOption="Determination Allowance",J$1<6),INDIRECT("DepnAllowCapex" &$C68&"_"& $A68 & "_" &J$1),IF(INDIRECT("StdLife" & $C68)="n/a","n/a",IF(J$1>(INDIRECT("StdLife" & $C68)+$A68),(INDIRECT("Capex" & $C68 & "_"& $A68)*(1+INDIRECT("vanilla" & $A68))^0.5)-SUM($F68:I68),(INDIRECT("Capex" & $C68 & "_" & $A68)*(1+INDIRECT("vanilla" & $A68))^0.5)/INDIRECT("StdLife" & $C68)))) -> 0 | K68: =IF(AND(DepreciationOption="Determination Allowance",K$1<6),INDIRECT("DepnAllowCapex" &$C68&"_"& $A68 & "_" &K$1),IF(INDIRECT("StdLife" & $C68)="n/a","n/a",IF(K$1>(INDIRECT("StdLife" & $C68)+$A68),(INDIRECT("Capex" & $C68 & "_"& $A68)*(1+INDIRECT("vanilla" & $A68))^0.5)-SUM($F68:J68),(INDIRECT("Capex" & $C68 & "_" & $A68)*(1+INDIRECT("vanilla" & $A68))^0.5)/INDIRECT("StdLife" & $C68)))) -> 0 | L68: =IF(AND(DepreciationOption="Determination Allowance",L$1<6),INDIRECT("DepnAllowCapex" &$C68&"_"& $A68 & "_" &L$1),IF(INDIRECT("StdLife" & $C68)="n/a","n/a",IF(L$1>(INDIRECT("StdLife" & $C68)+$A68),(INDIRECT("Capex" & $C68 & "_"& $A68)*(1+INDIRECT("vanilla" & $A68))^0.5)-SUM($F68:K68),(INDIRECT("Capex" & $C68 & "_" & $A68)*(1+INDIRECT("vanilla" & $A68))^0.5)/INDIRECT("StdLife" & $C68)))) -> 0 | M68: =IF(AND(DepreciationOption="Determination Allowance",M$1<6),INDIRECT("DepnAllowCapex" &$C68&"_"& $A68 & "_" &M$1),IF(INDIRECT("StdLife" & $C68)="n/a","n/a",IF(M$1>(INDIRECT("StdLife" & $C68)+$A68),(INDIRECT("Capex" & $C68 & "_"& $A68)*(1+INDIRECT("vanilla" & $A68))^0.5)-SUM($F68:L68),(INDIRECT("Capex" & $C68 & "_" & $A68)*(1+INDIRECT("vanilla" & $A68))^0.5)/INDIRECT("StdLife" & $C68)))) -> 0 | N68: =IF(AND(DepreciationOption="Determination Allowance",N$1<6),INDIRECT("DepnAllowCapex" &$C68&"_"& $A68 & "_" &N$1),IF(INDIRECT("StdLife" & $C68)="n/a","n/a",IF(N$1>(INDIRECT("StdLife" & $C68)+$A68),(INDIRECT("Capex" & $C68 & "_"& $A68)*(1+INDIRECT("vanilla" & $A68))^0.5)-SUM($F68:M68),(INDIRECT("Capex" & $C68 & "_" & $A68)*(1+INDIRECT("vanilla" & $A68))^0.5)/INDIRECT("StdLife" & $C68)))) -> 0 | O68: =IF(AND(DepreciationOption="Determination Allowance",O$1<6),INDIRECT("DepnAllowCapex" &$C68&"_"& $A68 & "_" &O$1),IF(INDIRECT("StdLife" & $C68)="n/a","n/a",IF(O$1>(INDIRECT("StdLife" & $C68)+$A68),(INDIRECT("Capex" & $C68 & "_"& $A68)*(1+INDIRECT("vanilla" & $A68))^0.5)-SUM($F68:N68),(INDIRECT("Capex" & $C68 & "_" & $A68)*(1+INDIRECT("vanilla" & $A68))^0.5)/INDIRECT("StdLife" & $C68)))) -> 0
A69: 4 | B69: Furniture, Fittings, Plant and Equipment - 2017-18 | C69: 3 | D69: $m real 2014-15 | J69: =IF(AND(DepreciationOption="Determination Allowance",J$1<6),INDIRECT("DepnAllowCapex" &$C69&"_"& $A69 & "_" &J$1),IF(INDIRECT("StdLife" & $C69)="n/a","n/a",IF(J$1>(INDIRECT("StdLife" & $C69)+$A69),(INDIRECT("Capex" & $C69 & "_"& $A69)*(1+INDIRECT("vanilla" & $A69))^0.5)-SUM($F69:I69),(INDIRECT("Capex" & $C69 & "_" & $A69)*(1+INDIRECT("vanilla" & $A69))^0.5)/INDIRECT("StdLife" & $C69)))) -> 0 | K69: =IF(AND(DepreciationOption="Determination Allowance",K$1<6),INDIRECT("DepnAllowCapex" &$C69&"_"& $A69 & "_" &K$1),IF(INDIRECT("StdLife" & $C69)="n/a","n/a",IF(K$1>(INDIRECT("StdLife" & $C69)+$A69),(INDIRECT("Capex" & $C69 & "_"& $A69)*(1+INDIRECT("vanilla" & $A69))^0.5)-SUM($F69:J69),(INDIRECT("Capex" & $C69 & "_" & $A69)*(1+INDIRECT("vanilla" & $A69))^0.5)/INDIRECT("StdLife" & $C69)))) -> 0 | L69: =IF(AND(DepreciationOption="Determination Allowance",L$1<6),INDIRECT("DepnAllowCapex" &$C69&"_"& $A69 & "_" &L$1),IF(INDIRECT("StdLife" & $C69)="n/a","n/a",IF(L$1>(INDIRECT("StdLife" & $C69)+$A69),(INDIRECT("Capex" & $C69 & "_"& $A69)*(1+INDIRECT("vanilla" & $A69))^0.5)-SUM($F69:K69),(INDIRECT("Capex" & $C69 & "_" & $A69)*(1+INDIRECT("vanilla" & $A69))^0.5)/INDIRECT("StdLife" & $C69)))) -> 0 | M69: =IF(AND(DepreciationOption="Determination Allowance",M$1<6),INDIRECT("DepnAllowCapex" &$C69&"_"& $A69 & "_" &M$1),IF(INDIRECT("StdLife" & $C69)="n/a","n/a",IF(M$1>(INDIRECT("StdLife" & $C69)+$A69),(INDIRECT("Capex" & $C69 & "_"& $A69)*(1+INDIRECT("vanilla" & $A69))^0.5)-SUM($F69:L69),(INDIRECT("Capex" & $C69 & "_" & $A69)*(1+INDIRECT("vanilla" & $A69))^0.5)/INDIRECT("StdLife" & $C69)))) -> 0 | N69: =IF(AND(DepreciationOption="Determination Allowance",N$1<6),INDIRECT("DepnAllowCapex" &$C69&"_"& $A69 & "_" &N$1),IF(INDIRECT("StdLife" & $C69)="n/a","n/a",IF(N$1>(INDIRECT("StdLife" & $C69)+$A69),(INDIRECT("Capex" & $C69 & "_"& $A69)*(1+INDIRECT("vanilla" & $A69))^0.5)-SUM($F69:M69),(INDIRECT("Capex" & $C69 & "_" & $A69)*(1+INDIRECT("vanilla" & $A69))^0.5)/INDIRECT("StdLife" & $C69)))) -> 0 | O69: =IF(AND(DepreciationOption="Determination Allowance",O$1<6),INDIRECT("DepnAllowCapex" &$C69&"_"& $A69 & "_" &O$1),IF(INDIRECT("StdLife" & $C69)="n/a","n/a",IF(O$1>(INDIRECT("StdLife" & $C69)+$A69),(INDIRECT("Capex" & $C69 & "_"& $A69)*(1+INDIRECT("vanilla" & $A69))^0.5)-SUM($F69:N69),(INDIRECT("Capex" & $C69 & "_" & $A69)*(1+INDIRECT("vanilla" & $A69))^0.5)/INDIRECT("StdLife" & $C69)))) -> 0
A70: 5 | B70: Furniture, Fittings, Plant and Equipment - 2018-19 | C70: 3 | D70: $m real 2014-15 | K70: =IF(AND(DepreciationOption="Determination Allowance",K$1<6),INDIRECT("DepnAllowCapex" &$C70&"_"& $A70 & "_" &K$1),IF(INDIRECT("StdLife" & $C70)="n/a","n/a",IF(K$1>(INDIRECT("StdLife" & $C70)+$A70),(INDIRECT("Capex" & $C70 & "_"& $A70)*(1+INDIRECT("vanilla" & $A70))^0.5)-SUM($F70:J70),(INDIRECT("Capex" & $C70 & "_" & $A70)*(1+INDIRECT("vanilla" & $A70))^0.5)/INDIRECT("StdLife" & $C70)))) -> 0 | L70: =IF(AND(DepreciationOption="Determination Allowance",L$1<6),INDIRECT("DepnAllowCapex" &$C70&"_"& $A70 & "_" &L$1),IF(INDIRECT("StdLife" & $C70)="n/a","n/a",IF(L$1>(INDIRECT("StdLife" & $C70)+$A70),(INDIRECT("Capex" & $C70 & "_"& $A70)*(1+INDIRECT("vanilla" & $A70))^0.5)-SUM($F70:K70),(INDIRECT("Capex" & $C70 & "_" & $A70)*(1+INDIRECT("vanilla" & $A70))^0.5)/INDIRECT("StdLife" & $C70)))) -> 0 | M70: =IF(AND(DepreciationOption="Determination Allowance",M$1<6),INDIRECT("DepnAllowCapex" &$C70&"_"& $A70 & "_" &M$1),IF(INDIRECT("StdLife" & $C70)="n/a","n/a",IF(M$1>(INDIRECT("StdLife" & $C70)+$A70),(INDIRECT("Capex" & $C70 & "_"& $A70)*(1+INDIRECT("vanilla" & $A70))^0.5)-SUM($F70:L70),(INDIRECT("Capex" & $C70 & "_" & $A70)*(1+INDIRECT("vanilla" & $A70))^0.5)/INDIRECT("StdLife" & $C70)))) -> 0 | N70: =IF(AND(DepreciationOption="Determination Allowance",N$1<6),INDIRECT("DepnAllowCapex" &$C70&"_"& $A70 & "_" &N$1),IF(INDIRECT("StdLife" & $C70)="n/a","n/a",IF(N$1>(INDIRECT("StdLife" & $C70)+$A70),(INDIRECT("Capex" & $C70 & "_"& $A70)*(1+INDIRECT("vanilla" & $A70))^0.5)-SUM($F70:M70),(INDIRECT("Capex" & $C70 & "_" & $A70)*(1+INDIRECT("vanilla" & $A70))^0.5)/INDIRECT("StdLife" & $C70)))) -> 0 | O70: =IF(AND(DepreciationOption="Determination Allowance",O$1<6),INDIRECT("DepnAllowCapex" &$C70&"_"& $A70 & "_" &O$1),IF(INDIRECT("StdLife" & $C70)="n/a","n/a",IF(O$1>(INDIRECT("StdLife" & $C70)+$A70),(INDIRECT("Capex" & $C70 & "_"& $A70)*(1+INDIRECT("vanilla" & $A70))^0.5)-SUM($F70:N70),(INDIRECT("Capex" & $C70 & "_" & $A70)*(1+INDIRECT("vanilla" & $A70))^0.5)/INDIRECT("StdLife" & $C70)))) -> 0
A71: 6 | B71: Furniture, Fittings, Plant and Equipment - 2019-20 | C71: 3 | D71: $m real 2014-15 | L71: =IF(AND(DepreciationOption="Determination Allowance",L$1<6),INDIRECT("DepnAllowCapex" &$C71&"_"& $A71 & "_" &L$1),IF(INDIRECT("StdLife" & $C71)="n/a","n/a",IF(L$1>(INDIRECT("StdLife" & $C71)+$A71),(INDIRECT("Capex" & $C71 & "_"& $A71)*(1+INDIRECT("vanilla" & $A71))^0.5)-SUM($F71:K71),(INDIRECT("Capex" & $C71 & "_" & $A71)*(1+INDIRECT("vanilla" & $A71))^0.5)/INDIRECT("StdLife" & $C71)))) -> 0 | M71: =IF(AND(DepreciationOption="Determination Allowance",M$1<6),INDIRECT("DepnAllowCapex" &$C71&"_"& $A71 & "_" &M$1),IF(INDIRECT("StdLife" & $C71)="n/a","n/a",IF(M$1>(INDIRECT("StdLife" & $C71)+$A71),(INDIRECT("Capex" & $C71 & "_"& $A71)*(1+INDIRECT("vanilla" & $A71))^0.5)-SUM($F71:L71),(INDIRECT("Capex" & $C71 & "_" & $A71)*(1+INDIRECT("vanilla" & $A71))^0.5)/INDIRECT("StdLife" & $C71)))) -> 0 | N71: =IF(AND(DepreciationOption="Determination Allowance",N$1<6),INDIRECT("DepnAllowCapex" &$C71&"_"& $A71 & "_" &N$1),IF(INDIRECT("StdLife" & $C71)="n/a","n/a",IF(N$1>(INDIRECT("StdLife" & $C71)+$A71),(INDIRECT("Capex" & $C71 & "_"& $A71)*(1+INDIRECT("vanilla" & $A71))^0.5)-SUM($F71:M71),(INDIRECT("Capex" & $C71 & "_" & $A71)*(1+INDIRECT("vanilla" & $A71))^0.5)/INDIRECT("StdLife" & $C71)))) -> 0 | O71: =IF(AND(DepreciationOption="Determination Allowance",O$1<6),INDIRECT("DepnAllowCapex" &$C71&"_"& $A71 & "_" &O$1),IF(INDIRECT("StdLife" & $C71)="n/a","n/a",IF(O$1>(INDIRECT("StdLife" & $C71)+$A71),(INDIRECT("Capex" & $C71 & "_"& $A71)*(1+INDIRECT("vanilla" & $A71))^0.5)-SUM($F71:N71),(INDIRECT("Capex" & $C71 & "_" & $A71)*(1+INDIRECT("vanilla" & $A71))^0.5)/INDIRECT("StdLife" & $C71)))) -> 0
A72: 7 | B72: Furniture, Fittings, Plant and Equipment - 2020-21 | C72: 3 | D72: $m real 2014-15 | M72: =IF(AND(DepreciationOption="Determination Allowance",M$1<6),INDIRECT("DepnAllowCapex" &$C72&"_"& $A72 & "_" &M$1),IF(INDIRECT("StdLife" & $C72)="n/a","n/a",IF(M$1>(INDIRECT("StdLife" & $C72)+$A72),(INDIRECT("Capex" & $C72 & "_"& $A72)*(1+INDIRECT("vanilla" & $A72))^0.5)-SUM($F72:L72),(INDIRECT("Capex" & $C72 & "_" & $A72)*(1+INDIRECT("vanilla" & $A72))^0.5)/INDIRECT("StdLife" & $C72)))) -> 0 | N72: =IF(AND(DepreciationOption="Determination Allowance",N$1<6),INDIRECT("DepnAllowCapex" &$C72&"_"& $A72 & "_" &N$1),IF(INDIRECT("StdLife" & $C72)="n/a","n/a",IF(N$1>(INDIRECT("StdLife" & $C72)+$A72),(INDIRECT("Capex" & $C72 & "_"& $A72)*(1+INDIRECT("vanilla" & $A72))^0.5)-SUM($F72:M72),(INDIRECT("Capex" & $C72 & "_" & $A72)*(1+INDIRECT("vanilla" & $A72))^0.5)/INDIRECT("StdLife" & $C72)))) -> 0 | O72: =IF(AND(DepreciationOption="Determination Allowance",O$1<6),INDIRECT("DepnAllowCapex" &$C72&"_"& $A72 & "_" &O$1),IF(INDIRECT("StdLife" & $C72)="n/a","n/a",IF(O$1>(INDIRECT("StdLife" & $C72)+$A72),(INDIRECT("Capex" & $C72 & "_"& $A72)*(1+INDIRECT("vanilla" & $A72))^0.5)-SUM($F72:N72),(INDIRECT("Capex" & $C72 & "_" & $A72)*(1+INDIRECT("vanilla" & $A72))^0.5)/INDIRECT("StdLife" & $C72)))) -> 0
A73: 8 | B73: Furniture, Fittings, Plant and Equipment - 2021-22 | C73: 3 | D73: $m real 2014-15 | N73: =IF(AND(DepreciationOption="Determination Allowance",N$1<6),INDIRECT("DepnAllowCapex" &$C73&"_"& $A73 & "_" &N$1),IF(INDIRECT("StdLife" & $C73)="n/a","n/a",IF(N$1>(INDIRECT("StdLife" & $C73)+$A73),(INDIRECT("Capex" & $C73 & "_"& $A73)*(1+INDIRECT("vanilla" & $A73))^0.5)-SUM($F73:M73),(INDIRECT("Capex" & $C73 & "_" & $A73)*(1+INDIRECT("vanilla" & $A73))^0.5)/INDIRECT("StdLife" & $C73)))) -> 0 | O73: =IF(AND(DepreciationOption="Determination Allowance",O$1<6),INDIRECT("DepnAllowCapex" &$C73&"_"& $A73 & "_" &O$1),IF(INDIRECT("StdLife" & $C73)="n/a","n/a",IF(O$1>(INDIRECT("StdLife" & $C73)+$A73),(INDIRECT("Capex" & $C73 & "_"& $A73)*(1+INDIRECT("vanilla" & $A73))^0.5)-SUM($F73:N73),(INDIRECT("Capex" & $C73 & "_" & $A73)*(1+INDIRECT("vanilla" & $A73))^0.5)/INDIRECT("StdLife" & $C73)))) -> 0
A74: 9 | B74: Furniture, Fittings, Plant and Equipment - 2022-23 | C74: 3 | D74: $m real 2014-15 | O74: =IF(AND(DepreciationOption="Determination Allowance",O$1<6),INDIRECT("DepnAllowCapex" &$C74&"_"& $A74 & "_" &O$1),IF(INDIRECT("StdLife" & $C74)="n/a","n/a",IF(O$1>(INDIRECT("StdLife" & $C74)+$A74),(INDIRECT("Capex" & $C74 & "_"& $A74)*(1+INDIRECT("vanilla" & $A74))^0.5)-SUM($F74:N74),(INDIRECT("Capex" & $C74 & "_" & $A74)*(1+INDIRECT("vanilla" & $A74))^0.5)/INDIRECT("StdLife" & $C74)))) -> 0
A75: 10 | B75: Furniture, Fittings, Plant and Equipment - 2023-24 | C75: 3 | D75: $m real 2014-15
B76: =INDIRECT("Asset"&$C76) & " Subtotal" -> Furniture, Fittings, Plant and Equipment Subtotal | C76: 3 | D76: $m real 2014-15 | F76: =SUM(F66:F75) -> 0 | G76: =SUM(G66:G75) -> 0 | H76: =SUM(H66:H75) -> 0 | I76: =SUM(I66:I75) -> 0 | J76: =SUM(J66:J75) -> 0 | K76: =SUM(K66:K75) -> 0 | L76: =SUM(L66:L75) -> 0 | M76: =SUM(M66:M75) -> 0 | N76: =SUM(N66:N75) -> 0 | O76: =SUM(O66:O75) -> 0
B78: ="Dep'n of " & INDIRECT("Asset"&$C78) & " Capex" -> Dep'n of Motor Vehicles Capex | C78: =C65+1 -> 4 | D78: Units | F78: =INDEX(ModelYears, COLUMN()-COLUMN($D78)) -> 2014-15 | G78: 2015-16 | H78: 2016-17 | I78: 2017-18 | J78: 2018-19 | K78: 2019-20 | L78: 2020-21 | M78: 2021-22 | N78: 2022-23 | O78: 2023-24
A79: 1 | B79: =INDIRECT("Asset"&$C79) & " - " & INDEX(ModelYears,1+$A79) -> Motor Vehicles - 2014-15 | C79: 4 | D79: $m real 2014-15 | G79: =IF(AND(DepreciationOption="Determination Allowance",G$1<6),INDIRECT("DepnAllowCapex" &$C79&"_"& $A79 & "_" &G$1),IF(INDIRECT("StdLife" & $C79)="n/a","n/a",IF(G$1>(INDIRECT("StdLife" & $C79)+$A79),(INDIRECT("Capex" & $C79 & "_"& $A79)*(1+INDIRECT("vanilla" & $A79))^0.5)-SUM($F79:F79),(INDIRECT("Capex" & $C79 & "_" & $A79)*(1+INDIRECT("vanilla" & $A79))^0.5)/INDIRECT("StdLife" & $C79)))) -> 0 | H79: =IF(AND(DepreciationOption="Determination Allowance",H$1<6),INDIRECT("DepnAllowCapex" &$C79&"_"& $A79 & "_" &H$1),IF(INDIRECT("StdLife" & $C79)="n/a","n/a",IF(H$1>(INDIRECT("StdLife" & $C79)+$A79),(INDIRECT("Capex" & $C79 & "_"& $A79)*(1+INDIRECT("vanilla" & $A79))^0.5)-SUM($F79:G79),(INDIRECT("Capex" & $C79 & "_" & $A79)*(1+INDIRECT("vanilla" & $A79))^0.5)/INDIRECT("StdLife" & $C79)))) -> 0 | I79: =IF(AND(DepreciationOption="Determination Allowance",I$1<6),INDIRECT("DepnAllowCapex" &$C79&"_"& $A79 & "_" &I$1),IF(INDIRECT("StdLife" & $C79)="n/a","n/a",IF(I$1>(INDIRECT("StdLife" & $C79)+$A79),(INDIRECT("Capex" & $C79 & "_"& $A79)*(1+INDIRECT("vanilla" & $A79))^0.5)-SUM($F79:H79),(INDIRECT("Capex" & $C79 & "_" & $A79)*(1+INDIRECT("vanilla" & $A79))^0.5)/INDIRECT("StdLife" & $C79)))) -> 0 | J79: =IF(AND(DepreciationOption="Determination Allowance",J$1<6),INDIRECT("DepnAllowCapex" &$C79&"_"& $A79 & "_" &J$1),IF(INDIRECT("StdLife" & $C79)="n/a","n/a",IF(J$1>(INDIRECT("StdLife" & $C79)+$A79),(INDIRECT("Capex" & $C79 & "_"& $A79)*(1+INDIRECT("vanilla" & $A79))^0.5)-SUM($F79:I79),(INDIRECT("Capex" & $C79 & "_" & $A79)*(1+INDIRECT("vanilla" & $A79))^0.5)/INDIRECT("StdLife" & $C79)))) -> 0 | K79: =IF(AND(DepreciationOption="Determination Allowance",K$1<6),INDIRECT("DepnAllowCapex" &$C79&"_"& $A79 & "_" &K$1),IF(INDIRECT("StdLife" & $C79)="n/a","n/a",IF(K$1>(INDIRECT("StdLife" & $C79)+$A79),(INDIRECT("Capex" & $C79 & "_"& $A79)*(1+INDIRECT("vanilla" & $A79))^0.5)-SUM($F79:J79),(INDIRECT("Capex" & $C79 & "_" & $A79)*(1+INDIRECT("vanilla" & $A79))^0.5)/INDIRECT("StdLife" & $C79)))) -> 0 | L79: =IF(AND(DepreciationOption="Determination Allowance",L$1<6),INDIRECT("DepnAllowCapex" &$C79&"_"& $A79 & "_" &L$1),IF(INDIRECT("StdLife" & $C79)="n/a","n/a",IF(L$1>(INDIRECT("StdLife" & $C79)+$A79),(INDIRECT("Capex" & $C79 & "_"& $A79)*(1+INDIRECT("vanilla" & $A79))^0.5)-SUM($F79:K79),(INDIRECT("Capex" & $C79 & "_" & $A79)*(1+INDIRECT("vanilla" & $A79))^0.5)/INDIRECT("StdLife" & $C79)))) -> 0 | M79: =IF(AND(DepreciationOption="Determination Allowance",M$1<6),INDIRECT("DepnAllowCapex" &$C79&"_"& $A79 & "_" &M$1),IF(INDIRECT("StdLife" & $C79)="n/a","n/a",IF(M$1>(INDIRECT("StdLife" & $C79)+$A79),(INDIRECT("Capex" & $C79 & "_"& $A79)*(1+INDIRECT("vanilla" & $A79))^0.5)-SUM($F79:L79),(INDIRECT("Capex" & $C79 & "_" & $A79)*(1+INDIRECT("vanilla" & $A79))^0.5)/INDIRECT("StdLife" & $C79)))) -> 0 | N79: =IF(AND(DepreciationOption="Determination Allowance",N$1<6),INDIRECT("DepnAllowCapex" &$C79&"_"& $A79 & "_" &N$1),IF(INDIRECT("StdLife" & $C79)="n/a","n/a",IF(N$1>(INDIRECT("StdLife" & $C79)+$A79),(INDIRECT("Capex" & $C79 & "_"& $A79)*(1+INDIRECT("vanilla" & $A79))^0.5)-SUM($F79:M79),(INDIRECT("Capex" & $C79 & "_" & $A79)*(1+INDIRECT("vanilla" & $A79))^0.5)/INDIRECT("StdLife" & $C79)))) -> 0 | O79: =IF(AND(DepreciationOption="Determination Allowance",O$1<6),INDIRECT("DepnAllowCapex" &$C79&"_"& $A79 & "_" &O$1),IF(INDIRECT("StdLife" & $C79)="n/a","n/a",IF(O$1>(INDIRECT("StdLife" & $C79)+$A79),(INDIRECT("Capex" & $C79 & "_"& $A79)*(1+INDIRECT("vanilla" & $A79))^0.5)-SUM($F79:N79),(INDIRECT("Capex" & $C79 & "_" & $A79)*(1+INDIRECT("vanilla" & $A79))^0.5)/INDIRECT("StdLife" & $C79)))) -> 0
A80: 2 | B80: Motor Vehicles - 2015-16 | C80: 4 | D80: $m real 2014-15 | H80: =IF(AND(DepreciationOption="Determination Allowance",H$1<6),INDIRECT("DepnAllowCapex" &$C80&"_"& $A80 & "_" &H$1),IF(INDIRECT("StdLife" & $C80)="n/a","n/a",IF(H$1>(INDIRECT("StdLife" & $C80)+$A80),(INDIRECT("Capex" & $C80 & "_"& $A80)*(1+INDIRECT("vanilla" & $A80))^0.5)-SUM($F80:G80),(INDIRECT("Capex" & $C80 & "_" & $A80)*(1+INDIRECT("vanilla" & $A80))^0.5)/INDIRECT("StdLife" & $C80)))) -> 0 | I80: =IF(AND(DepreciationOption="Determination Allowance",I$1<6),INDIRECT("DepnAllowCapex" &$C80&"_"& $A80 & "_" &I$1),IF(INDIRECT("StdLife" & $C80)="n/a","n/a",IF(I$1>(INDIRECT("StdLife" & $C80)+$A80),(INDIRECT("Capex" & $C80 & "_"& $A80)*(1+INDIRECT("vanilla" & $A80))^0.5)-SUM($F80:H80),(INDIRECT("Capex" & $C80 & "_" & $A80)*(1+INDIRECT("vanilla" & $A80))^0.5)/INDIRECT("StdLife" & $C80)))) -> 0 | J80: =IF(AND(DepreciationOption="Determination Allowance",J$1<6),INDIRECT("DepnAllowCapex" &$C80&"_"& $A80 & "_" &J$1),IF(INDIRECT("StdLife" & $C80)="n/a","n/a",IF(J$1>(INDIRECT("StdLife" & $C80)+$A80),(INDIRECT("Capex" & $C80 & "_"& $A80)*(1+INDIRECT("vanilla" & $A80))^0.5)-SUM($F80:I80),(INDIRECT("Capex" & $C80 & "_" & $A80)*(1+INDIRECT("vanilla" & $A80))^0.5)/INDIRECT("StdLife" & $C80)))) -> 0 | K80: =IF(AND(DepreciationOption="Determination Allowance",K$1<6),INDIRECT("DepnAllowCapex" &$C80&"_"& $A80 & "_" &K$1),IF(INDIRECT("StdLife" & $C80)="n/a","n/a",IF(K$1>(INDIRECT("StdLife" & $C80)+$A80),(INDIRECT("Capex" & $C80 & "_"& $A80)*(1+INDIRECT("vanilla" & $A80))^0.5)-SUM($F80:J80),(INDIRECT("Capex" & $C80 & "_" & $A80)*(1+INDIRECT("vanilla" & $A80))^0.5)/INDIRECT("StdLife" & $C80)))) -> 0 | L80: =IF(AND(DepreciationOption="Determination Allowance",L$1<6),INDIRECT("DepnAllowCapex" &$C80&"_"& $A80 & "_" &L$1),IF(INDIRECT("StdLife" & $C80)="n/a","n/a",IF(L$1>(INDIRECT("StdLife" & $C80)+$A80),(INDIRECT("Capex" & $C80 & "_"& $A80)*(1+INDIRECT("vanilla" & $A80))^0.5)-SUM($F80:K80),(INDIRECT("Capex" & $C80 & "_" & $A80)*(1+INDIRECT("vanilla" & $A80))^0.5)/INDIRECT("StdLife" & $C80)))) -> 0 | M80: =IF(AND(DepreciationOption="Determination Allowance",M$1<6),INDIRECT("DepnAllowCapex" &$C80&"_"& $A80 & "_" &M$1),IF(INDIRECT("StdLife" & $C80)="n/a","n/a",IF(M$1>(INDIRECT("StdLife" & $C80)+$A80),(INDIRECT("Capex" & $C80 & "_"& $A80)*(1+INDIRECT("vanilla" & $A80))^0.5)-SUM($F80:L80),(INDIRECT("Capex" & $C80 & "_" & $A80)*(1+INDIRECT("vanilla" & $A80))^0.5)/INDIRECT("StdLife" & $C80)))) -> 0 | N80: =IF(AND(DepreciationOption="Determination Allowance",N$1<6),INDIRECT("DepnAllowCapex" &$C80&"_"& $A80 & "_" &N$1),IF(INDIRECT("StdLife" & $C80)="n/a","n/a",IF(N$1>(INDIRECT("StdLife" & $C80)+$A80),(INDIRECT("Capex" & $C80 & "_"& $A80)*(1+INDIRECT("vanilla" & $A80))^0.5)-SUM($F80:M80),(INDIRECT("Capex" & $C80 & "_" & $A80)*(1+INDIRECT("vanilla" & $A80))^0.5)/INDIRECT("StdLife" & $C80)))) -> 0 | O80: =IF(AND(DepreciationOption="Determination Allowance",O$1<6),INDIRECT("DepnAllowCapex" &$C80&"_"& $A80 & "_" &O$1),IF(INDIRECT("StdLife" & $C80)="n/a","n/a",IF(O$1>(INDIRECT("StdLife" & $C80)+$A80),(INDIRECT("Capex" & $C80 & "_"& $A80)*(1+INDIRECT("vanilla" & $A80))^0.5)-SUM($F80:N80),(INDIRECT("Capex" & $C80 & "_" & $A80)*(1+INDIRECT("vanilla" & $A80))^0.5)/INDIRECT("StdLife" & $C80)))) -> 0
A81: 3 | B81: Motor Vehicles - 2016-17 | C81: 4 | D81: $m real 2014-15 | I81: =IF(AND(DepreciationOption="Determination Allowance",I$1<6),INDIRECT("DepnAllowCapex" &$C81&"_"& $A81 & "_" &I$1),IF(INDIRECT("StdLife" & $C81)="n/a","n/a",IF(I$1>(INDIRECT("StdLife" & $C81)+$A81),(INDIRECT("Capex" & $C81 & "_"& $A81)*(1+INDIRECT("vanilla" & $A81))^0.5)-SUM($F81:H81),(INDIRECT("Capex" & $C81 & "_" & $A81)*(1+INDIRECT("vanilla" & $A81))^0.5)/INDIRECT("StdLife" & $C81)))) -> 0 | J81: =IF(AND(DepreciationOption="Determination Allowance",J$1<6),INDIRECT("DepnAllowCapex" &$C81&"_"& $A81 & "_" &J$1),IF(INDIRECT("StdLife" & $C81)="n/a","n/a",IF(J$1>(INDIRECT("StdLife" & $C81)+$A81),(INDIRECT("Capex" & $C81 & "_"& $A81)*(1+INDIRECT("vanilla" & $A81))^0.5)-SUM($F81:I81),(INDIRECT("Capex" & $C81 & "_" & $A81)*(1+INDIRECT("vanilla" & $A81))^0.5)/INDIRECT("StdLife" & $C81)))) -> 0 | K81: =IF(AND(DepreciationOption="Determination Allowance",K$1<6),INDIRECT("DepnAllowCapex" &$C81&"_"& $A81 & "_" &K$1),IF(INDIRECT("StdLife" & $C81)="n/a","n/a",IF(K$1>(INDIRECT("StdLife" & $C81)+$A81),(INDIRECT("Capex" & $C81 & "_"& $A81)*(1+INDIRECT("vanilla" & $A81))^0.5)-SUM($F81:J81),(INDIRECT("Capex" & $C81 & "_" & $A81)*(1+INDIRECT("vanilla" & $A81))^0.5)/INDIRECT("StdLife" & $C81)))) -> 0 | L81: =IF(AND(DepreciationOption="Determination Allowance",L$1<6),INDIRECT("DepnAllowCapex" &$C81&"_"& $A81 & "_" &L$1),IF(INDIRECT("StdLife" & $C81)="n/a","n/a",IF(L$1>(INDIRECT("StdLife" & $C81)+$A81),(INDIRECT("Capex" & $C81 & "_"& $A81)*(1+INDIRECT("vanilla" & $A81))^0.5)-SUM($F81:K81),(INDIRECT("Capex" & $C81 & "_" & $A81)*(1+INDIRECT("vanilla" & $A81))^0.5)/INDIRECT("StdLife" & $C81)))) -> 0 | M81: =IF(AND(DepreciationOption="Determination Allowance",M$1<6),INDIRECT("DepnAllowCapex" &$C81&"_"& $A81 & "_" &M$1),IF(INDIRECT("StdLife" & $C81)="n/a","n/a",IF(M$1>(INDIRECT("StdLife" & $C81)+$A81),(INDIRECT("Capex" & $C81 & "_"& $A81)*(1+INDIRECT("vanilla" & $A81))^0.5)-SUM($F81:L81),(INDIRECT("Capex" & $C81 & "_" & $A81)*(1+INDIRECT("vanilla" & $A81))^0.5)/INDIRECT("StdLife" & $C81)))) -> 0 | N81: =IF(AND(DepreciationOption="Determination Allowance",N$1<6),INDIRECT("DepnAllowCapex" &$C81&"_"& $A81 & "_" &N$1),IF(INDIRECT("StdLife" & $C81)="n/a","n/a",IF(N$1>(INDIRECT("StdLife" & $C81)+$A81),(INDIRECT("Capex" & $C81 & "_"& $A81)*(1+INDIRECT("vanilla" & $A81))^0.5)-SUM($F81:M81),(INDIRECT("Capex" & $C81 & "_" & $A81)*(1+INDIRECT("vanilla" & $A81))^0.5)/INDIRECT("StdLife" & $C81)))) -> 0 | O81: =IF(AND(DepreciationOption="Determination Allowance",O$1<6),INDIRECT("DepnAllowCapex" &$C81&"_"& $A81 & "_" &O$1),IF(INDIRECT("StdLife" & $C81)="n/a","n/a",IF(O$1>(INDIRECT("StdLife" & $C81)+$A81),(INDIRECT("Capex" & $C81 & "_"& $A81)*(1+INDIRECT("vanilla" & $A81))^0.5)-SUM($F81:N81),(INDIRECT("Capex" & $C81 & "_" & $A81)*(1+INDIRECT("vanilla" & $A81))^0.5)/INDIRECT("StdLife" & $C81)))) -> 0
A82: 4 | B82: Motor Vehicles - 2017-18 | C82: 4 | D82: $m real 2014-15 | J82: =IF(AND(DepreciationOption="Determination Allowance",J$1<6),INDIRECT("DepnAllowCapex" &$C82&"_"& $A82 & "_" &J$1),IF(INDIRECT("StdLife" & $C82)="n/a","n/a",IF(J$1>(INDIRECT("StdLife" & $C82)+$A82),(INDIRECT("Capex" & $C82 & "_"& $A82)*(1+INDIRECT("vanilla" & $A82))^0.5)-SUM($F82:I82),(INDIRECT("Capex" & $C82 & "_" & $A82)*(1+INDIRECT("vanilla" & $A82))^0.5)/INDIRECT("StdLife" & $C82)))) -> 0 | K82: =IF(AND(DepreciationOption="Determination Allowance",K$1<6),INDIRECT("DepnAllowCapex" &$C82&"_"& $A82 & "_" &K$1),IF(INDIRECT("StdLife" & $C82)="n/a","n/a",IF(K$1>(INDIRECT("StdLife" & $C82)+$A82),(INDIRECT("Capex" & $C82 & "_"& $A82)*(1+INDIRECT("vanilla" & $A82))^0.5)-SUM($F82:J82),(INDIRECT("Capex" & $C82 & "_" & $A82)*(1+INDIRECT("vanilla" & $A82))^0.5)/INDIRECT("StdLife" & $C82)))) -> 0 | L82: =IF(AND(DepreciationOption="Determination Allowance",L$1<6),INDIRECT("DepnAllowCapex" &$C82&"_"& $A82 & "_" &L$1),IF(INDIRECT("StdLife" & $C82)="n/a","n/a",IF(L$1>(INDIRECT("StdLife" & $C82)+$A82),(INDIRECT("Capex" & $C82 & "_"& $A82)*(1+INDIRECT("vanilla" & $A82))^0.5)-SUM($F82:K82),(INDIRECT("Capex" & $C82 & "_" & $A82)*(1+INDIRECT("vanilla" & $A82))^0.5)/INDIRECT("StdLife" & $C82)))) -> 0 | M82: =IF(AND(DepreciationOption="Determination Allowance",M$1<6),INDIRECT("DepnAllowCapex" &$C82&"_"& $A82 & "_" &M$1),IF(INDIRECT("StdLife" & $C82)="n/a","n/a",IF(M$1>(INDIRECT("StdLife" & $C82)+$A82),(INDIRECT("Capex" & $C82 & "_"& $A82)*(1+INDIRECT("vanilla" & $A82))^0.5)-SUM($F82:L82),(INDIRECT("Capex" & $C82 & "_" & $A82)*(1+INDIRECT("vanilla" & $A82))^0.5)/INDIRECT("StdLife" & $C82)))) -> 0 | N82: =IF(AND(DepreciationOption="Determination Allowance",N$1<6),INDIRECT("DepnAllowCapex" &$C82&"_"& $A82 & "_" &N$1),IF(INDIRECT("StdLife" & $C82)="n/a","n/a",IF(N$1>(INDIRECT("StdLife" & $C82)+$A82),(INDIRECT("Capex" & $C82 & "_"& $A82)*(1+INDIRECT("vanilla" & $A82))^0.5)-SUM($F82:M82),(INDIRECT("Capex" & $C82 & "_" & $A82)*(1+INDIRECT("vanilla" & $A82))^0.5)/INDIRECT("StdLife" & $C82)))) -> 0 | O82: =IF(AND(DepreciationOption="Determination Allowance",O$1<6),INDIRECT("DepnAllowCapex" &$C82&"_"& $A82 & "_" &O$1),IF(INDIRECT("StdLife" & $C82)="n/a","n/a",IF(O$1>(INDIRECT("StdLife" & $C82)+$A82),(INDIRECT("Capex" & $C82 & "_"& $A82)*(1+INDIRECT("vanilla" & $A82))^0.5)-SUM($F82:N82),(INDIRECT("Capex" & $C82 & "_" & $A82)*(1+INDIRECT("vanilla" & $A82))^0.5)/INDIRECT("StdLife" & $C82)))) -> 0
A83: 5 | B83: Motor Vehicles - 2018-19 | C83: 4 | D83: $m real 2014-15 | K83: =IF(AND(DepreciationOption="Determination Allowance",K$1<6),INDIRECT("DepnAllowCapex" &$C83&"_"& $A83 & "_" &K$1),IF(INDIRECT("StdLife" & $C83)="n/a","n/a",IF(K$1>(INDIRECT("StdLife" & $C83)+$A83),(INDIRECT("Capex" & $C83 & "_"& $A83)*(1+INDIRECT("vanilla" & $A83))^0.5)-SUM($F83:J83),(INDIRECT("Capex" & $C83 & "_" & $A83)*(1+INDIRECT("vanilla" & $A83))^0.5)/INDIRECT("StdLife" & $C83)))) -> 0 | L83: =IF(AND(DepreciationOption="Determination Allowance",L$1<6),INDIRECT("DepnAllowCapex" &$C83&"_"& $A83 & "_" &L$1),IF(INDIRECT("StdLife" & $C83)="n/a","n/a",IF(L$1>(INDIRECT("StdLife" & $C83)+$A83),(INDIRECT("Capex" & $C83 & "_"& $A83)*(1+INDIRECT("vanilla" & $A83))^0.5)-SUM($F83:K83),(INDIRECT("Capex" & $C83 & "_" & $A83)*(1+INDIRECT("vanilla" & $A83))^0.5)/INDIRECT("StdLife" & $C83)))) -> 0 | M83: =IF(AND(DepreciationOption="Determination Allowance",M$1<6),INDIRECT("DepnAllowCapex" &$C83&"_"& $A83 & "_" &M$1),IF(INDIRECT("StdLife" & $C83)="n/a","n/a",IF(M$1>(INDIRECT("StdLife" & $C83)+$A83),(INDIRECT("Capex" & $C83 & "_"& $A83)*(1+INDIRECT("vanilla" & $A83))^0.5)-SUM($F83:L83),(INDIRECT("Capex" & $C83 & "_" & $A83)*(1+INDIRECT("vanilla" & $A83))^0.5)/INDIRECT("StdLife" & $C83)))) -> 0 | N83: =IF(AND(DepreciationOption="Determination Allowance",N$1<6),INDIRECT("DepnAllowCapex" &$C83&"_"& $A83 & "_" &N$1),IF(INDIRECT("StdLife" & $C83)="n/a","n/a",IF(N$1>(INDIRECT("StdLife" & $C83)+$A83),(INDIRECT("Capex" & $C83 & "_"& $A83)*(1+INDIRECT("vanilla" & $A83))^0.5)-SUM($F83:M83),(INDIRECT("Capex" & $C83 & "_" & $A83)*(1+INDIRECT("vanilla" & $A83))^0.5)/INDIRECT("StdLife" & $C83)))) -> 0 | O83: =IF(AND(DepreciationOption="Determination Allowance",O$1<6),INDIRECT("DepnAllowCapex" &$C83&"_"& $A83 & "_" &O$1),IF(INDIRECT("StdLife" & $C83)="n/a","n/a",IF(O$1>(INDIRECT("StdLife" & $C83)+$A83),(INDIRECT("Capex" & $C83 & "_"& $A83)*(1+INDIRECT("vanilla" & $A83))^0.5)-SUM($F83:N83),(INDIRECT("Capex" & $C83 & "_" & $A83)*(1+INDIRECT("vanilla" & $A83))^0.5)/INDIRECT("StdLife" & $C83)))) -> 0
A84: 6 | B84: Motor Vehicles - 2019-20 | C84: 4 | D84: $m real 2014-15 | L84: =IF(AND(DepreciationOption="Determination Allowance",L$1<6),INDIRECT("DepnAllowCapex" &$C84&"_"& $A84 & "_" &L$1),IF(INDIRECT("StdLife" & $C84)="n/a","n/a",IF(L$1>(INDIRECT("StdLife" & $C84)+$A84),(INDIRECT("Capex" & $C84 & "_"& $A84)*(1+INDIRECT("vanilla" & $A84))^0.5)-SUM($F84:K84),(INDIRECT("Capex" & $C84 & "_" & $A84)*(1+INDIRECT("vanilla" & $A84))^0.5)/INDIRECT("StdLife" & $C84)))) -> 0 | M84: =IF(AND(DepreciationOption="Determination Allowance",M$1<6),INDIRECT("DepnAllowCapex" &$C84&"_"& $A84 & "_" &M$1),IF(INDIRECT("StdLife" & $C84)="n/a","n/a",IF(M$1>(INDIRECT("StdLife" & $C84)+$A84),(INDIRECT("Capex" & $C84 & "_"& $A84)*(1+INDIRECT("vanilla" & $A84))^0.5)-SUM($F84:L84),(INDIRECT("Capex" & $C84 & "_" & $A84)*(1+INDIRECT("vanilla" & $A84))^0.5)/INDIRECT("StdLife" & $C84)))) -> 0 | N84: =IF(AND(DepreciationOption="Determination Allowance",N$1<6),INDIRECT("DepnAllowCapex" &$C84&"_"& $A84 & "_" &N$1),IF(INDIRECT("StdLife" & $C84)="n/a","n/a",IF(N$1>(INDIRECT("StdLife" & $C84)+$A84),(INDIRECT("Capex" & $C84 & "_"& $A84)*(1+INDIRECT("vanilla" & $A84))^0.5)-SUM($F84:M84),(INDIRECT("Capex" & $C84 & "_" & $A84)*(1+INDIRECT("vanilla" & $A84))^0.5)/INDIRECT("StdLife" & $C84)))) -> 0 | O84: =IF(AND(DepreciationOption="Determination Allowance",O$1<6),INDIRECT("DepnAllowCapex" &$C84&"_"& $A84 & "_" &O$1),IF(INDIRECT("StdLife" & $C84)="n/a","n/a",IF(O$1>(INDIRECT("StdLife" & $C84)+$A84),(INDIRECT("Capex" & $C84 & "_"& $A84)*(1+INDIRECT("vanilla" & $A84))^0.5)-SUM($F84:N84),(INDIRECT("Capex" & $C84 & "_" & $A84)*(1+INDIRECT("vanilla" & $A84))^0.5)/INDIRECT("StdLife" & $C84)))) -> 0
A85: 7 | B85: Motor Vehicles - 2020-21 | C85: 4 | D85: $m real 2014-15 | M85: =IF(AND(DepreciationOption="Determination Allowance",M$1<6),INDIRECT("DepnAllowCapex" &$C85&"_"& $A85 & "_" &M$1),IF(INDIRECT("StdLife" & $C85)="n/a","n/a",IF(M$1>(INDIRECT("StdLife" & $C85)+$A85),(INDIRECT("Capex" & $C85 & "_"& $A85)*(1+INDIRECT("vanilla" & $A85))^0.5)-SUM($F85:L85),(INDIRECT("Capex" & $C85 & "_" & $A85)*(1+INDIRECT("vanilla" & $A85))^0.5)/INDIRECT("StdLife" & $C85)))) -> 0 | N85: =IF(AND(DepreciationOption="Determination Allowance",N$1<6),INDIRECT("DepnAllowCapex" &$C85&"_"& $A85 & "_" &N$1),IF(INDIRECT("StdLife" & $C85)="n/a","n/a",IF(N$1>(INDIRECT("StdLife" & $C85)+$A85),(INDIRECT("Capex" & $C85 & "_"& $A85)*(1+INDIRECT("vanilla" & $A85))^0.5)-SUM($F85:M85),(INDIRECT("Capex" & $C85 & "_" & $A85)*(1+INDIRECT("vanilla" & $A85))^0.5)/INDIRECT("StdLife" & $C85)))) -> 0 | O85: =IF(AND(DepreciationOption="Determination Allowance",O$1<6),INDIRECT("DepnAllowCapex" &$C85&"_"& $A85 & "_" &O$1),IF(INDIRECT("StdLife" & $C85)="n/a","n/a",IF(O$1>(INDIRECT("StdLife" & $C85)+$A85),(INDIRECT("Capex" & $C85 & "_"& $A85)*(1+INDIRECT("vanilla" & $A85))^0.5)-SUM($F85:N85),(INDIRECT("Capex" & $C85 & "_" & $A85)*(1+INDIRECT("vanilla" & $A85))^0.5)/INDIRECT("StdLife" & $C85)))) -> 0
A86: 8 | B86: Motor Vehicles - 2021-22 | C86: 4 | D86: $m real 2014-15 | N86: =IF(AND(DepreciationOption="Determination Allowance",N$1<6),INDIRECT("DepnAllowCapex" &$C86&"_"& $A86 & "_" &N$1),IF(INDIRECT("StdLife" & $C86)="n/a","n/a",IF(N$1>(INDIRECT("StdLife" & $C86)+$A86),(INDIRECT("Capex" & $C86 & "_"& $A86)*(1+INDIRECT("vanilla" & $A86))^0.5)-SUM($F86:M86),(INDIRECT("Capex" & $C86 & "_" & $A86)*(1+INDIRECT("vanilla" & $A86))^0.5)/INDIRECT("StdLife" & $C86)))) -> 0 | O86: =IF(AND(DepreciationOption="Determination Allowance",O$1<6),INDIRECT("DepnAllowCapex" &$C86&"_"& $A86 & "_" &O$1),IF(INDIRECT("StdLife" & $C86)="n/a","n/a",IF(O$1>(INDIRECT("StdLife" & $C86)+$A86),(INDIRECT("Capex" & $C86 & "_"& $A86)*(1+INDIRECT("vanilla" & $A86))^0.5)-SUM($F86:N86),(INDIRECT("Capex" & $C86 & "_" & $A86)*(1+INDIRECT("vanilla" & $A86))^0.5)/INDIRECT("StdLife" & $C86)))) -> 0
A87: 9 | B87: Motor Vehicles - 2022-23 | C87: 4 | D87: $m real 2014-15 | O87: =IF(AND(DepreciationOption="Determination Allowance",O$1<6),INDIRECT("DepnAllowCapex" &$C87&"_"& $A87 & "_" &O$1),IF(INDIRECT("StdLife" & $C87)="n/a","n/a",IF(O$1>(INDIRECT("StdLife" & $C87)+$A87),(INDIRECT("Capex" & $C87 & "_"& $A87)*(1+INDIRECT("vanilla" & $A87))^0.5)-SUM($F87:N87),(INDIRECT("Capex" & $C87 & "_" & $A87)*(1+INDIRECT("vanilla" & $A87))^0.5)/INDIRECT("StdLife" & $C87)))) -> 0
A88: 10 | B88: Motor Vehicles - 2023-24 | C88: 4 | D88: $m real 2014-15
B89: =INDIRECT("Asset"&$C89) & " Subtotal" -> Motor Vehicles Subtotal | C89: 4 | D89: $m real 2014-15 | F89: =SUM(F79:F88) -> 0 | G89: =SUM(G79:G88) -> 0 | H89: =SUM(H79:H88) -> 0 | I89: =SUM(I79:I88) -> 0 | J89: =SUM(J79:J88) -> 0 | K89: =SUM(K79:K88) -> 0 | L89: =SUM(L79:L88) -> 0 | M89: =SUM(M79:M88) -> 0 | N89: =SUM(N79:N88) -> 0 | O89: =SUM(O79:O88) -> 0
B91: ="Dep'n of " & INDIRECT("Asset"&$C91) & " Capex" -> Dep'n of Buildings Capex | C91: =C78+1 -> 5 | D91: Units | F91: =INDEX(ModelYears, COLUMN()-COLUMN($D91)) -> 2014-15 | G91: 2015-16 | H91: 2016-17 | I91: 2017-18 | J91: 2018-19 | K91: 2019-20 | L91: 2020-21 | M91: 2021-22 | N91: 2022-23 | O91: 2023-24
A92: 1 | B92: =INDIRECT("Asset"&$C92) & " - " & INDEX(ModelYears,1+$A92) -> Buildings - 2014-15 | C92: 5 | D92: $m real 2014-15 | G92: =IF(AND(DepreciationOption="Determination Allowance",G$1<6),INDIRECT("DepnAllowCapex" &$C92&"_"& $A92 & "_" &G$1),IF(INDIRECT("StdLife" & $C92)="n/a","n/a",IF(G$1>(INDIRECT("StdLife" & $C92)+$A92),(INDIRECT("Capex" & $C92 & "_"& $A92)*(1+INDIRECT("vanilla" & $A92))^0.5)-SUM($F92:F92),(INDIRECT("Capex" & $C92 & "_" & $A92)*(1+INDIRECT("vanilla" & $A92))^0.5)/INDIRECT("StdLife" & $C92)))) -> 0 | H92: =IF(AND(DepreciationOption="Determination Allowance",H$1<6),INDIRECT("DepnAllowCapex" &$C92&"_"& $A92 & "_" &H$1),IF(INDIRECT("StdLife" & $C92)="n/a","n/a",IF(H$1>(INDIRECT("StdLife" & $C92)+$A92),(INDIRECT("Capex" & $C92 & "_"& $A92)*(1+INDIRECT("vanilla" & $A92))^0.5)-SUM($F92:G92),(INDIRECT("Capex" & $C92 & "_" & $A92)*(1+INDIRECT("vanilla" & $A92))^0.5)/INDIRECT("StdLife" & $C92)))) -> 0 | I92: =IF(AND(DepreciationOption="Determination Allowance",I$1<6),INDIRECT("DepnAllowCapex" &$C92&"_"& $A92 & "_" &I$1),IF(INDIRECT("StdLife" & $C92)="n/a","n/a",IF(I$1>(INDIRECT("StdLife" & $C92)+$A92),(INDIRECT("Capex" & $C92 & "_"& $A92)*(1+INDIRECT("vanilla" & $A92))^0.5)-SUM($F92:H92),(INDIRECT("Capex" & $C92 & "_" & $A92)*(1+INDIRECT("vanilla" & $A92))^0.5)/INDIRECT("StdLife" & $C92)))) -> 0 | J92: =IF(AND(DepreciationOption="Determination Allowance",J$1<6),INDIRECT("DepnAllowCapex" &$C92&"_"& $A92 & "_" &J$1),IF(INDIRECT("StdLife" & $C92)="n/a","n/a",IF(J$1>(INDIRECT("StdLife" & $C92)+$A92),(INDIRECT("Capex" & $C92 & "_"& $A92)*(1+INDIRECT("vanilla" & $A92))^0.5)-SUM($F92:I92),(INDIRECT("Capex" & $C92 & "_" & $A92)*(1+INDIRECT("vanilla" & $A92))^0.5)/INDIRECT("StdLife" & $C92)))) -> 0 | K92: =IF(AND(DepreciationOption="Determination Allowance",K$1<6),INDIRECT("DepnAllowCapex" &$C92&"_"& $A92 & "_" &K$1),IF(INDIRECT("StdLife" & $C92)="n/a","n/a",IF(K$1>(INDIRECT("StdLife" & $C92)+$A92),(INDIRECT("Capex" & $C92 & "_"& $A92)*(1+INDIRECT("vanilla" & $A92))^0.5)-SUM($F92:J92),(INDIRECT("Capex" & $C92 & "_" & $A92)*(1+INDIRECT("vanilla" & $A92))^0.5)/INDIRECT("StdLife" & $C92)))) -> 0 | L92: =IF(AND(DepreciationOption="Determination Allowance",L$1<6),INDIRECT("DepnAllowCapex" &$C92&"_"& $A92 & "_" &L$1),IF(INDIRECT("StdLife" & $C92)="n/a","n/a",IF(L$1>(INDIRECT("StdLife" & $C92)+$A92),(INDIRECT("Capex" & $C92 & "_"& $A92)*(1+INDIRECT("vanilla" & $A92))^0.5)-SUM($F92:K92),(INDIRECT("Capex" & $C92 & "_" & $A92)*(1+INDIRECT("vanilla" & $A92))^0.5)/INDIRECT("StdLife" & $C92)))) -> 0 | M92: =IF(AND(DepreciationOption="Determination Allowance",M$1<6),INDIRECT("DepnAllowCapex" &$C92&"_"& $A92 & "_" &M$1),IF(INDIRECT("StdLife" & $C92)="n/a","n/a",IF(M$1>(INDIRECT("StdLife" & $C92)+$A92),(INDIRECT("Capex" & $C92 & "_"& $A92)*(1+INDIRECT("vanilla" & $A92))^0.5)-SUM($F92:L92),(INDIRECT("Capex" & $C92 & "_" & $A92)*(1+INDIRECT("vanilla" & $A92))^0.5)/INDIRECT("StdLife" & $C92)))) -> 0 | N92: =IF(AND(DepreciationOption="Determination Allowance",N$1<6),INDIRECT("DepnAllowCapex" &$C92&"_"& $A92 & "_" &N$1),IF(INDIRECT("StdLife" & $C92)="n/a","n/a",IF(N$1>(INDIRECT("StdLife" & $C92)+$A92),(INDIRECT("Capex" & $C92 & "_"& $A92)*(1+INDIRECT("vanilla" & $A92))^0.5)-SUM($F92:M92),(INDIRECT("Capex" & $C92 & "_" & $A92)*(1+INDIRECT("vanilla" & $A92))^0.5)/INDIRECT("StdLife" & $C92)))) -> 0 | O92: =IF(AND(DepreciationOption="Determination Allowance",O$1<6),INDIRECT("DepnAllowCapex" &$C92&"_"& $A92 & "_" &O$1),IF(INDIRECT("StdLife" & $C92)="n/a","n/a",IF(O$1>(INDIRECT("StdLife" & $C92)+$A92),(INDIRECT("Capex" & $C92 & "_"& $A92)*(1+INDIRECT("vanilla" & $A92))^0.5)-SUM($F92:N92),(INDIRECT("Capex" & $C92 & "_" & $A92)*(1+INDIRECT("vanilla" & $A92))^0.5)/INDIRECT("StdLife" & $C92)))) -> 0
A93: 2 | B93: Buildings - 2015-16 | C93: 5 | D93: $m real 2014-15 | H93: =IF(AND(DepreciationOption="Determination Allowance",H$1<6),INDIRECT("DepnAllowCapex" &$C93&"_"& $A93 & "_" &H$1),IF(INDIRECT("StdLife" & $C93)="n/a","n/a",IF(H$1>(INDIRECT("StdLife" & $C93)+$A93),(INDIRECT("Capex" & $C93 & "_"& $A93)*(1+INDIRECT("vanilla" & $A93))^0.5)-SUM($F93:G93),(INDIRECT("Capex" & $C93 & "_" & $A93)*(1+INDIRECT("vanilla" & $A93))^0.5)/INDIRECT("StdLife" & $C93)))) -> 0 | I93: =IF(AND(DepreciationOption="Determination Allowance",I$1<6),INDIRECT("DepnAllowCapex" &$C93&"_"& $A93 & "_" &I$1),IF(INDIRECT("StdLife" & $C93)="n/a","n/a",IF(I$1>(INDIRECT("StdLife" & $C93)+$A93),(INDIRECT("Capex" & $C93 & "_"& $A93)*(1+INDIRECT("vanilla" & $A93))^0.5)-SUM($F93:H93),(INDIRECT("Capex" & $C93 & "_" & $A93)*(1+INDIRECT("vanilla" & $A93))^0.5)/INDIRECT("StdLife" & $C93)))) -> 0 | J93: =IF(AND(DepreciationOption="Determination Allowance",J$1<6),INDIRECT("DepnAllowCapex" &$C93&"_"& $A93 & "_" &J$1),IF(INDIRECT("StdLife" & $C93)="n/a","n/a",IF(J$1>(INDIRECT("StdLife" & $C93)+$A93),(INDIRECT("Capex" & $C93 & "_"& $A93)*(1+INDIRECT("vanilla" & $A93))^0.5)-SUM($F93:I93),(INDIRECT("Capex" & $C93 & "_" & $A93)*(1+INDIRECT("vanilla" & $A93))^0.5)/INDIRECT("StdLife" & $C93)))) -> 0 | K93: =IF(AND(DepreciationOption="Determination Allowance",K$1<6),INDIRECT("DepnAllowCapex" &$C93&"_"& $A93 & "_" &K$1),IF(INDIRECT("StdLife" & $C93)="n/a","n/a",IF(K$1>(INDIRECT("StdLife" & $C93)+$A93),(INDIRECT("Capex" & $C93 & "_"& $A93)*(1+INDIRECT("vanilla" & $A93))^0.5)-SUM($F93:J93),(INDIRECT("Capex" & $C93 & "_" & $A93)*(1+INDIRECT("vanilla" & $A93))^0.5)/INDIRECT("StdLife" & $C93)))) -> 0 | L93: =IF(AND(DepreciationOption="Determination Allowance",L$1<6),INDIRECT("DepnAllowCapex" &$C93&"_"& $A93 & "_" &L$1),IF(INDIRECT("StdLife" & $C93)="n/a","n/a",IF(L$1>(INDIRECT("StdLife" & $C93)+$A93),(INDIRECT("Capex" & $C93 & "_"& $A93)*(1+INDIRECT("vanilla" & $A93))^0.5)-SUM($F93:K93),(INDIRECT("Capex" & $C93 & "_" & $A93)*(1+INDIRECT("vanilla" & $A93))^0.5)/INDIRECT("StdLife" & $C93)))) -> 0 | M93: =IF(AND(DepreciationOption="Determination Allowance",M$1<6),INDIRECT("DepnAllowCapex" &$C93&"_"& $A93 & "_" &M$1),IF(INDIRECT("StdLife" & $C93)="n/a","n/a",IF(M$1>(INDIRECT("StdLife" & $C93)+$A93),(INDIRECT("Capex" & $C93 & "_"& $A93)*(1+INDIRECT("vanilla" & $A93))^0.5)-SUM($F93:L93),(INDIRECT("Capex" & $C93 & "_" & $A93)*(1+INDIRECT("vanilla" & $A93))^0.5)/INDIRECT("StdLife" & $C93)))) -> 0 | N93: =IF(AND(DepreciationOption="Determination Allowance",N$1<6),INDIRECT("DepnAllowCapex" &$C93&"_"& $A93 & "_" &N$1),IF(INDIRECT("StdLife" & $C93)="n/a","n/a",IF(N$1>(INDIRECT("StdLife" & $C93)+$A93),(INDIRECT("Capex" & $C93 & "_"& $A93)*(1+INDIRECT("vanilla" & $A93))^0.5)-SUM($F93:M93),(INDIRECT("Capex" & $C93 & "_" & $A93)*(1+INDIRECT("vanilla" & $A93))^0.5)/INDIRECT("StdLife" & $C93)))) -> 0 | O93: =IF(AND(DepreciationOption="Determination Allowance",O$1<6),INDIRECT("DepnAllowCapex" &$C93&"_"& $A93 & "_" &O$1),IF(INDIRECT("StdLife" & $C93)="n/a","n/a",IF(O$1>(INDIRECT("StdLife" & $C93)+$A93),(INDIRECT("Capex" & $C93 & "_"& $A93)*(1+INDIRECT("vanilla" & $A93))^0.5)-SUM($F93:N93),(INDIRECT("Capex" & $C93 & "_" & $A93)*(1+INDIRECT("vanilla" & $A93))^0.5)/INDIRECT("StdLife" & $C93)))) -> 0
A94: 3 | B94: Buildings - 2016-17 | C94: 5 | D94: $m real 2014-15 | I94: =IF(AND(DepreciationOption="Determination Allowance",I$1<6),INDIRECT("DepnAllowCapex" &$C94&"_"& $A94 & "_" &I$1),IF(INDIRECT("StdLife" & $C94)="n/a","n/a",IF(I$1>(INDIRECT("StdLife" & $C94)+$A94),(INDIRECT("Capex" & $C94 & "_"& $A94)*(1+INDIRECT("vanilla" & $A94))^0.5)-SUM($F94:H94),(INDIRECT("Capex" & $C94 & "_" & $A94)*(1+INDIRECT("vanilla" & $A94))^0.5)/INDIRECT("StdLife" & $C94)))) -> 0 | J94: =IF(AND(DepreciationOption="Determination Allowance",J$1<6),INDIRECT("DepnAllowCapex" &$C94&"_"& $A94 & "_" &J$1),IF(INDIRECT("StdLife" & $C94)="n/a","n/a",IF(J$1>(INDIRECT("StdLife" & $C94)+$A94),(INDIRECT("Capex" & $C94 & "_"& $A94)*(1+INDIRECT("vanilla" & $A94))^0.5)-SUM($F94:I94),(INDIRECT("Capex" & $C94 & "_" & $A94)*(1+INDIRECT("vanilla" & $A94))^0.5)/INDIRECT("StdLife" & $C94)))) -> 0 | K94: =IF(AND(DepreciationOption="Determination Allowance",K$1<6),INDIRECT("DepnAllowCapex" &$C94&"_"& $A94 & "_" &K$1),IF(INDIRECT("StdLife" & $C94)="n/a","n/a",IF(K$1>(INDIRECT("StdLife" & $C94)+$A94),(INDIRECT("Capex" & $C94 & "_"& $A94)*(1+INDIRECT("vanilla" & $A94))^0.5)-SUM($F94:J94),(INDIRECT("Capex" & $C94 & "_" & $A94)*(1+INDIRECT("vanilla" & $A94))^0.5)/INDIRECT("StdLife" & $C94)))) -> 0 | L94: =IF(AND(DepreciationOption="Determination Allowance",L$1<6),INDIRECT("DepnAllowCapex" &$C94&"_"& $A94 & "_" &L$1),IF(INDIRECT("StdLife" & $C94)="n/a","n/a",IF(L$1>(INDIRECT("StdLife" & $C94)+$A94),(INDIRECT("Capex" & $C94 & "_"& $A94)*(1+INDIRECT("vanilla" & $A94))^0.5)-SUM($F94:K94),(INDIRECT("Capex" & $C94 & "_" & $A94)*(1+INDIRECT("vanilla" & $A94))^0.5)/INDIRECT("StdLife" & $C94)))) -> 0 | M94: =IF(AND(DepreciationOption="Determination Allowance",M$1<6),INDIRECT("DepnAllowCapex" &$C94&"_"& $A94 & "_" &M$1),IF(INDIRECT("StdLife" & $C94)="n/a","n/a",IF(M$1>(INDIRECT("StdLife" & $C94)+$A94),(INDIRECT("Capex" & $C94 & "_"& $A94)*(1+INDIRECT("vanilla" & $A94))^0.5)-SUM($F94:L94),(INDIRECT("Capex" & $C94 & "_" & $A94)*(1+INDIRECT("vanilla" & $A94))^0.5)/INDIRECT("StdLife" & $C94)))) -> 0 | N94: =IF(AND(DepreciationOption="Determination Allowance",N$1<6),INDIRECT("DepnAllowCapex" &$C94&"_"& $A94 & "_" &N$1),IF(INDIRECT("StdLife" & $C94)="n/a","n/a",IF(N$1>(INDIRECT("StdLife" & $C94)+$A94),(INDIRECT("Capex" & $C94 & "_"& $A94)*(1+INDIRECT("vanilla" & $A94))^0.5)-SUM($F94:M94),(INDIRECT("Capex" & $C94 & "_" & $A94)*(1+INDIRECT("vanilla" & $A94))^0.5)/INDIRECT("StdLife" & $C94)))) -> 0 | O94: =IF(AND(DepreciationOption="Determination Allowance",O$1<6),INDIRECT("DepnAllowCapex" &$C94&"_"& $A94 & "_" &O$1),IF(INDIRECT("StdLife" & $C94)="n/a","n/a",IF(O$1>(INDIRECT("StdLife" & $C94)+$A94),(INDIRECT("Capex" & $C94 & "_"& $A94)*(1+INDIRECT("vanilla" & $A94))^0.5)-SUM($F94:N94),(INDIRECT("Capex" & $C94 & "_" & $A94)*(1+INDIRECT("vanilla" & $A94))^0.5)/INDIRECT("StdLife" & $C94)))) -> 0
A95: 4 | B95: Buildings - 2017-18 | C95: 5 | D95: $m real 2014-15 | J95: =IF(AND(DepreciationOption="Determination Allowance",J$1<6),INDIRECT("DepnAllowCapex" &$C95&"_"& $A95 & "_" &J$1),IF(INDIRECT("StdLife" & $C95)="n/a","n/a",IF(J$1>(INDIRECT("StdLife" & $C95)+$A95),(INDIRECT("Capex" & $C95 & "_"& $A95)*(1+INDIRECT("vanilla" & $A95))^0.5)-SUM($F95:I95),(INDIRECT("Capex" & $C95 & "_" & $A95)*(1+INDIRECT("vanilla" & $A95))^0.5)/INDIRECT("StdLife" & $C95)))) -> 0 | K95: =IF(AND(DepreciationOption="Determination Allowance",K$1<6),INDIRECT("DepnAllowCapex" &$C95&"_"& $A95 & "_" &K$1),IF(INDIRECT("StdLife" & $C95)="n/a","n/a",IF(K$1>(INDIRECT("StdLife" & $C95)+$A95),(INDIRECT("Capex" & $C95 & "_"& $A95)*(1+INDIRECT("vanilla" & $A95))^0.5)-SUM($F95:J95),(INDIRECT("Capex" & $C95 & "_" & $A95)*(1+INDIRECT("vanilla" & $A95))^0.5)/INDIRECT("StdLife" & $C95)))) -> 0 | L95: =IF(AND(DepreciationOption="Determination Allowance",L$1<6),INDIRECT("DepnAllowCapex" &$C95&"_"& $A95 & "_" &L$1),IF(INDIRECT("StdLife" & $C95)="n/a","n/a",IF(L$1>(INDIRECT("StdLife" & $C95)+$A95),(INDIRECT("Capex" & $C95 & "_"& $A95)*(1+INDIRECT("vanilla" & $A95))^0.5)-SUM($F95:K95),(INDIRECT("Capex" & $C95 & "_" & $A95)*(1+INDIRECT("vanilla" & $A95))^0.5)/INDIRECT("StdLife" & $C95)))) -> 0 | M95: =IF(AND(DepreciationOption="Determination Allowance",M$1<6),INDIRECT("DepnAllowCapex" &$C95&"_"& $A95 & "_" &M$1),IF(INDIRECT("StdLife" & $C95)="n/a","n/a",IF(M$1>(INDIRECT("StdLife" & $C95)+$A95),(INDIRECT("Capex" & $C95 & "_"& $A95)*(1+INDIRECT("vanilla" & $A95))^0.5)-SUM($F95:L95),(INDIRECT("Capex" & $C95 & "_" & $A95)*(1+INDIRECT("vanilla" & $A95))^0.5)/INDIRECT("StdLife" & $C95)))) -> 0 | N95: =IF(AND(DepreciationOption="Determination Allowance",N$1<6),INDIRECT("DepnAllowCapex" &$C95&"_"& $A95 & "_" &N$1),IF(INDIRECT("StdLife" & $C95)="n/a","n/a",IF(N$1>(INDIRECT("StdLife" & $C95)+$A95),(INDIRECT("Capex" & $C95 & "_"& $A95)*(1+INDIRECT("vanilla" & $A95))^0.5)-SUM($F95:M95),(INDIRECT("Capex" & $C95 & "_" & $A95)*(1+INDIRECT("vanilla" & $A95))^0.5)/INDIRECT("StdLife" & $C95)))) -> 0 | O95: =IF(AND(DepreciationOption="Determination Allowance",O$1<6),INDIRECT("DepnAllowCapex" &$C95&"_"& $A95 & "_" &O$1),IF(INDIRECT("StdLife" & $C95)="n/a","n/a",IF(O$1>(INDIRECT("StdLife" & $C95)+$A95),(INDIRECT("Capex" & $C95 & "_"& $A95)*(1+INDIRECT("vanilla" & $A95))^0.5)-SUM($F95:N95),(INDIRECT("Capex" & $C95 & "_" & $A95)*(1+INDIRECT("vanilla" & $A95))^0.5)/INDIRECT("StdLife" & $C95)))) -> 0
A96: 5 | B96: Buildings - 2018-19 | C96: 5 | D96: $m real 2014-15 | K96: =IF(AND(DepreciationOption="Determination Allowance",K$1<6),INDIRECT("DepnAllowCapex" &$C96&"_"& $A96 & "_" &K$1),IF(INDIRECT("StdLife" & $C96)="n/a","n/a",IF(K$1>(INDIRECT("StdLife" & $C96)+$A96),(INDIRECT("Capex" & $C96 & "_"& $A96)*(1+INDIRECT("vanilla" & $A96))^0.5)-SUM($F96:J96),(INDIRECT("Capex" & $C96 & "_" & $A96)*(1+INDIRECT("vanilla" & $A96))^0.5)/INDIRECT("StdLife" & $C96)))) -> 0 | L96: =IF(AND(DepreciationOption="Determination Allowance",L$1<6),INDIRECT("DepnAllowCapex" &$C96&"_"& $A96 & "_" &L$1),IF(INDIRECT("StdLife" & $C96)="n/a","n/a",IF(L$1>(INDIRECT("StdLife" & $C96)+$A96),(INDIRECT("Capex" & $C96 & "_"& $A96)*(1+INDIRECT("vanilla" & $A96))^0.5)-SUM($F96:K96),(INDIRECT("Capex" & $C96 & "_" & $A96)*(1+INDIRECT("vanilla" & $A96))^0.5)/INDIRECT("StdLife" & $C96)))) -> 0 | M96: =IF(AND(DepreciationOption="Determination Allowance",M$1<6),INDIRECT("DepnAllowCapex" &$C96&"_"& $A96 & "_" &M$1),IF(INDIRECT("StdLife" & $C96)="n/a","n/a",IF(M$1>(INDIRECT("StdLife" & $C96)+$A96),(INDIRECT("Capex" & $C96 & "_"& $A96)*(1+INDIRECT("vanilla" & $A96))^0.5)-SUM($F96:L96),(INDIRECT("Capex" & $C96 & "_" & $A96)*(1+INDIRECT("vanilla" & $A96))^0.5)/INDIRECT("StdLife" & $C96)))) -> 0 | N96: =IF(AND(DepreciationOption="Determination Allowance",N$1<6),INDIRECT("DepnAllowCapex" &$C96&"_"& $A96 & "_" &N$1),IF(INDIRECT("StdLife" & $C96)="n/a","n/a",IF(N$1>(INDIRECT("StdLife" & $C96)+$A96),(INDIRECT("Capex" & $C96 & "_"& $A96)*(1+INDIRECT("vanilla" & $A96))^0.5)-SUM($F96:M96),(INDIRECT("Capex" & $C96 & "_" & $A96)*(1+INDIRECT("vanilla" & $A96))^0.5)/INDIRECT("StdLife" & $C96)))) -> 0 | O96: =IF(AND(DepreciationOption="Determination Allowance",O$1<6),INDIRECT("DepnAllowCapex" &$C96&"_"& $A96 & "_" &O$1),IF(INDIRECT("StdLife" & $C96)="n/a","n/a",IF(O$1>(INDIRECT("StdLife" & $C96)+$A96),(INDIRECT("Capex" & $C96 & "_"& $A96)*(1+INDIRECT("vanilla" & $A96))^0.5)-SUM($F96:N96),(INDIRECT("Capex" & $C96 & "_" & $A96)*(1+INDIRECT("vanilla" & $A96))^0.5)/INDIRECT("StdLife" & $C96)))) -> 0
A97: 6 | B97: Buildings - 2019-20 | C97: 5 | D97: $m real 2014-15 | L97: =IF(AND(DepreciationOption="Determination Allowance",L$1<6),INDIRECT("DepnAllowCapex" &$C97&"_"& $A97 & "_" &L$1),IF(INDIRECT("StdLife" & $C97)="n/a","n/a",IF(L$1>(INDIRECT("StdLife" & $C97)+$A97),(INDIRECT("Capex" & $C97 & "_"& $A97)*(1+INDIRECT("vanilla" & $A97))^0.5)-SUM($F97:K97),(INDIRECT("Capex" & $C97 & "_" & $A97)*(1+INDIRECT("vanilla" & $A97))^0.5)/INDIRECT("StdLife" & $C97)))) -> 0 | M97: =IF(AND(DepreciationOption="Determination Allowance",M$1<6),INDIRECT("DepnAllowCapex" &$C97&"_"& $A97 & "_" &M$1),IF(INDIRECT("StdLife" & $C97)="n/a","n/a",IF(M$1>(INDIRECT("StdLife" & $C97)+$A97),(INDIRECT("Capex" & $C97 & "_"& $A97)*(1+INDIRECT("vanilla" & $A97))^0.5)-SUM($F97:L97),(INDIRECT("Capex" & $C97 & "_" & $A97)*(1+INDIRECT("vanilla" & $A97))^0.5)/INDIRECT("StdLife" & $C97)))) -> 0 | N97: =IF(AND(DepreciationOption="Determination Allowance",N$1<6),INDIRECT("DepnAllowCapex" &$C97&"_"& $A97 & "_" &N$1),IF(INDIRECT("StdLife" & $C97)="n/a","n/a",IF(N$1>(INDIRECT("StdLife" & $C97)+$A97),(INDIRECT("Capex" & $C97 & "_"& $A97)*(1+INDIRECT("vanilla" & $A97))^0.5)-SUM($F97:M97),(INDIRECT("Capex" & $C97 & "_" & $A97)*(1+INDIRECT("vanilla" & $A97))^0.5)/INDIRECT("StdLife" & $C97)))) -> 0 | O97: =IF(AND(DepreciationOption="Determination Allowance",O$1<6),INDIRECT("DepnAllowCapex" &$C97&"_"& $A97 & "_" &O$1),IF(INDIRECT("StdLife" & $C97)="n/a","n/a",IF(O$1>(INDIRECT("StdLife" & $C97)+$A97),(INDIRECT("Capex" & $C97 & "_"& $A97)*(1+INDIRECT("vanilla" & $A97))^0.5)-SUM($F97:N97),(INDIRECT("Capex" & $C97 & "_" & $A97)*(1+INDIRECT("vanilla" & $A97))^0.5)/INDIRECT("StdLife" & $C97)))) -> 0
A98: 7 | B98: Buildings - 2020-21 | C98: 5 | D98: $m real 2014-15 | M98: =IF(AND(DepreciationOption="Determination Allowance",M$1<6),INDIRECT("DepnAllowCapex" &$C98&"_"& $A98 & "_" &M$1),IF(INDIRECT("StdLife" & $C98)="n/a","n/a",IF(M$1>(INDIRECT("StdLife" & $C98)+$A98),(INDIRECT("Capex" & $C98 & "_"& $A98)*(1+INDIRECT("vanilla" & $A98))^0.5)-SUM($F98:L98),(INDIRECT("Capex" & $C98 & "_" & $A98)*(1+INDIRECT("vanilla" & $A98))^0.5)/INDIRECT("StdLife" & $C98)))) -> 0 | N98: =IF(AND(DepreciationOption="Determination Allowance",N$1<6),INDIRECT("DepnAllowCapex" &$C98&"_"& $A98 & "_" &N$1),IF(INDIRECT("StdLife" & $C98)="n/a","n/a",IF(N$1>(INDIRECT("StdLife" & $C98)+$A98),(INDIRECT("Capex" & $C98 & "_"& $A98)*(1+INDIRECT("vanilla" & $A98))^0.5)-SUM($F98:M98),(INDIRECT("Capex" & $C98 & "_" & $A98)*(1+INDIRECT("vanilla" & $A98))^0.5)/INDIRECT("StdLife" & $C98)))) -> 0 | O98: =IF(AND(DepreciationOption="Determination Allowance",O$1<6),INDIRECT("DepnAllowCapex" &$C98&"_"& $A98 & "_" &O$1),IF(INDIRECT("StdLife" & $C98)="n/a","n/a",IF(O$1>(INDIRECT("StdLife" & $C98)+$A98),(INDIRECT("Capex" & $C98 & "_"& $A98)*(1+INDIRECT("vanilla" & $A98))^0.5)-SUM($F98:N98),(INDIRECT("Capex" & $C98 & "_" & $A98)*(1+INDIRECT("vanilla" & $A98))^0.5)/INDIRECT("StdLife" & $C98)))) -> 0
A99: 8 | B99: Buildings - 2021-22 | C99: 5 | D99: $m real 2014-15 | N99: =IF(AND(DepreciationOption="Determination Allowance",N$1<6),INDIRECT("DepnAllowCapex" &$C99&"_"& $A99 & "_" &N$1),IF(INDIRECT("StdLife" & $C99)="n/a","n/a",IF(N$1>(INDIRECT("StdLife" & $C99)+$A99),(INDIRECT("Capex" & $C99 & "_"& $A99)*(1+INDIRECT("vanilla" & $A99))^0.5)-SUM($F99:M99),(INDIRECT("Capex" & $C99 & "_" & $A99)*(1+INDIRECT("vanilla" & $A99))^0.5)/INDIRECT("StdLife" & $C99)))) -> 0 | O99: =IF(AND(DepreciationOption="Determination Allowance",O$1<6),INDIRECT("DepnAllowCapex" &$C99&"_"& $A99 & "_" &O$1),IF(INDIRECT("StdLife" & $C99)="n/a","n/a",IF(O$1>(INDIRECT("StdLife" & $C99)+$A99),(INDIRECT("Capex" & $C99 & "_"& $A99)*(1+INDIRECT("vanilla" & $A99))^0.5)-SUM($F99:N99),(INDIRECT("Capex" & $C99 & "_" & $A99)*(1+INDIRECT("vanilla" & $A99))^0.5)/INDIRECT("StdLife" & $C99)))) -> 0
A100: 9 | B100: Buildings - 2022-23 | C100: 5 | D100: $m real 2014-15 | O100: =IF(AND(DepreciationOption="Determination Allowance",O$1<6),INDIRECT("DepnAllowCapex" &$C100&"_"& $A100 & "_" &O$1),IF(INDIRECT("StdLife" & $C100)="n/a","n/a",IF(O$1>(INDIRECT("StdLife" & $C100)+$A100),(INDIRECT("Capex" & $C100 & "_"& $A100)*(1+INDIRECT("vanilla" & $A100))^0.5)-SUM($F100:N100),(INDIRECT("Capex" & $C100 & "_" & $A100)*(1+INDIRECT("vanilla" & $A100))^0.5)/INDIRECT("StdLife" & $C100)))) -> 0
A101: 10 | B101: Buildings - 2023-24 | C101: 5 | D101: $m real 2014-15
B102: =INDIRECT("Asset"&$C102) & " Subtotal" -> Buildings Subtotal | C102: 5 | D102: $m real 2014-15 | F102: =SUM(F92:F101) -> 0 | G102: =SUM(G92:G101) -> 0 | H102: =SUM(H92:H101) -> 0 | I102: =SUM(I92:I101) -> 0 | J102: =SUM(J92:J101) -> 0 | K102: =SUM(K92:K101) -> 0 | L102: =SUM(L92:L101) -> 0 | M102: =SUM(M92:M101) -> 0 | N102: =SUM(N92:N101) -> 0 | O102: =SUM(O92:O101) -> 0
B104: ="Dep'n of " & INDIRECT("Asset"&$C104) & " Capex" -> Dep'n of Land (Non-System) Capex | C104: =C91+1 -> 6 | D104: Units | F104: =INDEX(ModelYears, COLUMN()-COLUMN($D104)) -> 2014-15 | G104: 2015-16 | H104: 2016-17 | I104: 2017-18 | J104: 2018-19 | K104: 2019-20 | L104: 2020-21 | M104: 2021-22 | N104: 2022-23 | O104: 2023-24
A105: 1 | B105: =INDIRECT("Asset"&$C105) & " - " & INDEX(ModelYears,1+$A105) -> Land (Non-System) - 2014-15 | C105: 6 | D105: $m real 2014-15 | G105: =IF(AND(DepreciationOption="Determination Allowance",G$1<6),INDIRECT("DepnAllowCapex" &$C105&"_"& $A105 & "_" &G$1),IF(INDIRECT("StdLife" & $C105)="n/a","n/a",IF(G$1>(INDIRECT("StdLife" & $C105)+$A105),(INDIRECT("Capex" & $C105 & "_"& $A105)*(1+INDIRECT("vanilla" & $A105))^0.5)-SUM($F105:F105),(INDIRECT("Capex" & $C105 & "_" & $A105)*(1+INDIRECT("vanilla" & $A105))^0.5)/INDIRECT("StdLife" & $C105)))) -> 0 | H105: =IF(AND(DepreciationOption="Determination Allowance",H$1<6),INDIRECT("DepnAllowCapex" &$C105&"_"& $A105 & "_" &H$1),IF(INDIRECT("StdLife" & $C105)="n/a","n/a",IF(H$1>(INDIRECT("StdLife" & $C105)+$A105),(INDIRECT("Capex" & $C105 & "_"& $A105)*(1+INDIRECT("vanilla" & $A105))^0.5)-SUM($F105:G105),(INDIRECT("Capex" & $C105 & "_" & $A105)*(1+INDIRECT("vanilla" & $A105))^0.5)/INDIRECT("StdLife" & $C105)))) -> 0 | I105: =IF(AND(DepreciationOption="Determination Allowance",I$1<6),INDIRECT("DepnAllowCapex" &$C105&"_"& $A105 & "_" &I$1),IF(INDIRECT("StdLife" & $C105)="n/a","n/a",IF(I$1>(INDIRECT("StdLife" & $C105)+$A105),(INDIRECT("Capex" & $C105 & "_"& $A105)*(1+INDIRECT("vanilla" & $A105))^0.5)-SUM($F105:H105),(INDIRECT("Capex" & $C105 & "_" & $A105)*(1+INDIRECT("vanilla" & $A105))^0.5)/INDIRECT("StdLife" & $C105)))) -> 0 | J105: =IF(AND(DepreciationOption="Determination Allowance",J$1<6),INDIRECT("DepnAllowCapex" &$C105&"_"& $A105 & "_" &J$1),IF(INDIRECT("StdLife" & $C105)="n/a","n/a",IF(J$1>(INDIRECT("StdLife" & $C105)+$A105),(INDIRECT("Capex" & $C105 & "_"& $A105)*(1+INDIRECT("vanilla" & $A105))^0.5)-SUM($F105:I105),(INDIRECT("Capex" & $C105 & "_" & $A105)*(1+INDIRECT("vanilla" & $A105))^0.5)/INDIRECT("StdLife" & $C105)))) -> 0 | K105: =IF(AND(DepreciationOption="Determination Allowance",K$1<6),INDIRECT("DepnAllowCapex" &$C105&"_"& $A105 & "_" &K$1),IF(INDIRECT("StdLife" & $C105)="n/a","n/a",IF(K$1>(INDIRECT("StdLife" & $C105)+$A105),(INDIRECT("Capex" & $C105 & "_"& $A105)*(1+INDIRECT("vanilla" & $A105))^0.5)-SUM($F105:J105),(INDIRECT("Capex" & $C105 & "_" & $A105)*(1+INDIRECT("vanilla" & $A105))^0.5)/INDIRECT("StdLife" & $C105)))) -> 0 | L105: =IF(AND(DepreciationOption="Determination Allowance",L$1<6),INDIRECT("DepnAllowCapex" &$C105&"_"& $A105 & "_" &L$1),IF(INDIRECT("StdLife" & $C105)="n/a","n/a",IF(L$1>(INDIRECT("StdLife" & $C105)+$A105),(INDIRECT("Capex" & $C105 & "_"& $A105)*(1+INDIRECT("vanilla" & $A105))^0.5)-SUM($F105:K105),(INDIRECT("Capex" & $C105 & "_" & $A105)*(1+INDIRECT("vanilla" & $A105))^0.5)/INDIRECT("StdLife" & $C105)))) -> 0 | M105: =IF(AND(DepreciationOption="Determination Allowance",M$1<6),INDIRECT("DepnAllowCapex" &$C105&"_"& $A105 & "_" &M$1),IF(INDIRECT("StdLife" & $C105)="n/a","n/a",IF(M$1>(INDIRECT("StdLife" & $C105)+$A105),(INDIRECT("Capex" & $C105 & "_"& $A105)*(1+INDIRECT("vanilla" & $A105))^0.5)-SUM($F105:L105),(INDIRECT("Capex" & $C105 & "_" & $A105)*(1+INDIRECT("vanilla" & $A105))^0.5)/INDIRECT("StdLife" & $C105)))) -> 0 | N105: =IF(AND(DepreciationOption="Determination Allowance",N$1<6),INDIRECT("DepnAllowCapex" &$C105&"_"& $A105 & "_" &N$1),IF(INDIRECT("StdLife" & $C105)="n/a","n/a",IF(N$1>(INDIRECT("StdLife" & $C105)+$A105),(INDIRECT("Capex" & $C105 & "_"& $A105)*(1+INDIRECT("vanilla" & $A105))^0.5)-SUM($F105:M105),(INDIRECT("Capex" & $C105 & "_" & $A105)*(1+INDIRECT("vanilla" & $A105))^0.5)/INDIRECT("StdLife" & $C105)))) -> 0 | O105: =IF(AND(DepreciationOption="Determination Allowance",O$1<6),INDIRECT("DepnAllowCapex" &$C105&"_"& $A105 & "_" &O$1),IF(INDIRECT("StdLife" & $C105)="n/a","n/a",IF(O$1>(INDIRECT("StdLife" & $C105)+$A105),(INDIRECT("Capex" & $C105 & "_"& $A105)*(1+INDIRECT("vanilla" & $A105))^0.5)-SUM($F105:N105),(INDIRECT("Capex" & $C105 & "_" & $A105)*(1+INDIRECT("vanilla" & $A105))^0.5)/INDIRECT("StdLife" & $C105)))) -> 0
A106: 2 | B106: Land (Non-System) - 2015-16 | C106: 6 | D106: $m real 2014-15 | H106: =IF(AND(DepreciationOption="Determination Allowance",H$1<6),INDIRECT("DepnAllowCapex" &$C106&"_"& $A106 & "_" &H$1),IF(INDIRECT("StdLife" & $C106)="n/a","n/a",IF(H$1>(INDIRECT("StdLife" & $C106)+$A106),(INDIRECT("Capex" & $C106 & "_"& $A106)*(1+INDIRECT("vanilla" & $A106))^0.5)-SUM($F106:G106),(INDIRECT("Capex" & $C106 & "_" & $A106)*(1+INDIRECT("vanilla" & $A106))^0.5)/INDIRECT("StdLife" & $C106)))) -> 0 | I106: =IF(AND(DepreciationOption="Determination Allowance",I$1<6),INDIRECT("DepnAllowCapex" &$C106&"_"& $A106 & "_" &I$1),IF(INDIRECT("StdLife" & $C106)="n/a","n/a",IF(I$1>(INDIRECT("StdLife" & $C106)+$A106),(INDIRECT("Capex" & $C106 & "_"& $A106)*(1+INDIRECT("vanilla" & $A106))^0.5)-SUM($F106:H106),(INDIRECT("Capex" & $C106 & "_" & $A106)*(1+INDIRECT("vanilla" & $A106))^0.5)/INDIRECT("StdLife" & $C106)))) -> 0 | J106: =IF(AND(DepreciationOption="Determination Allowance",J$1<6),INDIRECT("DepnAllowCapex" &$C106&"_"& $A106 & "_" &J$1),IF(INDIRECT("StdLife" & $C106)="n/a","n/a",IF(J$1>(INDIRECT("StdLife" & $C106)+$A106),(INDIRECT("Capex" & $C106 & "_"& $A106)*(1+INDIRECT("vanilla" & $A106))^0.5)-SUM($F106:I106),(INDIRECT("Capex" & $C106 & "_" & $A106)*(1+INDIRECT("vanilla" & $A106))^0.5)/INDIRECT("StdLife" & $C106)))) -> 0 | K106: =IF(AND(DepreciationOption="Determination Allowance",K$1<6),INDIRECT("DepnAllowCapex" &$C106&"_"& $A106 & "_" &K$1),IF(INDIRECT("StdLife" & $C106)="n/a","n/a",IF(K$1>(INDIRECT("StdLife" & $C106)+$A106),(INDIRECT("Capex" & $C106 & "_"& $A106)*(1+INDIRECT("vanilla" & $A106))^0.5)-SUM($F106:J106),(INDIRECT("Capex" & $C106 & "_" & $A106)*(1+INDIRECT("vanilla" & $A106))^0.5)/INDIRECT("StdLife" & $C106)))) -> 0 | L106: =IF(AND(DepreciationOption="Determination Allowance",L$1<6),INDIRECT("DepnAllowCapex" &$C106&"_"& $A106 & "_" &L$1),IF(INDIRECT("StdLife" & $C106)="n/a","n/a",IF(L$1>(INDIRECT("StdLife" & $C106)+$A106),(INDIRECT("Capex" & $C106 & "_"& $A106)*(1+INDIRECT("vanilla" & $A106))^0.5)-SUM($F106:K106),(INDIRECT("Capex" & $C106 & "_" & $A106)*(1+INDIRECT("vanilla" & $A106))^0.5)/INDIRECT("StdLife" & $C106)))) -> 0 | M106: =IF(AND(DepreciationOption="Determination Allowance",M$1<6),INDIRECT("DepnAllowCapex" &$C106&"_"& $A106 & "_" &M$1),IF(INDIRECT("StdLife" & $C106)="n/a","n/a",IF(M$1>(INDIRECT("StdLife" & $C106)+$A106),(INDIRECT("Capex" & $C106 & "_"& $A106)*(1+INDIRECT("vanilla" & $A106))^0.5)-SUM($F106:L106),(INDIRECT("Capex" & $C106 & "_" & $A106)*(1+INDIRECT("vanilla" & $A106))^0.5)/INDIRECT("StdLife" & $C106)))) -> 0 | N106: =IF(AND(DepreciationOption="Determination Allowance",N$1<6),INDIRECT("DepnAllowCapex" &$C106&"_"& $A106 & "_" &N$1),IF(INDIRECT("StdLife" & $C106)="n/a","n/a",IF(N$1>(INDIRECT("StdLife" & $C106)+$A106),(INDIRECT("Capex" & $C106 & "_"& $A106)*(1+INDIRECT("vanilla" & $A106))^0.5)-SUM($F106:M106),(INDIRECT("Capex" & $C106 & "_" & $A106)*(1+INDIRECT("vanilla" & $A106))^0.5)/INDIRECT("StdLife" & $C106)))) -> 0 | O106: =IF(AND(DepreciationOption="Determination Allowance",O$1<6),INDIRECT("DepnAllowCapex" &$C106&"_"& $A106 & "_" &O$1),IF(INDIRECT("StdLife" & $C106)="n/a","n/a",IF(O$1>(INDIRECT("StdLife" & $C106)+$A106),(INDIRECT("Capex" & $C106 & "_"& $A106)*(1+INDIRECT("vanilla" & $A106))^0.5)-SUM($F106:N106),(INDIRECT("Capex" & $C106 & "_" & $A106)*(1+INDIRECT("vanilla" & $A106))^0.5)/INDIRECT("StdLife" & $C106)))) -> 0
A107: 3 | B107: Land (Non-System) - 2016-17 | C107: 6 | D107: $m real 2014-15 | I107: =IF(AND(DepreciationOption="Determination Allowance",I$1<6),INDIRECT("DepnAllowCapex" &$C107&"_"& $A107 & "_" &I$1),IF(INDIRECT("StdLife" & $C107)="n/a","n/a",IF(I$1>(INDIRECT("StdLife" & $C107)+$A107),(INDIRECT("Capex" & $C107 & "_"& $A107)*(1+INDIRECT("vanilla" & $A107))^0.5)-SUM($F107:H107),(INDIRECT("Capex" & $C107 & "_" & $A107)*(1+INDIRECT("vanilla" & $A107))^0.5)/INDIRECT("StdLife" & $C107)))) -> 0 | J107: =IF(AND(DepreciationOption="Determination Allowance",J$1<6),INDIRECT("DepnAllowCapex" &$C107&"_"& $A107 & "_" &J$1),IF(INDIRECT("StdLife" & $C107)="n/a","n/a",IF(J$1>(INDIRECT("StdLife" & $C107)+$A107),(INDIRECT("Capex" & $C107 & "_"& $A107)*(1+INDIRECT("vanilla" & $A107))^0.5)-SUM($F107:I107),(INDIRECT("Capex" & $C107 & "_" & $A107)*(1+INDIRECT("vanilla" & $A107))^0.5)/INDIRECT("StdLife" & $C107)))) -> 0 | K107: =IF(AND(DepreciationOption="Determination Allowance",K$1<6),INDIRECT("DepnAllowCapex" &$C107&"_"& $A107 & "_" &K$1),IF(INDIRECT("StdLife" & $C107)="n/a","n/a",IF(K$1>(INDIRECT("StdLife" & $C107)+$A107),(INDIRECT("Capex" & $C107 & "_"& $A107)*(1+INDIRECT("vanilla" & $A107))^0.5)-SUM($F107:J107),(INDIRECT("Capex" & $C107 & "_" & $A107)*(1+INDIRECT("vanilla" & $A107))^0.5)/INDIRECT("StdLife" & $C107)))) -> 0 | L107: =IF(AND(DepreciationOption="Determination Allowance",L$1<6),INDIRECT("DepnAllowCapex" &$C107&"_"& $A107 & "_" &L$1),IF(INDIRECT("StdLife" & $C107)="n/a","n/a",IF(L$1>(INDIRECT("StdLife" & $C107)+$A107),(INDIRECT("Capex" & $C107 & "_"& $A107)*(1+INDIRECT("vanilla" & $A107))^0.5)-SUM($F107:K107),(INDIRECT("Capex" & $C107 & "_" & $A107)*(1+INDIRECT("vanilla" & $A107))^0.5)/INDIRECT("StdLife" & $C107)))) -> 0 | M107: =IF(AND(DepreciationOption="Determination Allowance",M$1<6),INDIRECT("DepnAllowCapex" &$C107&"_"& $A107 & "_" &M$1),IF(INDIRECT("StdLife" & $C107)="n/a","n/a",IF(M$1>(INDIRECT("StdLife" & $C107)+$A107),(INDIRECT("Capex" & $C107 & "_"& $A107)*(1+INDIRECT("vanilla" & $A107))^0.5)-SUM($F107:L107),(INDIRECT("Capex" & $C107 & "_" & $A107)*(1+INDIRECT("vanilla" & $A107))^0.5)/INDIRECT("StdLife" & $C107)))) -> 0 | N107: =IF(AND(DepreciationOption="Determination Allowance",N$1<6),INDIRECT("DepnAllowCapex" &$C107&"_"& $A107 & "_" &N$1),IF(INDIRECT("StdLife" & $C107)="n/a","n/a",IF(N$1>(INDIRECT("StdLife" & $C107)+$A107),(INDIRECT("Capex" & $C107 & "_"& $A107)*(1+INDIRECT("vanilla" & $A107))^0.5)-SUM($F107:M107),(INDIRECT("Capex" & $C107 & "_" & $A107)*(1+INDIRECT("vanilla" & $A107))^0.5)/INDIRECT("StdLife" & $C107)))) -> 0 | O107: =IF(AND(DepreciationOption="Determination Allowance",O$1<6),INDIRECT("DepnAllowCapex" &$C107&"_"& $A107 & "_" &O$1),IF(INDIRECT("StdLife" & $C107)="n/a","n/a",IF(O$1>(INDIRECT("StdLife" & $C107)+$A107),(INDIRECT("Capex" & $C107 & "_"& $A107)*(1+INDIRECT("vanilla" & $A107))^0.5)-SUM($F107:N107),(INDIRECT("Capex" & $C107 & "_" & $A107)*(1+INDIRECT("vanilla" & $A107))^0.5)/INDIRECT("StdLife" & $C107)))) -> 0
A108: 4 | B108: Land (Non-System) - 2017-18 | C108: 6 | D108: $m real 2014-15 | J108: =IF(AND(DepreciationOption="Determination Allowance",J$1<6),INDIRECT("DepnAllowCapex" &$C108&"_"& $A108 & "_" &J$1),IF(INDIRECT("StdLife" & $C108)="n/a","n/a",IF(J$1>(INDIRECT("StdLife" & $C108)+$A108),(INDIRECT("Capex" & $C108 & "_"& $A108)*(1+INDIRECT("vanilla" & $A108))^0.5)-SUM($F108:I108),(INDIRECT("Capex" & $C108 & "_" & $A108)*(1+INDIRECT("vanilla" & $A108))^0.5)/INDIRECT("StdLife" & $C108)))) -> 0 | K108: =IF(AND(DepreciationOption="Determination Allowance",K$1<6),INDIRECT("DepnAllowCapex" &$C108&"_"& $A108 & "_" &K$1),IF(INDIRECT("StdLife" & $C108)="n/a","n/a",IF(K$1>(INDIRECT("StdLife" & $C108)+$A108),(INDIRECT("Capex" & $C108 & "_"& $A108)*(1+INDIRECT("vanilla" & $A108))^0.5)-SUM($F108:J108),(INDIRECT("Capex" & $C108 & "_" & $A108)*(1+INDIRECT("vanilla" & $A108))^0.5)/INDIRECT("StdLife" & $C108)))) -> 0 | L108: =IF(AND(DepreciationOption="Determination Allowance",L$1<6),INDIRECT("DepnAllowCapex" &$C108&"_"& $A108 & "_" &L$1),IF(INDIRECT("StdLife" & $C108)="n/a","n/a",IF(L$1>(INDIRECT("StdLife" & $C108)+$A108),(INDIRECT("Capex" & $C108 & "_"& $A108)*(1+INDIRECT("vanilla" & $A108))^0.5)-SUM($F108:K108),(INDIRECT("Capex" & $C108 & "_" & $A108)*(1+INDIRECT("vanilla" & $A108))^0.5)/INDIRECT("StdLife" & $C108)))) -> 0 | M108: =IF(AND(DepreciationOption="Determination Allowance",M$1<6),INDIRECT("DepnAllowCapex" &$C108&"_"& $A108 & "_" &M$1),IF(INDIRECT("StdLife" & $C108)="n/a","n/a",IF(M$1>(INDIRECT("StdLife" & $C108)+$A108),(INDIRECT("Capex" & $C108 & "_"& $A108)*(1+INDIRECT("vanilla" & $A108))^0.5)-SUM($F108:L108),(INDIRECT("Capex" & $C108 & "_" & $A108)*(1+INDIRECT("vanilla" & $A108))^0.5)/INDIRECT("StdLife" & $C108)))) -> 0 | N108: =IF(AND(DepreciationOption="Determination Allowance",N$1<6),INDIRECT("DepnAllowCapex" &$C108&"_"& $A108 & "_" &N$1),IF(INDIRECT("StdLife" & $C108)="n/a","n/a",IF(N$1>(INDIRECT("StdLife" & $C108)+$A108),(INDIRECT("Capex" & $C108 & "_"& $A108)*(1+INDIRECT("vanilla" & $A108))^0.5)-SUM($F108:M108),(INDIRECT("Capex" & $C108 & "_" & $A108)*(1+INDIRECT("vanilla" & $A108))^0.5)/INDIRECT("StdLife" & $C108)))) -> 0 | O108: =IF(AND(DepreciationOption="Determination Allowance",O$1<6),INDIRECT("DepnAllowCapex" &$C108&"_"& $A108 & "_" &O$1),IF(INDIRECT("StdLife" & $C108)="n/a","n/a",IF(O$1>(INDIRECT("StdLife" & $C108)+$A108),(INDIRECT("Capex" & $C108 & "_"& $A108)*(1+INDIRECT("vanilla" & $A108))^0.5)-SUM($F108:N108),(INDIRECT("Capex" & $C108 & "_" & $A108)*(1+INDIRECT("vanilla" & $A108))^0.5)/INDIRECT("StdLife" & $C108)))) -> 0
A109: 5 | B109: Land (Non-System) - 2018-19 | C109: 6 | D109: $m real 2014-15 | K109: =IF(AND(DepreciationOption="Determination Allowance",K$1<6),INDIRECT("DepnAllowCapex" &$C109&"_"& $A109 & "_" &K$1),IF(INDIRECT("StdLife" & $C109)="n/a","n/a",IF(K$1>(INDIRECT("StdLife" & $C109)+$A109),(INDIRECT("Capex" & $C109 & "_"& $A109)*(1+INDIRECT("vanilla" & $A109))^0.5)-SUM($F109:J109),(INDIRECT("Capex" & $C109 & "_" & $A109)*(1+INDIRECT("vanilla" & $A109))^0.5)/INDIRECT("StdLife" & $C109)))) -> 0 | L109: =IF(AND(DepreciationOption="Determination Allowance",L$1<6),INDIRECT("DepnAllowCapex" &$C109&"_"& $A109 & "_" &L$1),IF(INDIRECT("StdLife" & $C109)="n/a","n/a",IF(L$1>(INDIRECT("StdLife" & $C109)+$A109),(INDIRECT("Capex" & $C109 & "_"& $A109)*(1+INDIRECT("vanilla" & $A109))^0.5)-SUM($F109:K109),(INDIRECT("Capex" & $C109 & "_" & $A109)*(1+INDIRECT("vanilla" & $A109))^0.5)/INDIRECT("StdLife" & $C109)))) -> 0 | M109: =IF(AND(DepreciationOption="Determination Allowance",M$1<6),INDIRECT("DepnAllowCapex" &$C109&"_"& $A109 & "_" &M$1),IF(INDIRECT("StdLife" & $C109)="n/a","n/a",IF(M$1>(INDIRECT("StdLife" & $C109)+$A109),(INDIRECT("Capex" & $C109 & "_"& $A109)*(1+INDIRECT("vanilla" & $A109))^0.5)-SUM($F109:L109),(INDIRECT("Capex" & $C109 & "_" & $A109)*(1+INDIRECT("vanilla" & $A109))^0.5)/INDIRECT("StdLife" & $C109)))) -> 0 | N109: =IF(AND(DepreciationOption="Determination Allowance",N$1<6),INDIRECT("DepnAllowCapex" &$C109&"_"& $A109 & "_" &N$1),IF(INDIRECT("StdLife" & $C109)="n/a","n/a",IF(N$1>(INDIRECT("StdLife" & $C109)+$A109),(INDIRECT("Capex" & $C109 & "_"& $A109)*(1+INDIRECT("vanilla" & $A109))^0.5)-SUM($F109:M109),(INDIRECT("Capex" & $C109 & "_" & $A109)*(1+INDIRECT("vanilla" & $A109))^0.5)/INDIRECT("StdLife" & $C109)))) -> 0 | O109: =IF(AND(DepreciationOption="Determination Allowance",O$1<6),INDIRECT("DepnAllowCapex" &$C109&"_"& $A109 & "_" &O$1),IF(INDIRECT("StdLife" & $C109)="n/a","n/a",IF(O$1>(INDIRECT("StdLife" & $C109)+$A109),(INDIRECT("Capex" & $C109 & "_"& $A109)*(1+INDIRECT("vanilla" & $A109))^0.5)-SUM($F109:N109),(INDIRECT("Capex" & $C109 & "_" & $A109)*(1+INDIRECT("vanilla" & $A109))^0.5)/INDIRECT("StdLife" & $C109)))) -> 0
A110: 6 | B110: Land (Non-System) - 2019-20 | C110: 6 | D110: $m real 2014-15 | L110: =IF(AND(DepreciationOption="Determination Allowance",L$1<6),INDIRECT("DepnAllowCapex" &$C110&"_"& $A110 & "_" &L$1),IF(INDIRECT("StdLife" & $C110)="n/a","n/a",IF(L$1>(INDIRECT("StdLife" & $C110)+$A110),(INDIRECT("Capex" & $C110 & "_"& $A110)*(1+INDIRECT("vanilla" & $A110))^0.5)-SUM($F110:K110),(INDIRECT("Capex" & $C110 & "_" & $A110)*(1+INDIRECT("vanilla" & $A110))^0.5)/INDIRECT("StdLife" & $C110)))) -> 0 | M110: =IF(AND(DepreciationOption="Determination Allowance",M$1<6),INDIRECT("DepnAllowCapex" &$C110&"_"& $A110 & "_" &M$1),IF(INDIRECT("StdLife" & $C110)="n/a","n/a",IF(M$1>(INDIRECT("StdLife" & $C110)+$A110),(INDIRECT("Capex" & $C110 & "_"& $A110)*(1+INDIRECT("vanilla" & $A110))^0.5)-SUM($F110:L110),(INDIRECT("Capex" & $C110 & "_" & $A110)*(1+INDIRECT("vanilla" & $A110))^0.5)/INDIRECT("StdLife" & $C110)))) -> 0 | N110: =IF(AND(DepreciationOption="Determination Allowance",N$1<6),INDIRECT("DepnAllowCapex" &$C110&"_"& $A110 & "_" &N$1),IF(INDIRECT("StdLife" & $C110)="n/a","n/a",IF(N$1>(INDIRECT("StdLife" & $C110)+$A110),(INDIRECT("Capex" & $C110 & "_"& $A110)*(1+INDIRECT("vanilla" & $A110))^0.5)-SUM($F110:M110),(INDIRECT("Capex" & $C110 & "_" & $A110)*(1+INDIRECT("vanilla" & $A110))^0.5)/INDIRECT("StdLife" & $C110)))) -> 0 | O110: =IF(AND(DepreciationOption="Determination Allowance",O$1<6),INDIRECT("DepnAllowCapex" &$C110&"_"& $A110 & "_" &O$1),IF(INDIRECT("StdLife" & $C110)="n/a","n/a",IF(O$1>(INDIRECT("StdLife" & $C110)+$A110),(INDIRECT("Capex" & $C110 & "_"& $A110)*(1+INDIRECT("vanilla" & $A110))^0.5)-SUM($F110:N110),(INDIRECT("Capex" & $C110 & "_" & $A110)*(1+INDIRECT("vanilla" & $A110))^0.5)/INDIRECT("StdLife" & $C110)))) -> 0
A111: 7 | B111: Land (Non-System) - 2020-21 | C111: 6 | D111: $m real 2014-15 | M111: =IF(AND(DepreciationOption="Determination Allowance",M$1<6),INDIRECT("DepnAllowCapex" &$C111&"_"& $A111 & "_" &M$1),IF(INDIRECT("StdLife" & $C111)="n/a","n/a",IF(M$1>(INDIRECT("StdLife" & $C111)+$A111),(INDIRECT("Capex" & $C111 & "_"& $A111)*(1+INDIRECT("vanilla" & $A111))^0.5)-SUM($F111:L111),(INDIRECT("Capex" & $C111 & "_" & $A111)*(1+INDIRECT("vanilla" & $A111))^0.5)/INDIRECT("StdLife" & $C111)))) -> 0 | N111: =IF(AND(DepreciationOption="Determination Allowance",N$1<6),INDIRECT("DepnAllowCapex" &$C111&"_"& $A111 & "_" &N$1),IF(INDIRECT("StdLife" & $C111)="n/a","n/a",IF(N$1>(INDIRECT("StdLife" & $C111)+$A111),(INDIRECT("Capex" & $C111 & "_"& $A111)*(1+INDIRECT("vanilla" & $A111))^0.5)-SUM($F111:M111),(INDIRECT("Capex" & $C111 & "_" & $A111)*(1+INDIRECT("vanilla" & $A111))^0.5)/INDIRECT("StdLife" & $C111)))) -> 0 | O111: =IF(AND(DepreciationOption="Determination Allowance",O$1<6),INDIRECT("DepnAllowCapex" &$C111&"_"& $A111 & "_" &O$1),IF(INDIRECT("StdLife" & $C111)="n/a","n/a",IF(O$1>(INDIRECT("StdLife" & $C111)+$A111),(INDIRECT("Capex" & $C111 & "_"& $A111)*(1+INDIRECT("vanilla" & $A111))^0.5)-SUM($F111:N111),(INDIRECT("Capex" & $C111 & "_" & $A111)*(1+INDIRECT("vanilla" & $A111))^0.5)/INDIRECT("StdLife" & $C111)))) -> 0
A112: 8 | B112: Land (Non-System) - 2021-22 | C112: 6 | D112: $m real 2014-15 | N112: =IF(AND(DepreciationOption="Determination Allowance",N$1<6),INDIRECT("DepnAllowCapex" &$C112&"_"& $A112 & "_" &N$1),IF(INDIRECT("StdLife" & $C112)="n/a","n/a",IF(N$1>(INDIRECT("StdLife" & $C112)+$A112),(INDIRECT("Capex" & $C112 & "_"& $A112)*(1+INDIRECT("vanilla" & $A112))^0.5)-SUM($F112:M112),(INDIRECT("Capex" & $C112 & "_" & $A112)*(1+INDIRECT("vanilla" & $A112))^0.5)/INDIRECT("StdLife" & $C112)))) -> 0 | O112: =IF(AND(DepreciationOption="Determination Allowance",O$1<6),INDIRECT("DepnAllowCapex" &$C112&"_"& $A112 & "_" &O$1),IF(INDIRECT("StdLife" & $C112)="n/a","n/a",IF(O$1>(INDIRECT("StdLife" & $C112)+$A112),(INDIRECT("Capex" & $C112 & "_"& $A112)*(1+INDIRECT("vanilla" & $A112))^0.5)-SUM($F112:N112),(INDIRECT("Capex" & $C112 & "_" & $A112)*(1+INDIRECT("vanilla" & $A112))^0.5)/INDIRECT("StdLife" & $C112)))) -> 0
A113: 9 | B113: Land (Non-System) - 2022-23 | C113: 6 | D113: $m real 2014-15 | O113: =IF(AND(DepreciationOption="Determination Allowance",O$1<6),INDIRECT("DepnAllowCapex" &$C113&"_"& $A113 & "_" &O$1),IF(INDIRECT("StdLife" & $C113)="n/a","n/a",IF(O$1>(INDIRECT("StdLife" & $C113)+$A113),(INDIRECT("Capex" & $C113 & "_"& $A113)*(1+INDIRECT("vanilla" & $A113))^0.5)-SUM($F113:N113),(INDIRECT("Capex" & $C113 & "_" & $A113)*(1+INDIRECT("vanilla" & $A113))^0.5)/INDIRECT("StdLife" & $C113)))) -> 0
A114: 10 | B114: Land (Non-System) - 2023-24 | C114: 6 | D114: $m real 2014-15
B115: =INDIRECT("Asset"&$C115) & " Subtotal" -> Land (Non-System) Subtotal | C115: 6 | D115: $m real 2014-15 | F115: =SUM(F105:F114) -> 0 | G115: =SUM(G105:G114) -> 0 | H115: =SUM(H105:H114) -> 0 | I115: =SUM(I105:I114) -> 0 | J115: =SUM(J105:J114) -> 0 | K115: =SUM(K105:K114) -> 0 | L115: =SUM(L105:L114) -> 0 | M115: =SUM(M105:M114) -> 0 | N115: =SUM(N105:N114) -> 0 | O115: =SUM(O105:O114) -> 0
B117: ="Dep'n of " & INDIRECT("Asset"&$C117) & " Capex" -> Dep'n of Other Non System Assets Capex | C117: =C104+1 -> 7 | D117: Units | F117: =INDEX(ModelYears, COLUMN()-COLUMN($D117)) -> 2014-15 | G117: 2015-16 | H117: 2016-17 | I117: 2017-18 | J117: 2018-19 | K117: 2019-20 | L117: 2020-21 | M117: 2021-22 | N117: 2022-23 | O117: 2023-24
A118: 1 | B118: =INDIRECT("Asset"&$C118) & " - " & INDEX(ModelYears,1+$A118) -> Other Non System Assets - 2014-15 | C118: 7 | D118: $m real 2014-15 | G118: =IF(AND(DepreciationOption="Determination Allowance",G$1<6),INDIRECT("DepnAllowCapex" &$C118&"_"& $A118 & "_" &G$1),IF(INDIRECT("StdLife" & $C118)="n/a","n/a",IF(G$1>(INDIRECT("StdLife" & $C118)+$A118),(INDIRECT("Capex" & $C118 & "_"& $A118)*(1+INDIRECT("vanilla" & $A118))^0.5)-SUM($F118:F118),(INDIRECT("Capex" & $C118 & "_" & $A118)*(1+INDIRECT("vanilla" & $A118))^0.5)/INDIRECT("StdLife" & $C118)))) -> 0 | H118: =IF(AND(DepreciationOption="Determination Allowance",H$1<6),INDIRECT("DepnAllowCapex" &$C118&"_"& $A118 & "_" &H$1),IF(INDIRECT("StdLife" & $C118)="n/a","n/a",IF(H$1>(INDIRECT("StdLife" & $C118)+$A118),(INDIRECT("Capex" & $C118 & "_"& $A118)*(1+INDIRECT("vanilla" & $A118))^0.5)-SUM($F118:G118),(INDIRECT("Capex" & $C118 & "_" & $A118)*(1+INDIRECT("vanilla" & $A118))^0.5)/INDIRECT("StdLife" & $C118)))) -> 0 | I118: =IF(AND(DepreciationOption="Determination Allowance",I$1<6),INDIRECT("DepnAllowCapex" &$C118&"_"& $A118 & "_" &I$1),IF(INDIRECT("StdLife" & $C118)="n/a","n/a",IF(I$1>(INDIRECT("StdLife" & $C118)+$A118),(INDIRECT("Capex" & $C118 & "_"& $A118)*(1+INDIRECT("vanilla" & $A118))^0.5)-SUM($F118:H118),(INDIRECT("Capex" & $C118 & "_" & $A118)*(1+INDIRECT("vanilla" & $A118))^0.5)/INDIRECT("StdLife" & $C118)))) -> 0 | J118: =IF(AND(DepreciationOption="Determination Allowance",J$1<6),INDIRECT("DepnAllowCapex" &$C118&"_"& $A118 & "_" &J$1),IF(INDIRECT("StdLife" & $C118)="n/a","n/a",IF(J$1>(INDIRECT("StdLife" & $C118)+$A118),(INDIRECT("Capex" & $C118 & "_"& $A118)*(1+INDIRECT("vanilla" & $A118))^0.5)-SUM($F118:I118),(INDIRECT("Capex" & $C118 & "_" & $A118)*(1+INDIRECT("vanilla" & $A118))^0.5)/INDIRECT("StdLife" & $C118)))) -> 0 | K118: =IF(AND(DepreciationOption="Determination Allowance",K$1<6),INDIRECT("DepnAllowCapex" &$C118&"_"& $A118 & "_" &K$1),IF(INDIRECT("StdLife" & $C118)="n/a","n/a",IF(K$1>(INDIRECT("StdLife" & $C118)+$A118),(INDIRECT("Capex" & $C118 & "_"& $A118)*(1+INDIRECT("vanilla" & $A118))^0.5)-SUM($F118:J118),(INDIRECT("Capex" & $C118 & "_" & $A118)*(1+INDIRECT("vanilla" & $A118))^0.5)/INDIRECT("StdLife" & $C118)))) -> 0 | L118: =IF(AND(DepreciationOption="Determination Allowance",L$1<6),INDIRECT("DepnAllowCapex" &$C118&"_"& $A118 & "_" &L$1),IF(INDIRECT("StdLife" & $C118)="n/a","n/a",IF(L$1>(INDIRECT("StdLife" & $C118)+$A118),(INDIRECT("Capex" & $C118 & "_"& $A118)*(1+INDIRECT("vanilla" & $A118))^0.5)-SUM($F118:K118),(INDIRECT("Capex" & $C118 & "_" & $A118)*(1+INDIRECT("vanilla" & $A118))^0.5)/INDIRECT("StdLife" & $C118)))) -> 0 | M118: =IF(AND(DepreciationOption="Determination Allowance",M$1<6),INDIRECT("DepnAllowCapex" &$C118&"_"& $A118 & "_" &M$1),IF(INDIRECT("StdLife" & $C118)="n/a","n/a",IF(M$1>(INDIRECT("StdLife" & $C118)+$A118),(INDIRECT("Capex" & $C118 & "_"& $A118)*(1+INDIRECT("vanilla" & $A118))^0.5)-SUM($F118:L118),(INDIRECT("Capex" & $C118 & "_" & $A118)*(1+INDIRECT("vanilla" & $A118))^0.5)/INDIRECT("StdLife" & $C118)))) -> 0 | N118: =IF(AND(DepreciationOption="Determination Allowance",N$1<6),INDIRECT("DepnAllowCapex" &$C118&"_"& $A118 & "_" &N$1),IF(INDIRECT("StdLife" & $C118)="n/a","n/a",IF(N$1>(INDIRECT("StdLife" & $C118)+$A118),(INDIRECT("Capex" & $C118 & "_"& $A118)*(1+INDIRECT("vanilla" & $A118))^0.5)-SUM($F118:M118),(INDIRECT("Capex" & $C118 & "_" & $A118)*(1+INDIRECT("vanilla" & $A118))^0.5)/INDIRECT("StdLife" & $C118)))) -> 0 | O118: =IF(AND(DepreciationOption="Determination Allowance",O$1<6),INDIRECT("DepnAllowCapex" &$C118&"_"& $A118 & "_" &O$1),IF(INDIRECT("StdLife" & $C118)="n/a","n/a",IF(O$1>(INDIRECT("StdLife" & $C118)+$A118),(INDIRECT("Capex" & $C118 & "_"& $A118)*(1+INDIRECT("vanilla" & $A118))^0.5)-SUM($F118:N118),(INDIRECT("Capex" & $C118 & "_" & $A118)*(1+INDIRECT("vanilla" & $A118))^0.5)/INDIRECT("StdLife" & $C118)))) -> 0
A119: 2 | B119: Other Non System Assets - 2015-16 | C119: 7 | D119: $m real 2014-15 | H119: =IF(AND(DepreciationOption="Determination Allowance",H$1<6),INDIRECT("DepnAllowCapex" &$C119&"_"& $A119 & "_" &H$1),IF(INDIRECT("StdLife" & $C119)="n/a","n/a",IF(H$1>(INDIRECT("StdLife" & $C119)+$A119),(INDIRECT("Capex" & $C119 & "_"& $A119)*(1+INDIRECT("vanilla" & $A119))^0.5)-SUM($F119:G119),(INDIRECT("Capex" & $C119 & "_" & $A119)*(1+INDIRECT("vanilla" & $A119))^0.5)/INDIRECT("StdLife" & $C119)))) -> 0 | I119: =IF(AND(DepreciationOption="Determination Allowance",I$1<6),INDIRECT("DepnAllowCapex" &$C119&"_"& $A119 & "_" &I$1),IF(INDIRECT("StdLife" & $C119)="n/a","n/a",IF(I$1>(INDIRECT("StdLife" & $C119)+$A119),(INDIRECT("Capex" & $C119 & "_"& $A119)*(1+INDIRECT("vanilla" & $A119))^0.5)-SUM($F119:H119),(INDIRECT("Capex" & $C119 & "_" & $A119)*(1+INDIRECT("vanilla" & $A119))^0.5)/INDIRECT("StdLife" & $C119)))) -> 0 | J119: =IF(AND(DepreciationOption="Determination Allowance",J$1<6),INDIRECT("DepnAllowCapex" &$C119&"_"& $A119 & "_" &J$1),IF(INDIRECT("StdLife" & $C119)="n/a","n/a",IF(J$1>(INDIRECT("StdLife" & $C119)+$A119),(INDIRECT("Capex" & $C119 & "_"& $A119)*(1+INDIRECT("vanilla" & $A119))^0.5)-SUM($F119:I119),(INDIRECT("Capex" & $C119 & "_" & $A119)*(1+INDIRECT("vanilla" & $A119))^0.5)/INDIRECT("StdLife" & $C119)))) -> 0 | K119: =IF(AND(DepreciationOption="Determination Allowance",K$1<6),INDIRECT("DepnAllowCapex" &$C119&"_"& $A119 & "_" &K$1),IF(INDIRECT("StdLife" & $C119)="n/a","n/a",IF(K$1>(INDIRECT("StdLife" & $C119)+$A119),(INDIRECT("Capex" & $C119 & "_"& $A119)*(1+INDIRECT("vanilla" & $A119))^0.5)-SUM($F119:J119),(INDIRECT("Capex" & $C119 & "_" & $A119)*(1+INDIRECT("vanilla" & $A119))^0.5)/INDIRECT("StdLife" & $C119)))) -> 0 | L119: =IF(AND(DepreciationOption="Determination Allowance",L$1<6),INDIRECT("DepnAllowCapex" &$C119&"_"& $A119 & "_" &L$1),IF(INDIRECT("StdLife" & $C119)="n/a","n/a",IF(L$1>(INDIRECT("StdLife" & $C119)+$A119),(INDIRECT("Capex" & $C119 & "_"& $A119)*(1+INDIRECT("vanilla" & $A119))^0.5)-SUM($F119:K119),(INDIRECT("Capex" & $C119 & "_" & $A119)*(1+INDIRECT("vanilla" & $A119))^0.5)/INDIRECT("StdLife" & $C119)))) -> 0 | M119: =IF(AND(DepreciationOption="Determination Allowance",M$1<6),INDIRECT("DepnAllowCapex" &$C119&"_"& $A119 & "_" &M$1),IF(INDIRECT("StdLife" & $C119)="n/a","n/a",IF(M$1>(INDIRECT("StdLife" & $C119)+$A119),(INDIRECT("Capex" & $C119 & "_"& $A119)*(1+INDIRECT("vanilla" & $A119))^0.5)-SUM($F119:L119),(INDIRECT("Capex" & $C119 & "_" & $A119)*(1+INDIRECT("vanilla" & $A119))^0.5)/INDIRECT("StdLife" & $C119)))) -> 0 | N119: =IF(AND(DepreciationOption="Determination Allowance",N$1<6),INDIRECT("DepnAllowCapex" &$C119&"_"& $A119 & "_" &N$1),IF(INDIRECT("StdLife" & $C119)="n/a","n/a",IF(N$1>(INDIRECT("StdLife" & $C119)+$A119),(INDIRECT("Capex" & $C119 & "_"& $A119)*(1+INDIRECT("vanilla" & $A119))^0.5)-SUM($F119:M119),(INDIRECT("Capex" & $C119 & "_" & $A119)*(1+INDIRECT("vanilla" & $A119))^0.5)/INDIRECT("StdLife" & $C119)))) -> 0 | O119: =IF(AND(DepreciationOption="Determination Allowance",O$1<6),INDIRECT("DepnAllowCapex" &$C119&"_"& $A119 & "_" &O$1),IF(INDIRECT("StdLife" & $C119)="n/a","n/a",IF(O$1>(INDIRECT("StdLife" & $C119)+$A119),(INDIRECT("Capex" & $C119 & "_"& $A119)*(1+INDIRECT("vanilla" & $A119))^0.5)-SUM($F119:N119),(INDIRECT("Capex" & $C119 & "_" & $A119)*(1+INDIRECT("vanilla" & $A119))^0.5)/INDIRECT("StdLife" & $C119)))) -> 0
A120: 3 | B120: Other Non System Assets - 2016-17 | C120: 7 | D120: $m real 2014-15 | I120: =IF(AND(DepreciationOption="Determination Allowance",I$1<6),INDIRECT("DepnAllowCapex" &$C120&"_"& $A120 & "_" &I$1),IF(INDIRECT("StdLife" & $C120)="n/a","n/a",IF(I$1>(INDIRECT("StdLife" & $C120)+$A120),(INDIRECT("Capex" & $C120 & "_"& $A120)*(1+INDIRECT("vanilla" & $A120))^0.5)-SUM($F120:H120),(INDIRECT("Capex" & $C120 & "_" & $A120)*(1+INDIRECT("vanilla" & $A120))^0.5)/INDIRECT("StdLife" & $C120)))) -> 0 | J120: =IF(AND(DepreciationOption="Determination Allowance",J$1<6),INDIRECT("DepnAllowCapex" &$C120&"_"& $A120 & "_" &J$1),IF(INDIRECT("StdLife" & $C120)="n/a","n/a",IF(J$1>(INDIRECT("StdLife" & $C120)+$A120),(INDIRECT("Capex" & $C120 & "_"& $A120)*(1+INDIRECT("vanilla" & $A120))^0.5)-SUM($F120:I120),(INDIRECT("Capex" & $C120 & "_" & $A120)*(1+INDIRECT("vanilla" & $A120))^0.5)/INDIRECT("StdLife" & $C120)))) -> 0 | K120: =IF(AND(DepreciationOption="Determination Allowance",K$1<6),INDIRECT("DepnAllowCapex" &$C120&"_"& $A120 & "_" &K$1),IF(INDIRECT("StdLife" & $C120)="n/a","n/a",IF(K$1>(INDIRECT("StdLife" & $C120)+$A120),(INDIRECT("Capex" & $C120 & "_"& $A120)*(1+INDIRECT("vanilla" & $A120))^0.5)-SUM($F120:J120),(INDIRECT("Capex" & $C120 & "_" & $A120)*(1+INDIRECT("vanilla" & $A120))^0.5)/INDIRECT("StdLife" & $C120)))) -> 0 | L120: =IF(AND(DepreciationOption="Determination Allowance",L$1<6),INDIRECT("DepnAllowCapex" &$C120&"_"& $A120 & "_" &L$1),IF(INDIRECT("StdLife" & $C120)="n/a","n/a",IF(L$1>(INDIRECT("StdLife" & $C120)+$A120),(INDIRECT("Capex" & $C120 & "_"& $A120)*(1+INDIRECT("vanilla" & $A120))^0.5)-SUM($F120:K120),(INDIRECT("Capex" & $C120 & "_" & $A120)*(1+INDIRECT("vanilla" & $A120))^0.5)/INDIRECT("StdLife" & $C120)))) -> 0 | M120: =IF(AND(DepreciationOption="Determination Allowance",M$1<6),INDIRECT("DepnAllowCapex" &$C120&"_"& $A120 & "_" &M$1),IF(INDIRECT("StdLife" & $C120)="n/a","n/a",IF(M$1>(INDIRECT("StdLife" & $C120)+$A120),(INDIRECT("Capex" & $C120 & "_"& $A120)*(1+INDIRECT("vanilla" & $A120))^0.5)-SUM($F120:L120),(INDIRECT("Capex" & $C120 & "_" & $A120)*(1+INDIRECT("vanilla" & $A120))^0.5)/INDIRECT("StdLife" & $C120)))) -> 0 | N120: =IF(AND(DepreciationOption="Determination Allowance",N$1<6),INDIRECT("DepnAllowCapex" &$C120&"_"& $A120 & "_" &N$1),IF(INDIRECT("StdLife" & $C120)="n/a","n/a",IF(N$1>(INDIRECT("StdLife" & $C120)+$A120),(INDIRECT("Capex" & $C120 & "_"& $A120)*(1+INDIRECT("vanilla" & $A120))^0.5)-SUM($F120:M120),(INDIRECT("Capex" & $C120 & "_" & $A120)*(1+INDIRECT("vanilla" & $A120))^0.5)/INDIRECT("StdLife" & $C120)))) -> 0 | O120: =IF(AND(DepreciationOption="Determination Allowance",O$1<6),INDIRECT("DepnAllowCapex" &$C120&"_"& $A120 & "_" &O$1),IF(INDIRECT("StdLife" & $C120)="n/a","n/a",IF(O$1>(INDIRECT("StdLife" & $C120)+$A120),(INDIRECT("Capex" & $C120 & "_"& $A120)*(1+INDIRECT("vanilla" & $A120))^0.5)-SUM($F120:N120),(INDIRECT("Capex" & $C120 & "_" & $A120)*(1+INDIRECT("vanilla" & $A120))^0.5)/INDIRECT("StdLife" & $C120)))) -> 0
A121: 4 | B121: Other Non System Assets - 2017-18 | C121: 7 | D121: $m real 2014-15 | J121: =IF(AND(DepreciationOption="Determination Allowance",J$1<6),INDIRECT("DepnAllowCapex" &$C121&"_"& $A121 & "_" &J$1),IF(INDIRECT("StdLife" & $C121)="n/a","n/a",IF(J$1>(INDIRECT("StdLife" & $C121)+$A121),(INDIRECT("Capex" & $C121 & "_"& $A121)*(1+INDIRECT("vanilla" & $A121))^0.5)-SUM($F121:I121),(INDIRECT("Capex" & $C121 & "_" & $A121)*(1+INDIRECT("vanilla" & $A121))^0.5)/INDIRECT("StdLife" & $C121)))) -> 0 | K121: =IF(AND(DepreciationOption="Determination Allowance",K$1<6),INDIRECT("DepnAllowCapex" &$C121&"_"& $A121 & "_" &K$1),IF(INDIRECT("StdLife" & $C121)="n/a","n/a",IF(K$1>(INDIRECT("StdLife" & $C121)+$A121),(INDIRECT("Capex" & $C121 & "_"& $A121)*(1+INDIRECT("vanilla" & $A121))^0.5)-SUM($F121:J121),(INDIRECT("Capex" & $C121 & "_" & $A121)*(1+INDIRECT("vanilla" & $A121))^0.5)/INDIRECT("StdLife" & $C121)))) -> 0 | L121: =IF(AND(DepreciationOption="Determination Allowance",L$1<6),INDIRECT("DepnAllowCapex" &$C121&"_"& $A121 & "_" &L$1),IF(INDIRECT("StdLife" & $C121)="n/a","n/a",IF(L$1>(INDIRECT("StdLife" & $C121)+$A121),(INDIRECT("Capex" & $C121 & "_"& $A121)*(1+INDIRECT("vanilla" & $A121))^0.5)-SUM($F121:K121),(INDIRECT("Capex" & $C121 & "_" & $A121)*(1+INDIRECT("vanilla" & $A121))^0.5)/INDIRECT("StdLife" & $C121)))) -> 0 | M121: =IF(AND(DepreciationOption="Determination Allowance",M$1<6),INDIRECT("DepnAllowCapex" &$C121&"_"& $A121 & "_" &M$1),IF(INDIRECT("StdLife" & $C121)="n/a","n/a",IF(M$1>(INDIRECT("StdLife" & $C121)+$A121),(INDIRECT("Capex" & $C121 & "_"& $A121)*(1+INDIRECT("vanilla" & $A121))^0.5)-SUM($F121:L121),(INDIRECT("Capex" & $C121 & "_" & $A121)*(1+INDIRECT("vanilla" & $A121))^0.5)/INDIRECT("StdLife" & $C121)))) -> 0 | N121: =IF(AND(DepreciationOption="Determination Allowance",N$1<6),INDIRECT("DepnAllowCapex" &$C121&"_"& $A121 & "_" &N$1),IF(INDIRECT("StdLife" & $C121)="n/a","n/a",IF(N$1>(INDIRECT("StdLife" & $C121)+$A121),(INDIRECT("Capex" & $C121 & "_"& $A121)*(1+INDIRECT("vanilla" & $A121))^0.5)-SUM($F121:M121),(INDIRECT("Capex" & $C121 & "_" & $A121)*(1+INDIRECT("vanilla" & $A121))^0.5)/INDIRECT("StdLife" & $C121)))) -> 0 | O121: =IF(AND(DepreciationOption="Determination Allowance",O$1<6),INDIRECT("DepnAllowCapex" &$C121&"_"& $A121 & "_" &O$1),IF(INDIRECT("StdLife" & $C121)="n/a","n/a",IF(O$1>(INDIRECT("StdLife" & $C121)+$A121),(INDIRECT("Capex" & $C121 & "_"& $A121)*(1+INDIRECT("vanilla" & $A121))^0.5)-SUM($F121:N121),(INDIRECT("Capex" & $C121 & "_" & $A121)*(1+INDIRECT("vanilla" & $A121))^0.5)/INDIRECT("StdLife" & $C121)))) -> 0
A122: 5 | B122: Other Non System Assets - 2018-19 | C122: 7 | D122: $m real 2014-15 | K122: =IF(AND(DepreciationOption="Determination Allowance",K$1<6),INDIRECT("DepnAllowCapex" &$C122&"_"& $A122 & "_" &K$1),IF(INDIRECT("StdLife" & $C122)="n/a","n/a",IF(K$1>(INDIRECT("StdLife" & $C122)+$A122),(INDIRECT("Capex" & $C122 & "_"& $A122)*(1+INDIRECT("vanilla" & $A122))^0.5)-SUM($F122:J122),(INDIRECT("Capex" & $C122 & "_" & $A122)*(1+INDIRECT("vanilla" & $A122))^0.5)/INDIRECT("StdLife" & $C122)))) -> 0 | L122: =IF(AND(DepreciationOption="Determination Allowance",L$1<6),INDIRECT("DepnAllowCapex" &$C122&"_"& $A122 & "_" &L$1),IF(INDIRECT("StdLife" & $C122)="n/a","n/a",IF(L$1>(INDIRECT("StdLife" & $C122)+$A122),(INDIRECT("Capex" & $C122 & "_"& $A122)*(1+INDIRECT("vanilla" & $A122))^0.5)-SUM($F122:K122),(INDIRECT("Capex" & $C122 & "_" & $A122)*(1+INDIRECT("vanilla" & $A122))^0.5)/INDIRECT("StdLife" & $C122)))) -> 0 | M122: =IF(AND(DepreciationOption="Determination Allowance",M$1<6),INDIRECT("DepnAllowCapex" &$C122&"_"& $A122 & "_" &M$1),IF(INDIRECT("StdLife" & $C122)="n/a","n/a",IF(M$1>(INDIRECT("StdLife" & $C122)+$A122),(INDIRECT("Capex" & $C122 & "_"& $A122)*(1+INDIRECT("vanilla" & $A122))^0.5)-SUM($F122:L122),(INDIRECT("Capex" & $C122 & "_" & $A122)*(1+INDIRECT("vanilla" & $A122))^0.5)/INDIRECT("StdLife" & $C122)))) -> 0 | N122: =IF(AND(DepreciationOption="Determination Allowance",N$1<6),INDIRECT("DepnAllowCapex" &$C122&"_"& $A122 & "_" &N$1),IF(INDIRECT("StdLife" & $C122)="n/a","n/a",IF(N$1>(INDIRECT("StdLife" & $C122)+$A122),(INDIRECT("Capex" & $C122 & "_"& $A122)*(1+INDIRECT("vanilla" & $A122))^0.5)-SUM($F122:M122),(INDIRECT("Capex" & $C122 & "_" & $A122)*(1+INDIRECT("vanilla" & $A122))^0.5)/INDIRECT("StdLife" & $C122)))) -> 0 | O122: =IF(AND(DepreciationOption="Determination Allowance",O$1<6),INDIRECT("DepnAllowCapex" &$C122&"_"& $A122 & "_" &O$1),IF(INDIRECT("StdLife" & $C122)="n/a","n/a",IF(O$1>(INDIRECT("StdLife" & $C122)+$A122),(INDIRECT("Capex" & $C122 & "_"& $A122)*(1+INDIRECT("vanilla" & $A122))^0.5)-SUM($F122:N122),(INDIRECT("Capex" & $C122 & "_" & $A122)*(1+INDIRECT("vanilla" & $A122))^0.5)/INDIRECT("StdLife" & $C122)))) -> 0
A123: 6 | B123: Other Non System Assets - 2019-20 | C123: 7 | D123: $m real 2014-15 | L123: =IF(AND(DepreciationOption="Determination Allowance",L$1<6),INDIRECT("DepnAllowCapex" &$C123&"_"& $A123 & "_" &L$1),IF(INDIRECT("StdLife" & $C123)="n/a","n/a",IF(L$1>(INDIRECT("StdLife" & $C123)+$A123),(INDIRECT("Capex" & $C123 & "_"& $A123)*(1+INDIRECT("vanilla" & $A123))^0.5)-SUM($F123:K123),(INDIRECT("Capex" & $C123 & "_" & $A123)*(1+INDIRECT("vanilla" & $A123))^0.5)/INDIRECT("StdLife" & $C123)))) -> 0 | M123: =IF(AND(DepreciationOption="Determination Allowance",M$1<6),INDIRECT("DepnAllowCapex" &$C123&"_"& $A123 & "_" &M$1),IF(INDIRECT("StdLife" & $C123)="n/a","n/a",IF(M$1>(INDIRECT("StdLife" & $C123)+$A123),(INDIRECT("Capex" & $C123 & "_"& $A123)*(1+INDIRECT("vanilla" & $A123))^0.5)-SUM($F123:L123),(INDIRECT("Capex" & $C123 & "_" & $A123)*(1+INDIRECT("vanilla" & $A123))^0.5)/INDIRECT("StdLife" & $C123)))) -> 0 | N123: =IF(AND(DepreciationOption="Determination Allowance",N$1<6),INDIRECT("DepnAllowCapex" &$C123&"_"& $A123 & "_" &N$1),IF(INDIRECT("StdLife" & $C123)="n/a","n/a",IF(N$1>(INDIRECT("StdLife" & $C123)+$A123),(INDIRECT("Capex" & $C123 & "_"& $A123)*(1+INDIRECT("vanilla" & $A123))^0.5)-SUM($F123:M123),(INDIRECT("Capex" & $C123 & "_" & $A123)*(1+INDIRECT("vanilla" & $A123))^0.5)/INDIRECT("StdLife" & $C123)))) -> 0 | O123: =IF(AND(DepreciationOption="Determination Allowance",O$1<6),INDIRECT("DepnAllowCapex" &$C123&"_"& $A123 & "_" &O$1),IF(INDIRECT("StdLife" & $C123)="n/a","n/a",IF(O$1>(INDIRECT("StdLife" & $C123)+$A123),(INDIRECT("Capex" & $C123 & "_"& $A123)*(1+INDIRECT("vanilla" & $A123))^0.5)-SUM($F123:N123),(INDIRECT("Capex" & $C123 & "_" & $A123)*(1+INDIRECT("vanilla" & $A123))^0.5)/INDIRECT("StdLife" & $C123)))) -> 0
A124: 7 | B124: Other Non System Assets - 2020-21 | C124: 7 | D124: $m real 2014-15 | M124: =IF(AND(DepreciationOption="Determination Allowance",M$1<6),INDIRECT("DepnAllowCapex" &$C124&"_"& $A124 & "_" &M$1),IF(INDIRECT("StdLife" & $C124)="n/a","n/a",IF(M$1>(INDIRECT("StdLife" & $C124)+$A124),(INDIRECT("Capex" & $C124 & "_"& $A124)*(1+INDIRECT("vanilla" & $A124))^0.5)-SUM($F124:L124),(INDIRECT("Capex" & $C124 & "_" & $A124)*(1+INDIRECT("vanilla" & $A124))^0.5)/INDIRECT("StdLife" & $C124)))) -> 0 | N124: =IF(AND(DepreciationOption="Determination Allowance",N$1<6),INDIRECT("DepnAllowCapex" &$C124&"_"& $A124 & "_" &N$1),IF(INDIRECT("StdLife" & $C124)="n/a","n/a",IF(N$1>(INDIRECT("StdLife" & $C124)+$A124),(INDIRECT("Capex" & $C124 & "_"& $A124)*(1+INDIRECT("vanilla" & $A124))^0.5)-SUM($F124:M124),(INDIRECT("Capex" & $C124 & "_" & $A124)*(1+INDIRECT("vanilla" & $A124))^0.5)/INDIRECT("StdLife" & $C124)))) -> 0 | O124: =IF(AND(DepreciationOption="Determination Allowance",O$1<6),INDIRECT("DepnAllowCapex" &$C124&"_"& $A124 & "_" &O$1),IF(INDIRECT("StdLife" & $C124)="n/a","n/a",IF(O$1>(INDIRECT("StdLife" & $C124)+$A124),(INDIRECT("Capex" & $C124 & "_"& $A124)*(1+INDIRECT("vanilla" & $A124))^0.5)-SUM($F124:N124),(INDIRECT("Capex" & $C124 & "_" & $A124)*(1+INDIRECT("vanilla" & $A124))^0.5)/INDIRECT("StdLife" & $C124)))) -> 0
A125: 8 | B125: Other Non System Assets - 2021-22 | C125: 7 | D125: $m real 2014-15 | N125: =IF(AND(DepreciationOption="Determination Allowance",N$1<6),INDIRECT("DepnAllowCapex" &$C125&"_"& $A125 & "_" &N$1),IF(INDIRECT("StdLife" & $C125)="n/a","n/a",IF(N$1>(INDIRECT("StdLife" & $C125)+$A125),(INDIRECT("Capex" & $C125 & "_"& $A125)*(1+INDIRECT("vanilla" & $A125))^0.5)-SUM($F125:M125),(INDIRECT("Capex" & $C125 & "_" & $A125)*(1+INDIRECT("vanilla" & $A125))^0.5)/INDIRECT("StdLife" & $C125)))) -> 0 | O125: =IF(AND(DepreciationOption="Determination Allowance",O$1<6),INDIRECT("DepnAllowCapex" &$C125&"_"& $A125 & "_" &O$1),IF(INDIRECT("StdLife" & $C125)="n/a","n/a",IF(O$1>(INDIRECT("StdLife" & $C125)+$A125),(INDIRECT("Capex" & $C125 & "_"& $A125)*(1+INDIRECT("vanilla" & $A125))^0.5)-SUM($F125:N125),(INDIRECT("Capex" & $C125 & "_" & $A125)*(1+INDIRECT("vanilla" & $A125))^0.5)/INDIRECT("StdLife" & $C125)))) -> 0
A126: 9 | B126: Other Non System Assets - 2022-23 | C126: 7 | D126: $m real 2014-15 | O126: =IF(AND(DepreciationOption="Determination Allowance",O$1<6),INDIRECT("DepnAllowCapex" &$C126&"_"& $A126 & "_" &O$1),IF(INDIRECT("StdLife" & $C126)="n/a","n/a",IF(O$1>(INDIRECT("StdLife" & $C126)+$A126),(INDIRECT("Capex" & $C126 & "_"& $A126)*(1+INDIRECT("vanilla" & $A126))^0.5)-SUM($F126:N126),(INDIRECT("Capex" & $C126 & "_" & $A126)*(1+INDIRECT("vanilla" & $A126))^0.5)/INDIRECT("StdLife" & $C126)))) -> 0
A127: 10 | B127: Other Non System Assets - 2023-24 | C127: 7 | D127: $m real 2014-15
B128: =INDIRECT("Asset"&$C128) & " Subtotal" -> Other Non System Assets Subtotal | C128: 7 | D128: $m real 2014-15 | F128: =SUM(F118:F127) -> 0 | G128: =SUM(G118:G127) -> 0 | H128: =SUM(H118:H127) -> 0 | I128: =SUM(I118:I127) -> 0 | J128: =SUM(J118:J127) -> 0 | K128: =SUM(K118:K127) -> 0 | L128: =SUM(L118:L127) -> 0 | M128: =SUM(M118:M127) -> 0 | N128: =SUM(N118:N127) -> 0 | O128: =SUM(O118:O127) -> 0
B130: OPENING ASSET AND CAPEX VALUES | E130: =INDEX(ModelYears, COLUMN()-COLUMN($D130)) -> 2013-14 | F130: 2014-15 | G130: 2015-16 | H130: 2016-17 | I130: 2017-18 | J130: 2018-19 | K130: 2019-20 | L130: 2020-21 | M130: 2021-22 | N130: 2022-23 | O130: 2023-24
D132: Units | F132: =INDEX(ModelYears, COLUMN()-COLUMN($D132)) -> 2014-15 | G132: 2015-16 | H132: 2016-17 | I132: 2017-18 | J132: 2018-19 | K132: 2019-20 | L132: 2020-21 | M132: 2021-22 | N132: 2022-23 | O132: 2023-24
B133: Opening Value of All Assets Total | D133: $m nominal | F133: =SUM(F143,F156) -> 18.78980414 | G133: 19.13365918 | H133: 19.46643245 | I133: 18.63373777 | J133: 17.9447709 | K133: 16.0758209 | L133: 15.50941701 | M133: 14.86264304 | N133: 14.1669403 | O133: 13.41998186
B135: ="Opening Value of "&Inputs!$F$38 & " RAB Subtotal" -> Opening Value of 2014-15 RAB Subtotal | D135: Units | F135: =INDEX(ModelYears, COLUMN()-COLUMN($D136)) -> 2014-15 | G135: 2015-16 | H135: 2016-17 | I135: 2017-18 | J135: 2018-19 | K135: 2019-20 | L135: 2020-21 | M135: 2021-22 | N135: 2022-23 | O135: 2023-24
B136: Customer metering and Load control | D136: $m nominal | F136: =Value1 -> 17.33774941 | G136: =F136+F255-F374 -> 16.99648186 | H136: 16.63488382 | I136: 16.08171835 | J136: 15.4705825 | K136: 14.94512506 | L136: 14.47493376 | M136: 13.97189219 | N136: 13.43465172 | O136: 12.86181678
B137: Information & Communication Technology | D137: $m nominal | F137: =Value2 -> 0.1515895599 | G137: =F137+F256-F375 -> 0.1486057472 | H137: 0.1454441784 | I137: 0.1406076734 | J137: 0.1352643147 | K137: 0.13067007 | L137: 0.1265590352 | M137: 0.1221607798 | N137: 0.1174635123 | O137: 0.1124550309
B138: Furniture, fittings, plant and equipment | D138: $m nominal | F138: =Value3 -> 0.1526145408 | G138: =F138+F257-F376 -> 0.149610553 | H138: 0.146427607 | I138: 0.1415583998 | J138: 0.1361789116 | K138: 0.1315536028 | L138: 0.1274147709 | M138: 0.1229867765 | N138: 0.1182577482 | O138: 0.1132154016
B139: Motor Vehicles | D139: $m nominal | F139: =Value4 -> 0.07735175712 | G139: =F139+F258-F377 -> 0.07582920403 | H139: 0.07421594712 | I139: 0.07174801888 | J139: 0.06902145784 | K139: 0.06667714802 | L139: 0.06457940614 | M139: 0.06233510395 | N139: 0.05993822452 | O139: 0.05738254168
B140: Buildings | D140: $m nominal | F140: =Value5 -> 0.64939891 | G140: =F140+F259-F378 -> 0.6366164684 | H140: 0.623072532 | I140: 0.6023532882 | J140: 0.5794627188 | K140: 0.5597813011 | L140: 0.5421699198 | M140: 0.5233281061 | N140: 0.5032053456 | O140: 0.4817493669
B141: Land (non-system) | D141: $m nominal | F141: =Value6 -> 0.421128743 | G141: =F141+F260-F379 -> 0.4128394566 | H141: 0.4040563484 | I141: 0.3906201246 | J141: 0.3757758177 | K141: 0.3630126138 | L141: 0.3515918079 | M141: 0.3393730789 | N141: 0.3263236685 | O141: 0.3124096795
B142: Other non system assets | D142: $m nominal | F142: =Value7 -> -2.877780823e-05 | G142: =F142+F261-F380 -> -2.821136032e-05 | H142: -2.761116713e-05 | I142: -2.669300356e-05 | J142: -2.567861871e-05 | K142: -2.480644591e-05 | L142: -2.40260058e-05 | M142: -2.319103966e-05 | N142: -2.229930896e-05 | O142: -2.134849733e-05
B143: Opening Value of 2014-15 RAB Subtotal | D143: $m nominal | F143: =SUM(F136:F142) -> 18.78980414 | G143: =F143+F262-F381 -> 18.41995508 | H143: 18.02807282 | I143: 17.42857916 | J143: 16.76626004 | K143: 16.19679499 | L143: 15.68722467 | M143: 15.14205285 | N143: 14.55981792 | O143: 13.93900746
B145: Opening Value of Capex Subtotal | D145: Units | F145: =INDEX(ModelYears, COLUMN()-COLUMN($D145)) -> 2014-15 | G145: 2015-16 | H145: 2016-17 | I145: 2017-18 | J145: 2018-19 | K145: 2019-20 | L145: 2020-21 | M145: 2021-22 | N145: 2022-23 | O145: 2023-24
A146: 1 | B146: ="Total "&INDEX(ModelYears,1+$A146) & " Capex" -> Total 2014-15 Capex | D146: $m nominal | F146: =SUM(F159,F172,F185,F198,F211,F224,F237) -> 0 | G146: =SUM(G159,G172,G185,G198,G211,G224,G237) -> 0.7137040996 | H146: 0.5318004905 | I146: 0.3351839332 | J146: 0.1317272911 | K146: -0.0760955005 | L146: -0.1303605207 | M146: -0.1872912322 | N146: -0.2469870039 | O146: -0.3095505072
A147: 2 | B147: Total 2015-16 Capex | D147: $m nominal | F147: =SUM(F160,F173,F186,F199,F212,F225,F238) -> 0 | G147: 0 | H147: 0.9065591309 | I147: 0.7252403021 | J147: 0.5365490645 | K147: 0.346524188 | L147: 0.2902659555 | M147: 0.2309782339 | N147: 0.1685447099 | O147: 0.1028451483
A148: 3 | B148: Total 2016-17 Capex | D148: $m nominal | F148: =SUM(F161,F174,F187,F200,F213,F226,F239) -> 0 | G148: 0 | H148: 0 | I148: 0.1447343717 | J148: -0.2594461406 | K148: -0.6757155387 | L148: -0.702721462 | M148: -0.7306553594 | N148: -0.7595467507 | O148: -0.7894260519
A149: 4 | B149: Total 2017-18 Capex | D149: $m nominal | F149: =SUM(F162,F175,F188,F201,F214,F227,F240) -> 0 | G149: 0 | H149: 0 | I149: 0 | J149: 0.7696806524 | K149: 0.1435238917 | L149: 0.09413203607 | M149: 0.04218088519 | N149: -0.01242665577 | O149: -0.06979093682
A150: 5 | B150: Total 2018-19 Capex | D150: $m nominal | F150: =SUM(F163,F176,F189,F202,F215,F228,F241) -> 0 | G150: 0 | H150: 0 | I150: 0 | J150: 0 | K150: 0.1407888744 | L150: 0.1347397727 | M150: 0.1283002229 | N150: 0.1214544832 | O150: 0.114186269
A151: 6 | B151: Total 2019-20 Capex | D151: $m nominal | F151: =SUM(F164,F177,F190,F203,F216,F229,F242) -> 0 | G151: 0 | H151: 0 | I151: 0 | J151: 0 | K151: 0 | L151: 0.136136552 | M151: 0.1302373014 | N151: 0.1239580029 | O151: 0.1172833412
A152: 7 | B152: Total 2020-21 Capex | D152: $m nominal | F152: =SUM(F165,F178,F191,F204,F217,F230,F243) -> 0 | G152: 0 | H152: 0 | I152: 0 | J152: 0 | K152: 0 | L152: 0 | M152: 0.1068401438 | N152: 0.1022104042 | O152: 0.0972824026
A153: 8 | B153: Total 2021-22 Capex | D153: $m nominal | F153: =SUM(F166,F179,F192,F205,F218,F231,F244) -> 0 | G153: 0 | H153: 0 | I153: 0 | J153: 0 | K153: 0 | L153: 0 | M153: 0 | N153: 0.1099151957 | O153: 0.1051522038
A154: 9 | B154: Total 2022-23 Capex | D154: $m nominal | F154: =SUM(F167,F180,F193,F206,F219,F232,F245) -> 0 | G154: 0 | H154: 0 | I154: 0 | J154: 0 | K154: 0 | L154: 0 | M154: 0 | N154: 0 | O154: 0.1129925331
A155: 10 | B155: Total 2023-24 Capex | D155: $m nominal | F155: =SUM(F168,F181,F194,F207,F220,F233,F246) -> 0 | G155: 0 | H155: 0 | I155: 0 | J155: 0 | K155: 0 | L155: 0 | M155: 0 | N155: 0 | O155: 0
B156: Opening Value of Capex Subtotal | D156: $m nominal | F156: =SUM(F146:F155) -> 0 | G156: =SUM(G146:G155) -> 0.7137040996 | H156: =SUM(H146:H155) -> 1.438359621 | I156: =SUM(I146:I155) -> 1.205158607 | J156: =SUM(J146:J155) -> 1.178510867 | K156: =SUM(K146:K155) -> -0.120974085 | L156: =SUM(L146:L155) -> -0.1778076664 | M156: =SUM(M146:M155) -> -0.2794098044 | N156: =SUM(N146:N155) -> -0.3928776144 | O156: =SUM(O146:O155) -> -0.5190255979
B158: ="Opening Value of " & INDIRECT("Asset"&$C158) & " Capex" -> Opening Value of Customer Metering Capex | C158: 1 | D158: Units | F158: =INDEX(ModelYears, COLUMN()-COLUMN($D158)) -> 2014-15 | G158: 2015-16 | H158: 2016-17 | I158: 2017-18 | J158: 2018-19 | K158: 2019-20 | L158: 2020-21 | M158: 2021-22 | N158: 2022-23 | O158: 2023-24
A159: 1 | B159: =INDIRECT("Asset"&$C159) & " - " & INDEX(ModelYears,1+$A159) -> Customer Metering - 2014-15 | C159: 1 | D159: $m nominal | F159: 0 | G159: =F159+F278-F397+F506 -> 0.7137040996 | H159: 0.5318004905 | I159: 0.3351839332 | J159: 0.1317272911 | K159: -0.0760955005 | L159: -0.1303605207 | M159: -0.1872912322 | N159: -0.2469870039 | O159: -0.3095505072
A160: 2 | B160: Customer Metering - 2015-16 | C160: 1 | D160: $m nominal | F160: 0 | G160: =F160+F279-F398+F507 -> 0 | H160: 0.9065591309 | I160: 0.7252403021 | J160: 0.5365490645 | K160: 0.346524188 | L160: 0.2902659555 | M160: 0.2309782339 | N160: 0.1685447099 | O160: 0.1028451483
A161: 3 | B161: Customer Metering - 2016-17 | C161: 1 | D161: $m nominal | F161: 0 | G161: =F161+F280-F399+F508 -> 0 | H161: 0 | I161: 0.1447343717 | J161: -0.2594461406 | K161: -0.6757155387 | L161: -0.702721462 | M161: -0.7306553594 | N161: -0.7595467507 | O161: -0.7894260519
A162: 4 | B162: Customer Metering - 2017-18 | C162: 1 | D162: $m nominal | F162: 0 | G162: =F162+F281-F400+F509 -> 0 | H162: 0 | I162: 0 | J162: 0.7696806524 | K162: 0.1435238917 | L162: 0.09413203607 | M162: 0.04218088519 | N162: -0.01242665577 | O162: -0.06979093682
A163: 5 | B163: Customer Metering - 2018-19 | C163: 1 | D163: $m nominal | F163: 0 | G163: =F163+F282-F401+F510 -> 0 | H163: 0 | I163: 0 | J163: 0 | K163: 0.1407888744 | L163: 0.1347397727 | M163: 0.1283002229 | N163: 0.1214544832 | O163: 0.114186269
A164: 6 | B164: Customer Metering - 2019-20 | C164: 1 | D164: $m nominal | F164: 0 | G164: =F164+F283-F402+F511 -> 0 | H164: 0 | I164: 0 | J164: 0 | K164: 0 | L164: 0.136136552 | M164: 0.1302373014 | N164: 0.1239580029 | O164: 0.1172833412
A165: 7 | B165: Customer Metering - 2020-21 | C165: 1 | D165: $m nominal | F165: 0 | G165: =F165+F284-F403+F512 -> 0 | H165: 0 | I165: 0 | J165: 0 | K165: 0 | L165: 0 | M165: 0.1068401438 | N165: 0.1022104042 | O165: 0.0972824026
A166: 8 | B166: Customer Metering - 2021-22 | C166: 1 | D166: $m nominal | F166: 0 | G166: =F166+F285-F404+F513 -> 0 | H166: 0 | I166: 0 | J166: 0 | K166: 0 | L166: 0 | M166: 0 | N166: 0.1099151957 | O166: 0.1051522038
A167: 9 | B167: Customer Metering - 2022-23 | C167: 1 | D167: $m nominal | F167: 0 | G167: =F167+F286-F405+F514 -> 0 | H167: 0 | I167: 0 | J167: 0 | K167: 0 | L167: 0 | M167: 0 | N167: 0 | O167: 0.1129925331
A168: 10 | B168: Customer Metering - 2023-24 | C168: 1 | D168: $m nominal | F168: 0 | G168: =F168+F287-F406+F515 -> 0 | H168: 0 | I168: 0 | J168: 0 | K168: 0 | L168: 0 | M168: 0 | N168: 0 | O168: 0
B169: =INDIRECT("Asset"&$C169) & " Subtotal" -> Customer Metering Subtotal | C169: 1 | D169: $m nominal | F169: 0 | G169: =SUM(G159:G168) -> 0.7137040996 | H169: 1.438359621 | I169: 1.205158607 | J169: 1.178510867 | K169: -0.120974085 | L169: -0.1778076664 | M169: -0.2794098044 | N169: -0.3928776144 | O169: -0.5190255979
B171: ="Opening Value of " & INDIRECT("Asset"&$C171) & " Capex" -> Opening Value of Information & Communication Technology Capex | C171: =C158+1 -> 2 | D171: Units | F171: =INDEX(ModelYears, COLUMN()-COLUMN($D171)) -> 2014-15 | G171: 2015-16 | H171: 2016-17 | I171: 2017-18 | J171: 2018-19 | K171: 2019-20 | L171: 2020-21 | M171: 2021-22 | N171: 2022-23 | O171: 2023-24
A172: 1 | B172: =INDIRECT("Asset"&$C172) & " - " & INDEX(ModelYears,1+$A172) -> Information & Communication Technology - 2014-15 | C172: =C159+1 -> 2 | D172: $m nominal | F172: 0 | G172: =F172+F291-F410+F519 -> 0 | H172: 0 | I172: 0 | J172: 0 | K172: 0 | L172: 0 | M172: 0 | N172: 0 | O172: 0
A173: 2 | B173: Information & Communication Technology - 2015-16 | C173: =C160+1 -> 2 | D173: $m nominal | F173: 0 | G173: =F173+F292-F411+F520 -> 0 | H173: 0 | I173: 0 | J173: 0 | K173: 0 | L173: 0 | M173: 0 | N173: 0 | O173: 0
A174: 3 | B174: Information & Communication Technology - 2016-17 | C174: 2 | D174: $m nominal | F174: 0 | G174: =F174+F293-F412+F521 -> 0 | H174: 0 | I174: 0 | J174: 0 | K174: 0 | L174: 0 | M174: 0 | N174: 0 | O174: 0
A175: 4 | B175: Information & Communication Technology - 2017-18 | C175: 2 | D175: $m nominal | F175: 0 | G175: =F175+F294-F413+F522 -> 0 | H175: 0 | I175: 0 | J175: 0 | K175: 0 | L175: 0 | M175: 0 | N175: 0 | O175: 0
A176: 5 | B176: Information & Communication Technology - 2018-19 | C176: 2 | D176: $m nominal | F176: 0 | G176: =F176+F295-F414+F523 -> 0 | H176: 0 | I176: 0 | J176: 0 | K176: 0 | L176: 0 | M176: 0 | N176: 0 | O176: 0
A177: 6 | B177: Information & Communication Technology - 2019-20 | C177: 2 | D177: $m nominal | F177: 0 | G177: =F177+F296-F415+F524 -> 0 | H177: 0 | I177: 0 | J177: 0 | K177: 0 | L177: 0 | M177: 0 | N177: 0 | O177: 0
A178: 7 | B178: Information & Communication Technology - 2020-21 | C178: 2 | D178: $m nominal | F178: 0 | G178: =F178+F297-F416+F525 -> 0 | H178: 0 | I178: 0 | J178: 0 | K178: 0 | L178: 0 | M178: 0 | N178: 0 | O178: 0
A179: 8 | B179: Information & Communication Technology - 2021-22 | C179: 2 | D179: $m nominal | F179: 0 | G179: =F179+F298-F417+F526 -> 0 | H179: 0 | I179: 0 | J179: 0 | K179: 0 | L179: 0 | M179: 0 | N179: 0 | O179: 0
A180: 9 | B180: Information & Communication Technology - 2022-23 | C180: 2 | D180: $m nominal | F180: 0 | G180: =F180+F299-F418+F527 -> 0 | H180: 0 | I180: 0 | J180: 0 | K180: 0 | L180: 0 | M180: 0 | N180: 0 | O180: 0
A181: 10 | B181: Information & Communication Technology - 2023-24 | C181: 2 | D181: $m nominal | F181: 0 | G181: =F181+F300-F419+F528 -> 0 | H181: 0 | I181: 0 | J181: 0 | K181: 0 | L181: 0 | M181: 0 | N181: 0 | O181: 0
B182: =INDIRECT("Asset"&$C182) & " Subtotal" -> Information & Communication Technology Subtotal | C182: 2 | D182: $m nominal | F182: =SUM(F172:F181) -> 0 | G182: =SUM(G172:G181) -> 0 | H182: 0 | I182: 0 | J182: 0 | K182: 0 | L182: 0 | M182: 0 | N182: 0 | O182: 0
B184: ="Opening Value of " & INDIRECT("Asset"&$C184) & " Capex" -> Opening Value of Furniture, Fittings, Plant and Equipment Capex | C184: =C171+1 -> 3 | D184: Units | F184: =INDEX(ModelYears, COLUMN()-COLUMN($D184)) -> 2014-15 | G184: 2015-16 | H184: 2016-17 | I184: 2017-18 | J184: 2018-19 | K184: 2019-20 | L184: 2020-21 | M184: 2021-22 | N184: 2022-23 | O184: 2023-24
A185: 1 | B185: =INDIRECT("Asset"&$C185) & " - " & INDEX(ModelYears,1+$A185) -> Furniture, Fittings, Plant and Equipment - 2014-15 | C185: 3 | D185: $m nominal | F185: 0 | G185: =F185+F304-F423+F532 -> 0 | H185: 0 | I185: 0 | J185: 0 | K185: 0 | L185: 0 | M185: 0 | N185: 0 | O185: 0
A186: 2 | B186: Furniture, Fittings, Plant and Equipment - 2015-16 | C186: 3 | D186: $m nominal | F186: 0 | G186: =F186+F305-F424+F533 -> 0 | H186: 0 | I186: 0 | J186: 0 | K186: 0 | L186: 0 | M186: 0 | N186: 0 | O186: 0
A187: 3 | B187: Furniture, Fittings, Plant and Equipment - 2016-17 | C187: 3 | D187: $m nominal | F187: 0 | G187: =F187+F306-F425+F534 -> 0 | H187: 0 | I187: 0 | J187: 0 | K187: 0 | L187: 0 | M187: 0 | N187: 0 | O187: 0
A188: 4 | B188: Furniture, Fittings, Plant and Equipment - 2017-18 | C188: 3 | D188: $m nominal | F188: 0 | G188: =F188+F307-F426+F535 -> 0 | H188: 0 | I188: 0 | J188: 0 | K188: 0 | L188: 0 | M188: 0 | N188: 0 | O188: 0
A189: 5 | B189: Furniture, Fittings, Plant and Equipment - 2018-19 | C189: 3 | D189: $m nominal | F189: 0 | G189: =F189+F308-F427+F536 -> 0 | H189: 0 | I189: 0 | J189: 0 | K189: 0 | L189: 0 | M189: 0 | N189: 0 | O189: 0
A190: 6 | B190: Furniture, Fittings, Plant and Equipment - 2019-20 | C190: 3 | D190: $m nominal | F190: 0 | G190: =F190+F309-F428+F537 -> 0 | H190: 0 | I190: 0 | J190: 0 | K190: 0 | L190: 0 | M190: 0 | N190: 0 | O190: 0
A191: 7 | B191: Furniture, Fittings, Plant and Equipment - 2020-21 | C191: 3 | D191: $m nominal | F191: 0 | G191: =F191+F310-F429+F538 -> 0 | H191: 0 | I191: 0 | J191: 0 | K191: 0 | L191: 0 | M191: 0 | N191: 0 | O191: 0
A192: 8 | B192: Furniture, Fittings, Plant and Equipment - 2021-22 | C192: 3 | D192: $m nominal | F192: 0 | G192: =F192+F311-F430+F539 -> 0 | H192: 0 | I192: 0 | J192: 0 | K192: 0 | L192: 0 | M192: 0 | N192: 0 | O192: 0
A193: 9 | B193: Furniture, Fittings, Plant and Equipment - 2022-23 | C193: 3 | D193: $m nominal | F193: 0 | G193: =F193+F312-F431+F540 -> 0 | H193: 0 | I193: 0 | J193: 0 | K193: 0 | L193: 0 | M193: 0 | N193: 0 | O193: 0
A194: 10 | B194: Furniture, Fittings, Plant and Equipment - 2023-24 | C194: 3 | D194: $m nominal | F194: 0 | G194: =F194+F313-F432+F541 -> 0 | H194: 0 | I194: 0 | J194: 0 | K194: 0 | L194: 0 | M194: 0 | N194: 0 | O194: 0
B195: =INDIRECT("Asset"&$C195) & " Subtotal" -> Furniture, Fittings, Plant and Equipment Subtotal | C195: 3 | D195: $m nominal | F195: =SUM(F185:F194) -> 0 | G195: =SUM(G185:G194) -> 0 | H195: =SUM(H185:H194) -> 0 | I195: =SUM(I185:I194) -> 0 | J195: =SUM(J185:J194) -> 0 | K195: =SUM(K185:K194) -> 0 | L195: =SUM(L185:L194) -> 0 | M195: =SUM(M185:M194) -> 0 | N195: =SUM(N185:N194) -> 0 | O195: =SUM(O185:O194) -> 0
B197: ="Opening Value of " & INDIRECT("Asset"&$C197) & " Capex" -> Opening Value of Motor Vehicles Capex | C197: 4 | D197: Units | F197: =INDEX(ModelYears, COLUMN()-COLUMN($D197)) -> 2014-15 | G197: 2015-16 | H197: 2016-17 | I197: 2017-18 | J197: 2018-19 | K197: 2019-20 | L197: 2020-21 | M197: 2021-22 | N197: 2022-23 | O197: 2023-24
A198: 1 | B198: =INDIRECT("Asset"&$C198) & " - " & INDEX(ModelYears,1+$A198) -> Motor Vehicles - 2014-15 | C198: 4 | D198: $m nominal | F198: 0 | G198: =F198+F317-F436+F545 -> 0 | H198: 0 | I198: 0 | J198: 0 | K198: 0 | L198: 0 | M198: 0 | N198: 0 | O198: 0
A199: 2 | B199: Motor Vehicles - 2015-16 | C199: 4 | D199: $m nominal | F199: 0 | G199: =F199+F318-F437+F546 -> 0 | H199: 0 | I199: 0 | J199: 0 | K199: 0 | L199: 0 | M199: 0 | N199: 0 | O199: 0
A200: 3 | B200: Motor Vehicles - 2016-17 | C200: 4 | D200: $m nominal | F200: 0 | G200: =F200+F319-F438+F547 -> 0 | H200: 0 | I200: 0 | J200: 0 | K200: 0 | L200: 0 | M200: 0 | N200: 0 | O200: 0
A201: 4 | B201: Motor Vehicles - 2017-18 | C201: 4 | D201: $m nominal | F201: 0 | G201: =F201+F320-F439+F548 -> 0 | H201: 0 | I201: 0 | J201: 0 | K201: 0 | L201: 0 | M201: 0 | N201: 0 | O201: 0
A202: 5 | B202: Motor Vehicles - 2018-19 | C202: 4 | D202: $m nominal | F202: 0 | G202: =F202+F321-F440+F549 -> 0 | H202: 0 | I202: 0 | J202: 0 | K202: 0 | L202: 0 | M202: 0 | N202: 0 | O202: 0
A203: 6 | B203: Motor Vehicles - 2019-20 | C203: 4 | D203: $m nominal | F203: 0 | G203: =F203+F322-F441+F550 -> 0 | H203: 0 | I203: 0 | J203: 0 | K203: 0 | L203: 0 | M203: 0 | N203: 0 | O203: 0
A204: 7 | B204: Motor Vehicles - 2020-21 | C204: 4 | D204: $m nominal | F204: 0 | G204: =F204+F323-F442+F551 -> 0 | H204: 0 | I204: 0 | J204: 0 | K204: 0 | L204: 0 | M204: 0 | N204: 0 | O204: 0
A205: 8 | B205: Motor Vehicles - 2021-22 | C205: 4 | D205: $m nominal | F205: 0 | G205: =F205+F324-F443+F552 -> 0 | H205: 0 | I205: 0 | J205: 0 | K205: 0 | L205: 0 | M205: 0 | N205: 0 | O205: 0
A206: 9 | B206: Motor Vehicles - 2022-23 | C206: 4 | D206: $m nominal | F206: 0 | G206: =F206+F325-F444+F553 -> 0 | H206: 0 | I206: 0 | J206: 0 | K206: 0 | L206: 0 | M206: 0 | N206: 0 | O206: 0
A207: 10 | B207: Motor Vehicles - 2023-24 | C207: 4 | D207: $m nominal | F207: 0 | G207: =F207+F326-F445+F554 -> 0 | H207: 0 | I207: 0 | J207: 0 | K207: 0 | L207: 0 | M207: 0 | N207: 0 | O207: 0
B208: =INDIRECT("Asset"&$C208) & " Subtotal" -> Motor Vehicles Subtotal | C208: 4 | D208: $m nominal | F208: =SUM(F198:F207) -> 0 | G208: =SUM(G198:G207) -> 0 | H208: =SUM(H198:H207) -> 0 | I208: =SUM(I198:I207) -> 0 | J208: =SUM(J198:J207) -> 0 | K208: =SUM(K198:K207) -> 0 | L208: =SUM(L198:L207) -> 0 | M208: =SUM(M198:M207) -> 0 | N208: =SUM(N198:N207) -> 0 | O208: =SUM(O198:O207) -> 0
B210: ="Opening Value of " & INDIRECT("Asset"&$C210) & " Capex" -> Opening Value of Buildings Capex | C210: 5 | D210: Units | F210: =INDEX(ModelYears, COLUMN()-COLUMN($D210)) -> 2014-15 | G210: 2015-16 | H210: 2016-17 | I210: 2017-18 | J210: 2018-19 | K210: 2019-20 | L210: 2020-21 | M210: 2021-22 | N210: 2022-23 | O210: 2023-24
A211: 1 | B211: =INDIRECT("Asset"&$C211) & " - " & INDEX(ModelYears,1+$A211) -> Buildings - 2014-15 | C211: 5 | D211: $m nominal | F211: 0 | G211: =F211+F330-F449+F558 -> 0 | H211: 0 | I211: 0 | J211: 0 | K211: 0 | L211: 0 | M211: 0 | N211: 0 | O211: 0
A212: 2 | B212: Buildings - 2015-16 | C212: 5 | D212: $m nominal | F212: 0 | G212: =F212+F331-F450+F559 -> 0 | H212: 0 | I212: 0 | J212: 0 | K212: 0 | L212: 0 | M212: 0 | N212: 0 | O212: 0
A213: 3 | B213: Buildings - 2016-17 | C213: 5 | D213: $m nominal | F213: 0 | G213: =F213+F332-F451+F560 -> 0 | H213: 0 | I213: 0 | J213: 0 | K213: 0 | L213: 0 | M213: 0 | N213: 0 | O213: 0
A214: 4 | B214: Buildings - 2017-18 | C214: 5 | D214: $m nominal | F214: 0 | G214: =F214+F333-F452+F561 -> 0 | H214: 0 | I214: 0 | J214: 0 | K214: 0 | L214: 0 | M214: 0 | N214: 0 | O214: 0
A215: 5 | B215: Buildings - 2018-19 | C215: 5 | D215: $m nominal | F215: 0 | G215: =F215+F334-F453+F562 -> 0 | H215: 0 | I215: 0 | J215: 0 | K215: 0 | L215: 0 | M215: 0 | N215: 0 | O215: 0
A216: 6 | B216: Buildings - 2019-20 | C216: 5 | D216: $m nominal | F216: 0 | G216: =F216+F335-F454+F563 -> 0 | H216: 0 | I216: 0 | J216: 0 | K216: 0 | L216: 0 | M216: 0 | N216: 0 | O216: 0
A217: 7 | B217: Buildings - 2020-21 | C217: 5 | D217: $m nominal | F217: 0 | G217: =F217+F336-F455+F564 -> 0 | H217: 0 | I217: 0 | J217: 0 | K217: 0 | L217: 0 | M217: 0 | N217: 0 | O217: 0
A218: 8 | B218: Buildings - 2021-22 | C218: 5 | D218: $m nominal | F218: 0 | G218: =F218+F337-F456+F565 -> 0 | H218: 0 | I218: 0 | J218: 0 | K218: 0 | L218: 0 | M218: 0 | N218: 0 | O218: 0
A219: 9 | B219: Buildings - 2022-23 | C219: 5 | D219: $m nominal | F219: 0 | G219: =F219+F338-F457+F566 -> 0 | H219: 0 | I219: 0 | J219: 0 | K219: 0 | L219: 0 | M219: 0 | N219: 0 | O219: 0
A220: 10 | B220: Buildings - 2023-24 | C220: 5 | D220: $m nominal | F220: 0 | G220: =F220+F339-F458+F567 -> 0 | H220: 0 | I220: 0 | J220: 0 | K220: 0 | L220: 0 | M220: 0 | N220: 0 | O220: 0
B221: =INDIRECT("Asset"&$C221) & " Subtotal" -> Buildings Subtotal | C221: 5 | D221: $m nominal | F221: =SUM(F211:F220) -> 0 | G221: =SUM(G211:G220) -> 0 | H221: =SUM(H211:H220) -> 0 | I221: =SUM(I211:I220) -> 0 | J221: =SUM(J211:J220) -> 0 | K221: =SUM(K211:K220) -> 0 | L221: =SUM(L211:L220) -> 0 | M221: =SUM(M211:M220) -> 0 | N221: =SUM(N211:N220) -> 0 | O221: =SUM(O211:O220) -> 0
B223: ="Opening Value of " & INDIRECT("Asset"&$C223) & " Capex" -> Opening Value of Land (Non-System) Capex | C223: 6 | D223: Units | F223: =INDEX(ModelYears, COLUMN()-COLUMN($D223)) -> 2014-15 | G223: 2015-16 | H223: 2016-17 | I223: 2017-18 | J223: 2018-19 | K223: 2019-20 | L223: 2020-21 | M223: 2021-22 | N223: 2022-23 | O223: 2023-24
... 424 more rows

Sheet Calc Capital Costs
A1: =IF(Solved, "X-factors Okay", "X-factor Error") -> X-factors Okay
B2: =ModelTitle -> ENDEAVOUR ENERGY METERING PRICING MODEL
B3: ANNUAL CAPITAL COSTS
B5: Rates and Inflation | C5: Units | E5: =INDEX(ModelYears, COLUMN()-COLUMN($C5)) -> 2014-15 | F5: 2015-16 | G5: 2016-17 | H5: 2017-18 | I5: 2018-19 | J5: 2019-20 | K5: 2020-21 | L5: 2021-22 | M5: 2022-23 | N5: 2023-24
B6: Nominal WACC | C6: % | E6: =Inputs!F16 -> 0.06743968726 | F6: =Inputs!G16 -> 0.06679770942 | G6: =Inputs!H16 -> 0.06679770942 | H6: =Inputs!I16 -> 0.06679770942 | I6: =Inputs!J16 -> 0.06679770942 | J6: =Inputs!K16 -> 0.0611 | K6: =Inputs!L16 -> 0.0611 | L6: =Inputs!M16 -> 0.0611 | M6: =Inputs!N16 -> 0.0611 | N6: =Inputs!O16 -> 0.0611
B7: Rate of Return on Debt | C7: % | E7: =Inputs!F17 -> 0.06506614544 | F7: =Inputs!G17 -> 0.06399618237 | G7: =Inputs!H17 -> 0.06399618237 | H7: =Inputs!I17 -> 0.06399618237 | I7: =Inputs!J17 -> 0.06399618237 | J7: =Inputs!K17 -> 0.0539 | K7: =Inputs!L17 -> 0.0539 | L7: =Inputs!M17 -> 0.0539 | M7: =Inputs!N17 -> 0.0539 | N7: =Inputs!O17 -> 0.0539
B8: Rate of Return on Equity | C8: % | E8: =Inputs!F18 -> 0.071 | F8: =Inputs!G18 -> 0.071 | G8: =Inputs!H18 -> 0.071 | H8: =Inputs!I18 -> 0.071 | I8: =Inputs!J18 -> 0.071 | J8: =Inputs!K18 -> 0.0719 | K8: =Inputs!L18 -> 0.0719 | L8: =Inputs!M18 -> 0.0719 | M8: =Inputs!N18 -> 0.0719 | N8: =Inputs!O18 -> 0.0719
B10: Opening RAB value | C10: Units | E10: =INDEX(ModelYears, COLUMN()-COLUMN($C10)) -> 2014-15 | F10: 2015-16 | G10: 2016-17 | H10: 2017-18 | I10: 2018-19 | J10: 2019-20 | K10: 2020-21 | L10: 2021-22 | M10: 2022-23 | N10: 2023-24
B11: =Inputs!$F$38&" RAB" -> 2014-15 RAB | C11: $m nominal | E11: ='Calc Asset Roll Forward'!F143 -> 18.78980414 | F11: ='Calc Asset Roll Forward'!G143 -> 18.41995508 | G11: ='Calc Asset Roll Forward'!H143 -> 18.02807282 | H11: ='Calc Asset Roll Forward'!I143 -> 17.42857916 | I11: ='Calc Asset Roll Forward'!J143 -> 16.76626004 | J11: ='Calc Asset Roll Forward'!K143 -> 16.19679499 | K11: ='Calc Asset Roll Forward'!L143 -> 15.68722467 | L11: ='Calc Asset Roll Forward'!M143 -> 15.14205285 | M11: ='Calc Asset Roll Forward'!N143 -> 14.55981792 | N11: ='Calc Asset Roll Forward'!O143 -> 13.93900746
B12: Capex | C12: $m nominal | E12: ='Calc Asset Roll Forward'!F156 -> 0 | F12: ='Calc Asset Roll Forward'!G156 -> 0.7137040996 | G12: ='Calc Asset Roll Forward'!H156 -> 1.438359621 | H12: ='Calc Asset Roll Forward'!I156 -> 1.205158607 | I12: ='Calc Asset Roll Forward'!J156 -> 1.178510867 | J12: ='Calc Asset Roll Forward'!K156 -> -0.120974085 | K12: ='Calc Asset Roll Forward'!L156 -> -0.1778076664 | L12: ='Calc Asset Roll Forward'!M156 -> -0.2794098044 | M12: ='Calc Asset Roll Forward'!N156 -> -0.3928776144 | N12: ='Calc Asset Roll Forward'!O156 -> -0.5190255979
B13: Total | C13: $m nominal | E13: =SUM(E11:E12) -> 18.78980414 | F13: 19.13365918 | G13: 19.46643245 | H13: 18.63373777 | I13: 17.9447709 | J13: 16.0758209 | K13: 15.50941701 | L13: 14.86264304 | M13: 14.1669403 | N13: 13.41998186
B15: Return on Capital | C15: Units | E15: =INDEX(ModelYears, COLUMN()-COLUMN($C15)) -> 2014-15 | F15: 2015-16 | G15: 2016-17 | H15: 2017-18 | I15: 2018-19 | J15: 2019-20 | K15: 2020-21 | L15: 2021-22 | M15: 2022-23 | N15: 2023-24
B16: =Inputs!$F$38&" RAB" -> 2014-15 RAB | C16: $m nominal | E16: =E11*E$6 -> 1.267178515 | F16: =F11*F$6 -> 1.230410807 | G16: 1.20423397 | H16: 1.164189166 | I16: 1.119947766 | J16: 0.9896241736 | K16: 0.9584894275 | L16: 0.925179429 | M16: 0.8896048747 | N16: 0.8516733555
B17: Capex | C17: $m nominal | E17: =E12*E$6 -> 0 | F17: 0.04767379906 | G17: 0.09607912804 | H17: 0.08050183444 | I17: 0.07872182647 | J17: -0.007391516596 | K17: -0.01086404842 | L17: -0.01707193905 | M17: -0.02400482224 | N17: -0.03171246403
B18: Total | C18: $m nominal | E18: =SUM(E16:E17) -> 1.267178515 | F18: =SUM(F16:F17) -> 1.278084606 | G18: 1.300313098 | H18: 1.244691001 | I18: 1.198669593 | J18: 0.982232657 | K18: 0.9476253791 | L18: 0.90810749 | M18: 0.8656000525 | N18: 0.8199608915
E19: =ROUND(E18,RoundTo)=ROUND(E28+E23,RoundTo) -> TRUE | F19: =ROUND(F18,RoundTo)=ROUND(F28+F23,RoundTo) -> TRUE | G19: TRUE | H19: TRUE | I19: TRUE | J19: TRUE | K19: TRUE | L19: TRUE | M19: TRUE | N19: TRUE
B20: Return on Debt | C20: Units | E20: =INDEX(ModelYears, COLUMN()-COLUMN($C20)) -> 2014-15 | F20: 2015-16 | G20: 2016-17 | H20: 2017-18 | I20: 2018-19 | J20: 2019-20 | K20: 2020-21 | L20: 2021-22 | M20: 2022-23 | N20: 2023-24
B21: =Inputs!$F$38&" RAB" -> 2014-15 RAB | C21: $m nominal | E21: =E$7*Gearing*E11 -> 0.7335480773 | F21: 0.7072840828 | G21: 0.6922367017 | H21: 0.6692175182 | I21: 0.643785981 | J21: 0.5238043498 | K21: 0.5073248459 | L21: 0.4896939891 | M21: 0.4708645114 | N21: 0.4507875011
B22: Capex | C22: $m nominal | E22: =E$7*Gearing*E12 -> 0 | F22: 0.02740460263 | G22: 0.05522971479 | H22: 0.04627533 | I22: 0.04525211784 | J22: -0.00391230191 | K22: -0.005750299932 | L22: -0.009036113074 | M22: -0.01270566205 | N22: -0.01678528784
B23: Total | C23: $m nominal | E23: =SUM(E21:E22) -> 0.7335480773 | F23: 0.7346886855 | G23: 0.7474664165 | H23: 0.7154928482 | I23: 0.6890380988 | J23: 0.5198920479 | K23: 0.501574546 | L23: 0.480657876 | M23: 0.4581588494 | N23: 0.4340022133
B25: Return on Equity | C25: Units | E25: =INDEX(ModelYears, COLUMN()-COLUMN($C25)) -> 2014-15 | F25: 2015-16 | G25: 2016-17 | H25: 2017-18 | I25: 2018-19 | J25: 2019-20 | K25: 2020-21 | L25: 2021-22 | M25: 2022-23 | N25: 2023-24
B26: =Inputs!$F$38&" RAB" -> 2014-15 RAB | C26: $m nominal | E26: =E$8*(1-Gearing)*E11 -> 0.5336304376 | F26: 0.5231267243 | G26: 0.5119972682 | H26: 0.4949716481 | I26: 0.4761617851 | J26: 0.4658198238 | K26: 0.4511645816 | L26: 0.4354854399 | M26: 0.4187403633 | N26: 0.4008858544
B27: Capex | C27: $m nominal | E27: =E$8*(1-Gearing)*E12 -> 0 | F27: 0.02026919643 | G27: 0.04084941325 | H27: 0.03422650444 | I27: 0.03346970864 | J27: -0.003479214686 | K27: -0.005113748486 | L27: -0.008035825975 | M27: -0.01129916019 | N27: -0.0149271762
B28: Total | C28: $m nominal | E28: =SUM(E26:E27) -> 0.5336304376 | F28: 0.5433959208 | G28: 0.5528466815 | H28: 0.5291981526 | I28: 0.5096314937 | J28: 0.4623406091 | K28: 0.4460508331 | L28: 0.4274496139 | M28: 0.4074412031 | N28: 0.3859586782
B30: Return of Capital | C30: Units | E30: =INDEX(ModelYears, COLUMN()-COLUMN($C30)) -> 2014-15 | F30: 2015-16 | G30: 2016-17 | H30: 2017-18 | I30: 2018-19 | J30: 2019-20 | K30: 2020-21 | L30: 2021-22 | M30: 2022-23 | N30: 2023-24
B31: =Inputs!$F$38&" RAB" -> 2014-15 RAB | C31: $m nominal | E31: ='Calc Asset Roll Forward'!F381-'Calc Asset Roll Forward'!F262 -> 0.3698490567 | F31: ='Calc Asset Roll Forward'!G381-'Calc Asset Roll Forward'!G262 -> 0.3918822584 | G31: ='Calc Asset Roll Forward'!H381-'Calc Asset Roll Forward'!H262 -> 0.5994936649 | H31: ='Calc Asset Roll Forward'!I381-'Calc Asset Roll Forward'!I262 -> 0.6623191221 | I31: ='Calc Asset Roll Forward'!J381-'Calc Asset Roll Forward'!J262 -> 0.5694650518 | J31: ='Calc Asset Roll Forward'!K381-'Calc Asset Roll Forward'!K262 -> 0.5095703124 | K31: ='Calc Asset Roll Forward'!L381-'Calc Asset Roll Forward'!L262 -> 0.5451718249 | L31: ='Calc Asset Roll Forward'!M381-'Calc Asset Roll Forward'!M262 -> 0.5822349316 | M31: ='Calc Asset Roll Forward'!N381-'Calc Asset Roll Forward'!N262 -> 0.6208104612 | N31: ='Calc Asset Roll Forward'!O381-'Calc Asset Roll Forward'!O262 -> 0.6609508704
B32: Capex | C32: $m nominal | E32: ='Calc Asset Roll Forward'!F394-'Calc Asset Roll Forward'!F275 -> 0 | F32: ='Calc Asset Roll Forward'!G394-'Calc Asset Roll Forward'!G275 -> 0.1819036091 | G32: ='Calc Asset Roll Forward'!H394-'Calc Asset Roll Forward'!H275 -> 0.3779353861 | H32: ='Calc Asset Roll Forward'!I394-'Calc Asset Roll Forward'!I275 -> 0.796328392 | I32: ='Calc Asset Roll Forward'!J394-'Calc Asset Roll Forward'!J275 -> 1.440273827 | J32: ='Calc Asset Roll Forward'!K394-'Calc Asset Roll Forward'!K275 -> 0.1929701333 | K32: ='Calc Asset Roll Forward'!L394-'Calc Asset Roll Forward'!L275 -> 0.2084422818 | L32: ='Calc Asset Roll Forward'!M394-'Calc Asset Roll Forward'!M275 -> 0.2233830057 | M32: ='Calc Asset Roll Forward'!N394-'Calc Asset Roll Forward'!N275 -> 0.2391405166 | N32: ='Calc Asset Roll Forward'!O394-'Calc Asset Roll Forward'!O275 -> 0.255748337
B33: Total | C33: $m nominal | E33: =SUM(E31:E32) -> 0.3698490567 | F33: 0.5737858675 | G33: 0.9774290511 | H33: 1.458647514 | I33: 2.009738879 | J33: 0.7025404457 | K33: 0.7536141067 | L33: 0.8056179372 | M33: 0.8599509778 | N33: 0.9166992075
B35: Total Capital Return | C35: Units | E35: =INDEX(ModelYears, COLUMN()-COLUMN($C35)) -> 2014-15 | F35: 2015-16 | G35: 2016-17 | H35: 2017-18 | I35: 2018-19 | J35: 2019-20 | K35: 2020-21 | L35: 2021-22 | M35: 2022-23 | N35: 2023-24
B36: =Inputs!$F$38&" RAB" -> 2014-15 RAB | C36: $m nominal | E36: =E21+E31 -> 1.103397134 | F36: 1.099166341 | G36: 1.291730367 | H36: 1.33153664 | I36: 1.213251033 | J36: 1.033374662 | K36: 1.052496671 | L36: 1.071928921 | M36: 1.091674973 | N36: 1.111738372
B37: Capex | C37: $m nominal | E37: =E22+E32 -> 0 | F37: 0.2093082117 | G37: 0.4331651009 | H37: 0.842603722 | I37: 1.485525945 | J37: 0.1890578314 | K37: 0.2026919819 | L37: 0.2143468926 | M37: 0.2264348546 | N37: 0.2389630492
B38: Total | C38: $m nominal | E38: =SUM(E36:E37) -> 1.103397134 | F38: 1.308474553 | G38: 1.724895468 | H38: 2.174140362 | I38: 2.698776978 | J38: 1.222432494 | K38: 1.255188653 | L38: 1.286275813 | M38: 1.318109827 | N38: 1.350701421

Sheet Calc Capital Raising Costs
A1: =IF(Solved, "X-factors Okay", "X-factor Error") -> X-factors Okay
B2: =ModelTitle -> ENDEAVOUR ENERGY METERING PRICING MODEL
B3: DEBT AND EQUITY RAISING COSTS
B5: Rates and Inflation | C5: Units | I5: =INDEX(ModelYears, COLUMN()-COLUMN($C5)) -> 2018-19 | J5: 2019-20 | K5: 2020-21 | L5: 2021-22 | M5: 2022-23 | N5: 2023-24
B6: Annual CPI | C6: % | I6: =Inputs!J12 -> 0.01948647409 | J6: =Inputs!K12 -> 0.025 | K6: =Inputs!L12 -> 0.025 | L6: =Inputs!M12 -> 0.025 | M6: =Inputs!N12 -> 0.025 | N6: =Inputs!O12 -> 0.025
B7: CPI Index for roll forward, Base -> 2018-19 | C7: % | I7: =Inputs!J13 -> 1 | J7: =Inputs!K13 -> 1.019486474 | K7: =Inputs!L13 -> 1.044973636 | L7: =Inputs!M13 -> 1.071097977 | M7: =Inputs!N13 -> 1.097875426 | N7: =Inputs!O13 -> 1.125322312
B8: Tas Rate | C8: % | J8: =Inputs!$F$22 -> 0.3 | K8: =Inputs!$F$22 -> 0.3 | L8: =Inputs!$F$22 -> 0.3 | M8: =Inputs!$F$22 -> 0.3 | N8: =Inputs!$F$22 -> 0.3
B9: Rate Debt Raising Costs | C9: % | J9: =Inputs!$F$25 -> 0.00081 | K9: =Inputs!$F$25 -> 0.00081 | L9: =Inputs!$F$25 -> 0.00081 | M9: =Inputs!$F$25 -> 0.00081 | N9: =Inputs!$F$25 -> 0.00081
B10: Gearing | C10: % | J10: =Inputs!$F$24 -> 0.6 | K10: =Inputs!$F$24 -> 0.6 | L10: =Inputs!$F$24 -> 0.6 | M10: =Inputs!$F$24 -> 0.6 | N10: =Inputs!$F$24 -> 0.6
B11: Imputation credit payout ratie | C11: % | J11: =Inputs!$F$26 -> 0.7 | K11: =Inputs!$F$26 -> 0.7 | L11: =Inputs!$F$26 -> 0.7 | M11: =Inputs!$F$26 -> 0.7 | N11: =Inputs!$F$26 -> 0.7
B12: Dividend Reinvestment Plan Take Up | C12: % | J12: =Inputs!$F$27 -> 0.3 | K12: =Inputs!$F$27 -> 0.3 | L12: =Inputs!$F$27 -> 0.3 | M12: =Inputs!$F$27 -> 0.3 | N12: =Inputs!$F$27 -> 0.3
B13: Dividend Reinvestment Plan Costs | C13: % | J13: =Inputs!$F$28 -> 0.01 | K13: =Inputs!$F$28 -> 0.01 | L13: =Inputs!$F$28 -> 0.01 | M13: =Inputs!$F$28 -> 0.01 | N13: =Inputs!$F$28 -> 0.01
B14: Subsequent Equity Raising Costs | C14: % | J14: =Inputs!$F$29 -> 0.03 | K14: =Inputs!$F$29 -> 0.03 | L14: =Inputs!$F$29 -> 0.03 | M14: =Inputs!$F$29 -> 0.03 | N14: =Inputs!$F$29 -> 0.03
B16: Opening RAB Value | C16: Units | I16: =INDEX(ModelYears, COLUMN()-COLUMN($C16)) -> 2018-19 | J16: 2019-20 | K16: 2020-21 | L16: 2021-22 | M16: 2022-23 | N16: 2023-24
B17: =Inputs!$F$38&" RAB" -> 2014-15 RAB | C17: $m nominal | I17: ='Calc Asset Roll Forward'!J143 -> 16.76626004 | J17: ='Calc Asset Roll Forward'!K143 -> 16.19679499 | K17: ='Calc Asset Roll Forward'!L143 -> 15.68722467 | L17: ='Calc Asset Roll Forward'!M143 -> 15.14205285 | M17: ='Calc Asset Roll Forward'!N143 -> 14.55981792 | N17: ='Calc Asset Roll Forward'!O143 -> 13.93900746
B18: Capex | C18: $m nominal | I18: ='Calc Asset Roll Forward'!J156 -> 1.178510867 | J18: ='Calc Asset Roll Forward'!K156 -> -0.120974085 | K18: ='Calc Asset Roll Forward'!L156 -> -0.1778076664 | L18: ='Calc Asset Roll Forward'!M156 -> -0.2794098044 | M18: ='Calc Asset Roll Forward'!N156 -> -0.3928776144 | N18: ='Calc Asset Roll Forward'!O156 -> -0.5190255979
B19: Total | C19: $m nominal | I19: =SUM(I17:I18) -> 17.9447709 | J19: =SUM(J17:J18) -> 16.0758209 | K19: 15.50941701 | L19: 14.86264304 | M19: 14.1669403 | N19: 13.41998186
B21: Inflated Opening RAB Value | C21: Units | J21: =INDEX(ModelYears, COLUMN()-COLUMN($C21)) -> 2019-20 | K21: 2020-21 | L21: 2021-22 | M21: 2022-23 | N21: 2023-24
B22: =Inputs!$F$38&" RAB" -> 2014-15 RAB | C22: $m nominal | J22: =J17*(1+J$6) -> 16.60171486 | K22: 16.07940529 | L22: 15.52060417 | M22: 14.92381336 | N22: 14.28748264
B23: Capex | C23: $m nominal | J23: =J18*(1+J$6) -> -0.1239984372 | K23: -0.1822528581 | L23: -0.2863950495 | M23: -0.4026995548 | N23: -0.5320012379
B24: Total | C24: $m nominal | J24: =SUM(J22:J23) -> 16.47771642 | K24: 15.89715243 | L24: 15.23420912 | M24: 14.52111381 | N24: 13.7554814
B26: Debt Raising Costs | C26: Units | J26: =INDEX(ModelYears, COLUMN()-COLUMN($C26)) -> 2019-20 | K26: 2020-21 | L26: 2021-22 | M26: 2022-23 | N26: 2023-24
B27: =Inputs!$F$38&" RAB" -> 2014-15 RAB | C27: $m nominal | J27: =J22*J$10*J$9 -> 0.008068433422 | K27: 0.007814590971 | L27: 0.007543013626 | M27: 0.007252973295 | N27: 0.006943716564
B28: Capex | C28: $m nominal | J28: -6.026324046e-05 | K28: -8.857488902e-05 | L28: -0.0001391879941 | M28: -0.0001957119836 | N28: -0.0002585526016
B29: Total | C29: $m nominal | J29: =SUM(J27:J28) -> 0.008008170182 | K29: 0.007726016082 | L29: 0.007403825632 | M29: 0.007057261312 | N29: 0.006685163962
B31: Capex | C31: Units | J31: =INDEX(ModelYears, COLUMN()-COLUMN($C31)) -> 2019-20 | K31: 2020-21 | L31: 2021-22 | M31: 2022-23 | N31: 2023-24
B32: Opening RAB Value | C32: $m nominal | J32: =J19 -> 16.0758209 | K32: 15.50941701 | L32: 14.86264304 | M32: 14.1669403 | N32: 13.41998186
B33: Capex | C33: $m nominal | J33: ='Calc Asset Roll Forward'!K490 -> 0.136136552 | K33: ='Calc Asset Roll Forward'!L490 -> 0.1068401438 | L33: ='Calc Asset Roll Forward'!M490 -> 0.1099151957 | M33: ='Calc Asset Roll Forward'!N490 -> 0.1129925331 | N33: ='Calc Asset Roll Forward'!O490 -> 0.1223060141
B34: Capex Rate | C34: % | J34: =J33/J32 -> 0.00846840437 | K34: 0.006888727265 | L34: 0.007395400356 | M34: 0.007975789455 | N34: 0.009113724251
B36: Dividend reinvestment calculations | C36: Units | J36: =INDEX(ModelYears, COLUMN()-COLUMN($C36)) -> 2019-20 | K36: 2020-21 | L36: 2021-22 | M36: 2022-23 | N36: 2023-24
B37: Tax Payable | C37: $m nominal | J37: ='Calc Building Blocks & Xfactors'!J10 -> 0.1789705584 | K37: ='Calc Building Blocks & Xfactors'!K10 -> 0.1726648386 | L37: ='Calc Building Blocks & Xfactors'!L10 -> 0.1654643667 | M37: ='Calc Building Blocks & Xfactors'!M10 -> 0.1577191754 | N37: ='Calc Building Blocks & Xfactors'!N10 -> 0.1494033593
B38: Dividends | C38: $m nominal | J38: =(IFERROR(J37/J8,0))*(1-J8)*J11 -> 0.2923185787 | K38: =(IFERROR(K37/K8,0))*(1-K8)*K11 -> 0.2820192364 | L38: 0.2702584656 | M38: 0.2576079865 | N38: 0.2440254869
B39: Dividend Reinvestment | C39: $m nominal | J39: =J38*J12 -> 0.0876955736 | K39: =K38*K12 -> 0.08460577093 | L39: 0.08107753968 | M39: 0.07728239594 | N39: 0.07320764606
B40: Dividend Reinvestment | C40: $m 2018-19 | J40: =J39/J7 -> 0.08601935957 | K40: =K39/K7 -> 0.08096450285 | L40: 0.07569572666 | M40: 0.07039268217 | N40: 0.06505482499
B42: Dividend reinvestment calculations | C42: Units | J42: =INDEX(ModelYears, COLUMN()-COLUMN($C42)) -> 2019-20 | K42: 2020-21 | L42: 2021-22 | M42: 2022-23 | N42: 2023-24
B43: Revenue (smoothed) | C43: $m nominal | J43: ='Calc Revenue & Annual Charges'!J74 -> 21.98419413 | K43: ='Calc Revenue & Annual Charges'!K74 -> 21.522178 | L43: ='Calc Revenue & Annual Charges'!L74 -> 21.28381794 | M43: ='Calc Revenue & Annual Charges'!M74 -> 21.24354634 | N43: ='Calc Revenue & Annual Charges'!N74 -> 21.23427104
B44: Opex | C44: $m nominal | J44: ='Calc Building Blocks & Xfactors'!J6 -> 19.43651217 | K44: ='Calc Building Blocks & Xfactors'!K6 -> 19.69682175 | L44: ='Calc Building Blocks & Xfactors'!L6 -> 20.03571415 | M44: ='Calc Building Blocks & Xfactors'!M6 -> 20.39624953 | N44: ='Calc Building Blocks & Xfactors'!N6 -> 20.76602446
B45: Interest Payment | C45: $m nominal | J45: ='Calc Capital Costs'!J23 -> 0.5198920479 | K45: ='Calc Capital Costs'!K23 -> 0.501574546 | L45: ='Calc Capital Costs'!L23 -> 0.480657876 | M45: ='Calc Capital Costs'!M23 -> 0.4581588494 | N45: ='Calc Capital Costs'!N23 -> 0.4340022133
B46: Tax Payable | C46: $m nominal | J46: =J37 -> 0.1789705584 | K46: 0.1726648386 | L46: 0.1654643667 | M46: 0.1577191754 | N46: 0.1494033593
B47: Internal Cash Flow | C47: $m nominal | J47: =J43-SUM(J44:J46) -> 1.848819356 | K47: =K43-SUM(K44:K46) -> 1.151116865 | L47: 0.6019815443 | M47: 0.2314187844 | N47: -0.1151589849
B48: Dividends | C48: $m nominal | J48: =J38 -> 0.2923185787 | K48: =K38 -> 0.2820192364 | L48: 0.2702584656 | M48: 0.2576079865 | N48: 0.2440254869
B49: Retained Cash Flow (excl. dividend reinvestment) | C49: $m nominal | J49: =J47-J48 -> 1.556500778 | K49: =K47-K48 -> 0.8690976288 | L49: 0.3317230787 | M49: -0.02618920206 | N49: -0.3591844718
B51: Benchmark Capex Funding | C51: Units | J51: =INDEX(ModelYears, COLUMN()-COLUMN($C51)) -> 2019-20 | K51: 2020-21 | L51: 2021-22 | M51: 2022-23 | N51: 2023-24
B52: Capex Funding Requirement | C52: $m nominal | J52: =J33/(1+vanilla6)^0.5 -> 0.132158953 | K52: =K33/(1+vanilla7)^0.5 -> 0.1037185189 | L52: =L33/(1+vanilla8)^0.5 -> 0.1067037248 | M52: =M33/(1+vanilla9)^0.5 -> 0.1096911495 | N52: =N33/(1+vanilla10)^0.5 -> 0.1187325119
B53: Debt Component | C53: $m nominal | J53: =-((J19*J10)-(I19-I10)) -> 8.299278364 | K53: =-((K19*K10)-(J19-J10)) -> 6.170170696 | L53: 5.99183118 | M53: 5.762478862 | N53: 5.514951188
B54: Equity Component | C54: $m nominal | J54: =J52-J53 -> -8.167119411 | K54: =K52-K53 -> -6.066452178 | L54: -5.885127456 | M54: -5.652787713 | N54: -5.396218676
B55: Retained Cash Flow (excl. dividend reinvestment) | C55: $m nominal | J55: =J49 -> 1.556500778 | K55: =K49 -> 0.8690976288 | L55: 0.3317230787 | M55: -0.02618920206 | N55: -0.3591844718
B56: Equity Requirement (SEO) | C56: $m nominal | J56: =J54-J55 -> -9.723620189 | K56: =K54-K55 -> -6.935549806 | L56: -6.216850534 | M56: -5.626598511 | N56: -5.037034204
B57: Equity Requirement (SEO) | C57: $m 2018-19 | J57: =J56/J7 -> -9.537762821 | K57: =K56/K7 -> -6.637057212 | L57: -5.804184742 | M57: -5.124988115 | N57: -4.476081342
B59: Equity Raising Requirements | C59: Units | J59: =INDEX(ModelYears, COLUMN()-COLUMN($C59)) -> 2019-20 | K59: 2020-21 | L59: 2021-22 | M59: 2022-23 | N59: 2023-24
B60: Dividend Reinvestment Plan Requirement | C60: $m 2018-19 | J60: =IF(SUM(J57:N57)<0,0,IF(MIN(SUM(J57:N57),SUM(J40:N40))=SUM(J57:N57),J57,J40)) -> 0 | K60: =IF(SUM(K57:O57)<0,0,IF(MIN(SUM(K57:O57),SUM(K40:O40))=SUM(K57:O57),K57,K40)) -> 0 | L60: 0 | M60: 0 | N60: 0
B61: External Equity (SEO) Requirement | C61: $m 2018-19 | J61: =IF(SUM(J57:N57)-SUM(J40:N40)>0,J57-J40,0) -> 0 | K61: =IF(SUM(K57:O57)-SUM(K40:O40)>0,K57-K40,0) -> 0 | L61: 0 | M61: 0 | N61: 0
B62: Total Equity Requirement | C62: $m 2018-19 | J62: =SUM(J60:J61) -> 0 | K62: =SUM(K60:K61) -> 0 | L62: 0 | M62: 0 | N62: 0
B63: Dividend Reinvestment Plan Costs | C63: $m 2018-19 | J63: =J61*J13 -> 0 | K63: =K61*K13 -> 0 | L63: 0 | M63: 0 | N63: 0
B64: External Equity Raising (SEO) Costs | C64: $m 2018-19 | J64: =J62*J14 -> 0 | K64: =K62*K14 -> 0 | L64: 0 | M64: 0 | N64: 0
B65: Total Equity Raising Costs | C65: $m 2018-19 | J65: =SUM(J63:J64) -> 0 | K65: =SUM(K63:K64) -> 0 | L65: 0 | M65: 0 | N65: 0
B66: Total Equity Raising Costs | C66: $m nominal | J66: =J65*J7 -> 0 | K66: =K65*K7 -> 0 | L66: 0 | M66: 0 | N66: 0

Sheet Calc Building Blocks & Xfactors
A1: =IF(Solved, "X-factors Okay", "X-factor Error") -> X-factors Okay | I1: 5 | J1: 6 | K1: 7 | L1: 8 | M1: 9 | N1: 10
B2: =ModelTitle -> ENDEAVOUR ENERGY METERING PRICING MODEL
B3: REVENUE BUILDING BLOCKS
B5: Revenue Building Blocks | C5: Units | I5: =INDEX(ModelYears, COLUMN()-COLUMN($C$5)) -> 2018-19 | J5: 2019-20 | K5: 2020-21 | L5: 2021-22 | M5: 2022-23 | N5: 2023-24
B6: Opex (incl. DRC) | C6: $m nominal | J6: =Inputs!K170+'Calc Capital Raising Costs'!J29 -> 19.43651217 | K6: =Inputs!L170+'Calc Capital Raising Costs'!K29 -> 19.69682175 | L6: =Inputs!M170+'Calc Capital Raising Costs'!L29 -> 20.03571415 | M6: =Inputs!N170+'Calc Capital Raising Costs'!M29 -> 20.39624953 | N6: =Inputs!O170+'Calc Capital Raising Costs'!N29 -> 20.76602446
B7: Capital Return for RAB @ 2014-15 | C7: $m nominal | J7: ='Calc Capital Costs'!J36 -> 1.033374662 | K7: ='Calc Capital Costs'!K36 -> 1.052496671 | L7: ='Calc Capital Costs'!L36 -> 1.071928921 | M7: ='Calc Capital Costs'!M36 -> 1.091674973 | N7: ='Calc Capital Costs'!N36 -> 1.111738372
B8: Capital Return for Capex since 2014-15 | C8: $m nominal | J8: ='Calc Capital Costs'!J37 -> 0.1890578314 | K8: ='Calc Capital Costs'!K37 -> 0.2026919819 | L8: ='Calc Capital Costs'!L37 -> 0.2143468926 | M8: ='Calc Capital Costs'!M37 -> 0.2264348546 | N8: ='Calc Capital Costs'!N37 -> 0.2389630492
B9: Equity Raising Costs | C9: $m nominal | J9: ='Calc Capital Raising Costs'!J66 -> 0 | K9: ='Calc Capital Raising Costs'!K66 -> 0 | L9: ='Calc Capital Raising Costs'!L66 -> 0 | M9: ='Calc Capital Raising Costs'!M66 -> 0 | N9: ='Calc Capital Raising Costs'!N66 -> 0
B10: Corporate income tax | C10: $m nominal | J10: =MAX(0,('Calc Capital Costs'!J28)*TaxRate/(1-(1-Gamma)*TaxRate)) -> 0.1789705584 | K10: =MAX(0,('Calc Capital Costs'!K28)*TaxRate/(1-(1-Gamma)*TaxRate)) -> 0.1726648386 | L10: =MAX(0,('Calc Capital Costs'!L28)*TaxRate/(1-(1-Gamma)*TaxRate)) -> 0.1654643667 | M10: =MAX(0,('Calc Capital Costs'!M28)*TaxRate/(1-(1-Gamma)*TaxRate)) -> 0.1577191754 | N10: =MAX(0,('Calc Capital Costs'!N28)*TaxRate/(1-(1-Gamma)*TaxRate)) -> 0.1494033593
B11: Annual Revenue Requirement | C11: $m nominal | J11: =SUM(J6:J10) -> 20.83791522 | K11: =SUM(K6:K10) -> 21.12467524 | L11: 21.48745433 | M11: 21.87207854 | N11: 22.26612924
B12: NPV Annual Revenue Requirement | C12: $m nominal | I12: =SUMPRODUCT(J11:N11,J16:N16) -> 90.19067841
B14: Discount rate | C14: Units | I14: =INDEX(ModelYears, COLUMN()-COLUMN($C$5)) -> 2018-19 | J14: 2019-20 | K14: 2020-21 | L14: 2021-22 | M14: 2022-23 | N14: 2023-24
B15: Nominal Vanilla WACC | C15: % | I15: =INDIRECT("vanilla"&I$1) -> 0.06679770942 | J15: 0.0611 | K15: 0.0611 | L15: 0.0611 | M15: 0.0611 | N15: 0.0611
B16: Index for Smoothing | C16: % | I16: 1 | J16: =I16/(1+J15) -> 0.9424182452 | K16: =J16/(1+K15) -> 0.8881521489 | L16: =K16/(1+L15) -> 0.8370107897 | M16: =L16/(1+M15) -> 0.7888142396 | N16: =M16/(1+N15) -> 0.7433929315
B18: Smooth Revenue | C18: Units | I18: =INDEX(ModelYears, COLUMN()-COLUMN($C$5)) -> 2018-19 | J18: 2019-20 | K18: 2020-21 | L18: 2021-22 | M18: 2022-23 | N18: 2023-24
B19: CPI | C19: % | J19: =Inputs!K12 -> 0.025 | K19: =Inputs!L12 -> 0.025 | L19: =Inputs!M12 -> 0.025 | M19: =Inputs!N12 -> 0.025 | N19: =Inputs!O12 -> 0.025
B20: X-factors | C20: % | J20: -0.2511119597 | K20: 0 | L20: 0 | M20: 0 | N20: 0
B21: Smooth Annual Revenue | C21: $m nominal | J21: ='Calc Revenue & Annual Charges'!J74 -> 21.98419413 | K21: ='Calc Revenue & Annual Charges'!K74 -> 21.522178 | L21: ='Calc Revenue & Annual Charges'!L74 -> 21.28381794 | M21: ='Calc Revenue & Annual Charges'!M74 -> 21.24354634 | N21: ='Calc Revenue & Annual Charges'!N74 -> 21.23427104
B22: NPV Smooth Annual Revenue | C22: $m nominal | I22: =SUMPRODUCT(J21:N21,J16:N16) -> 90.19067841
B24: NPV Difference | C24: $m nominal | I24: =I22-I12 -> 0

Sheet Calc Customer Numbers
A1: =IF(Solved, "X-factors Okay", "X-factor Error") -> X-factors Okay
B2: =ModelTitle -> ENDEAVOUR ENERGY METERING PRICING MODEL
B3: CUSTOMER NUMBERS
B5: Primary Tariff Customer Numbers | C5: Primary Tariff | D5: Secondary Tariff | E5: Units | F5: =INDEX(ModelYears, COLUMN()-COLUMN($E$5)) -> 2013-14 | G5: =INDEX(ModelYears, COLUMN()-COLUMN($E$5)) -> 2014-15 | H5: 2015-16 | I5: 2016-17 | J5: 2017-18 | K5: 2018-19 | L5: 2019-20 | M5: 2020-21 | N5: 2021-22 | O5: 2022-23 | P5: 2023-24
B6: F10 - Domestic | C6: Residential Anytime | E6: Number | F6: =Inputs!E196 -> 0 | G6: =Inputs!F196 -> 0 | H6: =Inputs!G196 -> 0 | I6: =IF(Inputs!H196="",H6*(1-Inputs!I$193),Inputs!H196) -> 0 | J6: =IF(Inputs!I196="",I6*(1-Inputs!J$193),Inputs!I196) -> 0 | K6: =IF(Inputs!J196="",J6*(1-Inputs!K$193),Inputs!J196) -> 0 | L6: =IF(Inputs!K196="",K6*(1-Inputs!L$193),Inputs!K196) -> 0 | M6: =IF(Inputs!L196="",L6*(1-Inputs!M$193),Inputs!L196) -> 0 | N6: =IF(Inputs!M196="",M6*(1-Inputs!N$193),Inputs!M196) -> 0 | O6: =IF(Inputs!N196="",N6*(1-Inputs!O$193),Inputs!N196) -> 0 | P6: =IF(Inputs!O196="",O6*(1-Inputs!P$193),Inputs!O196) -> 0
B7: N70 - Domestic | C7: Residential Anytime | E7: Number | F7: =Inputs!E197 -> 807142 | G7: =Inputs!F197 -> 814453 | H7: =Inputs!G197 -> 829420 | I7: =IF(Inputs!H197="",H7*(1+Inputs!I$193),Inputs!H197) -> 847282 | J7: =IF(Inputs!I197="",I7*(1+Inputs!J$193),Inputs!I197) -> 810001.592 | K7: =IF(Inputs!J197="",J7*(1+Inputs!K$193),Inputs!J197) -> 766261.506 | L7: =IF(Inputs!K197="",K7*(1+Inputs!L$193),Inputs!K197) -> 724883.3847 | M7: =IF(Inputs!L197="",L7*(1+Inputs!M$193),Inputs!L197) -> 689364.0989 | N7: =IF(Inputs!M197="",M7*(1+Inputs!N$193),Inputs!M197) -> 667304.4477 | O7: =IF(Inputs!N197="",N7*(1+Inputs!O$193),Inputs!N197) -> 647952.6187 | P7: =IF(Inputs!O197="",O7*(1+Inputs!P$193),Inputs!O197) -> 629161.9928
B8: F76 - DOMESTIC TOU | C8: Residential TOU - Type 6 Meter | E8: Number | F8: =Inputs!E198 -> 0 | G8: =Inputs!F198 -> 0 | H8: =Inputs!G198 -> 0 | I8: =IF(Inputs!H198="",H8*(1+Inputs!I$193),Inputs!H198) -> 0 | J8: =IF(Inputs!I198="",I8*(1+Inputs!J$193),Inputs!I198) -> 0 | K8: =IF(Inputs!J198="",J8*(1+Inputs!K$193),Inputs!J198) -> 0 | L8: =IF(Inputs!K198="",K8*(1+Inputs!L$193),Inputs!K198) -> 0 | M8: =IF(Inputs!L198="",L8*(1+Inputs!M$193),Inputs!L198) -> 0 | N8: =IF(Inputs!M198="",M8*(1+Inputs!N$193),Inputs!M198) -> 0 | O8: =IF(Inputs!N198="",N8*(1+Inputs!O$193),Inputs!N198) -> 0 | P8: =IF(Inputs!O198="",O8*(1+Inputs!P$193),Inputs!O198) -> 0
B9: N76 - Domestic TOU | C9: Residential TOU - Type 6 Meter | E9: Number | F9: =Inputs!E199 -> 20 | G9: =Inputs!F199 -> 21 | H9: =Inputs!G199 -> 19 | I9: =IF(Inputs!H199="",H9*(1+Inputs!I$193),Inputs!H199) -> 21 | J9: =IF(Inputs!I199="",I9*(1+Inputs!J$193),Inputs!I199) -> 20.076 | K9: =IF(Inputs!J199="",J9*(1+Inputs!K$193),Inputs!J199) -> 18.991896 | L9: =IF(Inputs!K199="",K9*(1+Inputs!L$193),Inputs!K199) -> 17.96633362 | M9: =IF(Inputs!L199="",L9*(1+Inputs!M$193),Inputs!L199) -> 17.08598327 | N9: =IF(Inputs!M199="",M9*(1+Inputs!N$193),Inputs!M199) -> 16.5392318 | O9: =IF(Inputs!N199="",N9*(1+Inputs!O$193),Inputs!N199) -> 16.05959408 | P9: =IF(Inputs!O199="",O9*(1+Inputs!P$193),Inputs!O199) -> 15.59386585
B10: NC1 - Dom/CL1 | C10: Residential Anytime | D10: Controlled Load | E10: Number | F10: =Inputs!E200 -> 9878 | G10: =Inputs!F200 -> 9725 | H10: =Inputs!G200 -> 9628 | I10: =IF(Inputs!H200="",H10*(1+Inputs!I$193),Inputs!H200) -> 9447 | J10: =IF(Inputs!I200="",I10*(1+Inputs!J$193),Inputs!I200) -> 9031.332 | K10: =IF(Inputs!J200="",J10*(1+Inputs!K$193),Inputs!J200) -> 8543.640072 | L10: =IF(Inputs!K200="",K10*(1+Inputs!L$193),Inputs!K200) -> 8082.283508 | M10: =IF(Inputs!L200="",L10*(1+Inputs!M$193),Inputs!L200) -> 7686.251616 | N10: =IF(Inputs!M200="",M10*(1+Inputs!N$193),Inputs!M200) -> 7440.291564 | O10: =IF(Inputs!N200="",N10*(1+Inputs!O$193),Inputs!N200) -> 7224.523109 | P10: =IF(Inputs!O200="",O10*(1+Inputs!P$193),Inputs!O200) -> 7015.011939
B11: NC2 - Dom/CL2 | C11: Residential Anytime | D11: Controlled Load | E11: Number | F11: =Inputs!E201 -> 3153 | G11: =Inputs!F201 -> 3133 | H11: =Inputs!G201 -> 3165 | I11: =IF(Inputs!H201="",H11*(1+Inputs!I$193),Inputs!H201) -> 3137 | J11: =IF(Inputs!I201="",I11*(1+Inputs!J$193),Inputs!I201) -> 2998.972 | K11: =IF(Inputs!J201="",J11*(1+Inputs!K$193),Inputs!J201) -> 2837.027512 | L11: =IF(Inputs!K201="",K11*(1+Inputs!L$193),Inputs!K201) -> 2683.828026 | M11: =IF(Inputs!L201="",L11*(1+Inputs!M$193),Inputs!L201) -> 2552.320453 | N11: =IF(Inputs!M201="",M11*(1+Inputs!N$193),Inputs!M201) -> 2470.646199 | O11: =IF(Inputs!N201="",N11*(1+Inputs!O$193),Inputs!N201) -> 2398.997459 | P11: =IF(Inputs!O201="",O11*(1+Inputs!P$193),Inputs!O201) -> 2329.426532
B12: NS70 - Domestic IBT Small Gen | C12: Residential Anytime | D12: Solar | E12: Number | F12: =Inputs!E202 -> 17400 | G12: =Inputs!F202 -> 22798 | H12: =Inputs!G202 -> 26506 | I12: =IF(Inputs!H202="",H12*(1+Inputs!I$193),Inputs!H202) -> 30038 | J12: =IF(Inputs!I202="",I12*(1+Inputs!J$193),Inputs!I202) -> 28716.328 | K12: =IF(Inputs!J202="",J12*(1+Inputs!K$193),Inputs!J202) -> 27165.64629 | L12: =IF(Inputs!K202="",K12*(1+Inputs!L$193),Inputs!K202) -> 25698.70139 | M12: =IF(Inputs!L202="",L12*(1+Inputs!M$193),Inputs!L202) -> 24439.46502 | N12: =IF(Inputs!M202="",M12*(1+Inputs!N$193),Inputs!M202) -> 23657.40214 | O12: =IF(Inputs!N202="",N12*(1+Inputs!O$193),Inputs!N202) -> 22971.33748 | P12: =IF(Inputs!O202="",O12*(1+Inputs!P$193),Inputs!O202) -> 22305.16869
B13: NG70 - Domestic IBT Small Gen | C13: Residential Anytime | D13: Solar | E13: Number | F13: =Inputs!E203 -> 1 | G13: =Inputs!F203 -> 2 | H13: =Inputs!G203 -> 4 | I13: =IF(Inputs!H203="",H13*(1+Inputs!I$193),Inputs!H203) -> 12 | J13: =IF(Inputs!I203="",I13*(1+Inputs!J$193),Inputs!I203) -> 11.472 | K13: =IF(Inputs!J203="",J13*(1+Inputs!K$193),Inputs!J203) -> 10.852512 | L13: =IF(Inputs!K203="",K13*(1+Inputs!L$193),Inputs!K203) -> 10.26647635 | M13: =IF(Inputs!L203="",L13*(1+Inputs!M$193),Inputs!L203) -> 9.763419011 | N13: =IF(Inputs!M203="",M13*(1+Inputs!N$193),Inputs!M203) -> 9.450989602 | O13: =IF(Inputs!N203="",N13*(1+Inputs!O$193),Inputs!N203) -> 9.176910904 | P13: =IF(Inputs!O203="",O13*(1+Inputs!P$193),Inputs!O203) -> 8.910780488
B14: F80 - General Supply Non TOU | C14: Small Business Anytime | E14: Number | F14: =Inputs!E204 -> 0 | G14: =Inputs!F204 -> 0 | H14: =Inputs!G204 -> 0 | I14: =IF(Inputs!H204="",H14*(1+Inputs!I$193),Inputs!H204) -> 0 | J14: =IF(Inputs!I204="",I14*(1+Inputs!J$193),Inputs!I204) -> 0 | K14: =IF(Inputs!J204="",J14*(1+Inputs!K$193),Inputs!J204) -> 0 | L14: =IF(Inputs!K204="",K14*(1+Inputs!L$193),Inputs!K204) -> 0 | M14: =IF(Inputs!L204="",L14*(1+Inputs!M$193),Inputs!L204) -> 0 | N14: =IF(Inputs!M204="",M14*(1+Inputs!N$193),Inputs!M204) -> 0 | O14: =IF(Inputs!N204="",N14*(1+Inputs!O$193),Inputs!N204) -> 0 | P14: =IF(Inputs!O204="",O14*(1+Inputs!P$193),Inputs!O204) -> 0
B15: N90 - General Supply Non TOU | C15: Small Business Anytime | E15: Number | F15: =Inputs!E205 -> 76907 | G15: =Inputs!F205 -> 74966 | H15: =Inputs!G205 -> 74263 | I15: =IF(Inputs!H205="",H15*(1+Inputs!I$193),Inputs!H205) -> 74951 | J15: =IF(Inputs!I205="",I15*(1+Inputs!J$193),Inputs!I205) -> 71653.156 | K15: =IF(Inputs!J205="",J15*(1+Inputs!K$193),Inputs!J205) -> 67783.88558 | L15: =IF(Inputs!K205="",K15*(1+Inputs!L$193),Inputs!K205) -> 64123.55575 | M15: =IF(Inputs!L205="",L15*(1+Inputs!M$193),Inputs!L205) -> 60981.50152 | N15: =IF(Inputs!M205="",M15*(1+Inputs!N$193),Inputs!M205) -> 59030.09347 | O15: =IF(Inputs!N205="",N15*(1+Inputs!O$193),Inputs!N205) -> 57318.22076 | P15: =IF(Inputs!O205="",O15*(1+Inputs!P$193),Inputs!O205) -> 55655.99236
B16: NC3 - GS Non TOU/CL1 | C16: Small Business Anytime | D16: Controlled Load | E16: Number | F16: =Inputs!E206 -> 44 | G16: =Inputs!F206 -> 42 | H16: =Inputs!G206 -> 44 | I16: =IF(Inputs!H206="",H16*(1+Inputs!I$193),Inputs!H206) -> 42 | J16: =IF(Inputs!I206="",I16*(1+Inputs!J$193),Inputs!I206) -> 40.152 | K16: =IF(Inputs!J206="",J16*(1+Inputs!K$193),Inputs!J206) -> 37.983792 | L16: =IF(Inputs!K206="",K16*(1+Inputs!L$193),Inputs!K206) -> 35.93266723 | M16: =IF(Inputs!L206="",L16*(1+Inputs!M$193),Inputs!L206) -> 34.17196654 | N16: =IF(Inputs!M206="",M16*(1+Inputs!N$193),Inputs!M206) -> 33.07846361 | O16: =IF(Inputs!N206="",N16*(1+Inputs!O$193),Inputs!N206) -> 32.11918816 | P16: =IF(Inputs!O206="",O16*(1+Inputs!P$193),Inputs!O206) -> 31.18773171
B17: NC4 - GS Non TOU/CL2 | C17: Small Business Anytime | D17: Controlled Load | E17: Number | F17: =Inputs!E207 -> 18 | G17: =Inputs!F207 -> 16 | H17: =Inputs!G207 -> 14 | I17: =IF(Inputs!H207="",H17*(1+Inputs!I$193),Inputs!H207) -> 14 | J17: =IF(Inputs!I207="",I17*(1+Inputs!J$193),Inputs!I207) -> 13.384 | K17: =IF(Inputs!J207="",J17*(1+Inputs!K$193),Inputs!J207) -> 12.661264 | L17: =IF(Inputs!K207="",K17*(1+Inputs!L$193),Inputs!K207) -> 11.97755574 | M17: =IF(Inputs!L207="",L17*(1+Inputs!M$193),Inputs!L207) -> 11.39065551 | N17: =IF(Inputs!M207="",M17*(1+Inputs!N$193),Inputs!M207) -> 11.02615454 | O17: =IF(Inputs!N207="",N17*(1+Inputs!O$193),Inputs!N207) -> 10.70639605 | P17: =IF(Inputs!O207="",O17*(1+Inputs!P$193),Inputs!O207) -> 10.39591057
B18: NS90 - GS Non-ToU Small Gen | C18: Small Business Anytime | D18: Solar | E18: Number | F18: =Inputs!E208 -> 520 | G18: =Inputs!F208 -> 856 | H18: =Inputs!G208 -> 1046 | I18: =IF(Inputs!H208="",H18*(1+Inputs!I$193),Inputs!H208) -> 1270 | J18: =IF(Inputs!I208="",I18*(1+Inputs!J$193),Inputs!I208) -> 1214.12 | K18: =IF(Inputs!J208="",J18*(1+Inputs!K$193),Inputs!J208) -> 1148.55752 | L18: =IF(Inputs!K208="",K18*(1+Inputs!L$193),Inputs!K208) -> 1086.535414 | M18: =IF(Inputs!L208="",L18*(1+Inputs!M$193),Inputs!L208) -> 1033.295179 | N18: =IF(Inputs!M208="",M18*(1+Inputs!N$193),Inputs!M208) -> 1000.229733 | O18: =IF(Inputs!N208="",N18*(1+Inputs!O$193),Inputs!N208) -> 971.2230707 | P18: =IF(Inputs!O208="",O18*(1+Inputs!P$193),Inputs!O208) -> 943.0576016
B19: F82A - General Supply TOU | C19: Small Business TOU - Type 6 Meter | E19: Number | F19: =Inputs!E209 -> 0 | G19: =Inputs!F209 -> 0 | H19: =Inputs!G209 -> 0 | I19: =IF(Inputs!H209="",H19*(1+Inputs!I$193),Inputs!H209) -> 0 | J19: =IF(Inputs!I209="",I19*(1+Inputs!J$193),Inputs!I209) -> 0 | K19: =IF(Inputs!J209="",J19*(1+Inputs!K$193),Inputs!J209) -> 0 | L19: =IF(Inputs!K209="",K19*(1+Inputs!L$193),Inputs!K209) -> 0 | M19: =IF(Inputs!L209="",L19*(1+Inputs!M$193),Inputs!L209) -> 0 | N19: =IF(Inputs!M209="",M19*(1+Inputs!N$193),Inputs!M209) -> 0 | O19: =IF(Inputs!N209="",N19*(1+Inputs!O$193),Inputs!N209) -> 0 | P19: =IF(Inputs!O209="",O19*(1+Inputs!P$193),Inputs!O209) -> 0
B20: N84 - General Supply TOU | C20: Small Business TOU - Type 6 Meter | E20: Number | F20: =Inputs!E210 -> 1675 | G20: =Inputs!F210 -> 1894 | H20: =Inputs!G210 -> 1871 | I20: =IF(Inputs!H210="",H20*(1+Inputs!I$193),Inputs!H210) -> 1901 | J20: =IF(Inputs!I210="",I20*(1+Inputs!J$193),Inputs!I210) -> 1817.356 | K20: =IF(Inputs!J210="",J20*(1+Inputs!K$193),Inputs!J210) -> 1719.218776 | L20: =IF(Inputs!K210="",K20*(1+Inputs!L$193),Inputs!K210) -> 1626.380962 | M20: =IF(Inputs!L210="",L20*(1+Inputs!M$193),Inputs!L210) -> 1546.688295 | N20: =IF(Inputs!M210="",M20*(1+Inputs!N$193),Inputs!M210) -> 1497.19427 | O20: =IF(Inputs!N210="",N20*(1+Inputs!O$193),Inputs!N210) -> 1453.775636 | P20: =IF(Inputs!O210="",O20*(1+Inputs!P$193),Inputs!O210) -> 1411.616142
B21: NS84 - GS ToU Small Generation | C21: Small Business TOU - Type 6 Meter | D21: Solar | E21: Number | F21: =Inputs!E211 -> 44 | G21: =Inputs!F211 -> 46 | H21: =Inputs!G211 -> 53 | I21: =IF(Inputs!H211="",H21*(1+Inputs!I$193),Inputs!H211) -> 53 | J21: =IF(Inputs!I211="",I21*(1+Inputs!J$193),Inputs!I211) -> 50.668 | K21: =IF(Inputs!J211="",J21*(1+Inputs!K$193),Inputs!J211) -> 47.931928 | L21: =IF(Inputs!K211="",K21*(1+Inputs!L$193),Inputs!K211) -> 45.34360389 | M21: =IF(Inputs!L211="",L21*(1+Inputs!M$193),Inputs!L211) -> 43.1217673 | N21: =IF(Inputs!M211="",M21*(1+Inputs!N$193),Inputs!M211) -> 41.74187074 | O21: =IF(Inputs!N211="",N21*(1+Inputs!O$193),Inputs!N211) -> 40.53135649 | P21: =IF(Inputs!O211="",O21*(1+Inputs!P$193),Inputs!O211) -> 39.35594715
B22: N85 - General Supply TOU Type 5 | C22: Small Business TOU - Type 5 Meter | E22: Number | F22: =Inputs!E212 -> 371 | G22: =Inputs!F212 -> 370 | H22: =Inputs!G212 -> 366 | I22: =IF(Inputs!H212="",H22*(1+Inputs!I$193),Inputs!H212) -> 364 | J22: =IF(Inputs!I212="",I22*(1+Inputs!J$193),Inputs!I212) -> 347.984 | K22: =IF(Inputs!J212="",J22*(1+Inputs!K$193),Inputs!J212) -> 329.192864 | L22: =IF(Inputs!K212="",K22*(1+Inputs!L$193),Inputs!K212) -> 311.4164493 | M22: =IF(Inputs!L212="",L22*(1+Inputs!M$193),Inputs!L212) -> 296.1570433 | N22: =IF(Inputs!M212="",M22*(1+Inputs!N$193),Inputs!M212) -> 286.6800179 | O22: =IF(Inputs!N212="",N22*(1+Inputs!O$193),Inputs!N212) -> 278.3662974 | P22: =IF(Inputs!O212="",O22*(1+Inputs!P$193),Inputs!O212) -> 270.2936748
B23: N75 - Domestic Type 5 | C23: Residential TOU - Type 5 Meter | E23: Number | F23: =Inputs!E213 -> 0 | G23: =Inputs!F213 -> 1 | H23: =Inputs!G213 -> 1 | I23: =IF(Inputs!H213="",H23*(1+Inputs!I$193),Inputs!H213) -> 18 | J23: =IF(Inputs!I213="",I23*(1+Inputs!J$193),Inputs!I213) -> 17.208 | K23: =IF(Inputs!J213="",J23*(1+Inputs!K$193),Inputs!J213) -> 16.278768 | L23: =IF(Inputs!K213="",K23*(1+Inputs!L$193),Inputs!K213) -> 15.39971453 | M23: =IF(Inputs!L213="",L23*(1+Inputs!M$193),Inputs!L213) -> 14.64512852 | N23: =IF(Inputs!M213="",M23*(1+Inputs!N$193),Inputs!M213) -> 14.1764844 | O23: =IF(Inputs!N213="",N23*(1+Inputs!O$193),Inputs!N213) -> 13.76536636 | P23: =IF(Inputs!O213="",O23*(1+Inputs!P$193),Inputs!O213) -> 13.36617073
B24: Total | E24: Number | F24: =SUM(F6:F23) -> 917173 | G24: 928323 | H24: 946400 | I24: 968550 | J24: 925933.8 | K24: 875933.3748 | L24: =SUM(L6:L23) -> 828632.9726 | M24: =SUM(M6:M23) -> 788029.9569 | N24: =SUM(N6:N23) -> 762812.9983 | O24: =SUM(O6:O23) -> 740691.4213 | P24: =SUM(P6:P23) -> 719211.3701
B25: Average customer numbers | E25: Number | G25: =AVERAGE(F24:G24) -> 922748 | H25: 937361.5 | I25: 957475 | J25: 947241.9 | K25: 900933.5874 | L25: 852283.1737 | M25: 808331.4647 | N25: 775421.4776 | O25: 751752.2098 | P25: 729951.3957
B27: Secondary Tariff Customer Numbers | D27: Secondary Tariff | E27: Units | F27: =INDEX(ModelYears, COLUMN()-COLUMN($E$27)) -> 2013-14 | G27: 2014-15 | H27: 2015-16 | I27: 2016-17 | J27: 2017-18 | K27: 2018-19 | L27: 2019-20 | M27: 2020-21 | N27: 2021-22 | O27: 2022-23 | P27: 2023-24
B28: F50 - Controlled Load 1 | D28: Controlled Load | E28: Number | F28: =Inputs!E218 -> 0 | G28: =Inputs!F218 -> 0 | H28: =Inputs!G218 -> 0 | I28: =IF(Inputs!H218="",H28*(1-Inputs!I$193),Inputs!H218) -> 0 | J28: =IF(Inputs!I218="",I28*(1-Inputs!J$193),Inputs!I218) -> 0 | K28: =IF(Inputs!J218="",J28*(1-Inputs!K$193),Inputs!J218) -> 0 | L28: =IF(Inputs!K218="",K28*(1-Inputs!L$193),Inputs!K218) -> 0 | M28: =IF(Inputs!L218="",L28*(1-Inputs!M$193),Inputs!L218) -> 0 | N28: =IF(Inputs!M218="",M28*(1-Inputs!N$193),Inputs!M218) -> 0 | O28: =IF(Inputs!N218="",N28*(1-Inputs!O$193),Inputs!N218) -> 0 | P28: =IF(Inputs!O218="",O28*(1-Inputs!P$193),Inputs!O218) -> 0
B29: N50A - Controlled Load 1 | D29: Controlled Load | E29: Number | F29: =Inputs!E219 -> 239037 | G29: =Inputs!F219 -> 237235 | H29: =Inputs!G219 -> 236009 | I29: =IF(Inputs!H219="",H29*(1-Inputs!I$193),Inputs!H219) -> 235366 | J29: =IF(Inputs!I219="",I29*(1-Inputs!J$193),Inputs!I219) -> 225009.896 | K29: =IF(Inputs!J219="",J29*(1-Inputs!K$193),Inputs!J219) -> 212859.3616 | L29: =IF(Inputs!K219="",K29*(1-Inputs!L$193),Inputs!K219) -> 201364.9561 | M29: =IF(Inputs!L219="",L29*(1-Inputs!M$193),Inputs!L219) -> 191498.0732 | N29: =IF(Inputs!M219="",M29*(1-Inputs!N$193),Inputs!M219) -> 185370.1349 | O29: =IF(Inputs!N219="",N29*(1-Inputs!O$193),Inputs!N219) -> 179994.401 | P29: =IF(Inputs!O219="",O29*(1-Inputs!P$193),Inputs!O219) -> 174774.5634
B30: F54 - Controlled Load 2 | D30: Controlled Load | E30: Number | F30: =Inputs!E220 -> 0 | G30: =Inputs!F220 -> 0 | H30: =Inputs!G220 -> 0 | I30: =IF(Inputs!H220="",H30*(1-Inputs!I$193),Inputs!H220) -> 0 | J30: =IF(Inputs!I220="",I30*(1-Inputs!J$193),Inputs!I220) -> 0 | K30: =IF(Inputs!J220="",J30*(1-Inputs!K$193),Inputs!J220) -> 0 | L30: =IF(Inputs!K220="",K30*(1-Inputs!L$193),Inputs!K220) -> 0 | M30: =IF(Inputs!L220="",L30*(1-Inputs!M$193),Inputs!L220) -> 0 | N30: =IF(Inputs!M220="",M30*(1-Inputs!N$193),Inputs!M220) -> 0 | O30: =IF(Inputs!N220="",N30*(1-Inputs!O$193),Inputs!N220) -> 0 | P30: =IF(Inputs!O220="",O30*(1-Inputs!P$193),Inputs!O220) -> 0
B31: N54A - Controlled Load 2 | D31: Controlled Load | E31: Number | F31: =Inputs!E221 -> 103564 | G31: =Inputs!F221 -> 103430 | H31: =Inputs!G221 -> 103934 | I31: =IF(Inputs!H221="",H31*(1-Inputs!I$193),Inputs!H221) -> 104218 | J31: =IF(Inputs!I221="",I31*(1-Inputs!J$193),Inputs!I221) -> 99632.408 | K31: =IF(Inputs!J221="",J31*(1-Inputs!K$193),Inputs!J221) -> 94252.25797 | L31: =IF(Inputs!K221="",K31*(1-Inputs!L$193),Inputs!K221) -> 89162.63604 | M31: =IF(Inputs!L221="",L31*(1-Inputs!M$193),Inputs!L221) -> 84793.66687 | N31: =IF(Inputs!M221="",M31*(1-Inputs!N$193),Inputs!M221) -> 82080.26953 | O31: =IF(Inputs!N221="",N31*(1-Inputs!O$193),Inputs!N221) -> 79699.94172 | P31: =IF(Inputs!O221="",O31*(1-Inputs!P$193),Inputs!O221) -> 77388.64341
B32: Total | E32: Number | F32: =SUM(F28:F31) -> 342601 | G32: 340665 | H32: 339943 | I32: 339584 | J32: 324642.304 | K32: 307111.6196 | L32: =SUM(L28:L31) -> 290527.5921 | M32: =SUM(M28:M31) -> 276291.7401 | N32: =SUM(N28:N31) -> 267450.4044 | O32: =SUM(O28:O31) -> 259694.3427 | P32: =SUM(P28:P31) -> 252163.2068
B34: Generation Tariff Customer Numbers | D34: Secondary Tariff | E34: Units | F34: =INDEX(ModelYears, COLUMN()-COLUMN($E$34)) -> 2013-14 | G34: 2014-15 | H34: 2015-16 | I34: 2016-17 | J34: 2017-18 | K34: 2018-19 | L34: 2019-20 | M34: 2020-21 | N34: 2021-22 | O34: 2022-23 | P34: 2023-24
B35: NFIT - NSW Solar Bonus Scheme | D35: Solar | E35: Number | F35: =Inputs!E225 -> 35874 | G35: =Inputs!F225 -> 31952 | H35: =Inputs!G225 -> 30529 | I35: =IF(Inputs!H225="",H35*(1-Inputs!I$193),Inputs!H225) -> 0 | J35: =IF(Inputs!I225="",I35*(1-Inputs!J$193),Inputs!I225) -> 0 | K35: =IF(Inputs!J225="",J35*(1-Inputs!K$193),Inputs!J225) -> 0 | L35: =IF(Inputs!K225="",K35*(1-Inputs!L$193),Inputs!K225) -> 0 | M35: =IF(Inputs!L225="",L35*(1-Inputs!M$193),Inputs!L225) -> 0 | N35: =IF(Inputs!M225="",M35*(1-Inputs!N$193),Inputs!M225) -> 0 | O35: =IF(Inputs!N225="",N35*(1-Inputs!O$193),Inputs!N225) -> 0 | P35: =IF(Inputs!O225="",O35*(1-Inputs!P$193),Inputs!O225) -> 0
B36: NFT2 - NSW Solar Bonus Gross 20ct | D36: Solar | E36: Number | F36: =Inputs!E226 -> 7225 | G36: =Inputs!F226 -> 10605 | H36: =Inputs!G226 -> 11966 | I36: =IF(Inputs!H226="",H36*(1-Inputs!I$193),Inputs!H226) -> 0 | J36: =IF(Inputs!I226="",I36*(1-Inputs!J$193),Inputs!I226) -> 0 | K36: =IF(Inputs!J226="",J36*(1-Inputs!K$193),Inputs!J226) -> 0 | L36: =IF(Inputs!K226="",K36*(1-Inputs!L$193),Inputs!K226) -> 0 | M36: =IF(Inputs!L226="",L36*(1-Inputs!M$193),Inputs!L226) -> 0 | N36: =IF(Inputs!M226="",M36*(1-Inputs!N$193),Inputs!M226) -> 0 | O36: =IF(Inputs!N226="",N36*(1-Inputs!O$193),Inputs!N226) -> 0 | P36: =IF(Inputs!O226="",O36*(1-Inputs!P$193),Inputs!O226) -> 0
B37: NFT3 - NSW Solar Bonus Net 60ct | D37: Solar | E37: Number | F37: =Inputs!E227 -> 18 | G37: =Inputs!F227 -> 16 | H37: =Inputs!G227 -> 14 | I37: =IF(Inputs!H227="",H37*(1-Inputs!I$193),Inputs!H227) -> 0 | J37: =IF(Inputs!I227="",I37*(1-Inputs!J$193),Inputs!I227) -> 0 | K37: =IF(Inputs!J227="",J37*(1-Inputs!K$193),Inputs!J227) -> 0 | L37: =IF(Inputs!K227="",K37*(1-Inputs!L$193),Inputs!K227) -> 0 | M37: =IF(Inputs!L227="",L37*(1-Inputs!M$193),Inputs!L227) -> 0 | N37: =IF(Inputs!M227="",M37*(1-Inputs!N$193),Inputs!M227) -> 0 | O37: =IF(Inputs!N227="",N37*(1-Inputs!O$193),Inputs!N227) -> 0 | P37: =IF(Inputs!O227="",O37*(1-Inputs!P$193),Inputs!O227) -> 0
B38: NFT4 - NSW Solar Bonus Net 20ct | D38: Solar | E38: Number | F38: =Inputs!E228 -> 309 | G38: =Inputs!F228 -> 359 | H38: =Inputs!G228 -> 366 | I38: =IF(Inputs!H228="",H38*(1-Inputs!I$193),Inputs!H228) -> 0 | J38: =IF(Inputs!I228="",I38*(1-Inputs!J$193),Inputs!I228) -> 0 | K38: =IF(Inputs!J228="",J38*(1-Inputs!K$193),Inputs!J228) -> 0 | L38: =IF(Inputs!K228="",K38*(1-Inputs!L$193),Inputs!K228) -> 0 | M38: =IF(Inputs!L228="",L38*(1-Inputs!M$193),Inputs!L228) -> 0 | N38: =IF(Inputs!M228="",M38*(1-Inputs!N$193),Inputs!M228) -> 0 | O38: =IF(Inputs!N228="",N38*(1-Inputs!O$193),Inputs!N228) -> 0 | P38: =IF(Inputs!O228="",O38*(1-Inputs!P$193),Inputs!O228) -> 0
B39: NESG - Non-elligible Solar Gen Gross $0 Credit | D39: Solar | E39: Number | F39: =Inputs!E229 -> 60 | G39: =Inputs!F229 -> 455 | H39: =Inputs!G229 -> 426 | I39: =IF(Inputs!H229="",H39*(1-Inputs!I$193),Inputs!H229) -> 414 | J39: =IF(Inputs!I229="",I39*(1-Inputs!J$193),Inputs!I229) -> 395.784 | K39: =IF(Inputs!J229="",J39*(1-Inputs!K$193),Inputs!J229) -> 374.411664 | L39: =IF(Inputs!K229="",K39*(1-Inputs!L$193),Inputs!K229) -> 354.1934341 | M39: =IF(Inputs!L229="",L39*(1-Inputs!M$193),Inputs!L229) -> 336.8379559 | N39: =IF(Inputs!M229="",M39*(1-Inputs!N$193),Inputs!M229) -> 326.0591413 | O39: =IF(Inputs!N229="",N39*(1-Inputs!O$193),Inputs!N229) -> 316.6034262 | P39: =IF(Inputs!O229="",O39*(1-Inputs!P$193),Inputs!O229) -> 307.4219268
B40: NESN - Non-elligible Solar Gen Net $0 Credit | D40: Solar | E40: Number | F40: =Inputs!E230 -> 17978 | G40: =Inputs!F230 -> 23162 | H40: =Inputs!G230 -> 26385 | I40: =IF(Inputs!H230="",H40*(1-Inputs!I$193),Inputs!H230) -> 70473 | J40: =IF(Inputs!I230="",I40*(1-Inputs!J$193),Inputs!I230) -> 67372.188 | K40: =IF(Inputs!J230="",J40*(1-Inputs!K$193),Inputs!J230) -> 63734.08985 | L40: =IF(Inputs!K230="",K40*(1-Inputs!L$193),Inputs!K230) -> 60292.449 | M40: =IF(Inputs!L230="",L40*(1-Inputs!M$193),Inputs!L230) -> 57338.119 | N40: =IF(Inputs!M230="",M40*(1-Inputs!N$193),Inputs!M230) -> 55503.29919 | O40: =IF(Inputs!N230="",N40*(1-Inputs!O$193),Inputs!N230) -> 53893.70351 | P40: =IF(Inputs!O230="",O40*(1-Inputs!P$193),Inputs!O230) -> 52330.78611
B41: GENR - Import Export Energy Generators | D41: Solar | E41: Number | F41: =Inputs!E231 -> 3251 | G41: =Inputs!F231 -> 3241 | H41: =Inputs!G231 -> 3228 | I41: =IF(Inputs!H231="",H41*(1-Inputs!I$193),Inputs!H231) -> 3912 | J41: =IF(Inputs!I231="",I41*(1-Inputs!J$193),Inputs!I231) -> 3739.872 | K41: =IF(Inputs!J231="",J41*(1-Inputs!K$193),Inputs!J231) -> 3537.918912 | L41: =IF(Inputs!K231="",K41*(1-Inputs!L$193),Inputs!K231) -> 3346.871291 | M41: =IF(Inputs!L231="",L41*(1-Inputs!M$193),Inputs!L231) -> 3182.874598 | N41: =IF(Inputs!M231="",M41*(1-Inputs!N$193),Inputs!M231) -> 3081.02261 | O41: =IF(Inputs!N231="",N41*(1-Inputs!O$193),Inputs!N231) -> 2991.672955 | P41: =IF(Inputs!O231="",O41*(1-Inputs!P$193),Inputs!O231) -> 2904.914439
B42: Total | E42: Number | F42: =SUM(F35:F41) -> 64715 | G42: 69790 | H42: 72914 | I42: 74799 | J42: 71507.844 | K42: 67646.42042 | L42: =SUM(L35:L41) -> 63993.51372 | M42: =SUM(M35:M41) -> 60857.83155 | N42: =SUM(N35:N41) -> 58910.38094 | O42: =SUM(O35:O41) -> 57201.97989 | P42: =SUM(P35:P41) -> 55543.12248
B44: Average Customer Numbers | E44: Units | G44: =INDEX(ModelYears, COLUMN()-COLUMN($E$44)) -> 2014-15 | H44: 2015-16 | I44: 2016-17 | J44: 2017-18 | K44: 2018-19 | L44: 2019-20 | M44: 2020-21 | N44: 2021-22 | O44: 2022-23 | P44: 2023-24
B45: Residential Anytime | E45: Number | G45: =AVERAGE(SUMIF($C$6:$C$42,$B45,F$6:F$42),SUMIF($C$6:$C$42,$B45,G$6:G$42)) -> 843842.5 | H45: 859417 | I45: 879319.5 | J45: 870337.848 | K45: 827789.1842 | L45: =AVERAGE(SUMIF($C$6:$C$42,$B45,K$6:K$42),SUMIF($C$6:$C$42,$B45,L$6:L$42)) -> 783088.5683 | M45: =AVERAGE(SUMIF($C$6:$C$42,$B45,L$6:L$42),SUMIF($C$6:$C$42,$B45,M$6:M$42)) -> 742705.1817 | N45: =AVERAGE(SUMIF($C$6:$C$42,$B45,M$6:M$42),SUMIF($C$6:$C$42,$B45,N$6:N$42)) -> 712467.069 | O45: =AVERAGE(SUMIF($C$6:$C$42,$B45,N$6:N$42),SUMIF($C$6:$C$42,$B45,O$6:O$42)) -> 690719.4461 | P45: =AVERAGE(SUMIF($C$6:$C$42,$B45,O$6:O$42),SUMIF($C$6:$C$42,$B45,P$6:P$42)) -> 670688.5822
B46: Residential TOU - Type 6 Meter | E46: Number | G46: =AVERAGE(SUMIF($C$6:$C$42,$B46,F$6:F$42),SUMIF($C$6:$C$42,$B46,G$6:G$42)) -> 20.5 | H46: 20 | I46: 20 | J46: 20.538 | K46: 19.533948 | L46: 18.47911481 | M46: 17.52615844 | N46: 16.81260754 | O46: 16.29941294 | P46: 15.82672997
B47: Residential TOU - Type 5 Meter | E47: Number | G47: 0.5 | H47: 1 | I47: 9.5 | J47: 17.604 | K47: 16.743384 | L47: 15.83924126 | M47: 15.02242152 | N47: 14.41080646 | O47: 13.97092538 | P47: 13.56576854
B48: Small Business Anytime | E48: Number | G48: 76684.5 | H48: 75623.5 | I48: 75822 | J48: 74598.906 | K48: 70951.95008 | L48: 67120.54477 | M48: 63659.18036 | N48: 61067.39357 | O48: 59203.34862 | P48: 57486.45151
B49: Small Business TOU - Type 6 Meter | E49: Number | G49: 1829.5 | H49: 1932 | I49: 1939 | J49: 1911.012 | K49: 1817.587352 | L49: 1719.437635 | M49: 1630.767314 | N49: 1564.373101 | O49: 1516.621566 | P49: 1472.639541
B50: Small Business TOU - Type 5 Meter | E50: Number | G50: 370.5 | H50: 368 | I50: 365 | J50: 355.992 | K50: 338.588432 | L50: 320.3046567 | M50: 303.7867463 | N50: 291.4185306 | O50: 282.5231577 | P50: 274.3299861
B51: Controlled Load | E51: Number | G51: =AVERAGE(SUMIF($D$6:$D$42,$B51,F$6:F$42),SUMIF($D$6:$D$42,$B51,G$6:G$42)) -> 354637.5 | H51: 353187.5 | I51: 352509 | J51: 344475.072 | K51: 327634.5381 | L51: 309942.2731 | M51: 293958.7443 | N51: 281990.6608 | O51: 273383.0678 | P51: 265454.9589
B52: Solar | E52: Number | G52: =AVERAGE(SUMIF($D$6:$D$42,$B52,F$6:F$42),SUMIF($D$6:$D$42,$B52,G$6:G$42)) -> 88086 | H52: 97007.5 | I52: 103347.5 | J52: 103836.216 | K52: 98759.92034 | L52: 93426.88464 | M52: 88608.91877 | N52: 85001.3413 | O52: 82406.72719 | P52: 80016.9321

Sheet Calc Revenue & Annual Charges
A1: =IF(Solved, "X-factors Okay", "X-factor Error") -> X-factors Okay
B2: =ModelTitle -> ENDEAVOUR ENERGY METERING PRICING MODEL
B3: SMOOTH REVENUE FROM TARIFFS
B5: ='Calc Customer Numbers'!B44 -> Average Customer Numbers | C5: ='Calc Customer Numbers'!E44 -> Units | E5: =INDEX(ModelYears, COLUMN()-COLUMN($C$5)) -> 2014-15 | F5: 2015-16 | G5: 2016-17 | H5: 2017-18 | I5: 2018-19 | J5: 2019-20 | K5: 2020-21 | L5: 2021-22 | M5: 2022-23 | N5: 2023-24
B6: ='Calc Customer Numbers'!B45 -> Residential Anytime | C6: ='Calc Customer Numbers'!E45 -> Number | E6: ='Calc Customer Numbers'!G45 -> 843842.5 | F6: ='Calc Customer Numbers'!H45 -> 859417 | G6: ='Calc Customer Numbers'!I45 -> 879319.5 | H6: ='Calc Customer Numbers'!J45 -> 870337.848 | I6: ='Calc Customer Numbers'!K45 -> 827789.1842 | J6: ='Calc Customer Numbers'!L45 -> 783088.5683 | K6: ='Calc Customer Numbers'!M45 -> 742705.1817 | L6: ='Calc Customer Numbers'!N45 -> 712467.069 | M6: ='Calc Customer Numbers'!O45 -> 690719.4461 | N6: ='Calc Customer Numbers'!P45 -> 670688.5822
B7: ='Calc Customer Numbers'!B46 -> Residential TOU - Type 6 Meter | C7: ='Calc Customer Numbers'!E46 -> Number | E7: ='Calc Customer Numbers'!G46 -> 20.5 | F7: ='Calc Customer Numbers'!H46 -> 20 | G7: ='Calc Customer Numbers'!I46 -> 20 | H7: ='Calc Customer Numbers'!J46 -> 20.538 | I7: ='Calc Customer Numbers'!K46 -> 19.533948 | J7: ='Calc Customer Numbers'!L46 -> 18.47911481 | K7: ='Calc Customer Numbers'!M46 -> 17.52615844 | L7: ='Calc Customer Numbers'!N46 -> 16.81260754 | M7: ='Calc Customer Numbers'!O46 -> 16.29941294 | N7: ='Calc Customer Numbers'!P46 -> 15.82672997
B8: ='Calc Customer Numbers'!B47 -> Residential TOU - Type 5 Meter | C8: ='Calc Customer Numbers'!E47 -> Number | E8: ='Calc Customer Numbers'!G47 -> 0.5 | F8: ='Calc Customer Numbers'!H47 -> 1 | G8: ='Calc Customer Numbers'!I47 -> 9.5 | H8: ='Calc Customer Numbers'!J47 -> 17.604 | I8: ='Calc Customer Numbers'!K47 -> 16.743384 | J8: ='Calc Customer Numbers'!L47 -> 15.83924126 | K8: ='Calc Customer Numbers'!M47 -> 15.02242152 | L8: ='Calc Customer Numbers'!N47 -> 14.41080646 | M8: ='Calc Customer Numbers'!O47 -> 13.97092538 | N8: ='Calc Customer Numbers'!P47 -> 13.56576854
B9: ='Calc Customer Numbers'!B48 -> Small Business Anytime | C9: ='Calc Customer Numbers'!E48 -> Number | E9: ='Calc Customer Numbers'!G48 -> 76684.5 | F9: ='Calc Customer Numbers'!H48 -> 75623.5 | G9: ='Calc Customer Numbers'!I48 -> 75822 | H9: ='Calc Customer Numbers'!J48 -> 74598.906 | I9: ='Calc Customer Numbers'!K48 -> 70951.95008 | J9: ='Calc Customer Numbers'!L48 -> 67120.54477 | K9: ='Calc Customer Numbers'!M48 -> 63659.18036 | L9: ='Calc Customer Numbers'!N48 -> 61067.39357 | M9: ='Calc Customer Numbers'!O48 -> 59203.34862 | N9: ='Calc Customer Numbers'!P48 -> 57486.45151
B10: ='Calc Customer Numbers'!B49 -> Small Business TOU - Type 6 Meter | C10: ='Calc Customer Numbers'!E49 -> Number | E10: ='Calc Customer Numbers'!G49 -> 1829.5 | F10: ='Calc Customer Numbers'!H49 -> 1932 | G10: ='Calc Customer Numbers'!I49 -> 1939 | H10: ='Calc Customer Numbers'!J49 -> 1911.012 | I10: ='Calc Customer Numbers'!K49 -> 1817.587352 | J10: ='Calc Customer Numbers'!L49 -> 1719.437635 | K10: ='Calc Customer Numbers'!M49 -> 1630.767314 | L10: ='Calc Customer Numbers'!N49 -> 1564.373101 | M10: ='Calc Customer Numbers'!O49 -> 1516.621566 | N10: ='Calc Customer Numbers'!P49 -> 1472.639541
B11: ='Calc Customer Numbers'!B50 -> Small Business TOU - Type 5 Meter | C11: ='Calc Customer Numbers'!E50 -> Number | E11: ='Calc Customer Numbers'!G50 -> 370.5 | F11: ='Calc Customer Numbers'!H50 -> 368 | G11: ='Calc Customer Numbers'!I50 -> 365 | H11: ='Calc Customer Numbers'!J50 -> 355.992 | I11: ='Calc Customer Numbers'!K50 -> 338.588432 | J11: ='Calc Customer Numbers'!L50 -> 320.3046567 | K11: ='Calc Customer Numbers'!M50 -> 303.7867463 | L11: ='Calc Customer Numbers'!N50 -> 291.4185306 | M11: ='Calc Customer Numbers'!O50 -> 282.5231577 | N11: ='Calc Customer Numbers'!P50 -> 274.3299861
B12: ='Calc Customer Numbers'!B51 -> Controlled Load | C12: ='Calc Customer Numbers'!E51 -> Number | E12: ='Calc Customer Numbers'!G51 -> 354637.5 | F12: ='Calc Customer Numbers'!H51 -> 353187.5 | G12: ='Calc Customer Numbers'!I51 -> 352509 | H12: ='Calc Customer Numbers'!J51 -> 344475.072 | I12: ='Calc Customer Numbers'!K51 -> 327634.5381 | J12: ='Calc Customer Numbers'!L51 -> 309942.2731 | K12: ='Calc Customer Numbers'!M51 -> 293958.7443 | L12: ='Calc Customer Numbers'!N51 -> 281990.6608 | M12: ='Calc Customer Numbers'!O51 -> 273383.0678 | N12: ='Calc Customer Numbers'!P51 -> 265454.9589
B13: ='Calc Customer Numbers'!B52 -> Solar | C13: ='Calc Customer Numbers'!E52 -> Number | E13: ='Calc Customer Numbers'!G52 -> 88086 | F13: ='Calc Customer Numbers'!H52 -> 97007.5 | G13: ='Calc Customer Numbers'!I52 -> 103347.5 | H13: ='Calc Customer Numbers'!J52 -> 103836.216 | I13: ='Calc Customer Numbers'!K52 -> 98759.92034 | J13: ='Calc Customer Numbers'!L52 -> 93426.88464 | K13: ='Calc Customer Numbers'!M52 -> 88608.91877 | L13: ='Calc Customer Numbers'!N52 -> 85001.3413 | M13: ='Calc Customer Numbers'!O52 -> 82406.72719 | N13: ='Calc Customer Numbers'!P52 -> 80016.9321
B15: Inflation | C15: Units | E15: =INDEX(ModelYears, COLUMN()-COLUMN($C$19)) -> 2014-15 | F15: 2015-16 | G15: 2016-17 | H15: 2017-18 | I15: 2018-19 | J15: 2019-20 | K15: 2020-21 | L15: 2021-22 | M15: 2022-23 | N15: 2023-24
B16: CPI | C16: % | E16: =Inputs!F12 -> 0.0245 | F16: =Inputs!G12 -> 0.0249 | G16: =Inputs!H12 -> 0.0151 | H16: =Inputs!I12 -> 0.01276990945 | I16: =Inputs!J12 -> 0.01948647409 | J16: =Inputs!K12 -> 0.025 | K16: =Inputs!L12 -> 0.025 | L16: =Inputs!M12 -> 0.025 | M16: =Inputs!N12 -> 0.025 | N16: =Inputs!O12 -> 0.025
B17: X-factors | C17: % | G17: =IF(Inputs!H19="",'Calc Building Blocks & Xfactors'!G20,Inputs!H19) -> -0.02246252228 | H17: =IF(Inputs!I19="",'Calc Building Blocks & Xfactors'!H20,Inputs!I19) -> -0.02246252228 | I17: =IF(Inputs!J19="",'Calc Building Blocks & Xfactors'!I20,Inputs!J19) -> -0.02246252228 | J17: =IF(Inputs!K19="",'Calc Building Blocks & Xfactors'!J20,Inputs!K19) -> -0.2511119597 | K17: =IF(Inputs!L19="",'Calc Building Blocks & Xfactors'!K20,Inputs!L19) -> 0 | L17: =IF(Inputs!M19="",'Calc Building Blocks & Xfactors'!L20,Inputs!M19) -> 0 | M17: =IF(Inputs!N19="",'Calc Building Blocks & Xfactors'!M20,Inputs!N19) -> 0 | N17: =IF(Inputs!O19="",'Calc Building Blocks & Xfactors'!N20,Inputs!O19) -> 0
B19: Inflation | C19: Units | E19: =INDEX(ModelYears, COLUMN()-COLUMN($C$19)) -> 2014-15 | F19: 2015-16 | G19: 2016-17 | H19: 2017-18 | I19: 2018-19 | J19: 2019-20 | K19: 2020-21 | L19: 2021-22 | M19: 2022-23 | N19: 2023-24
B20: CPI | C20: % | E20: =E16 -> 0.0245 | F20: =F16 -> 0.0249 | G20: 0.0151 | H20: 0.01276990945 | I20: 0.01948647409 | J20: 0.025 | K20: 0.025 | L20: 0.025 | M20: 0.025 | N20: 0.025
B21: X-factors | C21: % | G21: =G17 -> -0.02246252228 | H21: -0.02246252228 | I21: -0.02246252228 | J21: -0.2511119597 | K21: =K17 -> 0 | L21: 0 | M21: 0 | N21: 0
B23: Non-capital Charges | C23: Units | F23: =INDEX(ModelYears, COLUMN()-COLUMN($C$23)) -> 2015-16 | G23: 2016-17 | H23: 2017-18 | I23: 2018-19 | J23: 2019-20 | K23: 2020-21 | L23: 2021-22 | M23: 2022-23 | N23: 2023-24
B24: Residential Anytime | C24: $ nominal / pa | F24: =Inputs!G183 -> 13.35453601 | G24: =F24*(1+G$20)*(1-G$21) -> 13.86069572 | H24: =G24*(1+H$20)*(1-H$21) -> 14.35301759 | I24: 14.96139481 | J24: 19.18633948 | K24: 19.66599797 | L24: 20.15764792 | M24: 20.66158912 | N24: 21.17812885
B25: Residential TOU - Type 6 Meter | C25: $ nominal / pa | F25: =Inputs!G184 -> 29.12342391 | G25: =F25*(1+G$20)*(1-G$21) -> 30.22725137 | H25: 31.30090146 | I25: 32.62764375 | J25: 41.8413562 | K25: 42.8873901 | L25: 43.95957485 | M25: 45.05856423 | N25: 46.18502833
B26: Residential TOU - Type 5 Meter | C26: $ nominal / pa | F26: =Inputs!G185 -> 122.1096573 | G26: =F26*(1+G$20)*(1-G$21) -> 126.7378217 | H26: 131.2394574 | I26: 136.8022665 | J26: 175.4338255 | K26: 179.8196711 | L26: 184.3151629 | M26: 188.923042 | N26: 193.646118
B27: Small Business Anytime | C27: $ nominal / pa | F27: =Inputs!G186 -> 20.23519077 | G27: =F27*(1+G$20)*(1-G$21) -> 21.00213902 | H27: 21.7481198 | I27: 22.66995108 | J27: 29.0717131 | K27: 29.79850593 | L27: 30.54346858 | M27: 31.30705529 | N27: 32.08973167
B28: Small Business TOU - Type 6 Meter | C28: $ nominal / pa | F28: =Inputs!G187 -> 49.76538817 | G28: =F28*(1+G$20)*(1-G$21) -> 51.6515813 | H28: 53.48620808 | I28: 55.75331256 | J28: 71.49747704 | K28: 73.28491397 | L28: 75.11703682 | M28: 76.99496274 | N28: 78.91983681
B29: Small Business TOU - Type 5 Meter | C29: $ nominal / pa | F29: =Inputs!G188 -> 142.7516216 | G29: =F29*(1+G$20)*(1-G$21) -> 148.1621516 | H29: 153.424764 | I29: 159.9279353 | J29: 205.0899463 | K29: 210.217195 | L29: 215.4726249 | M29: 220.8594405 | N29: 226.3809265
B30: Controlled Load | C30: $ nominal / pa | F30: =Inputs!G189 -> 3.399650027 | G30: =F30*(1+G$20)*(1-G$21) -> 3.528502564 | H30: 3.653832421 | I30: 3.808706362 | J30: 4.884246033 | K30: 5.006352184 | L30: 5.131510989 | M30: 5.259798763 | N30: 5.391293733
B31: Solar | C31: $ nominal / pa | F31: =Inputs!G190 -> 3.399650027 | G31: =F31*(1+G$20)*(1-G$21) -> 3.528502564 | H31: 3.653832421 | I31: 3.808706362 | J31: 4.884246033 | K31: 5.006352184 | L31: 5.131510989 | M31: 5.259798763 | N31: 5.391293733
B33: Capital Charges | C33: Units | F33: =INDEX(ModelYears, COLUMN()-COLUMN($C$33)) -> 2015-16 | G33: 2016-17 | H33: 2017-18 | I33: 2018-19 | J33: 2019-20 | K33: 2020-21 | L33: 2021-22 | M33: 2022-23 | N33: 2023-24
B34: Residential Anytime | C34: $ nominal / pa | F34: =Inputs!G173 -> 1.450711797 | G34: =F34*(1+G$20)*(1-G$21) -> 1.50569625 | H34: =G34*(1+H$20)*(1-H$21) -> 1.559177491 | I34: 1.625265897 | J34: =I34*(1+J$20)*(1-J$21) -> 2.084224342 | K34: =J34*(1+K$20)*(1-K$21) -> 2.136329951 | L34: 2.189738199 | M34: 2.244481654 | N34: 2.300593696
B35: Residential TOU - Type 6 Meter | C35: $ nominal / pa | F35: =Inputs!G174 -> 1.450711797 | G35: =F35*(1+G$20)*(1-G$21) -> 1.50569625 | H35: 1.559177491 | I35: 1.625265897 | J35: 2.084224342 | K35: 2.136329951 | L35: 2.189738199 | M35: 2.244481654 | N35: 2.300593696
B36: Residential TOU - Type 5 Meter | C36: $ nominal / pa | F36: =Inputs!G175 -> 1.450711797 | G36: =F36*(1+G$20)*(1-G$21) -> 1.50569625 | H36: 1.559177491 | I36: 1.625265897 | J36: 2.084224342 | K36: 2.136329951 | L36: 2.189738199 | M36: 2.244481654 | N36: 2.300593696
B37: Small Business Anytime | C37: $ nominal / pa | F37: =Inputs!G176 -> 1.450711797 | G37: =F37*(1+G$20)*(1-G$21) -> 1.50569625 | H37: 1.559177491 | I37: 1.625265897 | J37: 2.084224342 | K37: 2.136329951 | L37: 2.189738199 | M37: 2.244481654 | N37: 2.300593696
B38: Small Business TOU - Type 6 Meter | C38: $ nominal / pa | F38: =Inputs!G177 -> 1.450711797 | G38: =F38*(1+G$20)*(1-G$21) -> 1.50569625 | H38: 1.559177491 | I38: 1.625265897 | J38: 2.084224342 | K38: 2.136329951 | L38: 2.189738199 | M38: 2.244481654 | N38: 2.300593696
B39: Small Business TOU - Type 5 Meter | C39: $ nominal / pa | F39: =Inputs!G178 -> 1.450711797 | G39: =F39*(1+G$20)*(1-G$21) -> 1.50569625 | H39: 1.559177491 | I39: 1.625265897 | J39: 2.084224342 | K39: 2.136329951 | L39: 2.189738199 | M39: 2.244481654 | N39: 2.300593696
B40: Controlled Load | C40: $ nominal / pa | F40: =Inputs!G179 -> 1.450711797 | G40: =F40*(1+G$20)*(1-G$21) -> 1.50569625 | H40: 1.559177491 | I40: 1.625265897 | J40: 2.084224342 | K40: 2.136329951 | L40: 2.189738199 | M40: 2.244481654 | N40: 2.300593696
B41: Solar | C41: $ nominal / pa | F41: =Inputs!G180 -> 1.450711797 | G41: =F41*(1+G$20)*(1-G$21) -> 1.50569625 | H41: 1.559177491 | I41: 1.625265897 | J41: 2.084224342 | K41: 2.136329951 | L41: 2.189738199 | M41: 2.244481654 | N41: 2.300593696
B43: Revenue - Non Capital | C43: Units | F43: =INDEX(ModelYears, COLUMN()-COLUMN($C$43)) -> 2015-16 | G43: 2016-17 | H43: 2017-18 | I43: 2018-19 | J43: 2019-20 | K43: 2020-21 | L43: 2021-22 | M43: 2022-23 | N43: 2023-24
B44: Residential Anytime | C44: $m nominal | F44: =F6*F24/1000000 -> 11.47711528 | G44: =G6*G24/1000000 -> 12.18798003 | H44: 12.49197444 | I44: 12.38488081 | J44: 15.02460312 | K44: 14.6060386 | L44: 14.36166033 | M44: 14.27136139 | N44: 14.20392921
B45: Residential TOU - Type 6 Meter | C45: $m nominal | F45: 0.0005824684783 | G45: =G7*G25/1000000 -> 0.0006045450275 | H45: 0.0006428579142 | I45: 0.0006373466964 | J45: 0.0007731912249 | K45: 0.0007516511941 | L45: 0.0007390750795 | M45: 0.0007344281449 | N45: 0.0007309579719
B46: Residential TOU - Type 5 Meter | C46: $m nominal | F46: 0.0001221096573 | G46: =G8*G26/1000000 -> 0.001204009306 | H46: 0.002310339408 | I46: 0.002290532879 | J46: 0.002778738688 | K46: 0.002701326897 | L46: 0.00265613014 | M46: 0.002639429722 | N46: 0.002626958416
B47: Small Business Anytime | C47: $m nominal | F47: 1.530255949 | G47: =G9*G27/1000000 -> 1.592424185 | H47: 1.622385945 | I47: 1.608477238 | J47: 1.951309221 | K47: 1.896948463 | L47: 1.865210017 | M47: 1.853482509 | N47: 1.844724804
B48: Small Business TOU - Type 6 Meter | C48: $m nominal | F48: 0.09614672994 | G48: =G10*G28/1000000 -> 0.1001524161 | H48: =H10*H28/1000000 -> 0.1022127855 | I48: 0.1013365157 | J48: 0.1229354528 | K48: 0.1195106423 | L48: 0.1175110718 | M48: 0.116772221 | N48: 0.1162204722
B49: Small Business TOU - Type 5 Meter | C49: $m nominal | F49: 0.05253259675 | G49: =G11*G29/1000000 -> 0.05407918535 | H49: 0.05461798859 | I49: 0.05414974884 | J49: 0.06569126484 | K49: 0.06386119769 | L49: 0.06279271573 | M49: 0.06239790653 | N49: 0.06210307642
B50: Controlled Load | C50: $m nominal | F50: 1.200713894 | G50: =G12*G30/1000000 -> 1.24382891 | H50: 1.258654186 | I50: 1.24786375 | J50: 1.513834318 | K50: 1.471661002 | L50: 1.447038175 | M50: 1.437939922 | N50: 1.431145656
B51: Solar | C51: $m nominal | F51: 0.32979155 | G51: =G13*G31/1000000 -> 0.3646619187 | H51: 0.3794001325 | I51: 0.3761475369 | J51: 0.4563198907 | K51: 0.443607454 | L51: 0.436185317 | M51: 0.4334428018 | N51: 0.4313947845
B52: Total Revenue | C52: $m nominal | F52: =SUM(F44:F51) -> 14.68726057 | G52: 15.5449352 | H52: 15.91219868 | I52: 15.77578348 | J52: 19.13824519 | K52: 18.60508033 | L52: 18.29379283 | M52: 18.17877061 | N52: 18.09287592
B54: Revenue - Capital | C54: Units | F54: =INDEX(ModelYears, COLUMN()-COLUMN($C$43)) -> 2015-16 | G54: 2016-17 | H54: 2017-18 | I54: 2018-19 | J54: 2019-20 | K54: 2020-21 | L54: 2021-22 | M54: 2022-23 | N54: 2023-24 | P54: Note: the Revenue is calculated every year using the customer numbers as at 2014-15, which represents the number of customers that will pay the ongoing capital charge that leave Endeavour as metering providing after 30 June 2015.
B55: Residential Anytime | C55: $m nominal | F55: =$E6*F34/1000000 -> 1.22417227 | G55: =$E6*G34/1000000 -> 1.270570488 | H55: 1.315700232 | I55: 1.371468438 | J55: 1.758757079 | K55: 1.802726006 | L55: 1.847794157 | M55: 1.89398901 | N55: 1.941338736
B56: Residential TOU - Type 6 Meter | C56: $m nominal | F56: =$E7*F35/1000000 -> 2.973959184e-05 | G56: 3.086677312e-05 | H56: 3.196313856e-05 | I56: 3.33179509e-05 | J56: 4.272659901e-05 | K56: 4.379476399e-05 | L56: 4.488963309e-05 | M56: 4.601187392e-05 | N56: 4.716217076e-05
B57: Residential TOU - Type 5 Meter | C57: $m nominal | F57: =$E8*F36/1000000 -> 7.253558986e-07 | G57: 7.528481249e-07 | H57: 7.795887453e-07 | I57: 8.126329487e-07 | J57: 1.042112171e-06 | K57: 1.068164975e-06 | L57: 1.0948691e-06 | M57: 1.122240827e-06 | N57: 1.150296848e-06
B58: Small Business Anytime | C58: $m nominal | F58: =$E9*F37/1000000 -> 0.1112471088 | G58: 0.1154635641 | H58: 0.1195647463 | I58: 0.1246327027 | J58: 0.1598277016 | K58: 0.1638233941 | L58: 0.167918979 | M58: 0.1721169534 | N58: 0.1764198773
B59: Small Business TOU - Type 6 Meter | C59: $m nominal | F59: =$E10*F38/1000000 -> 0.002654077233 | G59: 0.002754671289 | H59: 0.002852515219 | I59: 0.002973423959 | J59: 0.003813088434 | K59: 0.003908415645 | L59: 0.004006126036 | M59: 0.004106279187 | N59: 0.004208936166
B60: Small Business TOU - Type 5 Meter | C60: $m nominal | F60: =$E11*F39/1000000 -> 0.0005374887209 | G60: 0.0005578604605 | H60: 0.0005776752603 | I60: 0.000602161015 | J60: 0.0007722051188 | K60: 0.0007915102467 | L60: 0.0008112980029 | M60: 0.000831580453 | N60: 0.0008523699643
B61: Controlled Load | C61: $m nominal | F61: =$E12*F40/1000000 -> 0.514476805 | G61: 0.5339763538 | H61: 0.5529428073 | I61: 0.5763802347 | J61: 0.7391441101 | K61: 0.7576227129 | L61: 0.7765632807 | M61: 0.7959773627 | N61: 0.8158767968
B62: Solar | C62: $m nominal | F62: =$E13*F41/1000000 -> 0.1277873994 | G62: 0.1326307599 | H62: 0.1373417084 | I62: 0.1431631718 | J62: 0.1835909854 | K62: 0.18818076 | L62: 0.192885279 | M62: 0.197707411 | N62: 0.2026500963
B63: Total Revenue | C63: $m nominal | F63: =SUM(F55:F62) -> 1.980905614 | G63: 2.055985317 | H63: 2.129012427 | I63: 2.219254263 | J63: 2.845948939 | K63: 2.917097662 | L63: 2.990025104 | M63: 3.064775731 | N63: 3.141395125
B65: Revenue - Total | C65: Units | F65: =INDEX(ModelYears, COLUMN()-COLUMN($C$65)) -> 2015-16 | G65: 2016-17 | H65: 2017-18 | I65: 2018-19 | J65: 2019-20 | K65: 2020-21 | L65: 2021-22 | M65: 2022-23 | N65: 2023-24
B66: Residential Anytime | C66: $m nominal | F66: =F44+F55 -> 12.70128755 | G66: 13.45855051 | H66: 13.80767468 | I66: 13.75634924 | J66: 16.7833602 | K66: 16.4087646 | L66: 16.20945449 | M66: 16.1653504 | N66: 16.14526795
B67: Residential TOU - Type 6 Meter | C67: $m nominal | F67: =F45+F56 -> 0.0006122080701 | G67: 0.0006354118006 | H67: 0.0006748210528 | I67: 0.0006706646473 | J67: 0.0008159178239 | K67: 0.0007954459581 | L67: 0.0007839647126 | M67: 0.0007804400188 | N67: 0.0007781201427
B68: Residential TOU - Type 5 Meter | C68: $m nominal | F68: =F46+F57 -> 0.0001228350132 | G68: 0.001204762155 | H68: 0.002311118997 | I68: 0.002291345512 | J68: 0.0027797808 | K68: 0.002702395062 | L68: 0.002657225009 | M68: 0.002640551963 | N68: 0.002628108713
B69: Small Business Anytime | C69: $m nominal | F69: =F47+F58 -> 1.641503058 | G69: 1.707887749 | H69: 1.741950691 | I69: 1.73310994 | J69: 2.111136922 | K69: 2.060771857 | L69: 2.033128996 | M69: 2.025599462 | N69: 2.021144681
B70: Small Business TOU - Type 6 Meter | C70: $m nominal | F70: =F48+F59 -> 0.09880080718 | G70: 0.1029070874 | H70: 0.1050653007 | I70: 0.1043099397 | J70: 0.1267485413 | K70: 0.123419058 | L70: 0.1215171979 | M70: 0.1208785002 | N70: 0.1204294084
B71: Small Business TOU - Type 5 Meter | C71: $m nominal | F71: =F49+F60 -> 0.05307008547 | G71: 0.05463704581 | H71: 0.05519566385 | I71: 0.05475190985 | J71: 0.06646346996 | K71: 0.06465270793 | L71: 0.06360401373 | M71: 0.06322948698 | N71: 0.06295544638
B72: Controlled Load | C72: $m nominal | F72: =F50+F61 -> 1.715190699 | G72: 1.777805264 | H72: 1.811596994 | I72: 1.824243985 | J72: 2.252978428 | K72: 2.229283715 | L72: 2.223601455 | M72: 2.233917285 | N72: 2.247022453
B73: Solar | C73: $m nominal | F73: =F51+F62 -> 0.4575789494 | G73: 0.4972926786 | H73: 0.5167418409 | I73: 0.5193107088 | J73: 0.6399108761 | K73: 0.631788214 | L73: 0.629070596 | M73: 0.6311502128 | N73: 0.6340448808
B74: Total Revenue | C74: $m nominal | F74: =SUM(F66:F73) -> 16.66816619 | G74: 17.60092051 | H74: 18.04121111 | I74: 17.99503774 | J74: 21.98419413 | K74: 21.522178 | L74: 21.28381794 | M74: 21.24354634 | N74: 21.23427104

Sheet Calc Daily Charges
A1: =IF(Solved, "X-factors Okay", "X-factor Error") -> X-factors Okay
B2: =ModelTitle -> ENDEAVOUR ENERGY METERING PRICING MODEL
B3: CALCULATION OF DAILY CHARGES
B5: Number of days | C5: Units | F5: =INDEX(ModelYears, COLUMN()-COLUMN($C$5)) -> 2015-16 | G5: 2016-17 | H5: 2017-18 | I5: 2018-19 | J5: 2019-20 | K5: 2020-21 | L5: 2021-22 | M5: 2022-23 | N5: 2023-24
B6: Chargeable days | F6: =Inputs!G32 -> 366 | G6: =Inputs!H32 -> 365 | H6: =Inputs!I32 -> 365 | I6: =Inputs!J32 -> 365 | J6: =Inputs!K32 -> 366 | K6: =Inputs!L32 -> 365 | L6: =Inputs!M32 -> 365 | M6: =Inputs!N32 -> 365 | N6: =Inputs!O32 -> 366
B8: Total Charges | C8: Units | F8: =INDEX(ModelYears, COLUMN()-COLUMN($C$5)) -> 2015-16 | G8: 2016-17 | H8: 2017-18 | I8: 2018-19 | J8: 2019-20 | K8: 2020-21 | L8: 2021-22 | M8: 2022-23 | N8: 2023-24
B9: Residential Anytime | C9: $ nominal | F9: =ROUNDDOWN(ROUND(('Calc Revenue & Annual Charges'!F24+'Calc Revenue & Annual Charges'!F34),Inputs!G$35)/Inputs!G$32,Inputs!G$36) -> 0.04046 | G9: =ROUNDDOWN(ROUND(('Calc Revenue & Annual Charges'!G24+'Calc Revenue & Annual Charges'!G34),Inputs!H$35)/Inputs!H$32,Inputs!H$36) -> 0.0421 | H9: =ROUNDDOWN(ROUND(('Calc Revenue & Annual Charges'!H24+'Calc Revenue & Annual Charges'!H34),Inputs!I$35)/Inputs!I$32,Inputs!I$36) -> 0.04358 | I9: =ROUNDDOWN(ROUND(('Calc Revenue & Annual Charges'!I24+'Calc Revenue & Annual Charges'!I34),Inputs!J$35)/Inputs!J$32,Inputs!J$36) -> 0.04545 | J9: =ROUNDDOWN(ROUND(('Calc Revenue & Annual Charges'!J24+'Calc Revenue & Annual Charges'!J34),Inputs!K$35)/Inputs!K$32,Inputs!K$36) -> 0.05811 | K9: =ROUNDDOWN(ROUND(('Calc Revenue & Annual Charges'!K24+'Calc Revenue & Annual Charges'!K34),Inputs!L$35)/Inputs!L$32,Inputs!L$36) -> 0.05972 | L9: =ROUNDDOWN(ROUND(('Calc Revenue & Annual Charges'!L24+'Calc Revenue & Annual Charges'!L34),Inputs!M$35)/Inputs!M$32,Inputs!M$36) -> 0.06123 | M9: =ROUNDDOWN(ROUND(('Calc Revenue & Annual Charges'!M24+'Calc Revenue & Annual Charges'!M34),Inputs!N$35)/Inputs!N$32,Inputs!N$36) -> 0.06276 | N9: =ROUNDDOWN(ROUND(('Calc Revenue & Annual Charges'!N24+'Calc Revenue & Annual Charges'!N34),Inputs!O$35)/Inputs!O$32,Inputs!O$36) -> 0.06415
B10: Residential TOU - Type 6 Meter | C10: $ nominal | F10: =ROUNDDOWN(ROUND(('Calc Revenue & Annual Charges'!F25+'Calc Revenue & Annual Charges'!F35),Inputs!G$35)/Inputs!G$32,Inputs!G$36) -> 0.08352 | G10: =ROUNDDOWN(ROUND(('Calc Revenue & Annual Charges'!G25+'Calc Revenue & Annual Charges'!G35),Inputs!H$35)/Inputs!H$32,Inputs!H$36) -> 0.08693 | H10: =ROUNDDOWN(ROUND(('Calc Revenue & Annual Charges'!H25+'Calc Revenue & Annual Charges'!H35),Inputs!I$35)/Inputs!I$32,Inputs!I$36) -> 0.09002 | I10: =ROUNDDOWN(ROUND(('Calc Revenue & Annual Charges'!I25+'Calc Revenue & Annual Charges'!I35),Inputs!J$35)/Inputs!J$32,Inputs!J$36) -> 0.09383 | J10: =ROUNDDOWN(ROUND(('Calc Revenue & Annual Charges'!J25+'Calc Revenue & Annual Charges'!J35),Inputs!K$35)/Inputs!K$32,Inputs!K$36) -> 0.12002 | K10: =ROUNDDOWN(ROUND(('Calc Revenue & Annual Charges'!K25+'Calc Revenue & Annual Charges'!K35),Inputs!L$35)/Inputs!L$32,Inputs!L$36) -> 0.12334 | L10: =ROUNDDOWN(ROUND(('Calc Revenue & Annual Charges'!L25+'Calc Revenue & Annual Charges'!L35),Inputs!M$35)/Inputs!M$32,Inputs!M$36) -> 0.12643 | M10: =ROUNDDOWN(ROUND(('Calc Revenue & Annual Charges'!M25+'Calc Revenue & Annual Charges'!M35),Inputs!N$35)/Inputs!N$32,Inputs!N$36) -> 0.12958 | N10: =ROUNDDOWN(ROUND(('Calc Revenue & Annual Charges'!N25+'Calc Revenue & Annual Charges'!N35),Inputs!O$35)/Inputs!O$32,Inputs!O$36) -> 0.13248
